Workbook

Sheet ENERO
K11: 2025-01-31
A12: INVENTARIO DE ALMACEN
A13: CODIGO | B13: DESCRIPCION DEL PRODUCTO | E13: CANTIDAD | F13: ENTRADA | G13: TOTAL | H13: PRECIO | I13: SALIDA DE USO MENSUAL | J13: CANTIDAD ACTIVA EN ALMACEN | K13: VALOR TOTAL ACTIVO | L13: VALORDE TOTAL CONSUMO
A14: 101 | B14: ACORDEON 10*12 CARTON PIEDRA | D14: UNID | E14: 3 | F14: 0 | G14: =E14+F14 -> 3 | H14: 744.00 $ | I14: 2 | J14: =G14-I14 -> 1 | K14: =H14*J14 -> $744.00 | L14: =H14*I14 -> $1,488.00
A15: 102 | B15: AGENDA | D15: UNID | E15: 0 | F15: 0 | G15: =E15+F15 -> 0 | H15: 430.00 $ | I15: 0 | J15: =G15-I15 -> 0 | K15: =H15*J15 -> 0 | L15: =H15*I15 -> 0
A16: 103 | B16: ALMOHADILLA PARA SELLO | D16: UNID | E16: 0 | F16: 0 | G16: 0 | H16: 80.00 $ | I16: 0 | J16: 0 | K16: 0 | L16: 0
A17: 104 | B17: AMBIENTADOR SPRAY | D17: UNID | E17: 4 | F17: 12 | G17: 16 | H17: 145.00 $ | I17: 16 | J17: 0 | K17: 0 | L17: $2,320.00
A18: 105 | B18: AGUA BOTELLITAS | D18: UNID | E18: 200 | F18: 0 | G18: 200 | H18: 6.50 $ | I18: 160 | J18: 40 | K18: $260.00 | L18: $1,040.00
A19: 106 | B19: AXION EN PASTA | D19: UNID | E19: 0 | F19: 24 | G19: 24 | H19: 116.00 $ | I19: 17 | J19: 7 | K19: $812.00 | L19: $1,972.00
A20: 107 | B20: BANDER 1´´ CARPETA CUBIERTA | D20: UNID | E20: 0 | F20: 0 | G20: 0 | H20: 271.00 $ | I20: 0 | J20: 0 | K20: 0 | L20: 0
A21: 108 | B21: BAYGON 400ML | D21: UNID | E21: 7 | F21: 12 | G21: 19 | H21: 348.10 $ | I21: 16 | J21: 3 | K21: $1,044.30 | L21: $5,569.60
A22: 109 | B22: BOLIGRAFOS AZULES | D22: UNID | E22: 86 | F22: 120 | G22: 206 | H22: 10.10 $ | I22: 100 | J22: 106 | K22: $1,070.60 | L22: $1,010.00
A23: 110 | B23: BOLIGRAFOS NEGROS | D23: UNID | E23: 7 | F23: 62 | G23: 69 | H23: 7.00 $ | I23: 9 | J23: 60 | K23: $420.00 | L23: $63.00
A24: 111 | B24: BOLIGRAFOS ROJOS | D24: UNID | E24: 11 | F24: 120 | G24: 131 | H24: 7.00 $ | I24: 18 | J24: 113 | K24: $791.00 | L24: $126.00
A25: 112 | B25: BOLIGRAFOS VERDES | D25: UNID | E25: 0 | F25: 0 | G25: 0 | H25: 10.00 $ | I25: 0 | J25: 0 | K25: 0 | L25: 0
A26: 113 | B26: BORRANTE DE LECHE | D26: UNID | E26: 14 | F26: 0 | G26: 14 | H26: 8.00 $ | I26: 1 | J26: 13 | K26: $104.00 | L26: $8.00
A27: 114 | B27: BRILLO GRUESO 12/1 PROMANO | D27: UNID | E27: 0 | F27: 35 | G27: 35 | H27: 69.60 $ | I27: 1 | J27: 34 | K27: $2,366.40 | L27: $69.60
A28: 115 | B28: BRILLO GRIS | D28: UNID | E28: 12 | F28: 0 | G28: 12 | H28: 69.60 $ | I28: 0 | J28: 12 | K28: $835.20 | L28: 0
A29: 116 | B29: BRILLO VERDE Y ESPONJA | D29: UNID | E29: 33 | F29: 0 | G29: 33 | H29: 57.80 $ | I29: 33 | J29: 0 | K29: 0 | L29: $1,907.40
A30: 117 | B30: CAJA PLASTICAS DE 27 GL NEGRA | D30: UNID | E30: 10 | F30: 10 | G30: 20 | H30: 1,350.00 $ | I30: 10 | J30: 10 | K30: $13,500.00 | L30: $13,500.00
A31: 118 | B31: CAJITA DE GRAPAS ESTÁNDAR 26/6 | D31: UNID | E31: 3 | F31: 24 | G31: 27 | H31: 47.17 $ | I31: 17 | J31: 10 | K31: $471.70 | L31: $801.89
A32: 119 | B32: CALCULADORA | D32: UNID | E32: 1 | F32: 3 | G32: 4 | H32: 359.90 $ | I32: 0 | J32: 4 | K32: $1,439.60 | L32: 0
A33: 120 | B33: CARPETA NEGRA 2 | D33: UNID | E33: 0 | F33: 6 | G33: 6 | H33: 330.00 $ | I33: 3 | J33: 3 | K33: $990.00 | L33: $990.00
A34: 121 | B34: CARPETA NEGRA DE 3 HOYO | D34: UNID | E34: 0 | F34: 0 | G34: 0 | H34: 469.00 $ | I34: 0 | J34: 0 | K34: 0 | L34: 0
A35: 122 | B35: CRPETA NEGRA DE 3 HOYO 1 | D35: UNID | E35: 6 | F35: 0 | G35: 6 | H35: 178.20 $ | I35: 1 | J35: 5 | K35: $891.00 | L35: $178.20
A36: 123 | B36: CARPETAS DE 3 HOYOS #3 | D36: UNID | E36: 6 | F36: 0 | G36: 6 | H36: 147.50 $ | I36: 3 | J36: 3 | K36: $442.50 | L36: $442.50
A37: 124 | B37: CARPETAS DE 3 HOYOS #4 | D37: UNID | E37: 0 | F37: 0 | G37: 0 | H37: 224.20 $ | I37: 0 | J37: 0 | K37: 0 | L37: 0
A38: 125 | B38: CEPILLO DE INODORO | D38: UNID | E38: 4 | F38: 15 | G38: 19 | H38: 159.30 $ | I38: 6 | J38: 13 | K38: $2,070.90 | L38: $955.80
A39: 126 | B39: CERA PARA CONTAR | D39: UNID | E39: 4 | F39: 15 | G39: 19 | H39: 60.00 $ | I39: 6 | J39: 13 | K39: $780.00 | L39: $360.00
A40: 127 | B40: CINTA AX10 | D40: UNID | E40: 0 | F40: 0 | G40: 0 | H40: 177.00 $ | I40: 0 | J40: 0 | K40: 0 | L40: 0
A41: 128 | B41: CINTA MASKING TAPE 3/4 VISIBLE | D41: UNID | E41: 0 | F41: 50 | G41: 50 | H41: 75.00 $ | I41: 8 | J41: 42 | K41: $3,150.00 | L41: $600.00
A42: 129 | B42: CINTA DE EMPAQUE | D42: UNID | E42: 0 | F42: 24 | G42: 24 | H42: 47.20 $ | I42: 10 | J42: 14 | K42: $660.80 | L42: $472.00
A43: 130 | B43: CINTA MAGICA SUMADORA | D43: UNID | E43: 2 | F43: 0 | G43: 2 | H43: 76.70 $ | I43: 0 | J43: 2 | K43: $153.40 | L43: 0
A44: 131 | B44: CLIPS JUMBO | D44: UNID | E44: 10 | F44: 10 | G44: 20 | H44: 38.00 $ | I44: 11 | J44: 9 | K44: $342.00 | L44: $418.00
A45: 132 | B45: CINTA MASKING TAPE CREMA | D45: UNID | E45: 21 | F45: 60 | G45: 81 | H45: 46.00 $ | I45: 50 | J45: 31 | K45: $1,426.00 | L45: $2,300.00
A46: 133 | B46: CINTA P/CALCULADORA | D46: UNID | E46: 0 | F46: 0 | G46: 0 | H46: 50.00 $ | I46: 0 | J46: 0 | K46: 0 | L46: 0
A47: 134 | B47: CLIPS BILLETERO 32 MM 12/1 | D47: UNID | E47: 9 | F47: 36 | G47: 45 | H47: 123.90 $ | I47: 9 | J47: 36 | K47: $4,460.40 | L47: $1,115.10
A48: 135 | B48: CLIPS BILLETERO 41 MM 12/1 | D48: UNID | E48: 6 | F48: 36 | G48: 42 | H48: 171.10 $ | I48: 3 | J48: 39 | K48: $6,672.90 | L48: $513.30
A49: 136 | B49: CLIPS BILLETERO 51 MM 12/1 | D49: UNID | E49: 10 | F49: 36 | G49: 46 | H49: 230.10 $ | I49: 10 | J49: 36 | K49: $8,283.60 | L49: $2,301.00
A50: 137 | B50: CLIPS PEQUEÑO | D50: UNID | E50: 17 | F50: 10 | G50: 27 | H50: 19.00 $ | I50: 16 | J50: 11 | K50: $209.00 | L50: $304.00
A51: 138 | B51: CLORO | D51: GALON | E51: 2 | F51: 110 | G51: 112 | H51: 68.64 $ | I51: 94 | J51: 18 | K51: $1,235.52 | L51: $6,452.16
A52: 139 | B52: CONTROL DE LIQUIDO(ENFERMERIA) | D52: RESMA | E52: 0 | F52: 3 | G52: 3 | H52: 1,200.00 $ | I52: 1 | J52: 2 | K52: $2,400.00 | L52: $1,200.00
A53: 140 | B53: CUADERNOS COCIDOS | D53: UNID | E53: 0 | F53: 12 | G53: 12 | H53: 53.00 $ | I53: 0 | J53: 12 | K53: $636.00 | L53: 0
A54: 141 | B54: CUCHARA 25/1 | D54: CAJA | E54: 1 | F54: 9 | G54: 10 | H54: 708.00 $ | I54: 9 | J54: 1 | K54: $708.00 | L54: $6,372.00
A55: 142 | B55: ESCOBA C/PALO | D55: UNID | E55: 7 | F55: 6 | G55: 13 | H55: 112.00 $ | I55: 10 | J55: 3 | K55: $336.00 | L55: $1,120.00
A56: 143 | B56: EXTENCION EXPIRAL | D56: UNID | E56: 0 | F56: 0 | G56: 0 | H56: 100.00 $ | I56: 0 | J56: 0 | K56: 0 | L56: 0
A57: 144 | B57: FOLDER AZUL | D57: UNID | E57: 0 | F57: 0 | G57: 0 | H57: 666.70 $ | I57: 0 | J57: 0 | K57: 0 | L57: 0
A58: 145 | B58: FOLDERS PENDAFLEX 81/2*11 | D58: UNID | E58: 0 | F58: 0 | G58: 0 | H58: 799.68 $ | I58: 0 | J58: 0 | K58: 0 | L58: 0
A59: 145 | B59: FOLDER AMARILLO OFICINA | D59: UNID | E59: 367 | F59: 500 | G59: 867 | H59: 2.33 $ | I59: 492 | J59: 375 | K59: $873.75 | L59: $1,146.36
A60: 147 | B60: FOLDER VERDE 8 1/2 X 11 | D60: UNID | E60: 109 | F60: 1000 | G60: 1109 | H60: 4.95 $ | I60: 309 | J60: 800 | K60: $3,960.00 | L60: $1,529.55
A61: 148 | B61: FUNDA NEGRA 17*22 PEQUEÑA | D61: PAQ | E61: 20 | F61: 120 | G61: 140 | H61: 72.00 $ | I61: 69 | J61: 71 | K61: $5,112.00 | L61: $4,968.00
A62: 149 | B62: FUNDA NEGRA #6 | D62: PAQ | E62: 16 | F62: 0 | G62: 16 | H62: 36.58 $ | I62: 7 | J62: 9 | K62: $329.22 | L62: $256.06
A63: 150 | B63: FUNDA ROJA #2 | D63: PAQ | E63: 0 | F63: 60 | G63: 60 | H63: 20.00 $ | I63: 19 | J63: 41 | K63: $820.00 | L63: $380.00
A64: 151 | B64: FUNDA AZULES #4 | D64: PAQ | E64: 16 | F64: 0 | G64: 16 | H64: 26.00 $ | I64: 6 | J64: 10 | K64: $260.00 | L64: $156.00
A65: 152 | B65: FUNDA NEGRA MEDIANA 27 X 33 | D65: PAQ | E65: 20 | F65: 15 | G65: 35 | H65: 360.00 $ | I65: 33 | J65: 2 | K65: $720.00 | L65: $11,880.00
A66: 153 | B66: FUNDA NEGRA GRANDE 36*54 | D66: PAQ | E66: 15 | F66: 15 | G66: 30 | H66: 616.00 $ | I66: 24 | J66: 6 | K66: $3,696.00 | L66: $14,784.00
A67: 154 | B67: FUNDA ROJA PEQUENAS 17*22 | D67: PAQ | E67: 2 | F67: 30 | G67: 32 | H67: 240.00 $ | I67: 16 | J67: 16 | K67: $3,840.00 | L67: $3,840.00
A68: 155 | B68: FUNDA ROJA GRANDE 36*54 | D68: UNID | E68: 10 | F68: 10 | G68: 20 | H68: 1,030.10 $ | I68: 8 | J68: 12 | K68: $12,361.20 | L68: $8,240.80
A69: 156 | B69: FUNDA ROJA MEDIANA 22*35 | D69: PAQ | E69: 0 | F69: 30 | G69: 30 | H69: 454.72 $ | I69: 29 | J69: 1 | K69: $454.72 | L69: $13,186.88
A70: 157 | B70: GALON JABON LIQUIDO | D70: GALON | E70: 1 | F70: 10 | G70: 11 | H70: 171.10 $ | I70: 5 | J70: 6 | K70: $1,026.60 | L70: $855.50
A71: 158 | B71: GANCHOS P/FOLDER MH | D71: CAJA | E71: 2 | F71: 10 | G71: 12 | H71: 141.60 $ | I71: 0 | J71: 12 | K71: $1,699.20 | L71: 0
A72: 159 | B72: GOMITAS | D72: CAJA | E72: 1 | F72: 24 | G72: 25 | H72: 45.00 $ | I72: 11 | J72: 14 | K72: $630.00 | L72: $495.00
A73: 160 | B73: GRAPADORA NEGRA | D73: CAJA | E73: 1 | F73: 4 | G73: 5 | H73: 536.00 $ | I73: 2 | J73: 3 | K73: $1,608.00 | L73: $1,072.00
A74: 161 | B74: GUANTE INDUSTRIAL | D74: UNID | E74: 0 | F74: 0 | G74: 0 | H74: 110.00 $ | I74: 0 | J74: 0 | K74: 0 | L74: 0
A75: 162 | B75: GUANTES MULTIUSOS | D75: UNID | E75: 11 | F75: 12 | G75: 23 | H75: 105.00 $ | I75: 10 | J75: 13 | K75: $1,365.00 | L75: $1,050.00
A76: 163 | B76: HISTORIA CLINICA PERINATAL | D76: TALONARIO | E76: 3 | F76: 0 | G76: 3 | H76: 1,298.00 $ | I76: 1 | J76: 2 | K76: $2,596.00 | L76: $1,298.00
A77: 164 | B77: HOJA DE ANOTACION ENFERMERIA | D77: TALONARIO | E77: 4 | F77: 0 | G77: 4 | H77: 826.00 $ | I77: 0 | J77: 4 | K77: $3,304.00 | L77: 0
A78: 165 | B78: HOJA D FICHA NACIONAL D ENDODONCIA | D78: TALONARIO | E78: 2 | F78: 0 | G78: 2 | H78: 1,298.00 $ | I78: 2 | J78: 0 | K78: 0 | L78: $2,596.00
A79: 166 | B79: HOJA DE ADMICION | D79: TALONARIO | E79: 5 | F79: 0 | G79: 5 | H79: 165.00 $ | I79: 0 | J79: 5 | K79: $825.00 | L79: 0
A80: 167 | B80: HOJA DE ATENCION DE PERIODONCIA | D80: TALONARIO | E80: 2 | F80: 0 | G80: =E80+F80 -> 2 | H80: 1,298.00 $ | I80: 2 | J80: =G80-I80 -> 0 | K80: =H80*J80 -> 0 | L80: =H80*I80 -> $2,596.00
A81: 168 | B81: HOJA DE ATENCION DIARIA | D81: TALONARIO | E81: 1 | F81: 0 | G81: 1 | H81: 994.00 $ | I81: 0 | J81: 1 | K81: $994.00 | L81: 0
A82: 169 | B82: HOJA DE CERTIFICACION | D82: TALONARIO | E82: 3 | F82: 0 | G82: 3 | H82: 1,475.00 $ | I82: 0 | J82: 3 | K82: $4,425.00 | L82: 0
A83: 170 | B83: HOJA DE CONSULTA EXTERNA | D83: TALONARIO | E83: 2 | F83: 0 | G83: 2 | H83: 994.00 $ | I83: 1 | J83: 1 | K83: $994.00 | L83: $994.00
A84: 171 | B84: HOJA TRATAMIENTO D DIETA | D84: TALONARIO | E84: 0 | F84: 0 | G84: 0 | H84: 800.00 $ | I84: 0 | J84: 0 | K84: 0 | L84: 0
A85: 172 | B85: HOJA DE CONTRATO 8 1/2*14 | D85: TALONARIO | E85: 0 | F85: 0 | G85: 0 | H85: 213.00 $ | I85: 0 | J85: 0 | K85: 0 | L85: 0
A86: 173 | B86: HOJA DE DIRECCION DE ENFERMERIA | D86: TALONARIO | E86: 10 | F86: 10 | G86: 20 | H86: 994.00 $ | I86: 10 | J86: 10 | K86: $9,940.00 | L86: $9,940.00
A87: 174 | B87: HOJA DE ENFER EN AREA EMERGENCIA | D87: TALONARIO | E87: 1 | F87: 20 | G87: 21 | H87: 994.00 $ | I87: 0 | J87: 21 | K87: $20,874.00 | L87: 0
A88: 175 | B88: HOJA DE ENFERMERIA | D88: TALONARIO | E88: 6 | G88: 6 | H88: 1,298.00 $ | I88: 2 | J88: 4 | K88: $5,192.00 | L88: $2,596.00
A89: 176 | B89: HOJA DE EPICRISIS | D89: TALONARIO | E89: 0 | F89: 0 | G89: 0 | H89: 1,475.00 $ | I89: 0 | J89: 0 | K89: 0 | L89: 0
A90: 177 | B90: HOJA DE EVOLUCION | D90: TALONARIO | E90: 3 | F90: 5 | G90: 8 | H90: 294.00 $ | I90: 0 | J90: 8 | K90: $2,352.00 | L90: 0
A91: 178 | B91: HOJA DE ANESTESIA | D91: TALONARIO | E91: 2 | F91: 0 | G91: 2 | H91: 185.00 $ | I91: 0 | J91: 2 | K91: $370.00 | L91: 0
A92: 179 | B92: HOJA DE HISTORIAL CLINICO | D92: TALONARIO | E92: 50 | F92: 0 | G92: 50 | H92: 195.00 $ | I92: 0 | J92: 50 | K92: $9,750.00 | L92: 0
A93: 180 | B93: HOJA D KARDEX D MEDICAMENTO ENF | D93: TALONARIO | E93: 4 | F93: 15 | G93: 19 | H93: 1,298.00 $ | I93: 2 | J93: 17 | K93: $22,066.00 | L93: $2,596.00
A94: 181 | B94: HOJA DE PRESUPUESTO | D94: TALONARIO | E94: 0 | F94: 0 | G94: 0 | H94: 1,298.00 $ | I94: 0 | J94: 0 | K94: 0 | L94: 0
A95: 182 | B95: HOJA DE REFERENCIA Y CONTRA REFERENCIA | D95: TALONARIO | E95: 0 | F95: 21 | G95: 21 | H95: 826.00 $ | I95: 8 | J95: 13 | K95: $10,738.00 | L95: $6,608.00
A96: 183 | B96: HOJA REGITRO D CONSULTA EXTERNA 8/*14 | D96: TALONARIO | E96: 5 | F96: 0 | G96: 5 | H96: 1,711.00 $ | I96: 2 | J96: 3 | K96: $5,133.00 | L96: $3,422.00
A97: 184 | B97: HOJA DE RESUMEN MEDICO DE EGRESO | D97: TALONARIO | E97: 2 | F97: 8 | G97: 10 | H97: 826.00 $ | I97: 0 | J97: 10 | K97: $8,260.00 | L97: 0
A98: 185 | B98: HOJA DE VERIFICACION SEGURIDAD CIRUGIA | D98: TALONARIO | E98: 2 | F98: 0 | G98: 2 | H98: 1,475.00 $ | I98: 0 | J98: 2 | K98: $2,950.00 | L98: 0
A99: 186 | B99: HOJA DESIGNOGRAMA ENFERM | D99: TALONARIO | E99: 3 | F99: 0 | G99: 3 | H99: 994.00 $ | I99: 0 | J99: 3 | K99: $2,982.00 | L99: 0
A100: 187 | B100: HOJA DETENCION DE CANCER UTERINO | D100: TALONARIO | E100: 0 | F100: 0 | G100: 0 | H100: 994.00 $ | I100: 0 | J100: 0 | K100: 0 | L100: 0
A101: 188 | B101: HOJA DIAGNOTICO ODONTOLOGIA | D101: TALONARIO | E101: 0 | F101: 0 | G101: 0 | H101: 350.00 $ | I101: 0 | J101: 0 | K101: 0 | L101: 0
A102: 189 | B102: HOJA KARDEX MED INTERNA MATERIALE INSUMOS | D102: TALONARIO | E102: 3 | F102: 10 | G102: 13 | H102: 994.00 $ | I102: 0 | J102: 13 | K102: $12,922.00 | L102: 0
A103: 190 | B103: HOJA LEGAL 8 1/2*14 RESMA | D103: TALONARIO | E103: 9 | F103: 0 | G103: 9 | H103: 348.00 $ | I103: 8 | J103: 1 | K103: $348.00 | L103: $2,784.00
A104: 191 | B104: HOJA ORDEN MEDICA | D104: TALONARIO | E104: 4 | F104: 0 | G104: 4 | H104: 800.00 $ | I104: 0 | J104: 4 | K104: $3,200.00 | L104: 0
A105: 192 | B105: HOJA PRE OPERATORIO | D105: TALONARIO | E105: 6 | F105: 0 | G105: 6 | H105: 1,299.00 $ | I105: 1 | J105: 5 | K105: $6,495.00 | L105: $1,299.00
A106: 193 | B106: HOJA SIGNOS VITALES | D106: TALONARIO | E106: 1 | F106: 2 | G106: 3 | H106: 1,200.00 $ | I106: 1 | J106: 2 | K106: $2,400.00 | L106: $1,200.00
A107: 194 | B107: HOJA SIGNOS VITALES ENFER VERSION 0-1 | D107: TALONARIO | E107: 2 | F107: 2 | G107: 4 | H107: 994.00 $ | I107: 2 | J107: 2 | K107: $1,988.00 | L107: $1,988.00
A108: 195 | B108: HOJA SIGNOS VITALES VERSION 0-2 | D108: TALONARIO | E108: 10 | F108: 0 | G108: 10 | H108: 994.00 $ | I108: 0 | J108: 10 | K108: $9,940.00 | L108: 0
A109: 196 | B109: HOJAS DE SIGNOS VITALES SENASA | D109: TALONARIO | E109: 0 | F109: 0 | G109: 0 | H109: 1,475.00 $ | I109: 0 | J109: 0 | K109: 0 | L109: 0
A110: 197 | B110: HOJAS TIMBRADA | D110: RESMA | E110: 2 | F110: 4 | G110: 6 | H110: 1,350.00 $ | I110: 2 | J110: 4 | K110: $5,400.00 | L110: $2,700.00
A111: 198 | B111: HOJA DE VERIFICACION SEGURIDAD CIRUGIA | D111: TALONARIO | E111: 1 | F111: 1 | G111: 2 | H111: 1,298.00 $ | I111: 0 | J111: 2 | K111: $2,596.00 | L111: 0
A112: 199 | B112: LABELSP/FOLDER | D112: UNID | E112: 6 | F112: 0 | G112: 6 | H112: 112.10 $ | I112: 0 | J112: 6 | K112: $672.60 | L112: 0
A113: 200 | B113: LAPIZ | D113: UNID | E113: 7 | F113: 36 | G113: 43 | H113: 10.00 $ | I113: 2 | J113: 41 | K113: $410.00 | L113: $20.00
A114: 201 | B114: LIBRO BANCO VENTA SERVICIOS | D114: UNID | E114: 1 | F114: 0 | G114: 1 | H114: 2,360.00 $ | I114: 0 | J114: 1 | K114: $2,360.00 | L114: 0
A115: 202 | B115: LIBRO DE ANOTACIONES ENFERMERIA | D115: UNID | E115: 0 | F115: 0 | G115: 0 | H115: 826.00 $ | I115: 0 | J115: 0 | K115: 0 | L115: 0
A116: 203 | B116: LIBRO DE EMERGENCIA | D116: UNID | E116: 1 | F116: 2 | G116: 3 | H116: 2,360.00 $ | I116: 2 | J116: 1 | K116: $2,360.00 | L116: $4,720.00
A117: 204 | B117: LIBRO DE LABORATORIO | D117: UNID | E117: 3 | F117: 0 | G117: 3 | H117: 1,170.00 $ | I117: 3 | J117: 0 | K117: 0 | L117: $3,510.00
A118: 205 | B118: LIBRO DE PARASITOLOGIA | D118: UNID | E118: 4 | F118: 0 | G118: 4 | H118: 1,170.00 $ | I118: 1 | J118: 3 | K118: $3,510.00 | L118: $1,170.00
A119: 206 | B119: LIBRO DE PARTO Y INTERMIENTO | D119: UNID | E119: 3 | F119: 0 | G119: 3 | H119: 1,170.00 $ | I119: 0 | J119: 3 | K119: $3,510.00 | L119: 0
A120: 207 | B120: LIBRO DE CIRUGIA | D120: UNID | E120: 3 | F120: 0 | G120: 3 | H120: 1,170.00 $ | I120: 1 | J120: 2 | K120: $2,340.00 | L120: $1,170.00
A121: 208 | B121: LIBRO DE REGISTRO DIARIO PATOLOGIA | D121: UNID | E121: 0 | F121: 0 | G121: 0 | H121: 3,894.00 $ | I121: 0 | J121: 0 | K121: 0 | L121: 0
A122: 209 | B122: LIBRO DE CONSERJERIA | D122: UNID | E122: 0 | F122: 3 | G122: 3 | H122: 1,770.00 $ | I122: 3 | J122: 0 | K122: 0 | L122: $5,310.00
B123: LIBRO DE REGISTRO VIH | D123: UNID | E123: 1 | F123: 0 | G123: 1 | H123: 1,770.00 $ | I123: 0 | J123: 0 | K123: 0 | L123: 0
A124: 210 | B124: LIBRO DE SEROLOGIA | D124: UNID | E124: 1 | F124: 3 | G124: 4 | H124: 2,360.00 $ | I124: 1 | J124: 3 | K124: $7,080.00 | L124: $2,360.00
A125: 211 | B125: LIBRO DE URIANALISIS | D125: UNID | E125: 3 | F125: 0 | G125: 3 | H125: 2,360.00 $ | I125: 0 | J125: 3 | K125: $7,080.00 | L125: 0
A126: 212 | B126: LIBRO HEMATOLOGIA | D126: UNID | E126: 3 | F126: 0 | G126: 3 | H126: 2,000.00 $ | I126: 0 | J126: 3 | K126: $6,000.00 | L126: 0
A127: 213 | B127: LIBRO QUIMICO | D127: UNID | E127: 3 | F127: 0 | G127: 3 | H127: 2,360.00 $ | I127: 0 | J127: 3 | K127: $7,080.00 | L127: 0
A128: 214 | B128: LIBRO INTERNAMIENTO | D128: UNID | E128: 3 | F128: 0 | G128: 3 | H128: 1,770.00 $ | I128: 0 | J128: 3 | K128: $5,310.00 | L128: 0
B129: LIBRO DE RAYOS X | D129: UNID | E129: 3 | F129: 0 | G129: 3 | H129: 1,770.00 $ | I129: 0 | J129: 3 | K129: $5,310.00 | L129: 0
A130: 215 | B130: LIBRO RECORD DE REGISTRO ADOLECENTE | D130: UNID | E130: 0 | F130: 0 | G130: 0 | H130: 1,800.00 $ | I130: 0 | J130: 0 | K130: 0 | L130: 0
A131: 216 | B131: LIQUID PAPER T/L CORRECTOR | D131: UNID | E131: 2 | F131: 60 | G131: 62 | H131: 30.00 $ | I131: 9 | J131: 53 | K131: $1,590.00 | L131: $270.00
A132: 217 | B132: MARCADORES AZULES | D132: UNID | E132: 12 | F132: 12 | G132: 24 | H132: 30.00 $ | I132: 6 | J132: 18 | K132: $540.00 | L132: $180.00
A133: 218 | B133: MARCADORES NEGROS | D133: UNID | E133: 8 | F133: 36 | G133: 44 | H133: 30.00 $ | I133: 14 | J133: 30 | K133: $900.00 | L133: $420.00
A134: 219 | B134: MARCADORES ROJO | D134: UNID | E134: 0 | F134: 0 | G134: 0 | H134: 30.00 $ | I134: 0 | J134: 0 | K134: 0 | L134: 0
A135: 220 | B135: MARCADORES VERDES | D135: UNID | E135: 0 | F135: 0 | G135: 0 | H135: 30.00 $ | I135: 0 | J135: 0 | K135: 0 | L135: 0
A136: 221 | B136: MISTOLIN | D136: GALON | E136: 30 | F136: 60 | G136: 90 | H136: 98.00 $ | I136: 34 | J136: 56 | K136: $5,488.00 | L136: $3,332.00
A137: 222 | B137: PAPEL ALUMINIO 75 | D137: UNID | E137: 1 | F137: 0 | G137: 1 | H137: 560.00 $ | I137: 0 | J137: 1 | K137: $560.00 | L137: 0
A138: 223 | B138: PAPEL CARBON 8 1/2*11 | D138: UNID | E138: 1 | F138: 0 | G138: 1 | H138: 325.00 $ | I138: 0 | J138: 1 | K138: $325.00 | L138: 0
A139: 224 | B139: PAPEL HIGIENICO FARDO 48/1 | D139: UNID | E139: 0 | F139: 480 | G139: 480 | H139: 18.60 $ | I139: 340 | J139: 140 | K139: $2,604.00 | L139: $6,324.00
A140: 225 | B140: PAPEL MANILA NATURAL KRAF | D140: UNID | E140: 2 | F140: 2 | G140: 4 | H140: 3,916.00 $ | I140: 2 | J140: 2 | K140: $7,832.00 | L140: $7,832.00
A141: 226 | B141: PAPEL TOALLA 6/1 | D141: UNID | E141: 0 | F141: 30 | G141: 30 | H141: 28.95 $ | I141: 24 | J141: 6 | K141: $173.70 | L141: $694.80
A142: 227 | B142: PERFORADORA 2 HOYOS | D142: UNID | E142: 0 | F142: 0 | G142: 0 | H142: 306.08 $ | I142: 0 | J142: 0 | K142: 0 | L142: 0
A143: 228 | B143: PERFORADORA 3 HOYOS | D143: UNID | E143: 1 | F143: 0 | G143: 1 | H143: 631.30 $ | I143: 0 | J143: 1 | K143: $631.30 | L143: 0
A144: 229 | B144: PILA AA | D144: UNID | E144: 0 | F144: 0 | G144: 0 | H144: 54.00 $ | I144: 0 | J144: 0 | K144: 0 | L144: 0
A145: 230 | B145: PILA AAA | D145: UNID | E145: 0 | F145: 0 | G145: 0 | H145: 53.00 $ | I145: 0 | J145: 0 | K145: 0 | L145: 0
A146: 231 | B146: PAPEL CON DIVISION 200/1 OPTION | D146: CAJA | E146: 2 | F146: 4 | G146: =E146+F146 -> 6 | H146: 1,085.00 $ | I146: 4 | J146: =G146-I146 -> 2 | K146: =H146*J146 -> $2,170.00 | L146: =H146*I146 -> $4,340.00
A147: 232 | B147: PLATOS | D147: FARDO | E147: 4 | F147: 12 | G147: 16 | H147: 1,291.00 $ | I147: 6 | J147: 10 | K147: $12,910.00 | L147: $7,746.00
A148: 233 | B148: POS-IT 3*3 | D148: RESMA | E148: 0 | F148: 0 | G148: 0 | H148: 33.63 $ | I148: 0 | J148: 0 | K148: 0 | L148: 0
A149: 234 | B149: PURISIMA | D149: UNID | E149: 0 | F149: 0 | G149: 0 | H149: 625.00 $ | I149: 0 | J149: 0 | K149: 0 | L149: 0
A150: 235 | B150: RECIBO DE CAJA CHICA | D150: TALONARIO | E150: 0 | F150: 0 | G150: 0 | H150: 275.00 $ | I150: 0 | J150: 0 | K150: 0 | L150: 0
A151: 236 | B151: RECOJEDOR DE BASURA | D151: UNID | E151: 3 | F151: 0 | G151: 3 | H151: 109.25 $ | I151: 0 | J151: 3 | K151: $327.75 | L151: 0
A152: 237 | B152: REGLA TRANSPARENTE | D152: UNID | E152: 0 | F152: 0 | G152: 0 | H152: 9.44 $ | I152: 0 | J152: 0 | K152: 0 | L152: 0
A153: 238 | B153: RESALTADOR | D153: UNID | E153: 1 | F153: 20 | G153: 21 | H153: 39.00 $ | I153: 3 | J153: 18 | K153: $702.00 | L153: $117.00
A154: 239 | B154: RESMA DE CONTROL DE EXISTENCIA | D154: RESMA | E154: 0 | F154: 4 | G154: 4 | H154: 1,298.00 $ | I154: 0 | J154: 4 | K154: $5,192.00 | L154: 0
A155: 240 | B155: RESMA HOJA DE MAQUINA 8/2 *11 | D155: RESMA | E155: 24 | F155: 110 | G155: 134 | H155: 193.00 $ | I155: 133 | J155: 1 | K155: $193.00 | L155: $25,669.00
A156: 241 | B156: ROLLO DE PAPEL SUMADORA | D156: UNID | E156: 0 | F156: 24 | G156: 24 | H156: 23.00 $ | I156: 9 | J156: 15 | K156: $345.00 | L156: $207.00
A157: 242 | B157: ROTULO PARA SOLUCION Y MEDICAMENTOS | D157: UNID | E157: 150 | F157: 1000 | G157: 1150 | H157: 6.50 $ | I157: 100 | J157: 1050 | K157: $6,825.00 | L157: $650.00
A158: 243 | B158: SACA GRAPA | D158: UNID | E158: 8 | F158: 0 | G158: 8 | H158: 30.00 $ | I158: 5 | J158: 3 | K158: $90.00 | L158: $150.00
A159: 244 | B159: SACAPUNTA METAL | D159: UNID | E159: 5 | F159: 0 | G159: 5 | H159: 15.00 $ | I159: 5 | J159: 0 | K159: 0 | L159: $75.00
A160: 245 | B160: SACO DE DETERGENTE | D160: UNID | E160: 0 | F160: 3 | G160: 3 | H160: 1,100.00 $ | I160: 0 | J160: 3 | K160: $3,300.00 | L160: 0
A161: 246 | B161: SERVILLETA C-FOLD 24/100 XCELENT | D161: UNID | E161: 113 | F161: 96 | G161: 209 | H161: 48.87 $ | I161: 166 | J161: 43 | K161: $2,101.41 | L161: $8,112.42
A162: 247 | B162: SERVILLETAS DE BINGO 60/1 | D162: UNID | E162: 61 | F162: 600 | G162: 661 | H162: 11.50 $ | I162: 390 | J162: 271 | K162: $3,116.50 | L162: $4,485.00
A163: 248 | B163: SOBRE CARTA VENTANILLA | D163: UNID | E163: 700 | F163: 0 | G163: 700 | H163: 1.85 $ | I163: 0 | J163: 700 | K163: $1,295.00 | L163: 0
A164: 249 | B164: SOBRE MANILA 14*17 1000 UNIDAD | D164: UNID | E164: 986 | F164: 0 | G164: 986 | H164: 13.85 $ | I164: 40 | J164: 946 | K164: $13,102.10 | L164: $554.00
A165: 250 | B165: SOBRE MANILA 10*14 DE 500 UNID | D165: UNID | E165: 1000 | F165: 0 | G165: 1000 | H165: 7.10 $ | I165: 63 | J165: 937 | K165: $6,652.70 | L165: $447.30
A166: 251 | B166: SOBRE TIMBRADO | D166: UNID | E166: 390 | F166: 0 | G166: 390 | H166: 13.00 $ | I166: 70 | J166: 320 | K166: $4,160.00 | L166: $910.00
A167: 252 | B167: SUAPER JUMBO | D167: UNID | E167: 2 | F167: 12 | G167: 14 | H167: 179.00 $ | I167: 14 | J167: 0 | K167: 0 | L167: $2,506.00
A168: 253 | B168: SUAVITEL | D168: GALON | E168: 5 | F168: 16 | G168: 21 | H168: 148.31 $ | I168: 5 | J168: 16 | K168: $2,372.96 | L168: $741.55
A169: 254 | B169: TALONARIO DE PATOLOGIA | D169: TALONARIO | E169: 50 | F169: 0 | G169: 50 | H169: 236.00 $ | I169: 0 | J169: 50 | K169: $11,800.00 | L169: 0
A170: 255 | B170: TALONARIO HISTORIA CLINICA EMERGENCIA | D170: TALONARIO | E170: 0 | F170: 50 | G170: 50 | H170: 70.80 $ | I170: 25 | J170: 25 | K170: $1,770.00 | L170: $1,770.00
A171: 256 | B171: TALONARIO SOLICITUD DE MEDICAMENTO | D171: TALONARIO | E171: 15 | F171: 0 | G171: 15 | H171: 275.00 $ | I171: 2 | J171: 13 | K171: $3,575.00 | L171: $550.00
A172: 257 | B172: TALONARIO COPROLOGICO | D172: TALONARIO | E172: 92 | F172: 30 | G172: 122 | H172: 75.00 $ | I172: 7 | J172: 115 | K172: $8,625.00 | L172: $525.00
A173: 258 | B173: TALALONARIO HEMOGRAMA | D173: TALONARIO | E173: 76 | F173: 50 | G173: 126 | H173: 88.35 $ | I173: 47 | J173: 79 | K173: $6,979.65 | L173: $4,152.45
A174: 259 | B174: TALONARIO INTERVENCION AUT. QUIRURGICA | D174: TALONARIO | E174: 0 | F174: 0 | G174: 0 | H174: 185.00 $ | I174: 0 | J174: 0 | K174: 0 | L174: 0
A175: 260 | B175: TALONARIO LABORATORIO CLINICO | D175: TALONARIO | E175: 0 | F175: 250 | G175: 250 | H175: 37.00 $ | I175: 127 | J175: 123 | K175: $4,551.00 | L175: $4,699.00
A176: 261 | B176: TALONARIO COPROLOGICO | D176: TALONARIO | E176: 92 | F176: 16 | G176: 108 | H176: 75.00 $ | I176: 0 | J176: 108 | K176: $8,100.00 | L176: 0
A177: 262 | B177: TALONARIO METODO PLANIFICACION | D177: TALONARIO | E177: 1 | F177: 0 | G177: 1 | H177: 185.00 $ | I177: 0 | J177: 1 | K177: $185.00 | L177: 0
A178: 263 | B178: TALONARIO P/COLC DE IMPLANDE SUDERMICO | D178: TALONARIO | E178: 0 | F178: 0 | G178: 0 | H178: 185.00 $ | I178: 0 | J178: 0 | K178: 0 | L178: 0
A179: 264 | B179: TALONARIO UNICO MEDICAMENTOS | D179: TALONARIO | E179: 0 | F179: 0 | G179: 0 | H179: 266.00 $ | I179: 0 | J179: 0 | K179: 0 | L179: 0
A180: 265 | B180: TALONARIO URIANALISIS | D180: TALONARIO | E180: 0 | F180: 250 | G180: 250 | H180: 53.10 $ | I180: 181 | J180: 69 | K180: $3,663.90 | L180: $9,611.10
A181: 266 | B181: TALONARIO COMUN ENFERMERIA FARMACIA | D181: TALONARIO | E181: 45 | F181: 0 | G181: 45 | H181: 413.00 $ | I181: 0 | J181: 45 | K181: $18,585.00 | L181: 0
A182: 267 | B182: TALONARIO CERTIFICADO MEDICO | D182: TALONARIO | E182: 0 | F182: 0 | G182: 0 | H182: 275.00 $ | I182: 0 | J182: 0 | K182: 0 | L182: 0
A183: 268 | B183: TALONARIO CONSENTIMIENTO INFORMADO | E183: 14 | F183: 0 | G183: 14 | H183: 756.00 $ | I183: 7 | J183: 7 | K183: $5,292.00 | L183: $5,292.00
A184: 269 | B184: TALONARIO | D184: TALONARIO | E184: 7 | F184: 0 | G184: 7 | H184: 266.00 $ | I184: 0 | J184: 7 | K184: $1,862.00 | L184: 0
A185: 270 | B185: TALONARIO DE CONTROL TEMPERATURA | D185: TALONARIO | E185: 7 | F185: 10 | G185: 17 | H185: 294.00 $ | I185: 1 | J185: 16 | K185: $4,704.00 | L185: $294.00
A186: 271 | B186: TALONARIO DE CUOTA DE CONTRIBUCION | D186: TALONARIO | E186: 0 | F186: 0 | G186: 0 | H186: 185.00 $ | I186: 0 | J186: 0 | K186: 0 | L186: 0
A187: 272 | B187: TALONARIO EVALUACION PRE ANESTESICA | D187: TALONARIO | E187: 0 | F187: 5 | G187: 5 | H187: 185.00 $ | I187: 0 | J187: 5 | K187: $925.00 | L187: 0
A188: 273 | B188: TALONARIO HOJA DE KARDEX | D188: TALONARIO | E188: 0 | F188: 0 | G188: 0 | H188: 994.00 $ | I188: 0 | J188: 0 | K188: 0 | L188: 0
A189: 274 | B189: TALONARIO SALIDA ALMACEN | D189: TALONARIO | E189: 2 | F189: 10 | G189: 12 | H189: 275.00 $ | I189: 9 | J189: 3 | K189: $825.00 | L189: $2,475.00
A190: 275 | B190: TAPA DE VASOS #12 CLEA 10/100 | D190: PAQU | E190: 4 | F190: 20 | G190: 24 | H190: 224.90 $ | I190: 4 | J190: 20 | K190: $4,498.00 | L190: $899.60
A191: 276 | B191: TARJETA DE CITA | D191: UNID | E191: 0 | F191: 2000 | G191: 2000 | H191: 2.75 $ | I191: 425 | J191: 1575 | K191: $4,331.25 | L191: $1,168.75
A192: 277 | B192: TARJETA DE EXPEDIENTE | D192: UNID | E192: 0 | F192: 500 | G192: 500 | H192: 4.50 $ | I192: 275 | J192: 225 | K192: $1,012.50 | L192: $1,237.50
A193: 278 | B193: TALONARIO RECETARIO NORMAL | D193: UNID | E193: 17 | F193: 350 | G193: 367 | H193: 53.65 $ | I193: 359 | J193: 8 | K193: $429.20 | L193: $19,260.35
A194: 279 | B194: TIJERAS | D194: UNID | E194: 1 | F194: 5 | G194: 6 | H194: 62.54 $ | I194: 4 | J194: 2 | K194: $125.08 | L194: $250.16
A195: 280 | B195: TINTA PARA SELLO AZUL | D195: UNID | E195: 3 | F195: 3 | G195: 6 | H195: 106.00 $ | I195: 2 | J195: 4 | K195: $424.00 | L195: $212.00
A196: 281 | B196: TINTA PARA SELLO NEGRO | D196: UNID | E196: 0 | F196: 0 | G196: 0 | H196: 85.00 $ | I196: 0 | J196: 0 | K196: 0 | L196: 0
A197: 282 | B197: TOALLA MICROFIBRA16´´ *16´´ | D197: UNID | E197: 18 | F197: 48 | G197: 66 | H197: 49.56 $ | I197: 30 | J197: 36 | K197: $1,784.16 | L197: $1,486.80
A198: 283 | B198: VASO 12 CAJA 40/25 FOAM | D198: PAQU | E198: 120 | F198: 100 | G198: 220 | H198: 53.20 $ | I198: 72 | J198: 148 | K198: $7,873.60 | L198: $3,830.40
A199: 284 | B199: VASO 5 | D199: PAQU | E199: 21 | F199: 100 | G199: 121 | H199: 47.18 $ | I199: 112 | J199: 9 | K199: $424.62 | L199: $5,284.16
A200: 285 | B200: VASOS #7 | D200: PAQU | E200: 41 | F200: 150 | G200: 191 | H200: 38.94 $ | I200: 126 | J200: 65 | K200: $2,531.10 | L200: $4,906.44
J203: TOTAL ALMACEN | L203: =SUM(K14:K200) -> $500,894.59
J204: TOTAL DE COMSUMO | L204: =SUM(L14:L200) -> $324,354.48

Sheet FEBRERO
A4: =A4:M126 -> 0
K12: 2025-02-28
A13: INVENTARIO DE ALMACEN
A14: CODIGO | B14: DESCRIPCION DEL PRODUCTO | E14: UNIDAD MEDIDA | F14: CANTIDAD | G14: ENTRADA | H14: TOTAL | I14: PRECIO | J14: SALIDA DE USO MENSUAL | K14: CANTIDAD ACTIVA EN ALMACEN | L14: VALOR TOTAL ACTIVO | M14: VALORDE TOTAL CONSUMO
A15: 101 | B15: ACORDEON 10*12 CARTON PIEDRA | E15: UNID | F15: 1 | G15: 3 | H15: =F15+G15 -> 4 | I15: 744.00 $ | J15: 0 | K15: =H15-J15 -> 4 | L15: =I15*K15 -> $2,976.00 | M15: =I15*J15 -> 0
A16: 102 | B16: ALMOHADILLA PARA SELLO | E16: UNID | F16: 0 | G16: 0 | H16: =F16+G16 -> 0 | I16: 80.00 $ | J16: 0 | K16: =H16-J16 -> 0 | L16: =I16*K16 -> 0 | M16: =I16*J16 -> 0
A17: 103 | B17: AMBIENTADOR SPRAY | E17: UNID | F17: 0 | G17: 0 | H17: 0 | I17: 145.00 $ | J17: 0 | K17: 0 | L17: 0 | M17: 0
A18: 104 | B18: AGUA BOTELLITAS | E18: UNID | F18: 40 | G18: 280 | H18: 320 | I18: 6.50 $ | J18: 320 | K18: 0 | L18: 0 | M18: $2,080.00
A19: 105 | B19: AXION EN PASTA | E19: UNID | F19: 7 | G19: 0 | H19: 7 | I19: 116.00 $ | J19: 7 | K19: 0 | L19: 0 | M19: $812.00
A20: 106 | B20: BANDER 1´´ CARPETA CUBIERTA | E20: UNID | F20: 0 | G20: 0 | H20: 0 | I20: 271.00 $ | J20: 0 | K20: 0 | L20: 0 | M20: 0
A21: 107 | B21: BAYGON 400ML | E21: UNID | F21: 3 | G21: 6 | H21: 9 | I21: 349.00 $ | J21: 1 | K21: 8 | L21: $2,792.00 | M21: $349.00
A22: 108 | B22: BOLIGRAFOS AZULES | E22: UNID | F22: 106 | G22: 0 | H22: 106 | I22: 10.10 $ | J22: 60 | K22: 46 | L22: $464.60 | M22: $606.00
A23: 109 | B23: BOLIGRAFOS NEGROS | E23: UNID | F23: 60 | G23: 0 | H23: 60 | I23: 7.00 $ | J23: 11 | K23: 49 | L23: $343.00 | M23: $77.00
A24: 110 | B24: BOLIGRAFOS ROJOS | E24: UNID | F24: 113 | G24: 0 | H24: 113 | I24: 7.00 $ | J24: 18 | K24: 95 | L24: $665.00 | M24: $126.00
A25: 111 | B25: BOLIGRAFOS VERDES | E25: UNID | F25: 0 | G25: 0 | H25: 0 | I25: 10.00 $ | J25: 0 | K25: 0 | L25: 0 | M25: 0
A26: 112 | B26: BORRANTE DE LECHE | E26: UNID | F26: 13 | G26: 0 | H26: 13 | I26: 8.00 $ | J26: 1 | K26: 12 | L26: $96.00 | M26: $8.00
A27: 113 | B27: BRILLO GRUESO 12/1 PROMANO | E27: UNID | F27: 34 | G27: 12 | H27: 46 | I27: 69.60 $ | J27: 6 | K27: 40 | L27: $2,784.00 | M27: $417.60
A28: 114 | B28: BRILLO GRIS | E28: UNID | F28: 12 | G28: 0 | H28: 12 | I28: 69.60 $ | J28: 3 | K28: 9 | L28: $626.40 | M28: $208.80
A29: 115 | B29: BRILLO VERDE Y ESPONJA | E29: UNID | F29: 0 | G29: 0 | H29: 0 | I29: 57.80 $ | J29: 0 | K29: 0 | L29: 0 | M29: 0
A30: 116 | B30: CAJA PLASTICAS DE 27 GL NEGRA | E30: UNID | F30: 10 | G30: 0 | H30: 10 | I30: 1,350.00 $ | J30: 10 | K30: 0 | L30: 0 | M30: $13,500.00
A31: 117 | B31: CAJITA DE GRAPAS ESTÁNDAR 26/6 | E31: UNID | F31: 10 | G31: 0 | H31: 10 | I31: 47.17 $ | J31: 9 | K31: 1 | L31: $47.17 | M31: $424.53
A32: 118 | B32: CALCULADORA | E32: UNID | F32: 4 | G32: 0 | H32: 4 | I32: 359.90 $ | J32: 1 | K32: 3 | L32: $1,079.70 | M32: $359.90
A33: 119 | B33: CARPETA NEGRA | E33: UNID | F33: 3 | G33: 0 | H33: 3 | I33: 330.00 $ | J33: 0 | K33: 3 | L33: $990.00 | M33: 0
A34: 120 | B34: CARPETA NEGRA #1 | E34: UNID | F34: 5 | G34: 0 | H34: 5 | I34: 469.00 $ | J34: 1 | K34: 4 | L34: $1,876.00 | M34: $469.00
A35: 121 | B35: CARPETA NEGRA # 2 | E35: UNID | F35: 3 | G35: 0 | H35: 3 | I35: 178.20 $ | J35: 3 | K35: 0 | L35: 0 | M35: $534.60
A36: 122 | B36: CARPETAS # 3 | E36: UNID | F36: 2 | G36: 0 | H36: 2 | I36: 147.50 $ | J36: 0 | K36: 2 | L36: $295.00 | M36: 0
A37: 123 | B37: CARPETAS # 4 | E37: UNID | F37: 0 | G37: 0 | H37: 0 | I37: 224.20 $ | J37: 0 | K37: 0 | L37: 0 | M37: 0
A38: 124 | B38: CEPILLO DE INODORO | E38: UNID | F38: 13 | G38: 0 | H38: 13 | I38: 159.30 $ | J38: 4 | K38: 9 | L38: $1,433.70 | M38: $637.20
A39: 125 | B39: CERA PARA CONTAR | E39: UNID | F39: 6 | G39: 0 | H39: 6 | I39: 60.00 $ | J39: 0 | K39: 6 | L39: $360.00 | M39: 0
A40: 126 | B40: CINTA MASKING TAPE 3/4 VISIBLE | E40: UNID | F40: 42 | G40: 0 | H40: 42 | I40: 75.00 $ | J40: 10 | K40: 32 | L40: $2,400.00 | M40: $750.00
A41: 127 | B41: CINTA DE EMPAQUE | E41: UNID | F41: 14 | G41: 0 | H41: 14 | I41: 47.20 $ | J41: 0 | K41: 14 | L41: $660.80 | M41: 0
A42: 128 | B42: CINTA MAGICA SUMADORA | E42: UNID | F42: 2 | G42: 0 | H42: 2 | I42: 76.70 $ | J42: 0 | K42: 2 | L42: $153.40 | M42: 0
A43: 129 | B43: CLIPS JUMBO | E43: UNID | F43: 9 | G43: 0 | H43: 9 | I43: 38.00 $ | J43: 9 | K43: 0 | L43: 0 | M43: $342.00
A44: 130 | B44: CINTA MASKING TAPE CREMA | E44: UNID | F44: 31 | G44: 0 | H44: 31 | I44: 46.00 $ | J44: 20 | K44: 11 | L44: $506.00 | M44: $920.00
A45: 131 | B45: CUBO PLATICOS DE AGUJA DESECHABLES | E45: UNID | F45: 0 | G45: 0 | H45: 0 | I45: 50.00 $ | J45: 0 | K45: 0 | L45: 0 | M45: 0
A46: 132 | B46: CLIPS BILLETERO 32 MM 12/1 | E46: UNID | F46: 36 | G46: 0 | H46: 36 | I46: 123.90 $ | J46: 9 | K46: 27 | L46: $3,345.30 | M46: $1,115.10
A47: 133 | B47: CLIPS BILLETERO 41 MM 12/1 | E47: UNID | F47: 39 | G47: 0 | H47: 39 | I47: 171.10 $ | J47: 3 | K47: 36 | L47: $6,159.60 | M47: $513.30
A48: 134 | B48: CLIPS BILLETERO 51 MM 12/1 | E48: UNID | F48: 36 | G48: 0 | H48: 36 | I48: 230.10 $ | J48: 10 | K48: 26 | L48: $5,982.60 | M48: $2,301.00
A49: 135 | B49: CLIPS PEQUEÑO | E49: UNID | F49: 11 | G49: 0 | H49: 11 | I49: 19.00 $ | J49: 5 | K49: 6 | L49: $114.00 | M49: $95.00
A50: 136 | B50: CLORO | E50: GALON | F50: 18 | G50: 45 | H50: 63 | I50: 68.64 $ | J50: 26 | K50: 37 | L50: $2,539.68 | M50: $1,784.64
A51: 137 | B51: CONTROL DE LIQUIDO(ENFERMERIA) | E51: RESMA | F51: 2 | G51: 0 | H51: 2 | I51: 1,200.00 $ | J51: 0 | K51: 2 | L51: $2,400.00 | M51: 0
A52: 138 | B52: CUADERNOS COCIDOS | E52: UNID | F52: 12 | G52: 0 | H52: 12 | I52: 53.00 $ | J52: 4 | K52: 8 | L52: $424.00 | M52: $212.00
A53: 139 | B53: CUCHARA 25/1 | E53: CAJA | F53: 1 | G53: 4 | H53: 5 | I53: 629.00 $ | J53: 4 | K53: 1 | L53: $629.00 | M53: $2,516.00
A54: 140 | B54: ESCOBA C/PALO | E54: UNID | F54: 3 | G54: 12 | H54: 15 | I54: 133.00 $ | J54: 5 | K54: 10 | L54: $1,330.00 | M54: $665.00
A55: 141 | B55: FOLDER AMARILLO OFICINA | E55: UNID | F55: 375 | G55: 0 | H55: 375 | I55: 2.33 $ | J55: 200 | K55: 175 | L55: $407.75 | M55: $466.00
A56: 142 | B56: FOLDER VERDE 8 1/2 X 11 | E56: UNID | F56: 800 | G56: 0 | H56: 800 | I56: 4.95 $ | J56: 414 | K56: 386 | L56: $1,910.70 | M56: $2,049.30
A57: 143 | B57: FUNDA NEGRA 17*22 PEQUEÑA | E57: PAQ | F57: 71 | G57: 0 | H57: 71 | I57: 72.00 $ | J57: 14 | K57: 57 | L57: $4,104.00 | M57: $1,008.00
A58: 144 | B58: FUNDA NEGRA #6 | E58: PAQ | F58: 9 | G58: 30 | H58: 39 | I58: 36.58 $ | J58: 9 | K58: 30 | L58: $1,097.40 | M58: $329.22
A59: 145 | B59: FUNDA ROJA #2 | E59: PAQ | F59: 41 | G59: 0 | H59: 41 | I59: 20.00 $ | J59: 15 | K59: 26 | L59: $520.00 | M59: $300.00
A60: 146 | B60: FUNDA AZULES #4 | E60: PAQ | F60: 10 | G60: 40 | H60: 50 | I60: 26.00 $ | J60: 15 | K60: 35 | L60: $910.00 | M60: $390.00
A61: 147 | B61: FUNDA NEGRA MEDIANA 27 X 33 | E61: PAQ | F61: 2 | G61: 8 | H61: 10 | I61: 1,080.00 $ | J61: 3 | K61: 7 | L61: $7,560.00 | M61: $3,240.00
A62: 148 | B62: FUNDA NEGRA GRANDE 36*54 | E62: PAQ | F62: 6 | G62: 0 | H62: 6 | I62: 616.00 $ | J62: 1 | K62: 5 | L62: $3,080.00 | M62: $616.00
A63: 149 | B63: FUNDA ROJA PEQUENAS 17*22 | E63: PAQ | F63: 16 | G63: 0 | H63: 16 | I63: 240.00 $ | J63: 4 | K63: 12 | L63: $2,880.00 | M63: $960.00
A64: 150 | B64: FUNDA ROJA GRANDE 36*54 | E64: UNID | F64: 12 | G64: 2 | H64: 14 | I64: 1,030.10 $ | J64: 8 | K64: 6 | L64: $6,180.60 | M64: $8,240.80
A65: 151 | B65: FUNDA ROJA MEDIANA 28*35 | E65: PAQ | F65: 6 | G65: 15 | H65: 21 | I65: 450.36 $ | J65: 13 | K65: 8 | L65: $3,602.88 | M65: $5,854.68
A66: 152 | B66: GALON JABON LIQUIDO | E66: GALON | F66: 1 | G66: 0 | H66: 1 | I66: 171.10 $ | J66: 1 | K66: 0 | L66: 0 | M66: $171.10
A67: 153 | B67: GANCHOS P/FOLDER MH | E67: CAJA | F67: 12 | G67: 0 | H67: 12 | I67: 141.60 $ | J67: 0 | K67: 12 | L67: $1,699.20 | M67: 0
A68: 154 | B68: GOMITAS | E68: CAJA | F68: 14 | G68: 0 | H68: 14 | I68: 45.00 $ | J68: 3 | K68: 11 | L68: $495.00 | M68: $135.00
A69: 155 | B69: GRAPADORA NEGRA | E69: CAJA | F69: 3 | G69: 0 | H69: 3 | I69: 536.00 $ | J69: 2 | K69: 1 | L69: $536.00 | M69: $1,072.00
A70: 156 | B70: GUANTES MULTIUSOS | E70: UNID | F70: 13 | G70: 0 | H70: 13 | I70: 105.00 $ | J70: 4 | K70: 9 | L70: $945.00 | M70: $420.00
A71: 157 | B71: HISTORIA CLINICA PERINATAL | E71: TALONARIO | F71: 2 | G71: 0 | H71: 2 | I71: 1,298.00 $ | J71: 1 | K71: 1 | L71: $1,298.00 | M71: $1,298.00
A72: 158 | B72: HOJA DE ANOTACION ENFERMERIA | E72: TALONARIO | F72: 4 | G72: 0 | H72: 4 | I72: 826.00 $ | J72: 2 | K72: 2 | L72: $1,652.00 | M72: $1,652.00
A73: 159 | B73: HOJA DE ADMICION | E73: RESMA | F73: 5 | G73: 0 | H73: 5 | I73: 165.00 $ | J73: 0 | K73: 5 | L73: $825.00 | M73: 0
A74: 160 | B74: HOJA DE ATENCION DIARIA | E74: TALONARIO | F74: 1 | G74: 0 | H74: =F74+G74 -> 1 | I74: 994.00 $ | J74: 0 | K74: =H74-J74 -> 1 | L74: =I74*K74 -> $994.00 | M74: =I74*J74 -> 0
A75: 161 | B75: HOJA DE CERTIFICACION | E75: TALONARIO | F75: 3 | G75: 0 | H75: 3 | I75: 1,475.00 $ | J75: 0 | K75: 3 | L75: $4,425.00 | M75: 0
A76: 162 | B76: HOJA DE CONSULTA EXTERNA | E76: TALONARIO | F76: 1 | G76: 0 | H76: 1 | I76: 994.00 $ | J76: 1 | K76: 0 | L76: 0 | M76: $994.00
A77: 163 | B77: HOJA TRATAMIENTO D DIETA | E77: TALONARIO | F77: 0 | G77: 0 | H77: 0 | I77: 800.00 $ | J77: 0 | K77: 0 | L77: 0 | M77: 0
A78: 164 | B78: HOJA DE DIRECCION DE ENFERMERIA | E78: TALONARIO | F78: 10 | G78: 0 | H78: 10 | I78: 994.00 $ | J78: 0 | K78: 10 | L78: $9,940.00 | M78: 0
A79: 165 | B79: HOJA DE ENFER EN AREA EMERGENCIA | E79: TALONARIO | F79: 21 | G79: 0 | H79: 21 | I79: 994.00 $ | J79: 0 | K79: 21 | L79: $20,874.00 | M79: 0
A80: 166 | B80: HOJA DE ENFERMERIA | E80: TALONARIO | F80: 4 | G80: 0 | H80: 4 | I80: 1,298.00 $ | J80: 2 | K80: 2 | L80: $2,596.00 | M80: $2,596.00
A81: 167 | B81: HOJA DE EVOLUCION | E81: TALONARIO | F81: 3 | G81: 0 | H81: 3 | I81: 294.00 $ | J81: 0 | K81: 3 | L81: $882.00 | M81: 0
A82: 168 | B82: HOJA DE ANESTESIA | E82: TALONARIO | F82: 2 | G82: 0 | H82: 2 | I82: 185.00 $ | J82: 0 | K82: 2 | L82: $370.00 | M82: 0
A83: 169 | B83: HOJA DE HISTORIAL CLINICO | E83: TALONARIO | F83: 50 | G83: 0 | H83: 50 | I83: 195.00 $ | J83: 0 | K83: 50 | L83: $9,750.00 | M83: 0
A84: 170 | B84: HOJA D KARDEX D MEDICAMENTO ENF | E84: TALONARIO | F84: 17 | G84: 0 | H84: 17 | I84: 1,298.00 $ | J84: 2 | K84: 15 | L84: $19,470.00 | M84: $2,596.00
A85: 171 | B85: HOJA DE PRESUPUESTO | E85: TALONARIO | F85: 0 | G85: 0 | H85: 0 | I85: 1,298.00 $ | J85: 0 | K85: 0 | L85: 0 | M85: 0
A86: 172 | B86: HOJA DE REFERENCIA Y CONTRA REFERENCIA | E86: TALONARIO | F86: 13 | G86: 0 | H86: 13 | I86: 826.00 $ | J86: 8 | K86: 5 | L86: $4,130.00 | M86: $6,608.00
A87: 173 | B87: HOJA D REGITRO D CONSULTA EXTERNA | E87: TALONARIO | F87: 3 | G87: 0 | H87: 3 | I87: 1,711.00 $ | J87: 3 | K87: 0 | L87: 0 | M87: $5,133.00
A88: 174 | B88: HOJA DE RESUMEN MEDICO DE EGRESO | E88: TALONARIO | F88: 10 | G88: 0 | H88: 10 | I88: 826.00 $ | J88: 0 | K88: 10 | L88: $8,260.00 | M88: 0
A89: 175 | B89: HOJA DE VERIFICACION SEGURIDAD CIRUGIA | E89: TALONARIO | F89: 2 | G89: 0 | H89: 2 | I89: 1,475.00 $ | J89: 0 | K89: 2 | L89: $2,950.00 | M89: 0
A90: 176 | B90: HOJA DESIGNOGRAMA ENFERM | E90: TALONARIO | F90: 3 | G90: 0 | H90: 3 | I90: 994.00 $ | J90: 0 | K90: 3 | L90: $2,982.00 | M90: 0
A91: 177 | B91: HOJA KARDEX MED INTERNA MATERIALE INSUMOS | E91: TALONARIO | F91: 13 | G91: 0 | H91: 13 | I91: 994.00 $ | J91: 1 | K91: 12 | L91: $11,928.00 | M91: $994.00
A92: 178 | B92: HOJA LEGAL 8 1/2*14 RESMA | E92: TALONARIO | F92: 1 | G92: 0 | H92: 1 | I92: 348.00 $ | J92: 1 | K92: 0 | L92: 0 | M92: $348.00
A93: 179 | B93: HOJA ORDEN MEDICA | E93: TALONARIO | F93: 4 | G93: 0 | H93: 4 | I93: 800.00 $ | J93: 0 | K93: 4 | L93: $3,200.00 | M93: 0
A94: 180 | B94: HOJA PRE OPERATORIO | E94: TALONARIO | F94: 5 | G94: 0 | H94: 5 | I94: 1,299.00 $ | J94: 1 | K94: 4 | L94: $5,196.00 | M94: $1,299.00
A95: 181 | B95: HOJA SIGNOS VITALES | E95: TALONARIO | F95: 2 | G95: 0 | H95: 2 | I95: 1,200.00 $ | J95: 1 | K95: 1 | L95: $1,200.00 | M95: $1,200.00
A96: 182 | B96: HOJA SIGNOS VITALES ENFER VERSION 0-1 | E96: TALONARIO | F96: 2 | G96: 0 | H96: 2 | I96: 994.00 $ | J96: 0 | K96: 2 | L96: $1,988.00 | M96: 0
A97: 183 | B97: HOJA SIGNOS VITALES VERSION 0-2 | E97: TALONARIO | F97: 10 | G97: 0 | H97: 10 | I97: 994.00 $ | J97: 0 | K97: 10 | L97: $9,940.00 | M97: 0
A98: 184 | B98: HOJAS TIMBRADA | E98: RESMA | F98: 4 | G98: 0 | H98: 4 | I98: 1,350.00 $ | J98: 2 | K98: 2 | L98: $2,700.00 | M98: $2,700.00
A99: 185 | B99: HOJA DE VERIFICACION SEGURIDAD CIRUGIA | E99: TALONARIO | F99: 2 | G99: 0 | H99: 2 | I99: 1,298.00 $ | J99: 0 | K99: 2 | L99: $2,596.00 | M99: 0
A100: 186 | B100: LABELSP/FOLDER | E100: UNID | F100: 6 | G100: 0 | H100: 6 | I100: 112.10 $ | J100: 0 | K100: 6 | L100: $672.60 | M100: 0
A101: 187 | B101: LAPIZ | E101: UNID | F101: 41 | G101: 0 | H101: 41 | I101: 10.00 $ | J101: 3 | K101: 38 | L101: $380.00 | M101: $30.00
A102: 188 | B102: LIBRO BANCO VENTA SERVICIOS | E102: UNID | F102: 1 | G102: 0 | H102: 1 | I102: 2,360.00 $ | J102: 0 | K102: 1 | L102: $2,360.00 | M102: 0
A103: 189 | B103: LIBRO DE ANOTACIONES ENFERMERIA | E103: UNID | F103: 0 | G103: 0 | H103: 0 | I103: 826.00 $ | J103: 0 | K103: 0 | L103: 0 | M103: 0
A104: 190 | B104: LIBRO DE EMERGENCIA | E104: UNID | F104: 1 | G104: 0 | H104: 1 | I104: 2,360.00 $ | J104: 1 | K104: 0 | L104: 0 | M104: $2,360.00
A105: 191 | B105: LIBRO DE LABORATORIO PACIENTE | E105: UNID | F105: 0 | G105: 0 | H105: 0 | I105: 1,170.00 $ | J105: 0 | K105: 0 | L105: 0 | M105: 0
A106: 192 | B106: LIBRO DE CONTROL DE PARASITOLOGIA | E106: UNID | F106: 3 | G106: 0 | H106: 3 | I106: 1,170.00 $ | J106: 2 | K106: 1 | L106: $1,170.00 | M106: $2,340.00
A107: 193 | B107: LIBRO DE PARTO Y INTERNAMIENTO | E107: UNID | F107: 3 | G107: 0 | H107: 3 | I107: 1,170.00 $ | J107: 0 | K107: 3 | L107: $3,510.00 | M107: 0
A108: 194 | B108: LIBRO DE CIRUGIA | E108: UNID | F108: 2 | G108: 0 | H108: 2 | I108: 1,170.00 $ | J108: 0 | K108: 2 | L108: $2,340.00 | M108: 0
A109: 195 | B109: LIBRO DE COPROLOGICO | E109: UNID | F109: 0 | G109: 0 | H109: 0 | I109: 1,170.00 $ | J109: 0 | K109: 0 | L109: 0 | M109: 0
A110: 196 | B110: LIBRO DE CONS REGISTRO VIH | E110: UNID | F110: 0 | G110: 0 | H110: 0 | I110: 1,770.00 $ | J110: 0 | K110: 0 | L110: 0 | M110: 0
A111: 197 | B111: LIBRO DE SEROLOGIA | E111: UNID | F111: 3 | G111: 0 | H111: 3 | I111: 2,360.00 $ | J111: 1 | K111: 2 | L111: $4,720.00 | M111: $2,360.00
A112: 198 | B112: LIBRO DE URIANALISIS | E112: UNID | F112: 3 | G112: 0 | H112: 3 | I112: 2,360.00 $ | J112: 1 | K112: 2 | L112: $4,720.00 | M112: $2,360.00
A113: 199 | B113: LIBRO HEMATOLOGIA | E113: UNID | F113: 3 | G113: 0 | H113: 3 | I113: 2,000.00 $ | J113: 1 | K113: 2 | L113: $4,000.00 | M113: $2,000.00
A114: 200 | B114: LIBRO QUIMICO | E114: UNID | F114: 3 | G114: 0 | H114: 3 | I114: 2,360.00 $ | J114: 1 | K114: 2 | L114: $4,720.00 | M114: $2,360.00
A115: 201 | B115: LIBRO INTERNAMIENTO | E115: UNID | F115: 3 | G115: 0 | H115: 3 | I115: 1,770.00 $ | J115: 0 | K115: 3 | L115: $5,310.00 | M115: 0
A116: 202 | B116: LIBRO DE RAYOS X | E116: UNID | F116: 3 | G116: 0 | H116: 3 | I116: 1,770.00 $ | J116: 1 | K116: 2 | L116: $3,540.00 | M116: $1,770.00
A117: 203 | B117: LIBRO RECORD DE REGISTRO ADOLECENTE | E117: UNID | F117: 0 | G117: 0 | H117: 0 | I117: 1,800.00 $ | J117: 0 | K117: 0 | L117: 0 | M117: 0
A118: 204 | B118: LIQUID PAPER T/L CORRECTOR | E118: UNID | F118: 53 | G118: 0 | H118: 53 | I118: 30.00 $ | J118: 14 | K118: 39 | L118: $1,170.00 | M118: $420.00
A119: 205 | B119: MARCADORES AZULES | E119: UNID | F119: 18 | G119: 0 | H119: 18 | I119: 30.00 $ | J119: 7 | K119: 11 | L119: $330.00 | M119: $210.00
A120: 206 | B120: MARCADORES NEGROS | E120: UNID | F120: 30 | G120: 0 | H120: 30 | I120: 30.00 $ | J120: 18 | K120: 12 | L120: $360.00 | M120: $540.00
A121: 207 | B121: MISTOLIN | E121: GALON | F121: 56 | G121: 40 | H121: 96 | I121: 104.00 $ | J121: 24 | K121: 72 | L121: $7,488.00 | M121: $2,496.00
A122: 208 | B122: PAPEL ALUMINIO 75 | E122: UNID | F122: 1 | G122: 0 | H122: 1 | I122: 560.00 $ | J122: 0 | K122: 1 | L122: $560.00 | M122: 0
A123: 209 | B123: PAPEL CARBON 8 1/2*11 | E123: UNID | F123: 1 | G123: 0 | H123: 1 | I123: 325.00 $ | J123: 0 | K123: 1 | L123: $325.00 | M123: 0
A124: 210 | B124: PAPEL HIGIENICO FARDO 48/1 | E124: UNID | F124: 140 | G124: 160 | H124: 300 | I124: 22.60 $ | J124: 145 | K124: 155 | L124: $3,503.00 | M124: $3,277.00
A125: 211 | B125: PAPEL MANILA NATURAL KRAF | E125: UNID | F125: 2 | G125: 0 | H125: 2 | I125: 3,916.00 $ | J125: 1 | K125: 1 | L125: $3,916.00 | M125: $3,916.00
A126: 212 | B126: PAPEL TOALLA 6/1 | E126: UNID | F126: 6 | G126: 30 | H126: 36 | I126: 95.38 $ | J126: 15 | K126: 21 | L126: $2,002.98 | M126: $1,430.70
A127: 213 | B127: PERFORADORA 2 | E127: UNID | F127: 0 | G127: 0 | H127: 0 | I127: 306.08 $ | J127: 0 | K127: 0 | L127: 0 | M127: 0
A128: 214 | B128: PERFORADORA 3 | E128: UNID | F128: 1 | G128: 0 | H128: 1 | I128: 631.30 $ | J128: 0 | K128: 1 | L128: $631.30 | M128: 0
A129: 215 | B129: PILA AA | E129: UNID | F129: 0 | G129: 0 | H129: 0 | I129: 54.00 $ | J129: 0 | K129: 0 | L129: 0 | M129: 0
A130: 216 | B130: PILA AAA | E130: UNID | F130: 0 | G130: 0 | H130: 0 | I130: 53.00 $ | J130: 0 | K130: 0 | L130: 0 | M130: 0
A131: 217 | B131: PAPEL CON DIVISION 200/1 OPTION | E131: CAJA | F131: 2 | G131: 0 | H131: =F131+G131 -> 2 | I131: 1,085.00 $ | J131: 1 | K131: =H131-J131 -> 1 | L131: =I131*K131 -> $1,085.00 | M131: =I131*J131 -> $1,085.00
A132: 218 | B132: PLATOS | E132: FARDO | F132: 10 | G132: 10 | H132: 20 | I132: 1,291.00 $ | J132: 8 | K132: 12 | L132: $15,492.00 | M132: $10,328.00
A133: 219 | B133: POS-IT 3*3 | E133: RESMA | F133: 0 | G133: 0 | H133: 0 | I133: 33.63 $ | J133: 0 | K133: 0 | L133: 0 | M133: 0
A134: 220 | B134: PURISIMA | E134: UNID | F134: 0 | G134: 0 | H134: 0 | I134: 625.00 $ | J134: 0 | K134: 0 | L134: 0 | M134: 0
A135: 221 | B135: RECIBO DE CAJA CHICA | E135: TALONARIO | F135: 0 | G135: 0 | H135: 0 | I135: 275.00 $ | J135: 0 | K135: 0 | L135: 0 | M135: 0
A136: 222 | B136: RECOJEDOR DE BASURA | E136: UNID | F136: 3 | G136: 0 | H136: 3 | I136: 109.25 $ | J136: 0 | K136: 3 | L136: $327.75 | M136: 0
A137: 223 | B137: REGLA TRANSPARENTE | E137: UNID | F137: 0 | G137: 0 | H137: 0 | I137: 9.44 $ | J137: 0 | K137: 0 | L137: 0 | M137: 0
A138: 224 | B138: RESALTADOR | E138: UNID | F138: 18 | G138: 0 | H138: 18 | I138: 39.00 $ | J138: 3 | K138: 15 | L138: $585.00 | M138: $117.00
A139: 225 | B139: RESMA DE CONTROL DE EXISTENCIA | E139: RESMA | F139: 4 | G139: 0 | H139: 4 | I139: 1,298.00 $ | J139: 0 | K139: 4 | L139: $5,192.00 | M139: 0
A140: 226 | B140: RESMA HOJA DE MAQUINA 8/2 *11 | E140: RESMA | F140: 1 | G140: 60 | H140: 61 | I140: 228.00 $ | J140: 51 | K140: 10 | L140: $2,280.00 | M140: $11,628.00
A141: 227 | B141: ROLLO DE PAPEL SUMADORA | E141: UNID | F141: 15 | G141: 0 | H141: 15 | I141: 23.00 $ | J141: 12 | K141: 3 | L141: $69.00 | M141: $276.00
A142: 228 | B142: ROTULO PARA SOLUCION Y MEDICAMENTOS | E142: UNID | F142: 1050 | G142: 0 | H142: 1050 | I142: 6.50 $ | J142: 100 | K142: 950 | L142: $6,175.00 | M142: $650.00
A143: 229 | B143: SACA GRAPA | E143: UNID | F143: 3 | G143: 0 | H143: 3 | I143: 30.00 $ | J143: 1 | K143: 2 | L143: $60.00 | M143: $30.00
A144: 230 | B144: SACAPUNTA METAL | E144: UNID | F144: 0 | G144: 24 | H144: 24 | I144: 15.00 $ | J144: 0 | K144: 24 | L144: $360.00 | M144: 0
A145: 231 | B145: SACO DE DETERGENTE | E145: UNID | F145: 3 | G145: 0 | H145: 3 | I145: 1,100.00 $ | J145: 2 | K145: 1 | L145: $1,100.00 | M145: $2,200.00
A146: 232 | B146: SERVILLETA C-FOLD 24/100 XCELENT | E146: UNID | F146: 43 | G146: 48 | H146: 91 | I146: 24.50 $ | J146: 18 | K146: 73 | L146: $1,788.50 | M146: $441.00
A147: 233 | B147: SERVILLETAS DE BINGO 60/1 | E147: UNID | F147: 271 | G147: 0 | H147: 271 | I147: 11.50 $ | J147: 71 | K147: 200 | L147: $2,300.00 | M147: $816.50
A148: 234 | B148: SOBRE CARTA VENTANILLA | E148: UNID | F148: 700 | G148: 0 | H148: 700 | I148: 1.85 $ | J148: 100 | K148: 600 | L148: $1,110.00 | M148: $185.00
A149: 235 | B149: SOBRE MANILA 14*17 1000 UNIDAD | E149: UNID | F149: 946 | G149: 0 | H149: 946 | I149: 13.85 $ | J149: 40 | K149: 906 | L149: $12,548.10 | M149: $554.00
A150: 236 | B150: SOBRE MANILA 10*14 DE 500 UNID | E150: UNID | F150: 937 | G150: 0 | H150: 937 | I150: 7.10 $ | J150: 75 | K150: 862 | L150: $6,120.20 | M150: $532.50
A151: 237 | B151: SOBRE TIMBRADO | E151: UNID | F151: 320 | G151: 0 | H151: 320 | I151: 13.00 $ | J151: 70 | K151: 250 | L151: $3,250.00 | M151: $910.00
A152: 238 | B152: SUAPER JUMBO | E152: UNID | F152: 0 | G152: 12 | H152: 12 | I152: 175.00 $ | J152: 6 | K152: 6 | L152: $1,050.00 | M152: $1,050.00
A153: 239 | B153: SUAVITEL | E153: GALON | F153: 16 | G153: 0 | H153: 16 | I153: 148.31 $ | J153: 7 | K153: 9 | L153: $1,334.79 | M153: $1,038.17
A154: 250 | B154: TALONARIO DE PATOLOGIA | E154: TALONARIO | F154: 50 | G154: 0 | H154: 50 | I154: 236.00 $ | J154: 0 | K154: 50 | L154: $11,800.00 | M154: 0
A155: 251 | B155: TALONARIO HISTORIA CLINICA EMERGENCIA | E155: TALONARIO | F155: 25 | G155: 0 | H155: 25 | I155: 70.80 $ | J155: 3 | K155: 22 | L155: $1,557.60 | M155: $212.40
A156: 252 | B156: TALONARIO SOLICITUD DE MEDICAMENTO | E156: TALONARIO | F156: 13 | G156: 0 | H156: 13 | I156: 275.00 $ | J156: 3 | K156: 10 | L156: $2,750.00 | M156: $825.00
A157: 253 | B157: TALONARIO COPROLOGICO | E157: TALONARIO | F157: 115 | G157: 0 | H157: 115 | I157: 75.00 $ | J157: 7 | K157: 108 | L157: $8,100.00 | M157: $525.00
A158: 254 | B158: TALALONARIO HEMOGRAMA | E158: TALONARIO | F158: 79 | G158: 0 | H158: 79 | I158: 88.35 $ | J158: 47 | K158: 32 | L158: $2,827.20 | M158: $4,152.45
A159: 255 | B159: TALONARIO INTERVENCION AUT. QUIRURGICA | E159: TALONARIO | F159: 0 | G159: 0 | H159: 0 | I159: 185.00 $ | J159: 0 | K159: 0 | L159: 0 | M159: 0
A160: 256 | B160: TALONARIO LABORATORIO CLINICO | E160: TALONARIO | F160: 123 | G160: 0 | H160: 123 | I160: 37.00 $ | J160: 50 | K160: 73 | L160: $2,701.00 | M160: $1,850.00
A161: 257 | B161: TALONARIO COPROLOGICO | E161: TALONARIO | F161: 108 | G161: 0 | H161: 108 | I161: 75.00 $ | J161: 0 | K161: 108 | L161: $8,100.00 | M161: 0
A162: 258 | B162: TALONARIO PLANIFICACION | C162: METODO PLANIFICACION | D162: POSPARTO | E162: TALONARIO | F162: 1 | G162: 0 | H162: 1 | I162: 185.00 $ | J162: 0 | K162: 1 | L162: $185.00 | M162: 0
A163: 259 | B163: TALONARIO P/COLC DE IMPLANDE SUDERMICO | E163: TALONARIO | F163: 0 | G163: 0 | H163: 0 | I163: 185.00 $ | J163: 0 | K163: 0 | L163: 0 | M163: 0
A164: 260 | B164: TALONARIO UNICO MEDICAMENTOS | E164: TALONARIO | F164: 0 | G164: 0 | H164: 0 | I164: 266.00 $ | J164: 0 | K164: 0 | L164: 0 | M164: 0
A165: 261 | B165: TALONARIO URIANALISIS | E165: TALONARIO | F165: 69 | G165: 0 | H165: 69 | I165: 53.10 $ | J165: 50 | K165: 19 | L165: $1,008.90 | M165: $2,655.00
A166: 262 | B166: TALONARIO COMUN ENFERMERIA FARMACIA | E166: TALONARIO | F166: 45 | G166: 0 | H166: 45 | I166: 413.00 $ | J166: 0 | K166: 45 | L166: $18,585.00 | M166: 0
A167: 263 | B167: TALONARIO CERTIFICADO MEDICO | E167: TALONARIO | F167: 0 | G167: 0 | H167: 0 | I167: 275.00 $ | J167: 0 | K167: 0 | L167: 0 | M167: 0
A168: 264 | B168: TALONARIO DE CONSULTA | C168: CONCENTIMIENTO INFORMADO | D168: VIH MEDIA | E168: TALONARIO | F168: 12 | G168: 0 | H168: 12 | I168: 756.00 $ | J168: 12 | K168: 0 | L168: 0 | M168: $9,072.00
A169: 265 | B169: TALONARIO CONS INFORMADO | C169: CONCENTIMIENTO | E169: TALONARIO | F169: 7 | G169: 0 | H169: 7 | I169: 266.00 $ | J169: 0 | K169: 7 | L169: $1,862.00 | M169: 0
A170: 266 | B170: TALONARIO DE CONTROL TEMPERATURA | E170: TALONARIO | F170: 16 | G170: 0 | H170: 16 | I170: 294.00 $ | J170: 2 | K170: 14 | L170: $4,116.00 | M170: $588.00
A171: 264 | B171: TALONARIO DE CUOTA DE CONTRIBUCION | E171: TALONARIO | F171: 5 | G171: 0 | H171: 5 | I171: 185.00 $ | J171: 0 | K171: 5 | L171: $925.00 | M171: 0
A172: 268 | B172: TALONARIO EVALUACION PRE ANESTESICA | E172: TALONARIO | F172: 5 | G172: 0 | H172: 5 | I172: 185.00 $ | J172: 0 | K172: 5 | L172: $925.00 | M172: 0
A173: 269 | B173: TALONARIO HOJA DE KARDEX | E173: TALONARIO | F173: 0 | G173: 0 | H173: 0 | I173: 994.00 $ | J173: 0 | K173: 0 | L173: 0 | M173: 0
A174: 270 | B174: TALONARIO SALIDA ALMACEN | E174: TALONARIO | F174: 3 | G174: 0 | H174: 3 | I174: 275.00 $ | J174: 3 | K174: 0 | L174: 0 | M174: $825.00
A175: 271 | B175: TAPA DE VASOS #12 CLEA 10/100 | E175: PAQU | F175: 20 | G175: 20 | H175: 40 | I175: 224.00 $ | J175: 32 | K175: 8 | L175: $1,792.00 | M175: $7,168.00
A176: 272 | B176: TARJETA DE CITA | E176: UNID | F176: 1575 | G176: 0 | H176: 1575 | I176: 2.75 $ | J176: 560 | K176: 1015 | L176: $2,791.25 | M176: $1,540.00
A177: 23 | B177: TARJETA DE EXPEDIENTE | E177: UNID | F177: 225 | G177: 0 | H177: 225 | I177: 4.50 $ | J177: 150 | K177: 75 | L177: $337.50 | M177: $675.00
A178: 274 | B178: TALONARIO RECETARIO NORMAL | E178: UNID | F178: 8 | G178: 0 | H178: 8 | I178: 53.65 $ | J178: 8 | K178: 0 | L178: 0 | M178: $429.20
A179: 275 | B179: TIJERAS | E179: UNID | F179: 2 | G179: 0 | H179: 2 | I179: 62.54 $ | J179: 1 | K179: 1 | L179: $62.54 | M179: $62.54
A180: 276 | B180: TINTA PARA SELLO AZUL | E180: UNID | F180: 4 | G180: 0 | H180: 4 | I180: 106.00 $ | J180: 2 | K180: 2 | L180: $212.00 | M180: $212.00
A181: 277 | B181: TINTA PARA SELLO NEGRO | E181: UNID | F181: 0 | G181: 0 | H181: 0 | I181: 85.00 $ | J181: 0 | K181: 0 | L181: 0 | M181: 0
A182: 278 | B182: TOALLA MICROFIBRA16´´ *16´´ | E182: UNID | F182: 36 | G182: 0 | H182: 36 | I182: 49.56 $ | J182: 4 | K182: 32 | L182: $1,585.92 | M182: $198.24
A183: 279 | B183: VASO 12 CAJA 40/25 FOAM | E183: PAQU | F183: 148 | G183: 40 | H183: 188 | I183: 53.20 $ | J183: 75 | K183: 113 | L183: $6,011.60 | M183: $3,990.00
A184: 280 | B184: VASO 5 | E184: PAQU | F184: 9 | G184: 50 | H184: 59 | I184: 55.00 $ | J184: 14 | K184: 45 | L184: $2,475.00 | M184: $770.00
A185: 281 | B185: VASOS #7 | E185: PAQU | F185: 65 | G185: 250 | H185: 315 | I185: 38.94 $ | J185: 33 | K185: 282 | L185: $10,981.08 | M185: $1,285.02
J188: TOTAL ALMACEN | L188: =SUM(L15:L185) -> $421,195.29
J189: TOTAL DE COMSUMO | L189: =SUM(M15:M185) -> $181,239.49

Sheet MARZO
A3: =A3:M125 -> 0
K11: 2025-03-26
A12: INVENTARIO DE ALMACEN
A13: CODIGO | B13: DESCRIPCION DEL PRODUCTO | E13: UNIDAD MEDIDA | F13: CANTIDAD | G13: ENTRADA | H13: TOTAL | I13: PRECIO | J13: SALIDA DE USO MENSUAL | K13: CANTIDAD ACTIVA EN ALMACEN | L13: VALOR TOTAL ACTIVO | M13: VALORDE TOTAL CONSUMO
A14: 101 | B14: ACORDEON 10*12 CARTON PIEDRA | E14: UNID | F14: 4 | G14: 0 | H14: =F14+G14 -> 4 | I14: 744.00 $ | J14: 0 | K14: =H14-J14 -> 4 | L14: =I14*K14 -> $2,976.00 | M14: =I14*J14 -> 0
A15: 102 | B15: ALMOHADILLA PARA SELLO | E15: UNID | F15: 0 | G15: 0 | H15: =F15+G15 -> 0 | I15: 80.00 $ | J15: 0 | K15: =H15-J15 -> 0 | L15: =I15*K15 -> 0 | M15: =I15*J15 -> 0
A16: 103 | B16: AMBIENTADOR SPRAY | E16: UNID | F16: 0 | G16: 12 | H16: 12 | I16: 145.00 $ | J16: 12 | K16: 0 | L16: 0 | M16: $1,740.00
A17: 104 | B17: AGUA BOTELLITAS | E17: UNID | F17: 0 | G17: 200 | H17: 200 | I17: 6.50 $ | J17: 200 | K17: 0 | L17: 0 | M17: $1,300.00
A18: 105 | B18: AXION EN PASTA | E18: UNID | F18: 0 | G18: 18 | H18: 18 | I18: 116.00 $ | J18: 17 | K18: 1 | L18: $116.00 | M18: $1,972.00
A19: 106 | B19: BANDER 1´´ CARPETA CUBIERTA | E19: UNID | F19: 0 | G19: 0 | H19: 0 | I19: 271.00 $ | J19: 0 | K19: 0 | L19: 0 | M19: 0
A20: 107 | B20: BAYGON 400ML | E20: UNID | F20: 8 | G20: 0 | H20: 8 | I20: 349.00 $ | J20: 5 | K20: 3 | L20: $1,047.00 | M20: $1,745.00
A21: 108 | B21: BOLIGRAFOS AZULES | E21: UNID | F21: 46 | G21: 72 | H21: 118 | I21: 10.10 $ | J21: 60 | K21: 58 | L21: $585.80 | M21: $606.00
A22: 109 | B22: BOLIGRAFOS NEGROS | E22: UNID | F22: 49 | G22: 0 | H22: 49 | I22: 7.00 $ | J22: 12 | K22: 37 | L22: $259.00 | M22: $84.00
A23: 110 | B23: BOLIGRAFOS ROJOS | E23: UNID | F23: 95 | G23: 0 | H23: 95 | I23: 7.00 $ | J23: 18 | K23: 77 | L23: $539.00 | M23: $126.00
A24: 111 | B24: BOLIGRAFOS VERDES | E24: UNID | F24: 0 | G24: 12 | H24: 12 | I24: 10.00 $ | J24: 2 | K24: 10 | L24: $100.00 | M24: $20.00
A25: 112 | B25: BORRANTE DE LECHE | E25: UNID | F25: 12 | G25: 0 | H25: 12 | I25: 8.00 $ | J25: 2 | K25: 10 | L25: $80.00 | M25: $16.00
A26: 113 | B26: BRILLO GRUESO 12/1 PROMANO | E26: UNID | F26: 40 | G26: 12 | H26: 52 | I26: 69.60 $ | J26: 14 | K26: 38 | L26: $2,644.80 | M26: $974.40
A27: 114 | B27: BRILLO GRIS | E27: UNID | F27: 9 | G27: 12 | H27: 21 | I27: 69.60 $ | J27: 15 | K27: 6 | L27: $417.60 | M27: $1,044.00
A28: 115 | B28: BRILLO VERDE Y ESPONJA | E28: UNID | F28: 0 | G28: 24 | H28: 24 | I28: 57.80 $ | J28: 3 | K28: 21 | L28: $1,213.80 | M28: $173.40
A29: 116 | B29: CAJA PLASTICAS DE 27 GL NEGRA | E29: UNID | F29: 0 | G29: 10 | H29: 10 | I29: 1,350.00 $ | J29: 2 | K29: 8 | L29: $10,800.00 | M29: $2,700.00
A30: 117 | B30: CAJITA DE GRAPAS ESTÁNDAR 26/6 | E30: UNID | F30: 1 | G30: 0 | H30: 1 | I30: 47.17 $ | J30: 1 | K30: 0 | L30: 0 | M30: $47.17
A31: 118 | B31: CALCULADORA | E31: UNID | F31: 3 | G31: 0 | H31: 3 | I31: 359.90 $ | J31: 1 | K31: 2 | L31: $719.80 | M31: $359.90
A32: 119 | B32: CARPETA NEGRA | E32: UNID | F32: 3 | G32: 0 | H32: 3 | I32: 330.00 $ | J32: 0 | K32: 3 | L32: $990.00 | M32: 0
A33: 120 | B33: CARPETA NEGRA #1 | E33: UNID | F33: 4 | G33: 0 | H33: 4 | I33: 469.00 $ | J33: 1 | K33: 3 | L33: $1,407.00 | M33: $469.00
A34: 121 | B34: CARPETA NEGRA # 2 | E34: UNID | F34: 0 | G34: 0 | H34: 0 | I34: 178.20 $ | J34: 0 | K34: 0 | L34: 0 | M34: 0
A35: 122 | B35: CARPETAS # 3 | E35: UNID | F35: 2 | G35: 0 | H35: 2 | I35: 147.50 $ | J35: 0 | K35: 2 | L35: $295.00 | M35: 0
A36: 123 | B36: CARPETAS # 4 | E36: UNID | F36: 0 | G36: 0 | H36: 0 | I36: 224.20 $ | J36: 0 | K36: 0 | L36: 0 | M36: 0
A37: 124 | B37: CEPILLO DE INODORO | E37: UNID | F37: 9 | G37: 0 | H37: 9 | I37: 159.30 $ | J37: 4 | K37: 5 | L37: $796.50 | M37: $637.20
A38: 125 | B38: CERA PARA CONTAR | E38: UNID | F38: 6 | G38: 0 | H38: 6 | I38: 60.00 $ | J38: 5 | K38: 1 | L38: $60.00 | M38: $300.00
A39: 126 | B39: CINTA MASKING TAPE 3/4 VISIBLE | E39: UNID | F39: 32 | G39: 0 | H39: 32 | I39: 75.00 $ | J39: 10 | K39: 22 | L39: $1,650.00 | M39: $750.00
A40: 127 | B40: CINTA DE EMPAQUE | E40: UNID | F40: 14 | G40: 0 | H40: 14 | I40: 47.20 $ | J40: 11 | K40: 3 | L40: $141.60 | M40: $519.20
A41: 128 | B41: CINTA MAGICA SUMADORA | E41: UNID | F41: 2 | G41: 0 | H41: 2 | I41: 76.70 $ | J41: 0 | K41: 2 | L41: $153.40 | M41: 0
A42: 129 | B42: CLIPS JUMBO | E42: UNID | F42: 0 | G42: 6 | H42: 6 | I42: 38.00 $ | J42: 6 | K42: 0 | L42: 0 | M42: $228.00
A43: 130 | B43: CINTA MASKING TAPE CREMA | E43: UNID | F43: 11 | G43: 0 | H43: 11 | I43: 46.00 $ | J43: 0 | K43: 11 | L43: $506.00 | M43: 0
A44: 131 | B44: CUBO PLATICOS DE AGUJA DESECHABLES | E44: UNID | F44: 0 | G44: 20 | H44: 20 | I44: 50.00 $ | J44: 4 | K44: 16 | L44: $800.00 | M44: $200.00
A45: 132 | B45: CLIPS BILLETERO 32 MM 12/1 | E45: UNID | F45: 27 | G45: 36 | H45: 63 | I45: 123.90 $ | J45: 9 | K45: 54 | L45: $6,690.60 | M45: $1,115.10
A46: 133 | B46: CLIPS BILLETERO 41 MM 12/1 | E46: UNID | F46: 36 | G46: 36 | H46: 72 | I46: 171.10 $ | J46: 3 | K46: 69 | L46: $11,805.90 | M46: $513.30
A47: 134 | B47: CLIPS BILLETERO 51 MM 12/1 | E47: UNID | F47: 26 | G47: 36 | H47: 62 | I47: 230.10 $ | J47: 10 | K47: 52 | L47: $11,965.20 | M47: $2,301.00
A48: 135 | B48: CLIPS PEQUEÑO | E48: UNID | F48: 6 | G48: 0 | H48: 6 | I48: 19.00 $ | J48: 6 | K48: 0 | L48: 0 | M48: $114.00
A49: 136 | B49: CLORO | E49: GALON | F49: 37 | G49: 20 | H49: 57 | I49: 68.64 $ | J49: 35 | K49: 22 | L49: $1,510.08 | M49: $2,402.40
A50: 137 | B50: CONTROL DE LIQUIDO(ENFERMERIA) | E50: RESMA | F50: 2 | G50: 3 | H50: 5 | I50: 1,200.00 $ | J50: 1 | K50: 4 | L50: $4,800.00 | M50: $1,200.00
A51: 138 | B51: CUADERNOS COCIDOS | E51: UNID | F51: 8 | G51: 0 | H51: 8 | I51: 53.00 $ | J51: 8 | K51: 0 | L51: 0 | M51: $424.00
A52: 139 | B52: CUCHARA 25/1 | E52: CAJA | F52: 1 | G52: 3 | H52: 4 | I52: 629.00 $ | J52: 2 | K52: 2 | L52: $1,258.00 | M52: $1,258.00
A53: 140 | B53: ESCOBA C/PALO | E53: UNID | F53: 10 | G53: 0 | H53: 10 | I53: 133.00 $ | J53: 10 | K53: 0 | L53: 0 | M53: $1,330.00
A54: 141 | B54: FOLDER AMARILLO OFICINA | E54: UNID | F54: 175 | G54: 600 | H54: 775 | I54: 2.33 $ | J54: 300 | K54: 475 | L54: $1,106.75 | M54: $699.00
A55: 142 | B55: FOLDER VERDE 8 1/2 X 11 | E55: UNID | F55: 386 | G55: 0 | H55: 386 | I55: 4.95 $ | J55: 200 | K55: 186 | L55: $920.70 | M55: $990.00
A56: 143 | B56: FUNDA NEGRA 17*22 PEQUEÑA | E56: PAQ | F56: 57 | G56: 0 | H56: 57 | I56: 72.00 $ | J56: 14 | K56: 43 | L56: $3,096.00 | M56: $1,008.00
A57: 144 | B57: FUNDA NEGRA #6 | E57: PAQ | F57: 30 | G57: 30 | H57: 60 | I57: 36.58 $ | J57: 10 | K57: 50 | L57: $1,829.00 | M57: $365.80
A58: 145 | B58: FUNDA ROJA #2 | E58: PAQ | F58: 26 | G58: 60 | H58: 86 | I58: 20.00 $ | J58: 30 | K58: 56 | L58: $1,120.00 | M58: $600.00
A59: 146 | B59: FUNDA AZULES #4 | E59: PAQ | F59: 35 | G59: 40 | H59: 75 | I59: 26.00 $ | J59: 17 | K59: 58 | L59: $1,508.00 | M59: $442.00
A60: 147 | B60: FUNDA NEGRA MEDIANA 27 X 33 | E60: PAQ | F60: 7 | G60: 40 | H60: 47 | I60: 1,080.00 $ | J60: 25 | K60: 22 | L60: $23,760.00 | M60: $27,000.00
A61: 148 | B61: FUNDA NEGRA GRANDE 36*54 | E61: PAQ | F61: 5 | G61: 15 | H61: 20 | I61: 616.00 $ | J61: 4 | K61: 16 | L61: $9,856.00 | M61: $2,464.00
A62: 149 | B62: FUNDA ROJA PEQUENAS 17*22 | E62: PAQ | F62: 12 | G62: 30 | H62: 42 | I62: 240.00 $ | J62: 10 | K62: 32 | L62: $7,680.00 | M62: $2,400.00
A63: 150 | B63: FUNDA ROJA GRANDE 36*54 | E63: UNID | F63: 6 | G63: 2 | H63: 8 | I63: 1,030.10 $ | J63: 4 | K63: 4 | L63: $4,120.40 | M63: $4,120.40
A64: 151 | B64: FUNDA ROJA MEDIANA 28*35 | E64: PAQ | F64: 8 | G64: 15 | H64: 23 | I64: 450.36 $ | J64: 9 | K64: 14 | L64: $6,305.04 | M64: $4,053.24
A65: 152 | B65: GALON JABON LIQUIDO Y CUABA | E65: GALON | F65: 0 | G65: 6 | H65: 6 | I65: 171.10 $ | J65: 6 | K65: 0 | L65: 0 | M65: $1,026.60
A66: 153 | B66: GANCHOS P/FOLDER MH | E66: CAJA | F66: 12 | G66: 0 | H66: 12 | I66: 141.60 $ | J66: 0 | K66: 12 | L66: $1,699.20 | M66: 0
A67: 154 | B67: GOMITAS | E67: CAJA | F67: 11 | G67: 6 | H67: 17 | I67: 45.00 $ | J67: 15 | K67: 2 | L67: $90.00 | M67: $675.00
A68: 155 | B68: GRAPADORA NEGRA | E68: CAJA | F68: 1 | G68: 11 | H68: 12 | I68: 536.00 $ | J68: 12 | K68: 0 | L68: 0 | M68: $6,432.00
A69: 156 | B69: GUANTES MULTIUSOS | E69: UNID | F69: 9 | G69: 0 | H69: 9 | I69: 105.00 $ | J69: 9 | K69: 0 | L69: 0 | M69: $945.00
A70: 157 | B70: HISTORIA CLINICA PERINATAL | E70: TALONARIO | F70: 1 | G70: 5 | H70: 6 | I70: 1,298.00 $ | J70: 4 | K70: 2 | L70: $2,596.00 | M70: $5,192.00
A71: 158 | B71: HOJA DE ANOTACION ENFERMERIA | E71: TALONARIO | F71: 2 | G71: 0 | H71: 2 | I71: 826.00 $ | J71: 2 | K71: 0 | L71: 0 | M71: $1,652.00
A72: 159 | B72: HOJA DE ADMICION | E72: RESMA | F72: 5 | G72: 0 | H72: 5 | I72: 165.00 $ | J72: 0 | K72: 5 | L72: $825.00 | M72: 0
A73: 160 | B73: HOJA DE ATENCION DIARIA | E73: TALONARIO | F73: 1 | G73: 0 | H73: 1 | I73: 994.00 $ | J73: 0 | K73: 1 | L73: $994.00 | M73: 0
A74: 161 | B74: HOJA DE CERTIFICACION | E74: TALONARIO | F74: 3 | G74: 0 | H74: 3 | I74: 1,475.00 $ | J74: 0 | K74: 3 | L74: $4,425.00 | M74: 0
A75: 162 | B75: HOJA DE CONSULTA IXTERNA | E75: TALONARIO | F75: 0 | G75: 10 | H75: 10 | I75: 994.00 $ | J75: 3 | K75: 7 | L75: $6,958.00
A76: 163 | B76: HOJA TRATAMIENTO D DIETA | E76: TALONARIO | F76: 0 | G76: 10 | H76: 10 | I76: 800.00 $ | J76: 0 | K76: 10 | L76: $8,000.00 | M76: 0
A77: 164 | B77: HOJA DE DIRECCION DE ENFERMERIA | E77: TALONARIO | F77: 10 | G77: 10 | H77: 20 | I77: 994.00 $ | J77: 0 | K77: 20 | L77: $19,880.00 | M77: 0
A78: 165 | B78: HOJA DE ENFER EN AREA EMERGENCIA | E78: TALONARIO | F78: 21 | G78: 20 | H78: 41 | I78: 994.00 $ | J78: 0 | K78: 41 | L78: $40,754.00 | M78: 0
A79: 166 | B79: HOJA DE ENFERMERIA | E79: TALONARIO | F79: 2 | G79: 0 | H79: =F79+G79 -> 2 | I79: 1,298.00 $ | J79: 2 | K79: =H79-J79 -> 0 | L79: =I79*K79 -> 0 | M79: =I79*J79 -> $2,596.00
A80: 167 | B80: HOJA DE EVOLUCION | E80: TALONARIO | F80: 3 | G80: 5 | H80: 8 | I80: 294.00 $ | J80: 0 | K80: 8 | L80: $2,352.00 | M80: 0
A81: 168 | B81: HOJA DE ANESTESIA | E81: TALONARIO | F81: 2 | G81: 2 | H81: 4 | I81: 185.00 $ | J81: 0 | K81: 4 | L81: $740.00 | M81: 0
A82: 169 | B82: HOJA DE HISTORIAL CLINICO | E82: TALONARIO | F82: 50 | G82: 50 | H82: 100 | I82: 195.00 $ | J82: 0 | K82: 100 | L82: $19,500.00 | M82: 0
A83: 170 | B83: HOJA D KARDEX D MEDICAMENTO ENF | E83: TALONARIO | F83: 15 | G83: 15 | H83: 30 | I83: 1,298.00 $ | J83: 2 | K83: 28 | L83: $36,344.00 | M83: $2,596.00
A84: 171 | B84: HOJA DE PRESUPUESTO | E84: TALONARIO | F84: 0 | G84: 0 | H84: 0 | I84: 1,298.00 $ | J84: 0 | K84: 0 | L84: 0 | M84: 0
A85: 172 | B85: HOJA DE REFERENCIA Y CONTRA REFERENCIA | E85: TALONARIO | F85: 5 | G85: 21 | H85: 26 | I85: 826.00 $ | J85: 9 | K85: 17 | L85: $14,042.00 | M85: $7,434.00
A86: 173 | B86: HOJA D REGITRO D CONSULTA EXTERNA | E86: TALONARIO | F86: 0 | G86: 5 | H86: 5 | I86: 1,711.00 $ | J86: 3 | K86: 2 | L86: $3,422.00 | M86: $5,133.00
A87: 174 | B87: HOJA DE RESUMEN MEDICO DE EGRESO | E87: TALONARIO | F87: 10 | G87: 8 | H87: 18 | I87: 826.00 $ | J87: 0 | K87: 18 | L87: $14,868.00 | M87: 0
A88: 175 | B88: HOJA DE VERIFICACION SEGURIDAD CIRUGIA | E88: TALONARIO | F88: 2 | G88: 0 | H88: 2 | I88: 1,475.00 $ | J88: 0 | K88: 2 | L88: $2,950.00 | M88: 0
A89: 176 | B89: HOJA DESIGNOGRAMA ENFERM | E89: TALONARIO | F89: 3 | G89: 0 | H89: 3 | I89: 994.00 $ | J89: 0 | K89: 3 | L89: $2,982.00 | M89: 0
A90: 177 | B90: HOJA KARDEX MED INTERNA INSUMOS | E90: TALONARIO | F90: 12 | G90: 10 | H90: 22 | I90: 994.00 $ | J90: 1 | K90: 21 | L90: $20,874.00 | M90: $994.00
A91: 178 | B91: HOJA LEGAL 8 1/2*14 RESMA | E91: TALONARIO | F91: 0 | G91: 19 | H91: 19 | I91: 348.00 $ | J91: 12 | K91: 7 | L91: $2,436.00 | M91: $4,176.00
A92: 179 | B92: HOJA ORDEN MEDICA | E92: TALONARIO | F92: 4 | G92: 0 | H92: 4 | I92: 800.00 $ | J92: 0 | K92: 4 | L92: $3,200.00 | M92: 0
A93: 180 | B93: HOJA PRE OPERATORIO | E93: TALONARIO | F93: 4 | G93: 0 | H93: 4 | I93: 1,299.00 $ | J93: 1 | K93: 3 | L93: $3,897.00 | M93: $1,299.00
A94: 181 | B94: HOJA SIGNOS VITALES | E94: TALONARIO | F94: 1 | G94: 2 | H94: 3 | I94: 1,200.00 $ | J94: 2 | K94: 1 | L94: $1,200.00 | M94: $2,400.00
A95: 182 | B95: HOJA SIGNOS VITALES ENFER VERSION 0-1 | E95: TALONARIO | F95: 2 | G95: 2 | H95: 4 | I95: 994.00 $ | J95: 0 | K95: 4 | L95: $3,976.00 | M95: 0
A96: 183 | B96: HOJA SIGNOS VITALES VERSION 0-2 | E96: TALONARIO | F96: 10 | G96: 20 | H96: 30 | I96: 994.00 $ | J96: 1 | K96: 29 | L96: $28,826.00 | M96: $994.00
A97: 184 | B97: HOJAS TIMBRADA | E97: RESMA | F97: 2 | G97: 4 | H97: 6 | I97: 1,350.00 $ | J97: 2 | K97: 4 | L97: $5,400.00 | M97: $2,700.00
A98: 185 | B98: HOJA DE VERIFICACION SEGURIDAD CIRUGIA | E98: TALONARIO | F98: 2 | G98: 1 | H98: 3 | I98: 1,298.00 $ | J98: 0 | K98: 3 | L98: $3,894.00 | M98: 0
A99: 186 | B99: LABELSP/FOLDER | E99: UNID | F99: 6 | G99: 6 | H99: 12 | I99: 112.10 $ | J99: 1 | K99: 11 | L99: $1,233.10 | M99: $112.10
A100: 187 | B100: LAPIZ | E100: UNID | F100: 38 | G100: 36 | H100: 74 | I100: 10.00 $ | J100: 5 | K100: 69 | L100: $690.00 | M100: $50.00
A101: 188 | B101: LIBRO BANCO VENTA SERVICIOS | E101: UNID | F101: 1 | G101: 0 | H101: 1 | I101: 2,360.00 $ | J101: 0 | K101: 1 | L101: $2,360.00 | M101: 0
A102: 189 | B102: LIBRO DE ANOTACIONES ENFERMERIA | E102: UNID | F102: 0 | G102: 0 | H102: 0 | I102: 826.00 $ | J102: 0 | K102: 0 | L102: 0 | M102: 0
A103: 190 | B103: LIBRO DE EMERGENCIA | E103: UNID | F103: 0 | G103: 3 | H103: 3 | I103: 2,360.00 $ | J103: 1 | K103: 2 | L103: $4,720.00 | M103: $2,360.00
A104: 191 | B104: LIBRO DE LABORATORIO PACIENTE | E104: UNID | F104: 0 | G104: 3 | H104: 3 | I104: 1,170.00 $ | J104: 1 | K104: 2 | L104: $2,340.00 | M104: $1,170.00
A105: 192 | B105: LIBRO DE CONTROL DE PARASITOLOGIA | E105: UNID | F105: 1 | G105: 3 | H105: 4 | I105: 1,170.00 $ | J105: 2 | K105: 2 | L105: $2,340.00 | M105: $2,340.00
A106: 193 | B106: LIBRO DE PARTO Y INTERNAMIENTO | E106: UNID | F106: 3 | G106: 3 | H106: 6 | I106: 1,170.00 $ | J106: 0 | K106: 6 | L106: $7,020.00 | M106: 0
A107: 194 | B107: LIBRO DE CIRUGIA | E107: UNID | F107: 2 | G107: 3 | H107: 5 | I107: 1,170.00 $ | J107: 0 | K107: 5 | L107: $5,850.00 | M107: 0
A108: 195 | B108: LIBRO DE COPROLOGICO | E108: UNID | F108: 0 | G108: 1 | H108: 1 | I108: 1,170.00 $ | J108: 1 | K108: 0 | L108: 0 | M108: $1,170.00
A109: 196 | B109: LIBRO DE CONS REGISTRO VIH | E109: UNID | F109: 0 | G109: 3 | H109: 3 | I109: 1,770.00 $ | J109: 3 | K109: 0 | L109: 0 | M109: $5,310.00
A110: 197 | B110: LIBRO DE SEROLOGIA | E110: UNID | F110: 2 | G110: 3 | H110: 5 | I110: 2,360.00 $ | J110: 1 | K110: 4 | L110: $9,440.00 | M110: $2,360.00
A111: 198 | B111: LIBRO DE URIANALISIS | E111: UNID | F111: 2 | G111: 3 | H111: 5 | I111: 2,360.00 $ | J111: 1 | K111: 4 | L111: $9,440.00 | M111: $2,360.00
A112: 199 | B112: LIBRO HEMATOLOGIA | E112: UNID | F112: 2 | G112: 3 | H112: 5 | I112: 2,000.00 $ | J112: 1 | K112: 4 | L112: $8,000.00 | M112: $2,000.00
A113: 200 | B113: LIBRO QUIMICO | E113: UNID | F113: 2 | G113: 3 | H113: 5 | I113: 2,360.00 $ | J113: 1 | K113: 4 | L113: $9,440.00 | M113: $2,360.00
A114: 201 | B114: LIBRO INTERNAMIENTO | E114: UNID | F114: 3 | G114: 3 | H114: 6 | I114: 1,770.00 $ | J114: 0 | K114: 6 | L114: $10,620.00 | M114: 0
A115: 202 | B115: LIBRO DE RAYOS X | E115: UNID | F115: 2 | G115: 3 | H115: 5 | I115: 1,770.00 $ | J115: 1 | K115: 4 | L115: $7,080.00 | M115: $1,770.00
A116: 203 | B116: LIBRO RECORD DE REGISTRO ADOLECENTE | E116: UNID | F116: 0 | G116: 0 | H116: 0 | I116: 1,800.00 $ | J116: 0 | K116: 0 | L116: 0 | M116: 0
A117: 204 | B117: LIQUID PAPER T/L CORRECTOR | E117: UNID | F117: 39 | G117: 0 | H117: 39 | I117: 30.00 $ | J117: 17 | K117: 22 | L117: $660.00 | M117: $510.00
A118: 205 | B118: MARCADORES AZULES | E118: UNID | F118: 11 | G118: 0 | H118: 11 | I118: 30.00 $ | J118: 5 | K118: 6 | L118: $180.00 | M118: $150.00
A119: 206 | B119: MARCADORES NEGROS | E119: UNID | F119: 12 | G119: 0 | H119: 12 | I119: 30.00 $ | J119: 5 | K119: 7 | L119: $210.00 | M119: $150.00
A120: 207 | B120: MISTOLIN | E120: GALON | F120: 72 | G120: 20 | H120: 92 | I120: 104.00 $ | J120: 36 | K120: 56 | L120: $5,824.00 | M120: $3,744.00
A121: 208 | B121: PAPEL ALUMINIO 75 | E121: UNID | F121: 1 | G121: 0 | H121: 1 | I121: 560.00 $ | J121: 0 | K121: 1 | L121: $560.00 | M121: 0
A122: 209 | B122: PAPEL CARBON 8 1/2*11 | E122: UNID | F122: 1 | G122: 0 | H122: 1 | I122: 325.00 $ | J122: 0 | K122: 1 | L122: $325.00 | M122: 0
A123: 210 | B123: PAPEL HIGIENICO FARDO 48/1 | E123: UNID | F123: 155 | G123: 48 | H123: 203 | I123: 22.60 $ | J123: 158 | K123: 45 | L123: $1,017.00 | M123: $3,570.80
A124: 211 | B124: PAPEL MANILA NATURAL KRAF | E124: UNID | F124: 1 | G124: 0 | H124: 1 | I124: 3,916.00 $ | J124: 0 | K124: 1 | L124: $3,916.00 | M124: 0
A125: 212 | B125: PAPEL TOALLA 6/1 | E125: UNID | F125: 21 | G125: 0 | H125: 21 | I125: 95.38 $ | J125: 15 | K125: 6 | L125: $572.28 | M125: $1,430.70
A126: 213 | B126: PERFORADORA 2 | E126: UNID | F126: 0 | G126: 0 | H126: 0 | I126: 306.08 $ | J126: 0 | K126: 0 | L126: 0 | M126: 0
A127: 214 | B127: PERFORADORA 3 | E127: UNID | F127: 1 | G127: 0 | H127: 1 | I127: 631.30 $ | J127: 0 | K127: 1 | L127: $631.30 | M127: 0
A128: 215 | B128: PILA AA | E128: UNID | F128: 0 | G128: 0 | H128: 0 | I128: 54.00 $ | J128: 0 | K128: 0 | L128: 0 | M128: 0
A129: 216 | B129: PILA AAA | E129: UNID | F129: 0 | G129: 0 | H129: 0 | I129: 53.00 $ | J129: 0 | K129: 0 | L129: 0 | M129: 0
A130: 217 | B130: PAPEL CON DIVISION 200/1 OPTION | E130: CAJA | F130: 1 | G130: 0 | H130: 1 | I130: 1,085.00 $ | J130: 0 | K130: 1 | L130: $1,085.00 | M130: 0
A131: 218 | B131: PLATOS | E131: FARDO | F131: 12 | G131: 0 | H131: 12 | I131: 1,291.00 $ | J131: 8 | K131: 4 | L131: $5,164.00 | M131: $10,328.00
A132: 219 | B132: POS-IT 3*3 | E132: RESMA | F132: 0 | G132: 0 | H132: 0 | I132: 33.63 $ | J132: 0 | K132: 0 | L132: 0 | M132: 0
A133: 220 | B133: PURISIMA | E133: UNID | F133: 0 | G133: 0 | H133: 0 | I133: 625.00 $ | J133: 0 | K133: 0 | L133: 0 | M133: 0
A134: 221 | B134: RECIBO DE CAJA CHICA | E134: TALONARIO | F134: 0 | G134: 0 | H134: 0 | I134: 275.00 $ | J134: 0 | K134: 0 | L134: 0 | M134: 0
A135: 222 | B135: RECOJEDOR DE BASURA | E135: UNID | F135: 3 | G135: 0 | H135: 3 | I135: 109.25 $ | J135: 0 | K135: 3 | L135: $327.75 | M135: 0
A136: 223 | B136: REGLA TRANSPARENTE | E136: UNID | F136: 0 | G136: 0 | H136: 0 | I136: 9.44 $ | J136: 0 | K136: 0 | L136: 0 | M136: 0
A137: 224 | B137: RESALTADOR | E137: UNID | F137: 15 | G137: 0 | H137: 15 | I137: 39.00 $ | J137: 3 | K137: 12 | L137: $468.00 | M137: $117.00
A138: 225 | B138: RESMA DE CONTROL DE EXISTENCIA | E138: RESMA | F138: 4 | G138: 0 | H138: 4 | I138: 1,298.00 $ | J138: 0 | K138: 4 | L138: $5,192.00 | M138: 0
A139: 226 | B139: RESMA HOJA DE MAQUINA 8/2 *11 | E139: RESMA | F139: 10 | G139: 0 | H139: 10 | I139: 228.00 $ | J139: 10 | K139: 0 | L139: 0 | M139: $2,280.00
A140: 227 | B140: ROLLO DE PAPEL SUMADORA | E140: UNID | F140: 3 | G140: 0 | H140: 3 | I140: 23.00 $ | J140: 0 | K140: 3 | L140: $69.00 | M140: 0
A141: 228 | B141: ROTULO PARA SOLUCION Y MEDICAMENTOS | E141: UNID | F141: 1050 | G141: 0 | H141: 1050 | I141: 6.50 $ | J141: 100 | K141: 950 | L141: $6,175.00 | M141: $650.00
A142: 229 | B142: SACA GRAPA | E142: UNID | F142: 2 | G142: 0 | H142: 2 | I142: 30.00 $ | J142: 1 | K142: 1 | L142: $30.00 | M142: $30.00
A143: 230 | B143: SACAPUNTA METAL | E143: UNID | F143: 24 | G143: 0 | H143: =F143+G143 -> 24 | I143: 15.00 $ | J143: 0 | K143: =H143-J143 -> 24 | L143: =I143*K143 -> $360.00 | M143: =I143*J143 -> 0
A144: 231 | B144: SACO DE DETERGENTE | E144: UNID | F144: 1 | G144: 3 | H144: 4 | I144: 1,100.00 $ | J144: 1 | K144: 3 | L144: $3,300.00 | M144: $1,100.00
A145: 232 | B145: SERVILLETA C-FOLD 24/100 XCELENT | E145: UNID | F145: 73 | G145: 0 | H145: 73 | I145: 24.50 $ | J145: 40 | K145: 33 | L145: $808.50 | M145: $980.00
A146: 233 | B146: SERVILLETAS DE BINGO 60/1 | E146: UNID | F146: 200 | G146: 0 | H146: 200 | I146: 11.50 $ | J146: 71 | K146: 129 | L146: $1,483.50 | M146: $816.50
A147: 234 | B147: SOBRE CARTA VENTANILLA | E147: UNID | F147: 600 | G147: 0 | H147: 600 | I147: 1.85 $ | J147: 200 | K147: 400 | L147: $740.00 | M147: $370.00
A148: 235 | B148: SOBRE MANILA 14*17 1000 UNIDAD | E148: UNID | F148: 906 | G148: 0 | H148: 906 | I148: 13.85 $ | J148: 40 | K148: 866 | L148: $11,994.10 | M148: $554.00
A149: 236 | B149: SOBRE MANILA 10*14 DE 500 UNID | E149: UNID | F149: 862 | G149: 0 | H149: 862 | I149: 7.10 $ | J149: 75 | K149: 787 | L149: $5,587.70 | M149: $532.50
A150: 237 | B150: SOBRE TIMBRADO | E150: UNID | F150: 250 | G150: 0 | H150: 250 | I150: 13.00 $ | J150: 70 | K150: 180 | L150: $2,340.00 | M150: $910.00
A151: 238 | B151: SUAPER JUMBO | E151: UNID | F151: 6 | G151: 12 | H151: 18 | I151: 175.00 $ | J151: 6 | K151: 12 | L151: $2,100.00 | M151: $1,050.00
A152: 239 | B152: SUAVITEL | E152: GALON | F152: 9 | G152: 16 | H152: 25 | I152: 148.31 $ | J152: 8 | K152: 17 | L152: $2,521.27 | M152: $1,186.48
A153: 250 | B153: TALONARIO DE PATOLOGIA | E153: TALONARIO | F153: 50 | G153: 0 | H153: 50 | I153: 236.00 $ | J153: 0 | K153: 50 | L153: $11,800.00 | M153: 0
A154: 251 | B154: TALONARIO HISTORIA CLINICA EMERGENCIA | E154: TALONARIO | F154: 22 | G154: 50 | H154: 72 | I154: 70.80 $ | J154: 35 | K154: 37 | L154: $2,619.60 | M154: $2,478.00
A155: 252 | B155: TALONARIO SOLICITUD DE MEDICAMENTO | E155: TALONARIO | F155: 10 | G155: 15 | H155: 25 | I155: 275.00 $ | J155: 3 | K155: 22 | L155: $6,050.00 | M155: $825.00
A156: 253 | B156: TALONARIO COPROLOGICO | E156: TALONARIO | F156: 108 | G156: 30 | H156: 138 | I156: 75.00 $ | J156: 7 | K156: 131 | L156: $9,825.00 | M156: $525.00
A157: 254 | B157: TALALONARIO HEMOGRAMA | E157: TALONARIO | F157: 32 | G157: 50 | H157: 82 | I157: 88.35 $ | J157: 57 | K157: 25 | L157: $2,208.75 | M157: $5,035.95
A158: 255 | B158: TALONARIO INTERVENCION AUT. QUIRURGICA | E158: TALONARIO | F158: 0 | G158: 0 | H158: 0 | I158: 185.00 $ | J158: 0 | K158: 0 | L158: 0 | M158: 0
A159: 256 | B159: TALONARIO LABORATORIO CLINICO | E159: TALONARIO | F159: 73 | G159: 250 | H159: 323 | I159: 37.00 $ | J159: 101 | K159: 222 | L159: $8,214.00 | M159: $3,737.00
A160: 257 | B160: TALONARIO COPROLOGICO | E160: TALONARIO | F160: 108 | G160: 16 | H160: 124 | I160: 75.00 $ | J160: 0 | K160: 124 | L160: $9,300.00 | M160: 0
A161: 258 | B161: TALONARIO METODO PLANIFICACION | D161: POSPARTO | E161: TALONARIO | F161: 1 | G161: 0 | H161: 1 | I161: 185.00 $ | J161: 0 | K161: 1 | L161: $185.00 | M161: 0
A162: 259 | B162: TALONARIO P/COLC DE IMPLANDE SUDERMICO | E162: TALONARIO | F162: 0 | G162: 0 | H162: 0 | I162: 185.00 $ | J162: 0 | K162: 0 | L162: 0 | M162: 0
A163: 260 | B163: TALONARIO UNICO MEDICAMENTOS | E163: TALONARIO | F163: 0 | G163: 0 | H163: 0 | I163: 266.00 $ | J163: 0 | K163: 0 | L163: 0 | M163: 0
A164: 261 | B164: TALONARIO URIANALISIS | E164: TALONARIO | F164: 19 | G164: 250 | H164: 269 | I164: 53.10 $ | J164: 191 | K164: 78 | L164: $4,141.80 | M164: $10,142.10
A165: 262 | B165: TALONARIO COMUN ENFERMERIA FARMACIA | E165: TALONARIO | F165: 45 | G165: 0 | H165: 45 | I165: 413.00 $ | J165: 0 | K165: 45 | L165: $18,585.00 | M165: 0
A166: 263 | B166: TALONARIO CERTIFICADO MEDICO | E166: TALONARIO | F166: 0 | G166: 0 | H166: 0 | I166: 275.00 $ | J166: 0 | K166: 0 | L166: 0 | M166: 0
A167: 264 | B167: TAL CONSULTACONCENTIMIENTO INFORMADO | D167: VIH MEDIA | E167: TALONARIO | F167: 0 | G167: 10 | H167: 10 | I167: 756.00 $ | J167: 8 | K167: 2 | L167: $1,512.00 | M167: $6,048.00
A168: 265 | B168: TALONARIO CONCENTIMIENTO | E168: TALONARIO | F168: 5 | G168: 30 | H168: 35 | I168: 266.00 $ | J168: 0 | K168: 35 | L168: $9,310.00 | M168: 0
A169: 266 | B169: TALONARIO DE CONTROL TEMPERATURA | E169: TALONARIO | F169: 14 | G169: 10 | H169: 24 | I169: 294.00 $ | J169: 2 | K169: 22 | L169: $6,468.00 | M169: $588.00
A170: 264 | B170: TALONARIO DE CUOTA DE CONTRIBUCION | E170: TALONARIO | F170: 5 | G170: 0 | H170: 5 | I170: 185.00 $ | J170: 0 | K170: 5 | L170: $925.00 | M170: 0
A171: 268 | B171: TALONARIO EVALUACION PRE ANESTESICA | E171: TALONARIO | F171: 5 | G171: 5 | H171: 10 | I171: 185.00 $ | J171: 0 | K171: 10 | L171: $1,850.00 | M171: 0
A172: 269 | B172: TALONARIO HOJA DE KARDEX | E172: TALONARIO | F172: 0 | G172: 0 | H172: 0 | I172: 994.00 $ | J172: 0 | K172: 0 | L172: 0 | M172: 0
A173: 270 | B173: TALONARIO SALIDA ALMACEN | E173: TALONARIO | F173: 0 | G173: 10 | H173: 10 | I173: 275.00 $ | J173: 9 | K173: 1 | L173: $275.00 | M173: $2,475.00
A174: 271 | B174: TAPA DE VASOS #12 CLEA 10/100 | E174: PAQU | F174: 8 | G174: 40 | H174: 48 | I174: 224.00 $ | J174: 35 | K174: 13 | L174: $2,912.00 | M174: $7,840.00
A175: 272 | B175: TARJETA DE CITA | E175: UNID | F175: 1015 | G175: 2000 | H175: 3015 | I175: 2.75 $ | J175: 1585 | K175: 1430 | L175: $3,932.50 | M175: $4,358.75
A176: 273 | B176: TARJETA DE EXPEDIENTE | E176: UNID | F176: 75 | G176: 1500 | H176: 1575 | I176: 4.50 $ | J176: 500 | K176: 1075 | L176: $4,837.50 | M176: $2,250.00
A177: 274 | B177: TALONARIO RECETARIO NORMAL | E177: UNID | F177: 0 | G177: 500 | H177: 500 | I177: 53.65 $ | J177: 95 | K177: 405 | L177: $21,728.25 | M177: $5,096.75
A178: 275 | B178: TIJERAS | E178: UNID | F178: 1 | G178: 5 | H178: 6 | I178: 62.54 $ | J178: 4 | K178: 2 | L178: $125.08 | M178: $250.16
A179: 276 | B179: TINTA PARA SELLO AZUL | E179: UNID | F179: 2 | G179: 3 | H179: 5 | I179: 106.00 $ | J179: 2 | K179: 3 | L179: $318.00 | M179: $212.00
A180: 277 | B180: TINTA PARA SELLO NEGRO | E180: UNID | F180: 0 | G180: 0 | H180: 0 | I180: 85.00 $ | J180: 0 | K180: 0 | L180: 0 | M180: 0
A181: 278 | B181: TOALLA MICROFIBRA16´´ *16´´ | E181: UNID | F181: 32 | G181: 0 | H181: 32 | I181: 49.56 $ | J181: 10 | K181: 22 | L181: $1,090.32 | M181: $495.60
A182: 279 | B182: VASO 12 CAJA 40/25 FOAM | E182: PAQU | F182: 113 | G182: 0 | H182: 113 | I182: 53.20 $ | J182: 72 | K182: 41 | L182: $2,181.20 | M182: $3,830.40
A183: 280 | B183: VASO 5 | E183: PAQU | F183: 45 | G183: 50 | H183: 95 | I183: 55.00 $ | J183: 28 | K183: 67 | L183: $3,685.00 | M183: $1,540.00
A184: 281 | B184: VASOS #7 | E184: PAQU | F184: 282 | G184: 0 | H184: 282 | I184: 38.94 $ | J184: 282 | K184: 0 | L184: 0 | M184: $10,981.08
J187: TOTAL ALMACEN | L187: =SUM(L14:L184) -> $663,047.67
J188: TOTAL DE COMSUMO | L188: =SUM(M14:M184) -> $239,586.98

Sheet ABRIL
A3: =A3:M121 -> 0
K11: 2025-04-30
A12: INVENTARIO DE ALMACEN
A13: CODIGO | B13: DESCRIPCION DEL PRODUCTO | E13: UNIDAD MEDIDA | F13: CANTIDAD | G13: ENTRADA | H13: TOTAL | I13: PRECIO | J13: SALIDA DE USO MENSUAL | K13: CANTIDAD ACTIVA EN ALMACEN | L13: VALOR TOTAL ACTIVO | M13: VALORDE TOTAL CONSUMO
A14: 101 | B14: ACORDEON 10*12 CARTON PIEDRA | E14: UNID | F14: 0 | G14: 5 | H14: =F14+G14 -> 5 | I14: 744.00 $ | J14: 3 | K14: =H14-J14 -> 2 | L14: =I14*K14 -> $1,488.00 | M14: =I14*J14 -> $2,232.00
A15: 102 | B15: AMBIENTADOR SPRAY | E15: UNID | F15: 0 | G15: 14 | H15: =F15+G15 -> 14 | I15: 145.00 $ | J15: 11 | K15: =H15-J15 -> 3 | L15: =I15*K15 -> $435.00 | M15: =I15*J15 -> $1,595.00
A16: 103 | B16: AGUA BOTELLITAS | E16: UNID | F16: 0 | G16: 200 | H16: 200 | I16: 6.50 $ | J16: 180 | K16: 20 | L16: $130.00 | M16: $1,170.00
A17: 104 | B17: AXION EN PASTA | E17: UNID | F17: 1 | G17: 24 | H17: 25 | I17: 116.00 $ | J17: 16 | K17: 9 | L17: $1,044.00 | M17: $1,856.00
A18: 105 | B18: BAYGON 400ML | E18: UNID | F18: 0 | G18: 12 | H18: 12 | I18: 349.00 $ | J18: 5 | K18: 7 | L18: $2,443.00 | M18: $1,745.00
A19: 106 | B19: BOLIGRAFOS AZULES | E19: UNID | F19: 66 | G19: 36 | H19: 102 | I19: 10.10 $ | J19: 35 | K19: 67 | L19: $676.70 | M19: $353.50
A20: 107 | B20: BOLIGRAFOS NEGROS | E20: UNID | F20: 7 | G20: 60 | H20: 67 | I20: 7.00 $ | J20: 15 | K20: 52 | L20: $364.00 | M20: $105.00
A21: 108 | B21: BOLIGRAFOS ROJOS | E21: UNID | F21: 11 | G21: 120 | H21: 131 | I21: 7.00 $ | J21: 18 | K21: 113 | L21: $791.00 | M21: $126.00
A22: 109 | B22: BOLIGRAFOS VERDES | E22: UNID | F22: 0 | G22: 12 | H22: 12 | I22: 10.00 $ | J22: 3 | K22: 9 | L22: $90.00 | M22: $30.00
A23: 110 | B23: BORRANTE DE LECHE | E23: UNID | F23: 10 | G23: 0 | H23: 10 | I23: 8.00 $ | J23: 2 | K23: 8 | L23: $64.00 | M23: $16.00
A24: 111 | B24: BRILLO GRUESO 12/1 PROMANO | E24: UNID | F24: 38 | G24: 12 | H24: 50 | I24: 69.60 $ | J24: 19 | K24: 31 | L24: $2,157.60 | M24: $1,322.40
A25: 112 | B25: BRILLO GRIS | E25: UNID | F25: 6 | G25: 0 | H25: 6 | I25: 69.60 $ | J25: 1 | K25: 5 | L25: $348.00 | M25: $69.60
A26: 113 | B26: BRILLO VERDE Y ESPONJA | E26: UNID | F26: 21 | G26: 10 | H26: 31 | I26: 57.80 $ | J26: 3 | K26: 28 | L26: $1,618.40 | M26: $173.40
A27: 114 | B27: CAJA PLASTICAS DE 27 GL NEGRA | E27: UNID | F27: 0 | G27: 10 | H27: 10 | I27: 1,350.00 $ | J27: 2 | K27: 8 | L27: $10,800.00 | M27: $2,700.00
A28: 115 | B28: CAJITA DE GRAPAS ESTÁNDAR 26/6 | E28: UNID | F28: 6 | G28: 24 | H28: 30 | I28: 47.17 $ | J28: 11 | K28: 19 | L28: $896.23 | M28: $518.87
A29: 116 | B29: CALCULADORA | E29: UNID | F29: 1 | G29: 3 | H29: 4 | I29: 359.90 $ | J29: 1 | K29: 3 | L29: $1,079.70 | M29: $359.90
A30: 117 | B30: CARPETA NEGRA #1 | E30: UNID | F30: 6 | G30: 0 | H30: 6 | I30: 469.00 $ | J30: 1 | K30: =H30-J30 -> 5 | L30: $2,345.00 | M30: $469.00
A31: 118 | B31: CARPETA NEGRA # 2 | E31: UNID | F31: 6 | G31: 0 | H31: 6 | I31: 178.20 $ | J31: 3 | K31: 3 | L31: $534.60 | M31: $534.60
A32: 119 | B32: CARPETAS # 3 | E32: UNID | F32: 6 | G32: 0 | H32: 6 | I32: 147.50 $ | J32: 4 | K32: 2 | L32: $295.00 | M32: $590.00
A33: 120 | B33: CARPETAS # 4 | E33: UNID | F33: 0 | G33: 0 | H33: 0 | I33: 224.20 $ | J33: 0 | K33: 0 | L33: 0 | M33: 0
A34: 121 | B34: CEPILLO DE INODORO | E34: UNID | F34: 4 | G34: 6 | H34: 10 | I34: 159.30 $ | J34: 8 | K34: 2 | L34: $318.60 | M34: $1,274.40
A35: 122 | B35: CERA PARA CONTAR | E35: UNID | F35: 4 | G35: 15 | H35: 19 | I35: 60.00 $ | J35: 9 | K35: 10 | L35: $600.00 | M35: $540.00
A36: 123 | B36: CINTA MASKING TAPE 3/4 VISIBLE | E36: UNID | F36: 0 | G36: 50 | H36: 50 | I36: 75.00 $ | J36: 12 | K36: 38 | L36: $2,850.00 | M36: $900.00
A37: 124 | B37: CINTA DE EMPAQUE | E37: UNID | F37: 0 | G37: 24 | H37: 24 | I37: 47.20 $ | J37: 12 | K37: 12 | L37: $566.40 | M37: $566.40
A38: 125 | B38: CINTA MAGICA SUMADORA | E38: UNID | F38: 0 | G38: 2 | H38: 2 | I38: 76.70 $ | J38: 0 | K38: 2 | L38: $153.40 | M38: 0
A39: 126 | B39: CLIPS JUMBO | E39: UNID | F39: 7 | G39: 30 | H39: 37 | I39: 38.00 $ | J39: 9 | K39: 28 | L39: $1,064.00 | M39: $342.00
A40: 127 | B40: CINTA MASKING TAPE CREMA | E40: UNID | F40: 7 | G40: 20 | H40: 27 | I40: 46.00 $ | J40: 7 | K40: 20 | L40: $920.00 | M40: $322.00
A41: 128 | B41: CUBO PLATICOS DE AGUJA DESECHABLES | E41: UNID | F41: 16 | G41: 0 | H41: 16 | I41: 50.00 $ | J41: 9 | K41: 7 | L41: $350.00 | M41: $450.00
A42: 129 | B42: CLIPS BILLETERO 32 MM 12/1 | E42: UNID | F42: 9 | G42: 36 | H42: 45 | I42: 123.90 $ | J42: 9 | K42: 36 | L42: $4,460.40 | M42: $1,115.10
A43: 130 | B43: CLIPS BILLETERO 41 MM 12/1 | E43: UNID | F43: 6 | G43: 36 | H43: 42 | I43: 171.10 $ | J43: 15 | K43: 27 | L43: $4,619.70 | M43: $2,566.50
A44: 131 | B44: CLIPS BILLETERO 51 MM 12/1 | E44: UNID | F44: 10 | G44: 36 | H44: 46 | I44: 230.10 $ | J44: 22 | K44: 24 | L44: $5,522.40 | M44: $5,062.20
A45: 132 | B45: CLIPS PEQUEÑO | E45: UNID | F45: 17 | G45: 10 | H45: 27 | I45: 19.00 $ | J45: 25 | K45: 2 | L45: $38.00 | M45: $475.00
A46: 133 | B46: CLORO | E46: GALON | F46: 13 | G46: 30 | H46: 43 | I46: 68.64 $ | J46: 26 | K46: 17 | L46: $1,166.88 | M46: $1,784.64
A47: 134 | B47: CONTROL DE LIQUIDO(ENFERMERIA) | E47: TALONARIO | F47: 4 | G47: 10 | H47: 14 | I47: 1,200.00 $ | J47: 3 | K47: 11 | L47: $13,200.00 | M47: $3,600.00
A48: 135 | B48: CUADERNOS COCIDOS | E48: UNID | F48: 0 | G48: 24 | H48: 24 | I48: 53.00 $ | J48: 10 | K48: 14 | L48: $742.00 | M48: $530.00
A49: 136 | B49: CUCHARA 25/1 | E49: CAJA | F49: 0 | G49: 4 | H49: 4 | I49: 629.00 $ | J49: 2 | K49: 2 | L49: $1,258.00 | M49: $1,258.00
A50: 137 | B50: ESCOBA C/PALO | E50: UNID | F50: 3 | G50: 12 | H50: 15 | I50: 133.00 $ | J50: 11 | K50: 4 | L50: $532.00 | M50: $1,463.00
A51: 138 | B51: FOLDER AMARILLO OFICINA | E51: UNID | F51: 200 | G51: 300 | H51: =F51+G51 -> 500 | I51: 2.33 $ | J51: 227 | K51: 273 | L51: $636.09 | M51: $528.91
A52: 139 | B52: FOLDER VERDE 8 1/2 X 11 | E52: UNID | F52: 109 | G52: 1000 | H52: 1109 | I52: 4.95 $ | J52: 744 | K52: 365 | L52: $1,806.75 | M52: $3,682.80
A53: 140 | B53: FUNDA NEGRA 17 GL PEQUEÑA | E53: PAQ | F53: 20 | G53: 120 | H53: 140 | I53: 72.00 $ | J53: 108 | K53: 32 | L53: $2,304.00 | M53: $7,776.00
A54: 141 | B54: FUNDA NEGRA #6 | E54: PAQ | F54: 16 | G54: 30 | H54: 46 | I54: 36.58 $ | J54: 12 | K54: 34 | L54: $1,243.72 | M54: $438.96
A55: 142 | B55: FUNDA ROJA #2 | E55: PAQ | F55: 0 | G55: 60 | H55: 60 | I55: 20.00 $ | J55: 31 | K55: 29 | L55: $580.00 | M55: $620.00
A56: 143 | B56: FUNDA AZULES #4 | E56: PAQ | F56: 16 | G56: 40 | H56: 56 | I56: 26.00 $ | J56: 19 | K56: 37 | L56: $962.00 | M56: $494.00
A57: 144 | B57: FUNDA NEGRA MEDIANA 30 GL | E57: PAQ | F57: 10 | G57: 30 | H57: 40 | I57: 1,080.00 $ | J57: 23 | K57: 17 | L57: $18,360.00 | M57: $24,840.00
A58: 145 | B58: FUNDA NEGRA GRANDE 55 GL | E58: PAQ | F58: 0 | G58: 10 | H58: 10 | I58: 616.00 $ | J58: 4 | K58: 6 | L58: $3,696.00 | M58: $2,464.00
A59: 146 | B59: FUNDA ROJA PEQUENAS 17 GL | E59: PAQ | F59: 2 | G59: 30 | H59: 32 | I59: 240.00 $ | J59: 24 | K59: 8 | L59: $1,920.00 | M59: $5,760.00
A60: 147 | B60: FUNDA ROJA GRANDE 55 gl | E60: UNID | F60: 3 | G60: 4 | H60: 7 | I60: 1,030.10 $ | J60: 1 | K60: 6 | L60: $6,180.60 | M60: $1,030.10
A61: 148 | B61: FUNDA ROJA MEDIANA 30 GL | E61: PAQ | F61: 5 | G61: 6 | H61: 11 | I61: 450.36 $ | J61: 9 | K61: 2 | L61: $900.72 | M61: $4,053.24
A62: 149 | B62: GALON JABON LIQUIDO DE MANO | E62: GALON | F62: 1 | G62: 16 | H62: 17 | I62: 171.10 $ | J62: 16 | K62: 1 | L62: $171.10 | M62: $2,737.60
A63: 150 | B63: GANCHOS P/FOLDER MH | E63: CAJA | F63: 2 | G63: 10 | H63: 12 | I63: 141.60 $ | J63: 1 | K63: 11 | L63: $1,557.60 | M63: $141.60
A64: 151 | B64: GALON JABON DE CUABA | E64: GALON | F64: 0 | G64: 6 | H64: 6 | I64: 165.25 $ | J64: 4 | K64: 2 | L64: $330.50 | M64: $661.00
A65: 152 | B65: GOMITAS | E65: CAJA | F65: 5 | G65: 12 | H65: 17 | I65: 45.00 $ | J65: 7 | K65: 10 | L65: $450.00 | M65: $315.00
A66: 153 | B66: GRAPADORA NEGRA | E66: CAJA | F66: 0 | G66: 6 | H66: 6 | I66: 320.00 $ | J66: 1 | K66: 5 | L66: $1,600.00 | M66: $320.00
A67: 154 | B67: GUANTES MULTIUSOS | E67: UNID | F67: 9 | G67: 6 | H67: 15 | I67: 666.36 $ | J67: 3 | K67: 12 | L67: $7,996.32 | M67: $1,999.08
A68: 155 | B68: HISTORIA CLINICA PERINATAL | E68: TALONARIO | F68: 1 | G68: 10 | H68: 11 | I68: 1,298.00 $ | J68: 0 | K68: 11 | L68: $14,278.00 | M68: 0
A69: 156 | B69: HOJA DE ANOTACION ENFERMERIA | E69: RESMA | F69: 0 | G69: 0 | H69: 0 | I69: 826.00 $ | J69: 0 | K69: 0 | L69: 0 | M69: 0
A70: 157 | B70: HOJA DE ADMICION | E70: RESMA | F70: 5 | G70: 0 | H70: 5 | I70: 165.00 $ | J70: 0 | K70: 5 | L70: $825.00 | M70: 0
A71: 158 | B71: HOJA DE ATENCION DIARIA | E71: TALONARIO | F71: 0 | G71: 5 | H71: 5 | I71: 994.00 $ | J71: 2 | K71: 3 | L71: $2,982.00 | M71: $1,988.00
A72: 159 | B72: HOJA DE CERTIFICACION | E72: RESMA | F72: 2 | G72: 0 | H72: 2 | I72: 1,475.00 $ | J72: 0 | K72: 2 | L72: $2,950.00 | M72: 0
A73: 160 | B73: HOJA DE CONSULTA | E73: TALONARIO | F73: 0 | G73: 15 | H73: 15 | I73: 994.00 $ | J73: 6 | K73: 9 | L73: $8,946.00 | M73: $5,964.00
A74: 161 | B74: HOJA PACIENTE DIETA | E74: TALONARIO | F74: 0 | G74: 10 | H74: 10 | I74: 800.00 $ | J74: 6 | K74: 4 | L74: $3,200.00 | M74: $4,800.00
A75: 162 | B75: HOJA DE DIRECCION DE ENFERMERIA | E75: TALONARIO | F75: 0 | G75: 0 | H75: 0 | I75: 994.00 $ | J75: 0 | K75: 0 | L75: 0 | M75: 0
A76: 163 | B76: HOJA DE ENFER EN AREA EMERGENCIA FO63 | E76: TALONARIO | F76: 0 | G76: 20 | H76: 20 | I76: 994.00 $ | J76: 1 | K76: 19 | L76: $18,886.00 | M76: $994.00
A77: 164 | B77: HOJA DE ENFERMERIA | E77: TALONARIO | F77: 0 | G77: 20 | H77: =F77+G77 -> 20 | I77: 1,298.00 $ | J77: 12 | K77: =H77-J77 -> 8 | L77: =I77*K77 -> $10,384.00 | M77: $15,576.00
A78: 165 | B78: HOJA DE EVOLUCION | E78: TALONARIO | F78: 3 | G78: 5 | H78: 8 | I78: 294.00 $ | J78: 1 | K78: 7 | L78: $2,058.00 | M78: $294.00
A79: 166 | B79: HOJA DE ANESTESIA | E79: TALONARIO | F79: 0 | G79: 5 | H79: 5 | I79: 185.00 $ | J79: 0 | K79: 5 | L79: $925.00 | M79: =I79*J79 -> 0
A80: 167 | B80: HOJA DE HISTORIAL CLINICO | E80: TALONARIO | F80: 0 | G80: 50 | H80: 50 | I80: 195.00 $ | J80: 4 | K80: 46 | L80: $8,970.00 | M80: $780.00
A81: 168 | B81: HOJA D KARDEX D MEDICAMENTO SOLUCIONES | E81: TALONARIO | F81: 4 | G81: 15 | H81: 19 | I81: 1,298.00 $ | J81: 2 | K81: 17 | L81: $22,066.00 | M81: $2,596.00
A82: 169 | B82: HOJA DE REFERENCIA Y CONTRA REFERENCIA | E82: TALONARIO | F82: 0 | G82: 21 | H82: 21 | I82: 826.00 $ | J82: 11 | K82: 10 | L82: $8,260.00 | M82: $9,086.00
A83: 170 | B83: HOJA REGITRO DIARIO CONSULTA EXTERNA | E83: TALONARIO | F83: 0 | G83: 5 | H83: 5 | I83: 1,711.00 $ | J83: 2 | K83: 3 | L83: $5,133.00 | M83: $3,422.00
A84: 171 | B84: HOJA RESUMEN MEDICO DE EGRESO | E84: RESMA | F84: 0 | G84: 2 | H84: 2 | I84: 826.00 $ | J84: 0 | K84: 2 | L84: $1,652.00 | M84: 0
A85: 172 | B85: HOJA SEGURIDAD CIRUGIA | E85: RESMA | F85: 2 | G85: 0 | H85: 2 | I85: 1,475.00 $ | J85: 0 | K85: 2 | L85: $2,950.00 | M85: 0
A86: 173 | B86: HOJA DESIGNOGRAMA ENFERM | E86: RESMA | F86: 3 | G86: 0 | H86: 3 | I86: 994.00 $ | J86: 0 | K86: 3 | L86: $2,982.00 | M86: 0
A87: 174 | B87: HOJA KARDEX MED INTERNA INSUMOS | E87: TALONARIO | F87: 3 | G87: 10 | H87: 13 | I87: 994.00 $ | J87: 4 | K87: 9 | L87: $8,946.00 | M87: $3,976.00
A88: 175 | B88: HOJA LEGAL 8 1/2*14 RESMA | E88: TALONARIO | F88: 0 | G88: 19 | H88: 19 | I88: 348.00 $ | J88: 16 | K88: 3 | L88: $1,044.00 | M88: $5,568.00
A89: 176 | B89: HOJA ORDEN MEDICA | E89: TALONARIO | F89: 8 | G89: 20 | H89: 28 | I89: 800.00 $ | J89: 0 | K89: 28 | L89: $22,400.00 | M89: 0
A90: 177 | B90: HOJA HISTORIAL OPERATORIO | E90: TALONARIO | F90: 6 | G90: 0 | H90: 6 | I90: 1,299.00 $ | J90: 2 | K90: 4 | L90: $5,196.00 | M90: $2,598.00
A91: 178 | B91: HOJA SIGNOS VITALES | E91: TALONARIO | F91: 2 | G91: 0 | H91: 2 | I91: 1,200.00 $ | J91: 0 | K91: 2 | L91: $2,400.00 | M91: 0
A92: 179 | B92: TALONARIO FORMULARIO ENF AREA EMER FO48 | E92: TALONARIO | F92: 0 | G92: 20 | H92: 20 | I92: 994.00 $ | J92: 0 | K92: 20 | L92: $19,880.00 | M92: 0
A93: 180 | B93: HOJA SIGNOS VITALES ENFERMERIA FO63 | E93: RESMA | F93: 0 | G93: 2 | H93: 2 | I93: 994.00 $ | J93: 0 | K93: 2 | L93: $1,988.00 | M93: 0
A94: 181 | B94: HOJAS TIMBRADA | E94: RESMA | F94: 2 | G94: 4 | H94: 6 | I94: 1,350.00 $ | J94: 3 | K94: 3 | L94: $4,050.00 | M94: $4,050.00
A95: 182 | B95: HOJA DE CONFIRMACION DE CIRUGIA | E95: RESMA | F95: 1 | G95: 1 | H95: 2 | I95: 1,298.00 $ | J95: 1 | K95: 1 | L95: $1,298.00 | M95: $1,298.00
A96: 183 | B96: LABELSP/FOLDER | E96: UNID | F96: 0 | G96: 6 | H96: 6 | I96: 112.10 $ | J96: 1 | K96: 5 | L96: $560.50 | M96: $112.10
A97: 184 | B97: LAPIZ | E97: UNID | F97: 6 | G97: 36 | H97: 42 | I97: 10.00 $ | J97: 7 | K97: 35 | L97: $350.00 | M97: $70.00
A98: 185 | B98: LIBRO BANCO VENTA SERVICIOS | E98: UNID | F98: 1 | G98: 0 | H98: 1 | I98: 2,360.00 $ | J98: 0 | K98: 1 | L98: $2,360.00 | M98: 0
A99: 186 | B99: LIBRO DE ANOTACIONES ENFERMERIA | E99: UNID | F99: 0 | G99: 0 | H99: 0 | I99: 826.00 $ | J99: 0 | K99: 0 | L99: 0 | M99: 0
A100: 187 | B100: LIBRO DE EMERGENCIA | E100: UNID | F100: 0 | G100: 3 | H100: 3 | I100: 2,360.00 $ | J100: 1 | K100: 2 | L100: $4,720.00 | M100: $2,360.00
A101: 188 | B101: LIBRO DE LABORATORIO PACIENTE | E101: UNID | F101: 0 | G101: 3 | H101: 3 | I101: 1,170.00 $ | J101: 3 | K101: 0 | L101: 0 | M101: $3,510.00
A102: 189 | B102: LIBRO DE CONTROL DE PARASITOLOGIA COPROLOGICO | E102: UNID | F102: 0 | G102: 3 | H102: 3 | I102: 1,170.00 $ | J102: 1 | K102: 2 | L102: $2,340.00 | M102: $1,170.00
A103: 190 | B103: LIBRO DE PARTO Y NACIMIENTO | E103: UNID | F103: 0 | G103: 3 | H103: 3 | I103: 1,170.00 $ | J103: 0 | K103: 3 | L103: $3,510.00 | M103: 0
A104: 191 | B104: LIBRO DE CIRUGIA | E104: UNID | F104: 0 | G104: 3 | H104: 3 | I104: 1,170.00 $ | J104: 0 | K104: 3 | L104: $3,510.00 | M104: 0
A105: 192 | B105: LIBRO DE CONS REGISTRO VIH | E105: UNID | F105: 0 | G105: 1 | H105: 1 | I105: 1,770.00 $ | J105: 1 | K105: 0 | L105: 0 | M105: $1,770.00
A106: 193 | B106: LIBRO DE SEROLOGIA | E106: UNID | F106: 1 | G106: 3 | H106: 4 | I106: 2,360.00 $ | J106: 1 | K106: 3 | L106: $7,080.00 | M106: $2,360.00
A107: 194 | B107: LIBRO DE URIANALISIS | E107: UNID | F107: 0 | G107: 3 | H107: 3 | I107: 2,360.00 $ | J107: 1 | K107: 2 | L107: $4,720.00 | M107: $2,360.00
A108: 195 | B108: LIBRO HEMATOLOGIA | E108: UNID | F108: 0 | G108: 3 | H108: 3 | I108: 2,000.00 $ | J108: 1 | K108: 2 | L108: $4,000.00 | M108: $2,000.00
A109: 196 | B109: LIBRO QUIMICO | E109: UNID | F109: 0 | G109: 3 | H109: 3 | I109: 2,360.00 $ | J109: 1 | K109: 2 | L109: $4,720.00 | M109: $2,360.00
A110: 197 | B110: LIBRO INTERNAMIENTO | E110: UNID | F110: 0 | G110: 3 | H110: 3 | I110: 1,770.00 $ | J110: 0 | K110: 3 | L110: $5,310.00 | M110: 0
A111: 198 | B111: LIBRO DE RAYOS X | E111: UNID | F111: 0 | G111: 3 | H111: 3 | I111: 1,770.00 $ | J111: 1 | K111: 2 | L111: $3,540.00 | M111: $1,770.00
A112: 199 | B112: LIBRO RECORD DE REGISTRO ADOLECENTE | E112: UNID | F112: 0 | G112: 1 | H112: 1 | I112: 1,800.00 $ | J112: 1 | K112: 0 | L112: 0 | M112: $1,800.00
A113: 200 | B113: LIQUID PAPER T/L CORRECTOR | E113: UNID | F113: 2 | G113: 60 | H113: 62 | I113: 30.00 $ | J113: 24 | K113: 38 | L113: $1,140.00 | M113: $720.00
A114: 201 | B114: MARCADORES AZULES | E114: UNID | F114: 12 | G114: 12 | H114: 24 | I114: 30.00 $ | J114: 15 | K114: 9 | L114: $270.00 | M114: $450.00
A115: 202 | B115: MARCADORES NEGROS | E115: UNID | F115: 8 | G115: 36 | H115: 44 | I115: 30.00 $ | J115: 30 | K115: 14 | L115: $420.00 | M115: $900.00
A116: 203 | B116: MISTOLIN | E116: GALON | F116: 10 | G116: 72 | H116: 82 | I116: 104.00 $ | J116: 30 | K116: 52 | L116: $5,408.00 | M116: $3,120.00
A117: 204 | B117: PAPEL CARBON 8 1/2*11 | E117: UNID | F117: 1 | G117: 0 | H117: 1 | I117: 325.00 $ | J117: 0 | K117: 1 | L117: $325.00 | M117: 0
A118: 205 | B118: PAPEL HIGIENICO FARDO 48/1 | E118: UNID | F118: 0 | G118: 480 | H118: 480 | I118: 22.60 $ | J118: 148 | K118: 332 | L118: $7,503.20 | M118: $3,344.80
A119: 206 | B119: PAPEL MANILA NATURAL KRAF | E119: UNID | F119: 0 | G119: 3 | H119: 3 | I119: 3,916.00 $ | J119: 0 | K119: 3 | L119: $11,748.00 | M119: 0
A120: 207 | B120: PAPEL TOALLA 6/1 | E120: UNID | F120: 0 | G120: 30 | H120: 30 | I120: 95.38 $ | J120: 14 | K120: 16 | L120: $1,526.08 | M120: $1,335.32
A121: 208 | B121: PERFORADORA 2 | E121: UNID | F121: 0 | G121: 0 | H121: 0 | I121: 306.08 $ | J121: 0 | K121: 0 | L121: 0 | M121: 0
A122: 209 | B122: PERFORADORA 3 | E122: UNID | F122: 1 | G122: 0 | H122: 1 | I122: 631.30 $ | J122: 0 | K122: 1 | L122: $631.30 | M122: 0
A123: 210 | B123: PILA AA | E123: UNID | F123: 0 | G123: 40 | H123: 40 | I123: 54.00 $ | J123: 40 | K123: 0 | L123: 0 | M123: $2,160.00
A124: 211 | B124: PILA AAA | E124: UNID | F124: 0 | G124: 32 | H124: 32 | I124: 53.00 $ | J124: 32 | K124: 0 | L124: 0 | M124: $1,696.00
A125: 212 | B125: PAPEL CON DIVISION 200/1 OPTION | E125: CAJA | F125: 0 | G125: 2 | H125: 2 | I125: 1,085.00 $ | J125: 1 | K125: 1 | L125: $1,085.00 | M125: $1,085.00
A126: 213 | B126: PLATOS | E126: FARDO | F126: 0 | G126: 15 | H126: 15 | I126: 1,291.00 $ | J126: 6 | K126: 9 | L126: $11,619.00 | M126: $7,746.00
A127: 214 | B127: POS-IT 3*3 | E127: RESMA | F127: 0 | G127: 0 | H127: 0 | I127: 33.63 $ | J127: 0 | K127: 0 | L127: 0 | M127: 0
A128: 215 | B128: RECOJEDOR DE BASURA | E128: UNID | F128: 3 | G128: 0 | H128: 3 | I128: 109.25 $ | J128: 0 | K128: 3 | L128: $327.75 | M128: 0
A129: 216 | B129: RESALTADOR | E129: UNID | F129: 1 | G129: 20 | H129: 21 | I129: 39.00 $ | J129: 4 | K129: 17 | L129: $663.00 | M129: $156.00
A130: 217 | B130: RESMA DE CONTROL DE EXISTENCIA | E130: RESMA | F130: 0 | G130: 4 | H130: 4 | I130: 1,298.00 $ | J130: 1 | K130: 3 | L130: $3,894.00 | M130: $1,298.00
A131: 218 | B131: RESMA HOJA DE MAQUINA 8/2 *11 | E131: RESMA | F131: 10 | G131: 60 | H131: 70 | I131: 228.00 $ | J131: 27 | K131: 43 | L131: $9,804.00 | M131: $6,156.00
A132: 219 | B132: ROLLO DE PAPEL SUMADORA | E132: UNID | F132: 0 | G132: 24 | H132: 24 | I132: 23.00 $ | J132: 19 | K132: 5 | L132: $115.00 | M132: $437.00
A133: 220 | B133: ROTULO PARA SOLUCION Y MEDICAMENTOS | E133: UNID | F133: 150 | G133: 1000 | H133: 1150 | I133: 6.50 $ | J133: 100 | K133: 1050 | L133: $6,825.00 | M133: $650.00
A134: 221 | B134: SACA GRAPA | E134: UNID | F134: 0 | G134: 6 | H134: 6 | I134: 30.00 $ | J134: 0 | K134: 6 | L134: $180.00 | M134: 0
A135: 222 | B135: SACAPUNTA METAL | E135: UNID | F135: 0 | G135: 24 | H135: =F135+G135 -> 24 | I135: 15.00 $ | J135: 0 | K135: =H135-J135 -> 24 | L135: =I135*K135 -> $360.00 | M135: 0
A136: 223 | B136: SACO DE DETERGENTE | E136: UNID | F136: 0 | G136: 3 | H136: 3 | I136: 1,100.00 $ | J136: 3 | K136: 0 | L136: 0 | M136: $3,300.00
A137: 224 | B137: SERVILLETA C-FOLD 24/100 XCELENT | E137: UNID | F137: 0 | G137: 48 | H137: 48 | I137: 24.50 $ | J137: 48 | K137: 0 | L137: 0 | M137: $1,176.00
A138: 225 | B138: SERVILLETAS DE BINGO 60/1 | E138: UNID | F138: 91 | G138: 96 | H138: 187 | I138: 11.50 $ | J138: 96 | K138: 91 | L138: $1,046.50 | M138: $1,104.00
A139: 226 | B139: SOBRE CARTA VENTANILLA | E139: UNID | F139: 0 | G139: 1000 | H139: 1000 | I139: 1.85 $ | J139: 100 | K139: 900 | L139: $1,665.00 | M139: $185.00
A140: 227 | B140: SOBRE MANILA 9*12 500 UNID | E140: UNID | F140: 0 | G140: 500 | H140: 500 | I140: 13.85 $ | J140: 100 | K140: 400 | L140: $5,540.00 | M140: $1,385.00
A141: 228 | B141: SOBRE MANILA 14*17 1000 UNIDAD | E141: UNID | F141: 1000 | G141: 0 | H141: 1000 | I141: 13.85 $ | J141: 75 | K141: 925 | L141: $12,811.25 | M141: $1,038.75
A142: 229 | B142: SOBRE MANILA 10*14 DE 500 UNID | E142: UNID | F142: 390 | G142: 0 | H142: 390 | I142: 7.10 $ | J142: 105 | K142: 285 | L142: $2,023.50 | M142: $745.50
A143: 230 | B143: SOBRE TIMBRADO | E143: UNID | F143: 0 | G143: 500 | H143: 500 | I143: 13.00 $ | J143: 200 | K143: 300 | L143: $3,900.00 | M143: =I143*J143 -> $2,600.00
A144: 231 | B144: SUAPER JUMBO | E144: GALON | F144: 0 | G144: 16 | H144: 16 | I144: 175.00 $ | J144: 14 | K144: 2 | L144: $350.00 | M144: $2,450.00
A145: 232 | B145: SUAVITEL | E145: GALON | F145: 0 | G145: 15 | H145: 15 | I145: 148.31 $ | J145: 5 | K145: 10 | L145: $1,483.10 | M145: $741.55
A146: 233 | B146: TALONARIO DE PATOLOGIA | E146: TALONARIO | F146: 0 | G146: 50 | H146: 50 | I146: 70.80 $ | J146: 35 | K146: 15 | L146: $1,062.00 | M146: $2,478.00
A147: 234 | B147: TALONARIO HISTORIA CLINICA EMERGENCIA | E147: TALONARIO | F147: 0 | G147: 15 | H147: 15 | I147: 275.00 $ | J147: 12 | K147: 3 | L147: $825.00 | M147: $3,300.00
A148: 235 | B148: TALONARIO SOLICITUD DE MEDICAMENTO | E148: TALONARIO | F148: 5 | G148: 15 | H148: 20 | I148: 75.00 $ | J148: 0 | K148: 20 | L148: $1,500.00 | M148: 0
A149: 236 | B149: TALONARIO COPROLOGICO | E149: TALONARIO | F149: 0 | G149: 200 | H149: 200 | I149: 88.35 $ | J149: 98 | K149: 102 | L149: $9,011.70 | M149: $8,658.30
A150: 237 | B150: TALALONARIO HEMOGRAMA | E150: TALONARIO | F150: 0 | G150: 200 | H150: 200 | I150: 88.35 $ | J150: 165 | K150: 35 | L150: $3,092.25 | M150: $14,577.75
A151: 238 | B151: TALONARIO CONFIMACION DE QUIRURGICA | E151: TALONARIO | F151: 0 | G151: 5 | H151: 5 | I151: 185.00 $ | J151: 0 | K151: 5 | L151: $925.00 | M151: 0
A152: 239 | B152: TALONARIO LABORATORIO CLINICO | E152: TALONARIO | F152: 0 | G152: 200 | H152: 200 | I152: 37.00 $ | J152: 135 | K152: 65 | L152: $2,405.00 | M152: $4,995.00
A153: 240 | B153: TALONARIO PARTOGRAMA | D153: POSPARTO | E153: TALONARIO | F153: 0 | G153: 10 | H153: 10 | I153: 185.00 $ | J153: 1 | K153: 9 | L153: $1,665.00 | M153: $185.00
A154: 241 | B154: TALONARIO HISTORAL OPERATORIO | E154: TALONARIO | F154: 0 | G154: 4 | H154: 4 | I154: 185.00 $ | J154: 0 | K154: 4 | L154: $740.00 | M154: 0
A155: 242 | B155: TALONARIO URIANALISIS | E155: TALONARIO | F155: 45 | G155: 0 | H155: 45 | I155: 53.10 $ | J155: 21 | K155: 24 | L155: $1,274.40 | M155: $1,115.10
A156: 243 | B156: TALONARIO REQUISICION DE FARMACIA | E156: TALONARIO | F156: 0 | G156: 10 | H156: 10 | I156: 413.00 $ | J156: 1 | K156: 9 | L156: $3,717.00 | M156: $413.00
A157: 244 | B157: TALONARIO CUIDADO DE ENFERERIA | D157: VIH MEDIA | E157: TALONARIO | F157: 0 | G157: 15 | H157: 15 | I157: 275.00 $ | J157: 0 | K157: 15 | L157: $4,125.00 | M157: 0
A158: 245 | B158: TALONARIO CONCENTIMIENTO INFORMADO | E158: TALONARIO | F158: 0 | G158: 10 | H158: 10 | I158: 756.00 $ | J158: 2 | K158: 8 | L158: $6,048.00 | M158: $1,512.00
A159: 244 | B159: TALONARIO CONCENTIMIENTO CORTO | E159: TALONARIO | F159: 0 | G159: 10 | H159: 10 | I159: 266.00 $ | J159: 8 | K159: 2 | L159: $532.00 | M159: $2,128.00
A160: 245 | B160: TALONARIO DE CONTROL TEMPERATURA | E160: TALONARIO | F160: 0 | G160: 20 | H160: 20 | I160: 294.00 $ | J160: 5 | K160: 15 | L160: $4,410.00 | M160: $1,470.00
A161: 246 | B161: TALONARIO DE CUOTA DE CONTRIBUCION | E161: TALONARIO | F161: 0 | G161: 10 | H161: 10 | I161: 185.00 $ | J161: 0 | K161: 10 | L161: $1,850.00 | M161: 0
A162: 247 | B162: TALONARIO PROTOCOLO ATENCION AL PARTO | E162: TALONARIO | F162: 0 | G162: 8 | H162: 8 | I162: 185.00 $ | J162: 0 | K162: 8 | L162: $1,480.00 | M162: 0
A163: 248 | B163: TALONARIO HOJA DE KARDEX INSUMO | E163: TALONARIO | F163: 2 | G163: 10 | H163: 12 | I163: 994.00 $ | J163: 9 | K163: 3 | L163: $2,982.00 | M163: $8,946.00
A164: 249 | B164: TALONARIO SOLICITUD DE ALMACEN | E164: TALONARIO | F164: 0 | G164: 50 | H164: 50 | I164: 224.00 $ | J164: 0 | K164: 50 | L164: $11,200.00 | M164: 0
A165: 250 | B165: TALONARIO SALIDA ALMACEN | E165: TALONARIO | F165: 0 | G165: 25 | H165: 25 | I165: 275.00 $ | J165: 0 | K165: 25 | L165: $6,875.00 | M165: 0
A166: 251 | B166: TAPA DE VASOS #12 CLEA 10/100 | E166: UNID | F166: 1 | G166: 30 | H166: 31 | I166: 224.00 $ | J166: 18 | K166: 13 | L166: $2,912.00 | M166: $4,032.00
A167: 252 | B167: TARJETA DE CITA | E167: UNID | F167: 0 | G167: 500 | H167: 500 | I167: 2.75 $ | J167: 490 | K167: 10 | L167: $27.50 | M167: $1,347.50
A168: 253 | B168: TARJETA DE EXPEDIENTE | E168: UNID | F168: 0 | G168: 1000 | H168: 1000 | I168: 4.50 $ | J168: 700 | K168: 300 | L168: $1,350.00 | M168: $3,150.00
A169: 254 | B169: TALONARIO RECETARIO NORMAL | E169: TALONARIO | F169: 0 | G169: 500 | H169: 500 | I169: 53.65 $ | J169: 210 | K169: 290 | L169: $15,558.50 | M169: $11,266.50
A170: 255 | B170: TIJERAS | E170: UNID | F170: 2 | G170: 3 | H170: 5 | I170: 62.54 $ | J170: 1 | K170: 4 | L170: $250.16 | M170: $62.54
A171: 256 | B171: TINTA PARA SELLO AZUL | E171: UNID | F171: 0 | G171: 0 | H171: 0 | I171: 106.00 $ | J171: 0 | K171: 0 | L171: 0 | M171: 0
A172: 257 | B172: TOALLA MICROFIBRA16´´ *16´´ | E172: PAQU | F172: 11 | G172: 50 | H172: 61 | I172: 49.56 $ | J172: 34 | K172: 27 | L172: $1,338.12 | M172: $1,685.04
A173: 258 | B173: VASO 12 CAJA 40/25 FOAM | E173: PAQU | F173: 18 | G173: 120 | H173: 138 | I173: 53.20 $ | J173: 84 | K173: 54 | L173: $2,872.80 | M173: $4,468.80
A174: 259 | B174: VASO 5 | E174: PAQU | F174: 29 | G174: 50 | H174: 79 | I174: 55.00 $ | J174: 28 | K174: 51 | L174: $2,805.00 | M174: $1,540.00
A175: 260 | B175: VASOS #7 | E175: PAQU | F175: 0 | G175: 100 | H175: 100 | I175: 38.94 $ | J175: 100 | K175: 0 | L175: 0 | M175: $3,894.00
J176: TOTAL ALMACEN | L176: =SUM(L14:L173) -> $530,719.02
J177: TOTAL DE COMSUMO | L177: =SUM(M14:M175) -> $307,914.35

Sheet MAYO
K10: 2025-05-28
A11: INVENTARIO DE ALMACEN
A12: CODIGO | B12: DESCRIPCION DEL PRODUCTO | E12: UNIDAD MEDIDA | F12: CANTIDAD | G12: ENTRADA | H12: TOTAL | I12: PRECIO | J12: SALIDA DE USO MENSUAL | K12: CANTIDAD ACTIVA EN ALMACEN | L12: VALOR TOTAL ACTIVO | M12: VALORDE TOTAL CONSUMO
A13: 101 | B13: ACORDEON 10*12 CARTON PIEDRA | E13: UNID | F13: 3 | H13: =F13+G13 -> 3 | I13: 744.00 $ | J13: 1 | K13: =H13-J13 -> 2 | L13: =I13*K13 -> $1,488.00 | M13: =I13*J13 -> $744.00
A14: 102 | B14: AMBIENTADOR SPRAY | E14: UNID | F14: 3 | H14: =F14+G14 -> 3 | I14: 145.00 $ | J14: 2 | K14: =H14-J14 -> 1 | L14: =I14*K14 -> $145.00 | M14: =I14*J14 -> $290.00
A15: 103 | B15: AGUA BOTELLITAS | E15: UNID | F15: 20 | G15: 80 | H15: 100 | I15: 6.50 $ | J15: 100 | K15: 0 | L15: 0 | M15: $650.00
A16: 104 | B16: AXION EN PASTA | E16: UNID | F16: 9 | H16: 9 | I16: 116.00 $ | J16: 9 | K16: 0 | L16: 0 | M16: $1,044.00
A17: 105 | B17: BAYGON 400ML | E17: UNID | F17: 7 | H17: 7 | I17: 349.00 $ | J17: 4 | K17: 3 | L17: $1,047.00 | M17: $1,396.00
A18: 106 | B18: BOLIGRAFOS AZULES | E18: UNID | F18: 77 | G18: 120 | H18: 197 | I18: 10.10 $ | J18: 42 | K18: 155 | L18: $1,565.50 | M18: $424.20
A19: 107 | B19: BOLIGRAFOS NEGROS | E19: UNID | F19: 52 | H19: 52 | I19: 7.00 $ | J19: 2 | K19: 50 | L19: $350.00 | M19: $14.00
A20: 108 | B20: BOLIGRAFOS ROJOS | E20: UNID | F20: 112 | H20: 112 | I20: 7.00 $ | J20: 0 | K20: 112 | L20: $784.00 | M20: 0
A21: 109 | B21: BOLIGRAFOS VERDES | E21: UNID | F21: 10 | H21: 10 | I21: 10.00 $ | J21: 1 | K21: 9 | L21: $90.00 | M21: $10.00
A22: 110 | B22: BORRANTE DE LECHE | E22: UNID | F22: 9 | H22: 9 | I22: 8.00 $ | J22: 0 | K22: 9 | L22: $72.00 | M22: 0
A23: 111 | B23: BRILLO GRUESO 12/1 PROMANO | E23: UNID | F23: 31 | H23: 31 | I23: 69.60 $ | J23: 5 | K23: 26 | L23: $1,809.60 | M23: $348.00
A24: 112 | B24: BRILLO GRIS | E24: UNID | F24: 5 | H24: 5 | I24: 69.60 $ | J24: 5 | K24: 0 | L24: 0 | M24: $348.00
A25: 113 | B25: BRILLO VERDE Y ESPONJA | E25: UNID | F25: 28 | H25: 28 | I25: 57.80 $ | J25: 5 | K25: 23 | L25: $1,329.40 | M25: $289.00
A26: 114 | B26: CAJA PLASTICAS DE 27 GL NEGRA | E26: UNID | F26: 8 | H26: 8 | I26: 1,350.00 $ | J26: 1 | K26: 7 | L26: $9,450.00 | M26: $1,350.00
A27: 115 | B27: CAJITA DE GRAPAS ESTÁNDAR 26/6 | E27: UNID | F27: 19 | H27: 19 | I27: 47.17 $ | J27: 9 | K27: 10 | L27: $471.70 | M27: $424.53
A28: 116 | B28: CALCULADORA | E28: UNID | F28: 3 | H28: 3 | I28: 359.90 $ | J28: 0 | K28: 3 | L28: $1,079.70 | M28: 0
A29: 117 | B29: CARPETA NEGRA #1 | E29: UNID | F29: 5 | H29: 5 | I29: 469.00 $ | J29: 0 | K29: =H29-J29 -> 5 | L29: $2,345.00 | M29: 0
A30: 118 | B30: CARPETA NEGRA # 2 | E30: UNID | F30: 3 | H30: 3 | I30: 178.20 $ | J30: 0 | K30: 3 | L30: $534.60 | M30: 0
A31: 119 | B31: CARPETAS # 3 | E31: UNID | F31: 2 | H31: 2 | I31: 147.50 $ | J31: 0 | K31: 2 | L31: $295.00 | M31: 0
A32: 120 | B32: CARPETAS # 4 | E32: UNID | F32: 0 | H32: 0 | I32: 224.20 $ | J32: 0 | K32: 0 | L32: 0 | M32: 0
A33: 121 | B33: CEPILLO DE INODORO | E33: UNID | F33: 2 | H33: 2 | I33: 159.30 $ | J33: 0 | K33: 2 | L33: $318.60 | M33: 0
A34: 122 | B34: CERA PARA CONTAR | E34: UNID | F34: 10 | H34: 10 | I34: 60.00 $ | J34: 0 | K34: 10 | L34: $600.00 | M34: 0
A35: 123 | B35: CINTA MASKING TAPE 3/4 VISIBLE | E35: UNID | F35: 38 | H35: 38 | I35: 75.00 $ | J35: 0 | K35: 38 | L35: $2,850.00 | M35: 0
A36: 124 | B36: CINTA DE EMPAQUE | E36: UNID | F36: 12 | H36: 12 | I36: 47.20 $ | J36: 1 | K36: 11 | L36: $519.20 | M36: $47.20
A37: 125 | B37: CINTA MAGICA SUMADORA | E37: UNID | F37: 2 | H37: 2 | I37: 76.70 $ | J37: 0 | K37: 2 | L37: $153.40 | M37: 0
A38: 126 | B38: CLIPS JUMBO | E38: UNID | F38: 28 | H38: 28 | I38: 38.00 $ | J38: 12 | K38: 16 | L38: $608.00 | M38: $456.00
A39: 127 | B39: CINTA MASKING TAPE CREMA | E39: UNID | F39: 20 | H39: 20 | I39: 46.00 $ | J39: 11 | K39: 9 | L39: $414.00 | M39: $506.00
A40: 128 | B40: CUBO PLATICOS DE AGUJA DESECHABLES | E40: UNID | F40: 7 | H40: 7 | I40: 50.00 $ | J40: 6 | K40: 1 | L40: $50.00 | M40: $300.00
A41: 129 | B41: CLIPS BILLETERO 32 MM 12/1 | E41: UNID | F41: 36 | H41: 36 | I41: 123.90 $ | J41: 0 | K41: 36 | L41: $4,460.40 | M41: 0
A42: 130 | B42: CLIPS BILLETERO 41 MM 12/1 | E42: UNID | F42: 27 | H42: 27 | I42: 171.10 $ | J42: 0 | K42: 27 | L42: $4,619.70 | M42: 0
A43: 131 | B43: CLIPS BILLETERO 51 MM 12/1 | E43: UNID | F43: 24 | H43: 24 | I43: 230.10 $ | J43: 0 | K43: 24 | L43: $5,522.40 | M43: 0
A44: 132 | B44: CLIPS PEQUEÑO | E44: UNID | F44: 2 | H44: 2 | I44: 19.00 $ | J44: 0 | K44: 2 | L44: $38.00 | M44: 0
A45: 133 | B45: CLORO | E45: GALON | F45: 17 | G45: 12 | H45: 29 | I45: 68.64 $ | J45: 18 | K45: 11 | L45: $755.04 | M45: $1,235.52
A46: 134 | B46: CONTROL DE LIQUIDO(ENFERMERIA) | E46: TALONARIO | F46: 11 | H46: 11 | I46: 1,200.00 $ | K46: 11 | L46: $13,200.00 | M46: 0
A47: 135 | B47: CUADERNOS COCIDOS | E47: UNID | F47: 14 | H47: 14 | I47: 53.00 $ | J47: 3 | K47: 11 | L47: $583.00 | M47: $159.00
A48: 136 | B48: CUCHARA 25/1 | E48: CAJA | F48: 2 | H48: 2 | I48: 629.00 $ | J48: 2 | K48: 0 | L48: 0 | M48: $1,258.00
A49: 137 | B49: ESCOBA C/PALO | E49: UNID | F49: 4 | H49: 4 | I49: 133.00 $ | J49: 1 | K49: 3 | L49: $399.00 | M49: $133.00
A50: 138 | B50: FOLDER AMARILLO OFICINA | E50: UNID | F50: 273 | G50: 300 | H50: =F50+G50 -> 573 | I50: 2.33 $ | J50: 271 | K50: 302 | L50: $703.66 | M50: $631.43
A51: 139 | B51: FOLDER VERDE 8 1/2 X 11 | E51: UNID | F51: 365 | H51: 365 | I51: 4.95 $ | J51: 205 | K51: 160 | L51: $792.00 | M51: $1,014.75
A52: 140 | B52: FUNDA NEGRA 17 GL PEQUEÑA | E52: PAQ | F52: 32 | H52: 32 | I52: 72.00 $ | J52: 14 | K52: 18 | L52: $1,296.00 | M52: $1,008.00
A53: 141 | B53: FUNDA NEGRA #6 | E53: PAQ | F53: 34 | H53: 34 | I53: 36.58 $ | J53: 0 | K53: 34 | L53: $1,243.72 | M53: 0
A54: 142 | B54: FUNDA ROJA #2 | E54: PAQ | F54: 29 | H54: 29 | I54: 20.00 $ | J54: 2 | K54: 27 | L54: $540.00 | M54: $40.00
A55: 143 | B55: FUNDA AZULES #4 | E55: PAQ | F55: 37 | H55: 37 | I55: 26.00 $ | J55: 0 | K55: 37 | L55: $962.00 | M55: 0
A56: 144 | B56: FUNDA NEGRA MEDIANA 30 GL | E56: PAQ | F56: 7 | G56: 8 | H56: 15 | I56: 1,080.00 $ | J56: 11 | K56: 4 | L56: $4,320.00 | M56: $11,880.00
A57: 145 | B57: FUNDA NEGRA GRANDE 55 GL | E57: PAQ | F57: 5 | H57: 5 | I57: 616.00 $ | J57: 3 | K57: 2 | L57: $1,232.00 | M57: $1,848.00
A58: 146 | B58: FUNDA ROJA PEQUENAS 17 GL | E58: PAQ | F58: 8 | H58: 8 | I58: 240.00 $ | J58: 4 | K58: 4 | L58: $960.00 | M58: $960.00
A59: 147 | B59: FUNDA ROJA GRANDE 55 gl | E59: UNID | F59: 5 | H59: 5 | I59: 1,030.10 $ | J59: 3 | K59: 2 | L59: $2,060.20 | M59: $3,090.30
A60: 148 | B60: FUNDA ROJA MEDIANA 30 GL | E60: PAQ | F60: 1 | H60: 1 | I60: 450.36 $ | J60: 1 | K60: 0 | L60: 0 | M60: $450.36
A61: 149 | B61: GALON JABON LIQUIDO DE MANO | E61: GALON | F61: 1 | H61: 1 | I61: 171.10 $ | J61: 1 | K61: 0 | L61: 0 | M61: $171.10
A62: 150 | B62: GANCHOS P/FOLDER MH | E62: CAJA | F62: 11 | H62: 11 | I62: 141.60 $ | J62: 1 | K62: 10 | L62: $1,416.00 | M62: $141.60
A63: 151 | B63: GALON JABON DE CUABA | E63: GALON | F63: 2 | H63: 2 | I63: 165.25 $ | J63: 1 | K63: 1 | L63: $165.25 | M63: $165.25
A64: 152 | B64: GOMITAS | E64: CAJA | F64: 10 | H64: 10 | I64: 45.00 $ | J64: 3 | K64: 7 | L64: $315.00 | M64: $135.00
A65: 153 | B65: GRAPADORA NEGRA | E65: CAJA | F65: 5 | H65: 5 | I65: 320.00 $ | J65: 1 | K65: 4 | L65: $1,280.00 | M65: $320.00
A66: 154 | B66: GUANTES MULTIUSOS | E66: UNID | F66: 12 | H66: 12 | I66: 666.36 $ | J66: 0 | K66: 12 | L66: $7,996.32 | M66: 0
A67: 155 | B67: HISTORIA CLINICA PERINATAL | E67: TALONARIO | F67: 11 | H67: 11 | I67: 1,298.00 $ | J67: 1 | K67: 10 | L67: $12,980.00 | M67: $1,298.00
A68: 156 | B68: HOJA DE ANOTACION ENFERMERIA | E68: RESMA | F68: 20 | H68: 20 | I68: 826.00 $ | J68: 12 | K68: 8 | L68: $6,608.00 | M68: $9,912.00
A69: 157 | B69: HOJA DE ADMICION | E69: RESMA | F69: 5 | H69: 5 | I69: 165.00 $ | J69: 0 | K69: 5 | L69: $825.00 | M69: 0
A70: 158 | B70: HOJA DE ATENCION DIARIA | E70: TALONARIO | F70: 3 | H70: 3 | I70: 994.00 $ | J70: 0 | K70: 3 | L70: $2,982.00 | M70: 0
A71: 159 | B71: HOJA DE CERTIFICACION | E71: RESMA | F71: 2 | H71: 2 | I71: 1,475.00 $ | J71: 0 | K71: 2 | L71: $2,950.00 | M71: 0
A72: 160 | B72: HOJA DE CONSULTA EXTERNA | E72: TALONARIO | F72: 0 | H72: 0 | I72: 994.00 $ | J72: 0 | K72: 0 | L72: 0 | M72: 0
A73: 161 | B73: HOJA PACIENTE DIETA | E73: TALONARIO | F73: 4 | H73: 4 | I73: 800.00 $ | J73: 0 | K73: 4 | L73: $3,200.00 | M73: 0
A74: 162 | B74: HOJA DE DIRECCION DE ENFERMERIA | E74: TALONARIO | F74: 0 | H74: 0 | I74: 994.00 $ | K74: 0 | L74: 0 | M74: 0
A75: 163 | B75: HOJA DE ENFER EN AREA EMERGENCIA FO63 | E75: TALONARIO | F75: 20 | H75: 20 | I75: 994.00 $ | J75: 0 | K75: 20 | L75: $19,880.00 | M75: 0
A76: 164 | B76: HOJA DE ENFERMERIA | E76: TALONARIO | F76: 8 | H76: 8 | I76: 1,298.00 $ | J76: 0 | K76: 8 | L76: $10,384.00 | M76: 0
A77: 165 | B77: HOJA DE EVOLUCION | E77: TALONARIO | F77: 7 | H77: 7 | I77: 294.00 $ | J77: 0 | K77: 7 | L77: $2,058.00 | M77: 0
A78: 166 | B78: HOJA DE ANESTESIA | E78: TALONARIO | F78: 5 | H78: =F78+G78 -> 5 | I78: 185.00 $ | J78: 2 | K78: =H78-J78 -> 3 | L78: =I78*K78 -> $555.00 | M78: =I78*J78 -> $370.00
A79: 167 | B79: HOJA DE HISTORIAL CLINICO | E79: TALONARIO | F79: 46 | H79: 46 | I79: 195.00 $ | J79: 0 | K79: 46 | L79: $8,970.00 | M79: 0
A80: 168 | B80: HOJA D KARDEX D MEDICAMENTO SOLUCIONES | E80: TALONARIO | F80: 17 | H80: 17 | I80: 1,298.00 $ | J80: 0 | K80: 17 | L80: $22,066.00 | M80: 0
A81: 169 | B81: HOJA DE REFERENCIA Y CONTRA REFERENCIA | E81: TALONARIO | F81: 10 | H81: 10 | I81: 826.00 $ | J81: 0 | K81: 10 | L81: $8,260.00 | M81: 0
A82: 170 | B82: HOJA REGISTRO DIARIO CONSULTA EXTERNA | E82: TALONARIO | F82: 0 | H82: 0 | I82: 1,711.00 $ | J82: 0 | K82: 0 | L82: 0 | M82: 0
A83: 171 | B83: HOJA RESUMEN MEDICO DE EGRESO | E83: RESMA | F83: 3 | H83: 3 | I83: 826.00 $ | J83: 0 | K83: 3 | L83: $2,478.00 | M83: 0
A84: 172 | B84: HOJA SEGURIDAD CIRUGIA | E84: RESMA | F84: 2 | H84: 2 | I84: 1,475.00 $ | J84: 0 | K84: 2 | L84: $2,950.00 | M84: 0
A85: 173 | B85: HOJA DESIGNOGRAMA ENFERM | E85: RESMA | F85: 3 | H85: 3 | I85: 994.00 $ | J85: 0 | K85: 3 | L85: $2,982.00 | M85: 0
A86: 174 | B86: HOJA KARDEX MED INTERNA INSUMOS | E86: TALONARIO | F86: 9 | H86: 9 | I86: 994.00 $ | J86: 0 | K86: 9 | L86: $8,946.00 | M86: 0
A87: 175 | B87: HOJA LEGAL 8 1/2*14 RESMA | E87: RESMA | F87: 0 | G87: 3 | H87: 3 | I87: 348.00 $ | J87: 2 | K87: 1 | L87: $348.00 | M87: $696.00
A88: 176 | B88: HOJA ORDEN MEDICA | E88: TALONARIO | F88: 28 | H88: 28 | I88: 800.00 $ | J88: 0 | K88: 28 | L88: $22,400.00 | M88: 0
A89: 177 | B89: HOJA HISTORIAL OPERATORIO | E89: TALONARIO | F89: 4 | H89: 4 | I89: 1,299.00 $ | J89: 0 | K89: 4 | L89: $5,196.00 | M89: 0
A90: 178 | B90: HOJA SIGNOS VITALES | E90: TALONARIO | F90: 10 | H90: 10 | I90: 1,200.00 $ | J90: 0 | K90: 10 | L90: $12,000.00 | M90: 0
A91: 179 | B91: TALONARIO FORMULARIO ENF AREA EMER FO48 | E91: TALONARIO | F91: 20 | H91: 20 | I91: 994.00 $ | J91: 10 | K91: 10 | L91: $9,940.00 | M91: $9,940.00
A92: 180 | B92: TALONARIOS DE COMBUSTIBLE | E92: TALONARIO | F92: 10 | H92: 10 | I92: 994.00 $ | J92: 10 | K92: 0 | L92: 0 | M92: $9,940.00
A93: 181 | B93: HOJAS TIMBRADA | E93: RESMA | F93: 3 | H93: 3 | I93: 1,350.00 $ | J93: 0 | K93: 3 | L93: $4,050.00 | M93: 0
A94: 182 | B94: HOJA DE CONFIRMACION DE CIRUGIA | E94: RESMA | F94: 1 | H94: 1 | I94: 1,298.00 $ | J94: 0 | K94: 1 | L94: $1,298.00 | M94: 0
A95: 183 | B95: LABELSP/FOLDER | E95: UNID | F95: 5 | H95: 5 | I95: 112.10 $ | J95: 0 | K95: 5 | L95: $560.50 | M95: 0
A96: 184 | B96: LAPIZ | E96: UNID | F96: 35 | H96: 35 | I96: 10.00 $ | J96: 0 | K96: 35 | L96: $350.00 | M96: 0
A97: 185 | B97: LIBRO BANCO VENTA SERVICIOS | E97: UNID | F97: 1 | H97: 1 | I97: 2,360.00 $ | J97: 0 | K97: 1 | L97: $2,360.00 | M97: 0
A98: 186 | B98: LIBRO DE ANOTACIONES ENFERMERIA | E98: UNID | F98: 0 | H98: 0 | I98: 826.00 $ | J98: 0 | K98: 0 | L98: 0 | M98: 0
A99: 187 | B99: LIBRO DE EMERGENCIA | E99: UNID | F99: 2 | H99: 2 | I99: 2,360.00 $ | J99: 0 | K99: 2 | L99: $4,720.00 | M99: 0
A100: 188 | B100: LIBRO DE LABORATORIO PACIENTE | E100: UNID | F100: 3 | H100: 3 | I100: 1,170.00 $ | J100: 1 | K100: 2 | L100: $2,340.00 | M100: $1,170.00
A101: 189 | B101: LIBRO DE CONTROL DE PARASITOLOGIA COPROLOGICO | E101: UNID | F101: 2 | H101: 2 | I101: 1,170.00 $ | J101: 0 | K101: 2 | L101: $2,340.00 | M101: 0
A102: 190 | B102: LIBRO DE PARTO Y NACIMIENTO | E102: UNID | F102: 3 | H102: 3 | I102: 1,170.00 $ | J102: 0 | K102: 3 | L102: $3,510.00 | M102: 0
A103: 191 | B103: LIBRO DE CIRUGIA | E103: UNID | F103: 3 | H103: 3 | I103: 1,170.00 $ | J103: 0 | K103: 3 | L103: $3,510.00 | M103: 0
A104: 192 | B104: LIBRO DE CONS REGISTRO VIH | E104: UNID | F104: 0 | H104: 0 | I104: 1,770.00 $ | J104: 0 | K104: 0 | L104: 0 | M104: 0
A105: 193 | B105: LIBRO DE SEROLOGIA | E105: UNID | F105: 3 | H105: 3 | I105: 2,360.00 $ | J105: 0 | K105: 3 | L105: $7,080.00 | M105: 0
A106: 194 | B106: LIBRO DE URIANALISIS | E106: UNID | F106: 2 | H106: 2 | I106: 2,360.00 $ | J106: 0 | K106: 2 | L106: $4,720.00 | M106: 0
A107: 195 | B107: LIBRO HEMATOLOGIA | E107: UNID | F107: 2 | H107: 2 | I107: 2,000.00 $ | J107: 0 | K107: 2 | L107: $4,000.00 | M107: 0
A108: 196 | B108: LIBRO QUIMICO | E108: UNID | F108: 2 | H108: 2 | I108: 2,360.00 $ | J108: 0 | K108: 2 | L108: $4,720.00 | M108: 0
A109: 197 | B109: LIBRO INTERNAMIENTO | E109: UNID | F109: 3 | H109: 3 | I109: 1,770.00 $ | J109: 0 | K109: 3 | L109: $5,310.00 | M109: 0
A110: 198 | B110: LIBRO DE RAYOS X | E110: UNID | F110: 2 | H110: 2 | I110: 1,770.00 $ | J110: 0 | K110: 2 | L110: $3,540.00 | M110: 0
A111: 199 | B111: LIBRO RECORD DE REGISTRO ADOLECENTE | E111: UNID | F111: 0 | H111: 0 | I111: 1,800.00 $ | J111: 0 | K111: 0 | L111: 0 | M111: 0
A112: 200 | B112: LIQUID PAPER T/L CORRECTOR | E112: UNID | F112: 38 | H112: 38 | I112: 30.00 $ | J112: 7 | K112: 31 | L112: $930.00 | M112: $210.00
A113: 201 | B113: MARCADORES AZULES | E113: UNID | F113: 9 | H113: 9 | I113: 30.00 $ | J113: 1 | K113: 8 | L113: $240.00 | M113: $30.00
A114: 202 | B114: MARCADORES NEGROS | E114: UNID | F114: 14 | H114: 14 | I114: 30.00 $ | J114: 2 | K114: 12 | L114: $360.00 | M114: $60.00
A115: 203 | B115: MISTOLIN | E115: GALON | F115: 34 | H115: 34 | I115: 104.00 $ | J115: 23 | K115: 11 | L115: $1,144.00 | M115: $2,392.00
A116: 204 | B116: PAPEL CARBON 8 1/2*11 | E116: UNID | F116: 1 | H116: 1 | I116: 325.00 $ | J116: 0 | K116: 1 | L116: $325.00 | M116: 0
A117: 205 | B117: PAPEL HIGIENICO FARDO 48/1 | E117: UNID | F117: 332 | H117: 332 | I117: 22.60 $ | J117: 155 | K117: 177 | L117: $4,000.20 | M117: $3,503.00
A118: 206 | B118: PAPEL MANILA NATURAL KRAF | E118: UNID | F118: 3 | H118: 3 | I118: 3,916.00 $ | J118: 1 | K118: 2 | L118: $7,832.00 | M118: $3,916.00
A119: 207 | B119: PAPEL TOALLA 6/1 | E119: UNID | F119: 16 | H119: 16 | I119: 95.38 $ | J119: 16 | K119: 0 | L119: 0 | M119: $1,526.08
A120: 208 | B120: PERFORADORA 2 | E120: UNID | F120: 0 | H120: 0 | I120: 306.08 $ | J120: 0 | K120: 0 | L120: 0 | M120: 0
A121: 209 | B121: PERFORADORA 3 | E121: UNID | F121: 1 | H121: 1 | I121: 631.30 $ | J121: 0 | K121: 1 | L121: $631.30 | M121: 0
A122: 210 | B122: PILA AA | E122: UNID | F122: 0 | H122: 0 | I122: 54.00 $ | J122: 0 | K122: 0 | L122: 0 | M122: 0
A123: 211 | B123: PILA AAA | E123: UNID | F123: 0 | H123: 0 | I123: 53.00 $ | J123: 0 | K123: 0 | L123: 0 | M123: 0
A124: 212 | B124: PAPEL CON DIVISION 200/1 OPTION | E124: CAJA | F124: 1 | H124: 1 | I124: 1,085.00 $ | J124: 0 | K124: 1 | L124: $1,085.00 | M124: 0
A125: 213 | B125: PLATOS | E125: FARDO | F125: 9 | H125: 9 | I125: 1,291.00 $ | J125: 8 | K125: 1 | L125: $1,291.00 | M125: $10,328.00
A126: 214 | B126: POS-IT 3*3 | E126: RESMA | F126: 0 | H126: 0 | I126: 33.63 $ | J126: 0 | K126: 0 | L126: 0 | M126: 0
A127: 215 | B127: RECOJEDOR DE BASURA | E127: UNID | F127: 3 | H127: 3 | I127: 109.25 $ | J127: 1 | K127: 2 | L127: $218.50 | M127: $109.25
A128: 216 | B128: RESALTADOR | E128: UNID | F128: 17 | H128: 17 | I128: 39.00 $ | J128: 0 | K128: 17 | L128: $663.00 | M128: 0
A129: 217 | B129: RESMA DE CONTROL DE EXISTENCIA | E129: RESMA | F129: 3 | H129: 3 | I129: 1,298.00 $ | K129: 3 | L129: $3,894.00 | M129: 0
A130: 218 | B130: RESMA HOJA DE MAQUINA 8/2 *11 | E130: RESMA | F130: 33 | G130: 50 | H130: 83 | I130: 228.00 $ | J130: 60 | K130: 23 | L130: $5,244.00 | M130: $13,680.00
A131: 219 | B131: ROLLO DE PAPEL SUMADORA | E131: UNID | F131: 5 | H131: 5 | I131: 23.00 $ | J131: 3 | K131: 2 | L131: $46.00 | M131: $69.00
A132: 220 | B132: ROTULO PARA SOLUCION Y MEDICAMENTOS | E132: UNID | F132: 1050 | H132: 1050 | I132: 6.50 $ | J132: 0 | K132: 1050 | L132: $6,825.00 | M132: 0
A133: 221 | B133: SACA GRAPA | E133: UNID | F133: 6 | H133: 6 | I133: 30.00 $ | J133: 0 | K133: 6 | L133: $180.00 | M133: 0
A134: 222 | B134: SACAPUNTA METAL | E134: UNID | F134: 24 | H134: 24 | I134: 15.00 $ | J134: 0 | K134: 24 | L134: $360.00 | M134: 0
A135: 223 | B135: SACO DE DETERGENTE | E135: UNID | F135: 0 | G135: 1 | H135: 1 | I135: 1,100.00 $ | J135: 1 | K135: 0 | L135: 0 | M135: $1,100.00
A136: 224 | B136: SERVILLETA C-FOLD 24/100 XCELENT | E136: UNID | G136: 48 | H136: 48 | I136: 24.50 $ | J136: 36 | K136: 12 | L136: $294.00 | M136: $882.00
A137: 225 | B137: SERVILLETAS DE BINGO 60/1 | E137: UNID | F137: 91 | H137: 91 | I137: 11.50 $ | J137: 71 | K137: 20 | L137: $230.00 | M137: $816.50
A138: 226 | B138: SOBRE CARTA VENTANILLA | E138: UNID | F138: 900 | H138: 900 | I138: 1.85 $ | J138: 0 | K138: 900 | L138: $1,665.00 | M138: 0
A139: 227 | B139: SOBRE MANILA 9*12 500 UNID | E139: UNID | F139: 400 | H139: 400 | I139: 13.85 $ | J139: 0 | K139: 400 | L139: $5,540.00 | M139: 0
A140: 228 | B140: SOBRE MANILA 14*17 1000 UNIDAD | E140: UNID | F140: 925 | H140: 925 | I140: 13.85 $ | J140: 0 | K140: 925 | L140: $12,811.25 | M140: 0
A141: 229 | B141: SOBRE MANILA 10*14 DE 500 UNID | E141: UNID | F141: 285 | H141: 285 | I141: 7.10 $ | J141: 0 | K141: 285 | L141: $2,023.50 | M141: 0
A142: 230 | B142: SOBRE TIMBRADO | E142: UNID | F142: 300 | H142: =F142+G142 -> 300 | I142: 13.00 $ | K142: =H142-J142 -> 300 | L142: =I142*K142 -> $3,900.00 | M142: =I142*J142 -> 0
A143: 231 | B143: SUAPER JUMBO | E143: GALON | F143: 2 | H143: 2 | I143: 175.00 $ | J143: 2 | K143: 0 | L143: 0 | M143: $350.00
A144: 232 | B144: SUAVITEL | E144: GALON | F144: 10 | H144: 10 | I144: 148.31 $ | J144: 4 | K144: 6 | L144: $889.86 | M144: $593.24
A145: 233 | B145: TALONARIO DE PATOLOGIA | E145: TALONARIO | F145: 15 | H145: 15 | I145: 70.80 $ | J145: 2 | K145: 13 | L145: $920.40 | M145: $141.60
A146: 234 | B146: TALONARIO HISTORIA CLINICA EMERGENCIA | E146: TALONARIO | F146: 3 | H146: 3 | I146: 275.00 $ | J146: 3 | K146: 0 | L146: 0 | M146: $825.00
A147: 235 | B147: TALONARIO SOLICITUD DE MEDICAMENTO | E147: TALONARIO | F147: 20 | H147: 20 | I147: 75.00 $ | J147: 11 | K147: 9 | L147: $675.00 | M147: $825.00
A148: 236 | B148: TALONARIO COPROLOGICO | E148: TALONARIO | F148: 105 | H148: 105 | I148: 88.35 $ | J148: 0 | K148: 105 | L148: $9,276.75 | M148: 0
A149: 237 | B149: TALALONARIO HEMOGRAMA | E149: TALONARIO | F149: 35 | H149: 35 | I149: 88.35 $ | J149: 15 | K149: 20 | L149: $1,767.00 | M149: $1,325.25
A150: 238 | B150: TALONARIO CONFIMACION DE QUIRURGICA | E150: TALONARIO | F150: 5 | H150: 5 | I150: 185.00 $ | J150: 0 | K150: 5 | L150: $925.00 | M150: 0
A151: 239 | B151: TALONARIO LABORATORIO CLINICO | E151: TALONARIO | F151: 50 | H151: 50 | I151: 37.00 $ | J151: 26 | K151: 24 | L151: $888.00 | M151: $962.00
A152: 240 | B152: TALONARIO PARTOGRAMA POSPARTO | E152: TALONARIO | F152: 9 | H152: 9 | I152: 185.00 $ | J152: 0 | K152: 9 | L152: $1,665.00 | M152: 0
A153: 241 | B153: TALONARIO HISTORIAL OPERATORIO | E153: RESMA | F153: 4 | H153: 4 | I153: 185.00 $ | J153: 0 | K153: 4 | L153: $740.00 | M153: 0
A154: 242 | B154: TALONARIO URIANALISIS | E154: TALONARIO | F154: 24 | H154: 24 | I154: 53.10 $ | J154: 10 | K154: 14 | L154: $743.40 | M154: $531.00
A155: 243 | B155: TALONARIO REQUISICION DE FARMACIA | E155: TALONARIO | F155: 9 | H155: 9 | I155: 413.00 $ | J155: 0 | K155: 9 | L155: $3,717.00 | M155: 0
A156: 244 | B156: TALONARIO CUIDADO DE ENFERERIA VIH MEDIA | E156: TALONARIO | F156: 15 | H156: 15 | I156: 275.00 $ | J156: 0 | K156: 15 | L156: $4,125.00 | M156: 0
A157: 245 | B157: TALONARIO CONCENTIMIENTO INFORMADO | E157: TALONARIO | F157: 27 | H157: 27 | I157: 756.00 $ | J157: 0 | K157: 27 | L157: $20,412.00 | M157: 0
A158: 244 | B158: TALONARIO CONCENTIMIENTO CORTO | E158: TALONARIO | F158: 2 | H158: 2 | I158: 266.00 $ | J158: 0 | K158: 2 | L158: $532.00 | M158: 0
A159: 245 | B159: TALONARIO DE CONTROL TEMPERATURA | E159: TALONARIO | F159: 15 | H159: 15 | I159: 294.00 $ | J159: 0 | K159: 15 | L159: $4,410.00 | M159: 0
A160: 246 | B160: TALONARIO DE CUOTA DE CONTRIBUCION | E160: TALONARIO | F160: 10 | H160: 10 | I160: 185.00 $ | J160: 0 | K160: 10 | L160: $1,850.00 | M160: 0
A161: 247 | B161: TALONARIO PROTOCOLO ATENCION AL PARTO | E161: TALONARIO | F161: 8 | H161: 8 | I161: 185.00 $ | J161: 0 | K161: 8 | L161: $1,480.00 | M161: 0
A162: 248 | B162: TALONARIO HOJA DE KARDEX INSUMO | E162: TALONARIO | F162: 10 | H162: 10 | I162: 994.00 $ | J162: 1 | K162: 9 | L162: $8,946.00 | M162: $994.00
A163: 249 | B163: TALONARIO SOLICITUD DE ALMACEN | E163: TALONARIO | F163: 48 | H163: 48 | I163: 224.00 $ | J163: 0 | K163: 48 | L163: $10,752.00 | M163: 0
A164: 250 | B164: TALONARIO SALIDA ALMACEN | E164: TALONARIO | F164: 7 | H164: 7 | I164: 275.00 $ | J164: 0 | K164: 7 | L164: $1,925.00 | M164: 0
A165: 251 | B165: TAPA DE VASOS #12 CLEA 10/100 | E165: UNID | F165: 6 | G165: 10 | H165: 16 | I165: 224.00 $ | J165: 5 | K165: 11 | L165: $2,464.00 | M165: $1,120.00
A166: 252 | B166: TARJETA DE CITA | E166: UNID | F166: 2035 | H166: 2035 | I166: 2.75 $ | J166: 580 | K166: 1455 | L166: $4,001.25 | M166: $1,595.00
A167: 253 | B167: TARJETA DE EXPEDIENTE | E167: UNID | F167: 300 | H167: 300 | I167: 4.50 $ | J167: 0 | K167: 300 | L167: $1,350.00 | M167: 0
A168: 254 | B168: TALONARIO RECETARIO NORMAL | E168: TALONARIO | F168: 248 | H168: 248 | I168: 53.65 $ | J168: 36 | K168: 212 | L168: $11,373.80 | M168: $1,931.40
A169: 255 | B169: TIJERAS | E169: UNID | F169: 4 | H169: 4 | I169: 62.54 $ | J169: 1 | K169: 3 | L169: $187.62 | M169: $62.54
A170: 256 | B170: TINTA PARA SELLO AZUL | E170: UNID | F170: 2 | H170: 2 | I170: 106.00 $ | J170: 1 | K170: 1 | L170: $106.00 | M170: $106.00
A171: 257 | B171: TOALLA MICROFIBRA16´´ *16´´ | E171: PAQU | F171: 28 | H171: 28 | I171: 49.56 $ | J171: 4 | K171: 24 | L171: $1,189.44 | M171: $198.24
A172: 258 | B172: VASO 12 CAJA 40/25 FOAM | E172: PAQU | F172: 33 | G172: 40 | H172: 73 | I172: 53.20 $ | J172: 20 | K172: 53 | L172: $2,819.60 | M172: $1,064.00
A173: 259 | B173: VASO 5 | E173: PAQU | F173: 51 | H173: 51 | I173: 55.00 $ | J173: 22 | K173: 29 | L173: $1,595.00 | M173: $1,210.00
A174: 260 | B174: VASOS #7 | E174: PAQU | F174: 0 | G174: 50 | H174: 50 | I174: 38.94 $ | J174: 33 | K174: 17 | L174: $661.98 | M174: $1,285.02
J175: TOTAL ALMACEN | L175: =SUM(L13:L172) -> $468,459.76
J176: TOTAL DE COMSUMO | L176: =SUM(M13:M174) -> $120,349.36

Sheet JUNIO
K8: 2025-06-30
A9: INVENTARIO DE ALMACEN
A10: CODIGO | B10: DESCRIPCION DEL PRODUCTO | E10: UNIDAD MEDIDA | F10: CANTIDAD | G10: ENTRADA | H10: TOTAL | I10: PRECIO | J10: SALIDA DE USO MENSUAL | K10: CANTIDAD ACTIVA EN ALMACEN | L10: VALOR TOTAL ACTIVO | M10: VALORDE TOTAL CONSUMO
A11: 101 | B11: ACORDEON 10*12 CARTON PIEDRA | E11: UNID | F11: 1 | G11: 4 | H11: =F11+G11 -> 5 | I11: 744.00 $ | J11: 1 | K11: =H11-J11 -> 4 | L11: =I11*K11 -> $2,976.00 | M11: =I11*J11 -> $744.00
A12: 102 | B12: AMBIENTADOR SPRAY | E12: UNID | F12: 1 | G12: 37 | H12: =F12+G12 -> 38 | I12: 145.00 $ | J12: 13 | K12: =H12-J12 -> 25 | L12: =I12*K12 -> $3,625.00 | M12: =I12*J12 -> $1,885.00
A13: 103 | B13: AGUA BOTELLITAS | E13: UNID | F13: 0 | G13: 340 | H13: 340 | I13: 6.50 $ | J13: 180 | K13: 160 | L13: $1,040.00 | M13: $1,170.00
A14: 104 | B14: AXION EN PASTA | E14: UNID | F14: 6 | G14: 21 | H14: 27 | I14: 116.00 $ | J14: 13 | K14: 14 | L14: $1,624.00 | M14: $1,508.00
A15: 105 | B15: BAYGON 400ML | E15: UNID | F15: 3 | G15: 12 | H15: 15 | I15: 349.00 $ | J15: 6 | K15: 9 | L15: $3,141.00 | M15: $2,094.00
A16: 106 | B16: BOLIGRAFOS AZULES | E16: UNID | F16: 155 | G16: 72 | H16: 227 | I16: 10.10 $ | J16: 60 | K16: 167 | L16: $1,686.70 | M16: $606.00
A17: 107 | B17: BOLIGRAFOS NEGROS | E17: UNID | F17: 50 | H17: 50 | I17: 7.00 $ | J17: 0 | K17: 50 | L17: $350.00 | M17: 0
A18: 108 | B18: BOLIGRAFOS ROJOS | E18: UNID | F18: 112 | H18: 112 | I18: 7.00 $ | J18: 0 | K18: 112 | L18: $784.00 | M18: 0
A19: 109 | B19: BOLIGRAFOS VERDES | E19: UNID | F19: 9 | G19: 0 | H19: 9 | I19: 10.00 $ | J19: 0 | K19: 9 | L19: $90.00 | M19: 0
A20: 110 | B20: BORRANTE DE LECHE | E20: UNID | F20: 9 | H20: 9 | I20: 8.00 $ | J20: 0 | K20: 9 | L20: $72.00 | M20: 0
A21: 111 | B21: BRILLO GRUESO 12/1 PROMANO | E21: UNID | F21: 26 | H21: 26 | I21: 69.60 $ | J21: 4 | K21: 22 | L21: $1,531.20 | M21: $278.40
A22: 112 | B22: BRILLO GRIS | E22: UNID | F22: 6 | G22: 6 | H22: 12 | I22: 69.60 $ | J22: 4 | K22: 8 | L22: $556.80 | M22: $278.40
A23: 113 | B23: BRILLO VERDE Y ESPONJA | E23: UNID | F23: 23 | G23: 24 | H23: 47 | I23: 57.80 $ | J23: 15 | K23: 32 | L23: $1,849.60 | M23: $867.00
A24: 114 | B24: CAJA PLASTICAS DE 27 GL NEGRA | E24: UNID | F24: 7 | H24: 7 | I24: 1,350.00 $ | J24: 1 | K24: 6 | L24: $8,100.00 | M24: $1,350.00
A25: 115 | B25: CAJITA DE GRAPAS ESTÁNDAR 26/6 | E25: UNID | F25: 10 | G25: 12 | H25: 22 | I25: 47.17 $ | J25: 5 | K25: 17 | L25: $801.89 | M25: $235.85
A26: 116 | B26: CALCULADORA | E26: UNID | F26: 3 | H26: 3 | I26: 359.90 $ | J26: 0 | K26: 3 | L26: $1,079.70 | M26: 0
A27: 117 | B27: CARPETA NEGRA #1 | E27: UNID | F27: 5 | H27: 5 | I27: 469.00 $ | J27: 0 | K27: =H27-J27 -> 5 | L27: $2,345.00 | M27: 0
A28: 118 | B28: CARPETA NEGRA # 2 | E28: UNID | F28: 3 | H28: 3 | I28: 178.20 $ | J28: 0 | K28: 3 | L28: $534.60 | M28: 0
A29: 119 | B29: CARPETAS # 3 | E29: UNID | F29: 2 | H29: 2 | I29: 147.50 $ | J29: 0 | K29: 2 | L29: $295.00 | M29: 0
A30: 120 | B30: CARPETAS # 4 | E30: UNID | F30: 0 | H30: 0 | I30: 224.20 $ | J30: 0 | K30: 0 | L30: 0 | M30: 0
A31: 121 | B31: CEPILLO DE INODORO | E31: UNID | F31: 2 | H31: 2 | I31: 159.30 $ | J31: 0 | K31: 2 | L31: $318.60 | M31: 0
A32: 122 | B32: CERA PARA CONTAR | E32: UNID | F32: 10 | H32: 10 | I32: 60.00 $ | J32: 0 | K32: 10 | L32: $600.00 | M32: 0
A33: 123 | B33: CINTA MASKING TAPE 3/4 VISIBLE | E33: UNID | F33: 38 | H33: 38 | I33: 75.00 $ | J33: 1 | K33: 37 | L33: $2,775.00 | M33: $75.00
A34: 124 | B34: CINTA DE EMPAQUE | E34: UNID | F34: 11 | H34: 11 | I34: 47.20 $ | J34: 1 | K34: 10 | L34: $472.00 | M34: $47.20
A35: 125 | B35: CINTA MAGICA SUMADORA | E35: UNID | F35: 2 | H35: 2 | I35: 76.70 $ | J35: 0 | K35: 2 | L35: $153.40 | M35: 0
A36: 126 | B36: CLIPS JUMBO | E36: UNID | F36: 16 | G36: 20 | H36: 36 | I36: 38.00 $ | J36: 6 | K36: 30 | L36: $1,140.00 | M36: $228.00
A37: 127 | B37: CINTA MASKING TAPE CREMA | E37: UNID | F37: 9 | G37: 36 | H37: 45 | I37: 46.00 $ | J37: 15 | K37: 30 | L37: $1,380.00 | M37: $690.00
A38: 128 | B38: CUBO PLATICOS DE AGUJA DESECHABLES | E38: UNID | F38: 1 | H38: 1 | I38: 50.00 $ | J38: 1 | K38: 0 | L38: 0 | M38: $50.00
A39: 129 | B39: CLIPS BILLETERO 32 MM 12/1 | E39: UNID | F39: 36 | H39: 36 | I39: 123.90 $ | J39: 0 | K39: 36 | L39: $4,460.40 | M39: 0
A40: 130 | B40: CLIPS BILLETERO 41 MM 12/1 | E40: UNID | F40: 27 | H40: 27 | I40: 171.10 $ | J40: 0 | K40: 27 | L40: $4,619.70 | M40: 0
A41: 131 | B41: CLIPS BILLETERO 51 MM 12/1 | E41: UNID | F41: 24 | H41: 24 | I41: 230.10 $ | J41: 0 | K41: 24 | L41: $5,522.40 | M41: 0
A42: 132 | B42: CLIPS PEQUEÑO | E42: UNID | F42: 2 | H42: 2 | I42: 19.00 $ | J42: 1 | K42: 1 | L42: $19.00 | M42: $19.00
A43: 133 | B43: CLORO | E43: GALON | F43: 11 | G43: 50 | H43: 61 | I43: 88.99 $ | J43: 27 | K43: 34 | L43: $3,025.66 | M43: $2,402.73
A44: 134 | B44: CONTROL DE LIQUIDO(ENFERMERIA) | E44: TALONARIO | F44: 11 | H44: 11 | I44: 1,200.00 $ | J44: 0 | K44: 11 | L44: $13,200.00 | M44: 0
A45: 135 | B45: CUADERNOS COCIDOS | E45: UNID | F45: 11 | H45: 11 | I45: 53.00 $ | J45: 2 | K45: 9 | L45: $477.00 | M45: $106.00
A46: 136 | B46: CUCHARA 25/1 | E46: CAJA | F46: 0 | G46: 6 | H46: 6 | I46: 629.00 $ | J46: 3 | K46: 3 | L46: $1,887.00 | M46: $1,887.00
A47: 137 | B47: ESCOBA C/PALO | E47: UNID | F47: 2 | G47: 10 | H47: 12 | I47: 133.00 $ | J47: 2 | K47: 10 | L47: $1,330.00 | M47: $266.00
A48: 138 | B48: FOLDER AMARILLO OFICINA | E48: UNID | F48: 302 | G48: 600 | H48: =F48+G48 -> 902 | I48: 2.33 $ | J48: 250 | K48: 652 | L48: $1,519.16 | M48: $582.50
A49: 139 | B49: FOLDER VERDE 8 1/2 X 11 | E49: UNID | F49: 157 | G49: 400 | H49: 557 | I49: 4.95 $ | J49: 140 | K49: 417 | L49: $2,064.15 | M49: $693.00
A50: 140 | B50: FUNDA NEGRA 17 x22 GL PEQUEÑA | E50: PAQ | F50: 21 | G50: 45 | H50: 66 | I50: 72.00 $ | J50: 27 | K50: 39 | L50: $2,808.00 | M50: $1,944.00
A51: 141 | B51: FUNDA NEGRA #6 | E51: PAQ | F51: 34 | H51: 34 | I51: 36.58 $ | J51: 1 | K51: 33 | L51: $1,207.14 | M51: $36.58
A52: 142 | B52: FUNDA ROJA #2 | E52: PAQ | F52: 27 | H52: 27 | I52: 20.00 $ | J52: 0 | K52: 27 | L52: $540.00 | M52: 0
A53: 143 | B53: FUNDA AZULES #4 | E53: PAQ | F53: 37 | H53: 37 | I53: 26.00 $ | J53: 0 | K53: 37 | L53: $962.00 | M53: 0
A54: 144 | B54: FUNDA NEGRA MEDIANA 30 GL | E54: PAQ | F54: 4 | G54: 54 | H54: 58 | I54: 1,080.00 $ | J54: 14 | K54: 44 | L54: $47,520.00 | M54: $15,120.00
A55: 145 | B55: FUNDA NEGRA GRANDE 55 GL | E55: PAQ | F55: 2 | G55: 13 | H55: 15 | I55: 616.00 $ | J55: 4 | K55: 11 | L55: $6,776.00 | M55: $2,464.00
A56: 146 | B56: FUNDA ROJA PEQUENAS 17 GL | E56: PAQ | F56: 4 | G56: 10 | H56: 14 | I56: 240.00 $ | J56: 7 | K56: 7 | L56: $1,680.00 | M56: $1,680.00
A57: 147 | B57: FUNDA ROJA GRANDE 55 gl | E57: UNID | F57: 2 | G57: 10 | H57: 12 | I57: 1,030.10 $ | J57: 2 | K57: 10 | L57: $10,301.00 | M57: $2,060.20
A58: 148 | B58: FUNDA ROJA MEDIANA 30 GL | E58: PAQ | F58: 0 | G58: 30 | H58: 30 | I58: 450.36 $ | J58: 6 | K58: 24 | L58: $10,808.64 | M58: $2,702.16
A59: 149 | B59: GALON JABON LIQUIDO DE MANO | E59: GALON | F59: 0 | H59: 0 | I59: 171.10 $ | J59: 0 | K59: 0 | L59: 0 | M59: 0
A60: 150 | B60: GANCHOS P/FOLDER MH | E60: CAJA | F60: 10 | H60: 10 | I60: 141.60 $ | J60: 1 | K60: 9 | L60: $1,274.40 | M60: $141.60
A61: 151 | B61: GALON JABON DE CUABA | E61: GALON | F61: 0 | G61: 4 | H61: 4 | I61: 165.25 $ | J61: 1 | K61: 3 | L61: $495.75 | M61: $165.25
A62: 152 | B62: GOMITAS | E62: CAJA | F62: 7 | G62: 12 | H62: 19 | I62: 45.00 $ | J62: 6 | K62: 13 | L62: $585.00 | M62: $270.00
A63: 153 | B63: GRAPADORA NEGRA | E63: CAJA | F63: 4 | G63: 4 | H63: 8 | I63: 320.00 $ | J63: 3 | K63: 5 | L63: $1,600.00 | M63: $960.00
A64: 154 | B64: GUANTES MULTIUSOS | E64: UNID | F64: 12 | H64: 12 | I64: 666.36 $ | J64: 0 | K64: 12 | L64: $7,996.32 | M64: 0
A65: 155 | B65: HISTORIA CLINICA PERINATAL | E65: TALONARIO | F65: 10 | H65: 10 | I65: 1,298.00 $ | J65: 0 | K65: 10 | L65: $12,980.00 | M65: 0
A66: 156 | B66: HOJA DE ANOTACION ENFERMERIA | E66: RESMA | F66: 8 | H66: 8 | I66: 826.00 $ | J66: 3 | K66: 5 | L66: $4,130.00 | M66: $2,478.00
A67: 157 | B67: HOJA DE ADMICION | E67: RESMA | F67: 5 | H67: 5 | I67: 165.00 $ | J67: 0 | K67: 5 | L67: $825.00 | M67: 0
A68: 158 | B68: HOJA DE ATENCION DIARIA | E68: TALONARIO | F68: 3 | H68: 3 | I68: 994.00 $ | J68: 0 | K68: 3 | L68: $2,982.00 | M68: 0
A69: 159 | B69: HOJA DE CERTIFICACION | E69: RESMA | F69: 2 | H69: 2 | I69: 1,475.00 $ | J69: 0 | K69: 2 | L69: $2,950.00 | M69: 0
A70: 160 | B70: HOJA DE CONSULTA EXTERNA | E70: TALONARIO | F70: 0 | H70: 0 | I70: 994.00 $ | J70: 0 | K70: 0 | L70: 0 | M70: 0
A71: 161 | B71: HOJA PACIENTE DIETA | E71: TALONARIO | F71: 4 | H71: 4 | I71: 800.00 $ | J71: 0 | K71: 4 | L71: $3,200.00 | M71: 0
A72: 162 | B72: HOJA DE DIRECCION DE ENFERMERIA | E72: TALONARIO | F72: 0 | H72: 0 | I72: 994.00 $ | J72: 0 | K72: 0 | L72: 0 | M72: 0
A73: 163 | B73: HOJA DE ENFER EN AREA EMERGENCIA FO63 | E73: TALONARIO | F73: 20 | H73: 20 | I73: 994.00 $ | J73: 0 | K73: 20 | L73: $19,880.00 | M73: 0
A74: 164 | B74: HOJA DE ENFERMERIA | E74: TALONARIO | F74: 8 | H74: 8 | I74: 1,298.00 $ | J74: 0 | K74: 8 | L74: $10,384.00 | M74: 0
A75: 165 | B75: HOJA DE EVOLUCION | E75: TALONARIO | F75: 7 | H75: 7 | I75: 294.00 $ | J75: 0 | K75: 7 | L75: $2,058.00 | M75: 0
A76: 166 | B76: HOJA DE ANESTESIA | E76: TALONARIO | F76: 0 | H76: =F76+G76 -> 0 | I76: 185.00 $ | J76: 0 | K76: =H76-J76 -> 0 | L76: =I76*K76 -> 0 | M76: =I76*J76 -> 0
A77: 167 | B77: HOJA DE HISTORIAL CLINICO | E77: TALONARIO | F77: 46 | H77: 46 | I77: 195.00 $ | J77: 0 | K77: 46 | L77: $8,970.00 | M77: 0
A78: 168 | B78: HOJA D KARDEX D MEDICAMENTO SOLUCIONES | E78: TALONARIO | F78: 17 | H78: 17 | I78: 1,298.00 $ | J78: 0 | K78: 17 | L78: $22,066.00 | M78: 0
A79: 169 | B79: HOJA DE REFERENCIA Y CONTRA REFERENCIA | E79: TALONARIO | F79: 10 | H79: 10 | I79: 826.00 $ | J79: 0 | K79: 10 | L79: $8,260.00 | M79: 0
A80: 170 | B80: HOJA REGISTRO DIARIO CONSULTA EXTERNA | E80: TALONARIO | F80: 0 | H80: 0 | I80: 1,711.00 $ | J80: 0 | K80: 0 | L80: 0 | M80: 0
A81: 171 | B81: HOJA RESUMEN MEDICO DE EGRESO | E81: RESMA | F81: 3 | H81: 3 | I81: 826.00 $ | J81: 0 | K81: 3 | L81: $2,478.00 | M81: 0
A82: 172 | B82: HOJA SEGURIDAD CIRUGIA | E82: RESMA | F82: 2 | H82: 2 | I82: 1,475.00 $ | J82: 0 | K82: 2 | L82: $2,950.00 | M82: 0
A83: 173 | B83: HOJA DESIGNOGRAMA ENFERM | E83: RESMA | F83: 3 | H83: 3 | I83: 994.00 $ | J83: 0 | K83: 3 | L83: $2,982.00 | M83: 0
A84: 174 | B84: HOJA KARDEX MED INTERNA INSUMOS | E84: TALONARIO | F84: 9 | H84: 9 | I84: 994.00 $ | J84: 0 | K84: 9 | L84: $8,946.00 | M84: 0
A85: 175 | B85: HOJA LEGAL 8 1/2*14 RESMA | E85: RESMA | F85: 4 | G85: 12 | H85: 16 | I85: 348.00 $ | J85: 4 | K85: 12 | L85: $4,176.00 | M85: $1,392.00
A86: 176 | B86: HOJA ORDEN MEDICA | E86: TALONARIO | F86: 28 | H86: 28 | I86: 800.00 $ | J86: 0 | K86: 28 | L86: $22,400.00 | M86: 0
A87: 177 | B87: HOJA HISTORIAL OPERATORIO | E87: TALONARIO | F87: 4 | H87: 4 | I87: 1,299.00 $ | J87: 0 | K87: 4 | L87: $5,196.00 | M87: 0
A88: 178 | B88: HOJA SIGNOS VITALES | E88: TALONARIO | F88: 10 | H88: 10 | I88: 1,200.00 $ | J88: 0 | K88: 10 | L88: $12,000.00 | M88: 0
A89: 179 | B89: TALONARIO FORMULARIO ENF AREA EMER FO48 | E89: TALONARIO | F89: 10 | H89: 10 | I89: 994.00 $ | J89: 0 | K89: 10 | L89: $9,940.00 | M89: 0
A90: 180 | B90: TALONARIOS DE COMBUSTIBLE | E90: TALONARIO | F90: 0 | H90: 0 | I90: 994.00 $ | J90: 0 | K90: 0 | L90: 0 | M90: 0
A91: 181 | B91: HOJAS TIMBRADA | E91: RESMA | F91: 3 | H91: 3 | I91: 1,350.00 $ | J91: 0.5 | K91: 2.5 | L91: $3,375.00 | M91: $675.00
A92: 182 | B92: HOJA DE CONFIRMACION DE CIRUGIA | E92: RESMA | F92: 1 | H92: 1 | I92: 1,298.00 $ | J92: 0 | K92: 1 | L92: $1,298.00 | M92: 0
A93: 183 | B93: LABELSP/FOLDER | E93: UNID | F93: 5 | H93: 5 | I93: 112.10 $ | J93: 0 | K93: 5 | L93: $560.50 | M93: 0
A94: 184 | B94: LAPIZ | E94: UNID | F94: 35 | H94: 35 | I94: 10.00 $ | J94: 2 | K94: 33 | L94: $330.00 | M94: $20.00
A95: 185 | B95: LIBRO BANCO VENTA SERVICIOS | E95: UNID | F95: 1 | H95: 1 | I95: 2,360.00 $ | J95: 0 | K95: 1 | L95: $2,360.00 | M95: 0
A96: 186 | B96: LIBRO DE ANOTACIONES ENFERMERIA | E96: UNID | F96: 0 | H96: 0 | I96: 826.00 $ | J96: 0 | K96: 0 | L96: 0 | M96: 0
A97: 187 | B97: LIBRO DE EMERGENCIA | E97: UNID | F97: 2 | H97: 2 | I97: 2,360.00 $ | J97: 1 | K97: 1 | L97: $2,360.00 | M97: $2,360.00
A98: 188 | B98: LIBRO DE LABORATORIO PACIENTE | E98: UNID | F98: 2 | H98: 2 | I98: 1,170.00 $ | J98: 0 | K98: 2 | L98: $2,340.00 | M98: 0
A99: 189 | B99: LIBRO DE CONTROL DE PARASITOLOGIA COPROLOGICO | E99: UNID | F99: 2 | H99: 2 | I99: 1,170.00 $ | J99: 0 | K99: 2 | L99: $2,340.00 | M99: 0
A100: 190 | B100: LIBRO DE PARTO Y NACIMIENTO | E100: UNID | F100: 3 | H100: 3 | I100: 1,170.00 $ | J100: 0 | K100: 3 | L100: $3,510.00 | M100: 0
A101: 191 | B101: LIBRO DE CIRUGIA | E101: UNID | F101: 3 | H101: 3 | I101: 1,170.00 $ | J101: 0 | K101: 3 | L101: $3,510.00 | M101: 0
A102: 192 | B102: LIBRO DE CONS REGISTRO VIH | E102: UNID | F102: 0 | H102: 0 | I102: 1,770.00 $ | J102: 0 | K102: 0 | L102: 0 | M102: 0
A103: 193 | B103: LIBRO DE SEROLOGIA | E103: UNID | F103: 3 | H103: 3 | I103: 2,360.00 $ | J103: 0 | K103: 3 | L103: $7,080.00 | M103: 0
A104: 194 | B104: LIBRO DE URIANALISIS | E104: UNID | F104: 2 | H104: 2 | I104: 2,360.00 $ | J104: 0 | K104: 2 | L104: $4,720.00 | M104: 0
A105: 195 | B105: LIBRO HEMATOLOGIA | E105: UNID | F105: 2 | H105: 2 | I105: 2,000.00 $ | J105: 0 | K105: 2 | L105: $4,000.00 | M105: 0
A106: 196 | B106: LIBRO QUIMICO | E106: UNID | F106: 2 | H106: 2 | I106: 2,360.00 $ | J106: 0 | K106: 2 | L106: $4,720.00 | M106: 0
A107: 197 | B107: LIBRO INTERNAMIENTO | E107: UNID | F107: 3 | H107: 3 | I107: 1,770.00 $ | J107: 0 | K107: 3 | L107: $5,310.00 | M107: 0
A108: 198 | B108: LIBRO DE RAYOS X | E108: UNID | F108: 2 | H108: 2 | I108: 1,770.00 $ | J108: 0 | K108: 2 | L108: $3,540.00 | M108: 0
A109: 199 | B109: LIBRO RECORD DE REGISTRO ADOLECENTE | E109: UNID | F109: 0 | H109: 0 | I109: 1,800.00 $ | J109: 0 | K109: 0 | L109: 0 | M109: 0
A110: 200 | B110: LIQUID PAPER T/L CORRECTOR | E110: UNID | F110: 33 | H110: 33 | I110: 30.00 $ | J110: 5 | K110: 28 | L110: $840.00 | M110: $150.00
A111: 201 | B111: MARCADORES AZULES | E111: UNID | F111: 8 | G111: 36 | H111: 44 | I111: 30.00 $ | J111: 4 | K111: 40 | L111: $1,200.00 | M111: $120.00
A112: 202 | B112: MARCADORES NEGROS | E112: UNID | F112: 12 | G112: 36 | H112: 48 | I112: 30.00 $ | J112: 4 | K112: 44 | L112: $1,320.00 | M112: $120.00
A113: 203 | B113: MISTOLIN | E113: GALON | F113: 11 | G113: 90 | H113: 101 | I113: 104.00 $ | J113: 40 | K113: 61 | L113: $6,344.00 | M113: $4,160.00
A114: 204 | B114: PAPEL CARBON 8 1/2*11 | E114: UNID | F114: 100 | H114: 100 | I114: 325.00 $ | J114: 75 | K114: 25 | L114: $8,125.00 | M114: $24,375.00
A115: 205 | B115: PAPEL HIGIENICO FARDO 48/1 | E115: UNID | F115: 177 | G115: 96 | H115: 273 | I115: 22.60 $ | J115: 170 | K115: 103 | L115: $2,327.80 | M115: $3,842.00
A116: 206 | B116: PAPEL MANILA NATURAL KRAF | E116: UNID | F116: 2 | H116: 2 | I116: 3,916.00 $ | J116: 1 | K116: 1 | L116: $3,916.00 | M116: $3,916.00
A117: 207 | B117: PAPEL TOALLA 6/1 | E117: UNID | F117: 0 | G117: 48 | H117: 48 | I117: 95.38 $ | J117: 20 | K117: 28 | L117: $2,670.64 | M117: $1,907.60
A118: 208 | B118: PERFORADORA 2 | E118: UNID | F118: 0 | H118: 0 | I118: 306.08 $ | J118: 0 | K118: 0 | L118: 0 | M118: 0
A119: 209 | B119: PERFORADORA 3 | E119: UNID | F119: 1 | H119: 1 | I119: 631.30 $ | J119: 0 | K119: 1 | L119: $631.30 | M119: 0
A120: 210 | B120: PILA AA | E120: UNID | F120: 0 | H120: 0 | I120: 54.00 $ | J120: 0 | K120: 0 | L120: 0 | M120: 0
A121: 211 | B121: PILA AAA | E121: UNID | F121: 0 | H121: 0 | I121: 53.00 $ | J121: 0 | K121: 0 | L121: 0 | M121: 0
A122: 212 | B122: PAPEL CON DIVISION 200/1 OPTION | E122: CAJA | F122: 1 | G122: 2 | H122: 3 | I122: 1,085.00 $ | J122: 2 | K122: 1 | L122: $1,085.00 | M122: $2,170.00
A123: 213 | B123: PLATOS | E123: FARDO | F123: 1 | G123: 14 | H123: 15 | I123: 1,291.00 $ | J123: 7 | K123: 8 | L123: $10,328.00 | M123: $9,037.00
A124: 214 | B124: POS-IT 3*3 | E124: RESMA | F124: 0 | H124: 0 | I124: 33.63 $ | J124: 0 | K124: 0 | L124: 0 | M124: 0
A125: 215 | B125: RECOJEDOR DE BASURA | E125: UNID | F125: 2 | H125: 2 | I125: 109.25 $ | J125: 0 | K125: 2 | L125: $218.50 | M125: 0
A126: 216 | B126: RESALTADOR | E126: UNID | F126: 17 | H126: 17 | I126: 39.00 $ | J126: 1 | K126: 16 | L126: $624.00 | M126: $39.00
A127: 217 | B127: RESMA DE CONTROL DE EXISTENCIA | E127: RESMA | F127: 3 | H127: 3 | I127: 1,298.00 $ | J127: 0 | K127: 3 | L127: $3,894.00 | M127: 0
A128: 218 | B128: RESMA HOJA DE MAQUINA 8/2 *11 | E128: RESMA | F128: 23 | G128: 160 | H128: 183 | I128: 228.00 $ | J128: 65 | K128: 118 | L128: $26,904.00 | M128: $14,820.00
A129: 219 | B129: ROLLO DE PAPEL SUMADORA | E129: UNID | F129: 2 | G129: 12 | H129: 14 | I129: 23.00 $ | J129: 0 | K129: 14 | L129: $322.00 | M129: 0
A130: 220 | B130: ROTULO PARA SOLUCION Y MEDICAMENTOS | E130: UNID | F130: 1050 | H130: 1050 | I130: 6.50 $ | J130: 50 | K130: 1000 | L130: $6,500.00 | M130: $325.00
A131: 221 | B131: SACA GRAPA | E131: UNID | F131: 6 | H131: 6 | I131: 30.00 $ | J131: 0 | K131: 6 | L131: $180.00 | M131: 0
A132: 222 | B132: SACAPUNTA METAL | E132: UNID | F132: 24 | H132: 24 | I132: 15.00 $ | J132: 0 | K132: 24 | L132: $360.00 | M132: 0
A133: 223 | B133: SACO DE DETERGENTE | E133: UNID | F133: 0 | G133: 4 | H133: 4 | I133: 1,100.00 $ | J133: 1 | K133: 3 | L133: $3,300.00 | M133: $1,100.00
A134: 224 | B134: SERVILLETA C-FOLD 24/100 XCELENT | E134: UNID | F134: 12 | G134: 96 | H134: 108 | I134: 24.50 $ | J134: 32 | K134: 76 | L134: $1,862.00 | M134: $784.00
A135: 225 | B135: SERVILLETAS DE BINGO 60/1 | E135: UNID | F135: 20 | G135: 420 | H135: 440 | I135: 11.50 $ | J135: 131 | K135: =H135-J135 -> 309 | L135: $3,553.50 | M135: $1,506.50
A136: 226 | B136: SOBRE CARTA VENTANILLA | E136: UNID | F136: 900 | H136: 900 | I136: 1.85 $ | J136: 0 | K136: 900 | L136: $1,665.00 | M136: 0
A137: 227 | B137: SOBRE MANILA 9*12 500 UNID | E137: UNID | F137: 400 | H137: 400 | I137: 13.85 $ | J137: 0 | K137: 400 | L137: $5,540.00 | M137: 0
A138: 228 | B138: SOBRE MANILA 14*17 1000 UNIDAD | E138: UNID | F138: 925 | H138: 925 | I138: 13.85 $ | J138: 0 | K138: 925 | L138: $12,811.25 | M138: 0
A139: 229 | B139: SOBRE MANILA 10*14 DE 500 UNID | E139: UNID | F139: 285 | H139: 285 | I139: 7.10 $ | J139: 0 | K139: 285 | L139: $2,023.50 | M139: 0
A140: 230 | B140: SOBRE TIMBRADO | E140: UNID | F140: 300 | H140: =F140+G140 -> 300 | I140: 13.00 $ | J140: 0 | K140: =H140-J140 -> 300 | L140: =I140*K140 -> $3,900.00 | M140: =I140*J140 -> 0
A141: 231 | B141: SUAPER JUMBO | E141: GALON | F141: 0 | G141: 10 | H141: 10 | I141: 175.00 $ | J141: 6 | K141: 4 | L141: $700.00 | M141: $1,050.00
A142: 232 | B142: SUAVITEL | E142: GALON | F142: 6 | H142: 6 | I142: 148.31 $ | J142: 1 | K142: 5 | L142: $741.55 | M142: $148.31
A143: 233 | B143: TALONARIO DE PATOLOGIA | E143: TALONARIO | F143: 13 | H143: 13 | I143: 70.80 $ | J143: 0 | K143: 13 | L143: $920.40 | M143: 0
A144: 234 | B144: TALONARIO HISTORIA CLINICA EMERGENCIA | E144: TALONARIO | F144: 0 | H144: 0 | I144: 275.00 $ | J144: 0 | K144: 0 | L144: 0 | M144: 0
A145: 235 | B145: TALONARIO SOLICITUD DE MEDICAMENTO | E145: TALONARIO | F145: 9 | H145: 9 | I145: 75.00 $ | J145: 0 | K145: 9 | L145: $675.00 | M145: 0
A146: 236 | B146: TALONARIO COPROLOGICO | E146: TALONARIO | F146: 105 | H146: 105 | I146: 88.35 $ | J146: 0 | K146: 105 | L146: $9,276.75 | M146: 0
A147: 237 | B147: TALALONARIO HEMOGRAMA | E147: TALONARIO | F147: 20 | H147: 20 | I147: 88.35 $ | J147: 10 | K147: 10 | L147: $883.50 | M147: $883.50
A148: 238 | B148: TALONARIO CONFIMACION DE QUIRURGICA | E148: TALONARIO | F148: 5 | H148: 5 | I148: 185.00 $ | J148: 0 | K148: 5 | L148: $925.00 | M148: 0
A149: 239 | B149: TALONARIO LABORATORIO CLINICO | E149: TALONARIO | F149: 24 | H149: 24 | I149: 37.00 $ | J149: 10 | K149: 14 | L149: $518.00 | M149: $370.00
A150: 240 | B150: TALONARIO PARTOGRAMA POSPARTO | E150: TALONARIO | F150: 9 | H150: 9 | I150: 185.00 $ | J150: 0 | K150: 9 | L150: $1,665.00 | M150: 0
A151: 241 | B151: TALONARIO HISTORIAL OPERATORIO | E151: RESMA | F151: 4 | H151: 4 | I151: 185.00 $ | J151: 0 | K151: 4 | L151: $740.00 | M151: 0
A152: 242 | B152: TALONARIO URIANALISIS | E152: TALONARIO | F152: 14 | H152: 14 | I152: 53.10 $ | J152: 10 | K152: 4 | L152: $212.40 | M152: $531.00
A153: 243 | B153: TALONARIO REQUISICION DE FARMACIA | E153: TALONARIO | F153: 9 | H153: 9 | I153: 413.00 $ | J153: 0 | K153: 9 | L153: $3,717.00 | M153: 0
A154: 244 | B154: TALONARIO CUIDADO DE ENFERERIA VIH MEDIA | E154: TALONARIO | F154: 15 | H154: 15 | I154: 275.00 $ | J154: 0 | K154: 15 | L154: $4,125.00 | M154: 0
A155: 245 | B155: TALONARIO CONCENTIMIENTO INFORMADO | E155: TALONARIO | F155: 27 | H155: 27 | I155: 756.00 $ | J155: 0 | K155: 27 | L155: $20,412.00 | M155: 0
A156: 244 | B156: TALONARIO CONCENTIMIENTO CORTO | E156: TALONARIO | F156: 2 | H156: 2 | I156: 266.00 $ | J156: 0 | K156: 2 | L156: $532.00 | M156: 0
A157: 245 | B157: TALONARIO DE CONTROL TEMPERATURA | E157: TALONARIO | F157: 15 | H157: 15 | I157: 294.00 $ | J157: 0 | K157: 15 | L157: $4,410.00 | M157: 0
A158: 246 | B158: TALONARIO DE CUOTA DE CONTRIBUCION | E158: TALONARIO | F158: 10 | H158: 10 | I158: 185.00 $ | J158: 0 | K158: 10 | L158: $1,850.00 | M158: 0
A159: 247 | B159: TALONARIO PROTOCOLO ATENCION AL PARTO | E159: TALONARIO | F159: 8 | H159: 8 | I159: 185.00 $ | J159: 0 | K159: 8 | L159: $1,480.00 | M159: 0
A160: 248 | B160: TALONARIO HOJA DE KARDEX INSUMO | E160: TALONARIO | F160: 9 | H160: 9 | I160: 994.00 $ | J160: 0 | K160: 9 | L160: $8,946.00 | M160: 0
A161: 249 | B161: TALONARIO SOLICITUD DE ALMACEN | E161: TALONARIO | F161: 7 | H161: 7 | I161: 224.00 $ | J161: 0 | K161: 7 | L161: $1,568.00 | M161: 0
A162: 250 | B162: TALONARIO SALIDA ALMACEN | E162: TALONARIO | F162: 48 | H162: 48 | I162: 275.00 $ | J162: 0 | K162: 48 | L162: $13,200.00 | M162: 0
A163: 251 | B163: TAPA DE VASOS #12 CLEA 10/100 | E163: UNID | F163: 11 | G163: 30 | H163: 41 | I163: 224.00 $ | J163: 15 | K163: 26 | L163: $5,824.00 | M163: $3,360.00
A164: 252 | B164: TARJETA DE CITA | E164: UNID | F164: 1455 | H164: 1455 | I164: 2.75 $ | J164: 30 | K164: 1425 | L164: $3,918.75 | M164: $82.50
A165: 253 | B165: TARJETA DE EXPEDIENTE | E165: UNID | F165: 300 | H165: 300 | I165: 4.50 $ | J165: 0 | K165: 300 | L165: $1,350.00 | M165: 0
A166: 254 | B166: TALONARIO RECETARIO NORMAL | E166: TALONARIO | F166: 212 | H166: 212 | I166: 53.65 $ | J166: 10 | K166: 202 | L166: $10,837.30 | M166: $536.50
A167: 255 | B167: TIJERAS | E167: UNID | F167: 3 | H167: 3 | I167: 62.54 $ | J167: 0 | K167: 3 | L167: $187.62 | M167: 0
A168: 256 | B168: TINTA PARA SELLO AZUL | E168: UNID | F168: 1 | G168: 12 | H168: 13 | I168: 106.00 $ | J168: 1 | K168: 12 | L168: $1,272.00 | M168: $106.00
A169: 257 | B169: TOALLA MICROFIBRA16´´ *16´´ | E169: PAQU | F169: 24 | H169: 24 | I169: 49.56 $ | J169: 0 | K169: 24 | L169: $1,189.44 | M169: 0
A170: 258 | B170: VASO 12 CAJA 40/25 FOAM | E170: PAQU | F170: 53 | G170: 160 | H170: 213 | I170: 53.20 $ | J170: 75 | K170: 138 | L170: $7,341.60 | M170: $3,990.00
A171: 259 | B171: VASO # 5 | E171: PAQU | F171: 29 | H171: 29 | I171: 55.00 $ | J171: 17 | K171: 12 | L171: $660.00 | M171: $935.00
A172: 260 | B172: VASOS #7 | E172: PAQU | F172: 17 | G172: 250 | H172: 267 | I172: 38.94 $ | J172: 126 | K172: 141 | L172: $5,490.54 | M172: $4,906.44
J173: TOTAL ALMACEN | L173: =SUM(L11:L170) -> $614,970.51
J174: TOTAL DE COMSUMO | L174: =SUM(M11:M172) -> $137,803.22

Sheet JULIO
K8: 2025-07-31
A9: INVENTARIO DE ALMACEN
A10: CODIGO | B10: DESCRIPCION DEL PRODUCTO | E10: UNIDAD MEDIDA | F10: CANTIDAD | G10: ENTRADA | H10: TOTAL | I10: PRECIO | J10: SALIDA DE USO MENSUAL | K10: CANTIDAD ACTIVA EN ALMACEN | L10: VALOR TOTAL ACTIVO | M10: VALORDE TOTAL CONSUMO
A11: 101 | B11: ACORDEON 10*12 CARTON PIEDRA | E11: UNID | F11: 4 | G11: 0 | H11: =F11+G11 -> 4 | I11: 744.00 $ | J11: 0 | K11: =H11-J11 -> 4 | L11: =I11*K11 -> $2,976.00 | M11: =I11*J11 -> 0
A12: 102 | B12: AMBIENTADOR SPRAY | E12: UNID | F12: 25 | G12: 0 | H12: =F12+G12 -> 25 | I12: 192.00 $ | J12: 11 | K12: =H12-J12 -> 14 | L12: =I12*K12 -> $2,688.00 | M12: =I12*J12 -> $2,112.00
A13: 103 | B13: AGUA BOTELLITAS | E13: UNID | F13: 160 | G13: 280 | H13: 440 | I13: 6.50 $ | J13: 200 | K13: 240 | L13: $1,560.00 | M13: $1,300.00
A14: 104 | B14: AXION EN PASTA | E14: UNID | F14: 14 | G14: 0 | H14: 14 | I14: 116.00 $ | J14: 10 | K14: 4 | L14: $464.00 | M14: $1,160.00
A15: 105 | B15: BAYGON 400ML | E15: UNID | F15: 9 | G15: 0 | H15: 9 | I15: 349.00 $ | J15: 4 | K15: 5 | L15: $1,745.00 | M15: $1,396.00
A16: 106 | B16: BOLIGRAFOS AZULES | E16: UNID | F16: 167 | G16: 0 | H16: 167 | I16: 10.10 $ | J16: 59 | K16: 108 | L16: $1,090.80 | M16: $595.90
A17: 107 | B17: BOLIGRAFOS NEGROS | E17: UNID | F17: 50 | G17: 0 | H17: 50 | I17: 7.00 $ | K17: 50 | L17: $350.00 | M17: 0
A18: 108 | B18: BOLIGRAFOS ROJOS | E18: UNID | F18: 112 | G18: 0 | H18: 112 | I18: 7.00 $ | J18: 6 | K18: 106 | L18: $742.00 | M18: $42.00
A19: 109 | B19: BOLIGRAFOS VERDES | E19: UNID | F19: 9 | G19: 0 | H19: 9 | I19: 10.00 $ | K19: 9 | L19: $90.00 | M19: 0
A20: 110 | B20: BORRANTE DE LECHE | E20: UNID | F20: 9 | G20: 0 | H20: 9 | I20: 8.00 $ | J20: 0 | K20: 9 | L20: $72.00 | M20: 0
A21: 111 | B21: BRILLO GRUESO 12/1 ROMANO | E21: UNID | F21: 22 | G21: 0 | H21: 22 | I21: 69.60 $ | J21: 5 | K21: 17 | L21: $1,183.20 | M21: $348.00
A22: 112 | B22: BRILLO GRIS | E22: UNID | F22: 8 | G22: 0 | H22: 8 | I22: 69.60 $ | K22: 8 | L22: $556.80 | M22: 0
A23: 113 | B23: BRILLO VERDE Y ESPONJA | E23: UNID | F23: 32 | G23: 0 | H23: 32 | I23: 57.80 $ | J23: 11 | K23: 21 | L23: $1,213.80 | M23: $635.80
A24: 114 | B24: CAJA PLASTICAS DE 27 GL NEGRA | E24: UNID | F24: 6 | G24: 0 | H24: 6 | I24: 1,350.00 $ | J24: 1 | K24: 5 | L24: $6,750.00 | M24: $1,350.00
A25: 115 | B25: CAJITA DE GRAPAS ESTÁNDAR 26/6 | E25: UNID | F25: 17 | G25: 0 | H25: 17 | I25: 47.17 $ | J25: 11 | K25: 6 | L25: $283.02 | M25: $518.87
A26: 116 | B26: CALCULADORA | E26: UNID | F26: 3 | G26: 0 | H26: 3 | I26: 359.90 $ | K26: 3 | L26: $1,079.70 | M26: 0
A27: 117 | B27: CARPETA NEGRA #1 | E27: UNID | F27: 5 | G27: 0 | H27: 5 | I27: 469.00 $ | K27: =H27-J27 -> 5 | L27: $2,345.00 | M27: 0
A28: 118 | B28: CARPETA NEGRA # 2 | E28: UNID | F28: 3 | G28: 0 | H28: 3 | I28: 178.20 $ | K28: 3 | L28: $534.60 | M28: 0
A29: 119 | B29: CARPETAS # 3 | E29: UNID | F29: 2 | G29: 0 | H29: 2 | I29: 147.50 $ | K29: 2 | L29: $295.00 | M29: 0
A30: 120 | B30: CHINCHETAS | E30: CAJAS | F30: 6 | G30: 0 | H30: 6 | I30: 84.75 $ | K30: 6 | L30: $508.50 | M30: 0
A31: 121 | B31: CEPILLO DE INODORO | E31: UNID | F31: 2 | G31: 0 | H31: 2 | I31: 159.30 $ | K31: 2 | L31: $318.60 | M31: 0
A32: 122 | B32: CERA PARA CONTAR | E32: UNID | F32: 10 | G32: 0 | H32: 10 | I32: 60.00 $ | K32: 10 | L32: $600.00 | M32: 0
A33: 123 | B33: CINTA MASKING TAPE 3/4 VISIBLE | E33: UNID | F33: 37 | G33: 0 | H33: 37 | I33: 75.00 $ | J33: 1 | K33: 36 | L33: $2,700.00 | M33: $75.00
A34: 124 | B34: CINTA DE EMPAQUE | E34: UNID | F34: 10 | G34: 0 | H34: 10 | I34: 47.20 $ | J34: 1 | K34: 9 | L34: $424.80 | M34: $47.20
A35: 125 | B35: CINTA MAGICA SUMADORA | E35: UNID | F35: 2 | G35: 0 | H35: 2 | I35: 76.70 $ | K35: 2 | L35: $153.40 | M35: 0
A36: 126 | B36: CLIPS JUMBO | E36: UNID | F36: 30 | G36: 0 | H36: 30 | I36: 38.00 $ | J36: 9 | K36: 21 | L36: $798.00 | M36: $342.00
A37: 127 | B37: CINTA MASKING TAPE CREMA | E37: UNID | F37: 30 | G37: 0 | H37: 30 | I37: 46.00 $ | J37: 7 | K37: 23 | L37: $1,058.00 | M37: $322.00
A38: 128 | B38: CUBO PLATICOS DE AGUJA DESECHABLES | E38: UNID | F38: 0 | G38: 13 | H38: 13 | I38: 50.00 $ | J38: 8 | K38: 5 | L38: $250.00 | M38: $400.00
A39: 129 | B39: CLIPS BILLETERO 32 MM 12/1 | E39: UNID | F39: 36 | G39: 0 | H39: 36 | I39: 123.90 $ | K39: 36 | L39: $4,460.40 | M39: 0
A40: 130 | B40: CLIPS BILLETERO 41 MM 12/1 | E40: UNID | F40: 27 | G40: 0 | H40: 27 | I40: 171.10 $ | K40: 27 | L40: $4,619.70 | M40: 0
A41: 131 | B41: CLIPS BILLETERO 51 MM 12/1 | E41: UNID | F41: 24 | G41: 0 | H41: 24 | I41: 230.10 $ | K41: 24 | L41: $5,522.40 | M41: 0
A42: 132 | B42: CLIPS PEQUEÑO | E42: UNID | F42: 1 | G42: 0 | H42: 1 | I42: 19.00 $ | J42: 1 | K42: 0 | L42: 0 | M42: $19.00
A43: 133 | B43: CLORO | E43: GALON | F43: 34 | G43: 30 | H43: 64 | I43: 88.99 $ | J43: 30 | K43: 34 | L43: $3,025.66 | M43: $2,669.70
A44: 134 | B44: CONTROL DE LIQUIDO(ENFERMERIA) | E44: TALONARIO | F44: 11 | G44: 0 | H44: 11 | I44: 1,200.00 $ | K44: 11 | L44: $13,200.00 | M44: 0
A45: 135 | B45: CUADERNOS COCIDOS | E45: UNID | F45: 9 | G45: 0 | H45: 9 | I45: 53.00 $ | J45: 3 | K45: 6 | L45: $318.00 | M45: $159.00
A46: 136 | B46: CUCHARA 25/1 | E46: CAJA | F46: 3 | G46: 0 | H46: 3 | I46: 629.00 $ | J46: 2 | K46: 1 | L46: $629.00 | M46: $1,258.00
A47: 137 | B47: ESCOBA C/PALO | E47: UNID | F47: 10 | G47: 0 | H47: 10 | I47: 133.00 $ | K47: 10 | L47: $1,330.00 | M47: 0
A48: 138 | B48: FOLDER AMARILLO OFICINA | E48: UNID | F48: 652 | G48: 0 | H48: =F48+G48 -> 652 | I48: 2.33 $ | J48: 636 | K48: 16 | L48: $37.28 | M48: $1,481.88
A49: 139 | B49: FOLDER VERDE 8 1/2 X 11 | E49: UNID | F49: 417 | G49: 0 | H49: 417 | I49: 4.95 $ | J49: 121 | K49: 296 | L49: $1,465.20 | M49: $598.95
A50: 140 | B50: FUNDA NEGRA 17 x22 GL PEQUEÑA | E50: PAQ | F50: 39 | G50: 0 | H50: 39 | I50: 72.00 $ | J50: 6 | K50: 33 | L50: $2,376.00 | M50: $432.00
A51: 141 | B51: FUNDA NEGRA #6 | E51: PAQ | F51: 33 | G51: 0 | H51: 33 | I51: 36.58 $ | K51: 33 | L51: $1,207.14 | M51: 0
A52: 142 | B52: FUNDA ROJA #2 | E52: PAQ | F52: 27 | G52: 0 | H52: 27 | I52: 20.00 $ | K52: 27 | L52: $540.00 | M52: 0
A53: 143 | B53: FUNDA AZULES #4 | E53: PAQ | F53: 37 | G53: 0 | H53: 37 | I53: 26.00 $ | K53: 37 | L53: $962.00 | M53: 0
A54: 144 | B54: FUNDA NEGRA MEDIANA 30 GL | E54: PAQ | F54: 44 | G54: 0 | H54: 44 | I54: 1,080.00 $ | J54: 14 | K54: 30 | L54: $32,400.00 | M54: $15,120.00
A55: 145 | B55: FUNDA NEGRA GRANDE 55 GL | E55: PAQ | F55: 11 | G55: 0 | H55: 11 | I55: 616.00 $ | J55: 4 | K55: 7 | L55: $4,312.00 | M55: $2,464.00
A56: 146 | B56: FUNDA ROJA PEQUENAS 17 GL | E56: PAQ | F56: 7 | G56: 0 | H56: 7 | I56: 240.00 $ | J56: 3 | K56: 4 | L56: $960.00 | M56: $720.00
A57: 147 | B57: FUNDA ROJA GRANDE 55 gl | E57: UNID | F57: 10 | G57: 0 | H57: 10 | I57: 1,030.10 $ | J57: 1 | K57: 9 | L57: $9,270.90 | M57: $1,030.10
A58: 148 | B58: FUNDA ROJA MEDIANA 30 GL | E58: PAQ | F58: 24 | G58: 0 | H58: 24 | I58: 450.36 $ | J58: 6 | K58: 18 | L58: $8,106.48 | M58: $2,702.16
A59: 149 | B59: GALON JABON LIQUIDO DE MANO | E59: GALON | F59: 0 | G59: 6 | H59: 6 | I59: 171.10 $ | K59: 6 | L59: $1,026.60 | M59: 0
A60: 150 | B60: GANCHOS P/FOLDER MH | E60: CAJA | F60: 9 | G60: 0 | H60: 9 | I60: 141.60 $ | K60: 9 | L60: $1,274.40 | M60: 0
A61: 151 | B61: GALON JABON DE CUABA | E61: GALON | F61: 3 | G61: 0 | H61: 3 | I61: 165.25 $ | J61: 1 | K61: 2 | L61: $330.50 | M61: $165.25
A62: 152 | B62: GOMITAS | E62: CAJA | F62: 13 | G62: 0 | H62: 13 | I62: 45.00 $ | J62: 9 | K62: 4 | L62: $180.00 | M62: $405.00
A63: 153 | B63: GRAPADORA NEGRA | E63: CAJA | F63: 0 | G63: 6 | H63: 6 | I63: 320.00 $ | J63: 1 | K63: 5 | L63: $1,600.00 | M63: $320.00
A64: 154 | B64: GUANTES MULTIUSOS | E64: UNID | F64: 12 | G64: 0 | H64: 12 | I64: 666.36 $ | K64: 12 | L64: $7,996.32 | M64: 0
A65: 155 | B65: HISTORIA CLINICA PERINATAL | E65: TALONARIO | F65: 10 | G65: 0 | H65: 10 | I65: 1,298.00 $ | J65: 1 | K65: 9 | L65: $11,682.00 | M65: $1,298.00
A66: 156 | B66: HOJA DE ANOTACION ENFERMERIA | E66: RESMA | F66: 7 | G66: 0 | H66: 7 | I66: 826.00 $ | K66: 7 | L66: $5,782.00 | M66: 0
A67: 157 | B67: HOJA DE ADMICION | E67: RESMA | F67: 5 | G67: 0 | H67: 5 | I67: 165.00 $ | K67: 5 | L67: $825.00 | M67: 0
A68: 158 | B68: HOJA DE ATENCION DIARIA | E68: TALONARIO | F68: 3 | G68: 0 | H68: 3 | I68: 994.00 $ | K68: 3 | L68: $2,982.00 | M68: 0
A69: 159 | B69: HOJA DE CERTIFICACION | E69: RESMA | F69: 2 | G69: 0 | H69: 2 | I69: 1,475.00 $ | K69: 2 | L69: $2,950.00 | M69: 0
A70: 160 | B70: HOJA DE CONSULTA EXTERNA | E70: TALONARIO | F70: 30 | G70: 0 | H70: 30 | I70: 994.00 $ | J70: 13 | K70: 17 | L70: $16,898.00 | M70: $12,922.00
A71: 161 | B71: HOJA PACIENTE DIETA | E71: TALONARIO | F71: 24 | G71: 0 | H71: 24 | I71: 800.00 $ | J71: 6 | K71: 18 | L71: $14,400.00 | M71: $4,800.00
A72: 162 | B72: HOJA DE DIRECCION CUIDADO DE ENFERMERIA | E72: TALONARIO | F72: 32 | G72: 0 | H72: 32 | I72: 994.00 $ | J72: 0 | K72: 32 | L72: $31,808.00 | M72: 0
A73: 163 | B73: HOJA DE ENFER EN AREA EMERGENCIA FO63 | E73: TALONARIO | F73: 20 | G73: 0 | H73: 20 | I73: 994.00 $ | J73: 3 | K73: 17 | L73: $16,898.00 | M73: $2,982.00
A74: 164 | B74: HOJA DE ENFERMERIA | E74: TALONARIO | F74: 8 | G74: 0 | H74: 8 | I74: 1,298.00 $ | K74: 8 | L74: $10,384.00 | M74: 0
A75: 165 | B75: HOJA DE EVOLUCION | E75: TALONARIO | F75: 7 | G75: 0 | H75: 7 | I75: 294.00 $ | J75: 1 | K75: 6 | L75: $1,764.00 | M75: $294.00
A76: 166 | B76: HOJA DE ANESTESIA | E76: TALONARIO | F76: 13 | G76: 0 | H76: =F76+G76 -> 13 | I76: 185.00 $ | K76: =H76-J76 -> 13 | L76: =I76*K76 -> $2,405.00 | M76: =I76*J76 -> 0
A77: 167 | B77: HOJA DE HISTORIAL CLINICO | E77: TALONARIO | F77: 46 | G77: 0 | H77: 46 | I77: 195.00 $ | K77: 46 | L77: $8,970.00 | M77: 0
A78: 168 | B78: HOJA D KARDEX D MEDICAMENTO SOLUCIONES | E78: TALONARIO | F78: 17 | G78: 0 | H78: 17 | I78: 1,298.00 $ | K78: 17 | L78: $22,066.00 | M78: 0
A79: 169 | B79: HOJA DE REFERENCIA Y CONTRA REFERENCIA | E79: TALONARIO | F79: 11 | G79: 0 | H79: 11 | I79: 826.00 $ | K79: 11 | L79: $9,086.00 | M79: 0
A80: 170 | B80: HOJA DE GLICEMIA | E80: TALONARIO | F80: 5 | G80: 0 | H80: 5 | I80: 350.00 $ | J80: 2 | K80: 3 | L80: $1,050.00 | M80: $700.00
A81: 171 | B81: HOJA RESUMEN MEDICO DE EGRESO | E81: RESMA | F81: 2 | G81: 0 | H81: 2 | I81: 826.00 $ | K81: 2 | L81: $1,652.00 | M81: 0
A82: 172 | B82: HOJA SEGURIDAD CIRUGIA | E82: RESMA | F82: 2 | G82: 0 | H82: 2 | I82: 1,475.00 $ | K82: 2 | L82: $2,950.00 | M82: 0
A83: 173 | B83: HOJA DESIGNOGRAMA ENFERM | E83: TALONARIO | F83: 9 | G83: 0 | H83: 9 | I83: 994.00 $ | K83: 9 | L83: $8,946.00 | M83: 0
A84: 174 | B84: HOJA KARDEX MED INTERNA INSUMOS | E84: TALONARIO | F84: 9 | G84: 0 | H84: 9 | I84: 994.00 $ | K84: 9 | L84: $8,946.00 | M84: 0
A85: 175 | B85: HOJA LEGAL 8 1/2*14 RESMA | E85: RESMA | F85: 12 | G85: 0 | H85: 12 | I85: 348.00 $ | J85: 3 | K85: 9 | L85: $3,132.00 | M85: $1,044.00
A86: 176 | B86: HOJA ORDEN MEDICA | E86: TALONARIO | F86: 28 | G86: 0 | H86: 28 | I86: 800.00 $ | K86: 28 | L86: $22,400.00 | M86: 0
A87: 177 | B87: HOJA HISTORIAL OPERATORIO | E87: TALONARIO | F87: 5 | G87: 0 | H87: 5 | I87: 1,299.00 $ | K87: 5 | L87: $6,495.00 | M87: 0
A88: 178 | B88: HOJA SIGNOS VITALES | E88: TALONARIO | F88: 10 | G88: 0 | H88: 10 | I88: 1,200.00 $ | K88: 10 | L88: $12,000.00 | M88: 0
A89: 179 | B89: HOJA GRAFICA DE TEMPERATURA | E89: RESMA | F89: 1 | G89: 0 | H89: 1 | I89: 994.00 $ | J89: 0 | K89: 1 | L89: $994.00 | M89: 0
A90: 181 | B90: HOJAS TIMBRADA | E90: TALONARIO | F90: 15 | G90: 0 | H90: 15 | I90: 1,350.00 $ | J90: 4 | K90: 11 | L90: $14,850.00 | M90: $5,400.00
A91: 182 | B91: HOJA DE CONFIRMACION DE CIRUGIA | E91: RESMA | F91: 1 | G91: 0 | H91: 1 | I91: 1,298.00 $ | K91: 1 | L91: $1,298.00 | M91: 0
A92: 183 | B92: LABELSP/FOLDER | E92: UNID | F92: 5 | G92: 0 | H92: 5 | I92: 112.10 $ | K92: 5 | L92: $560.50 | M92: 0
A93: 184 | B93: LAPIZ | E93: UNID | F93: 33 | G93: 0 | H93: 33 | I93: 10.00 $ | J93: 2 | K93: 31 | L93: $310.00 | M93: $20.00
A94: 185 | B94: LIBRO BANCO VENTA SERVICIOS | E94: UNID | F94: 1 | G94: 0 | H94: 1 | I94: 2,360.00 $ | K94: 1 | L94: $2,360.00 | M94: 0
A95: 186 | B95: LIBRO DE ANOTACIONES ENFERMERIA | E95: UNID | F95: 0 | G95: 0 | H95: 0 | I95: 826.00 $ | K95: 0 | L95: 0 | M95: 0
A96: 187 | B96: LIBRO DE EMERGENCIA | E96: UNID | F96: 1 | G96: 0 | H96: 1 | I96: 2,360.00 $ | J96: 1 | K96: 0 | L96: 0 | M96: $2,360.00
A97: 188 | B97: LIBRO DE LABORATORIO PACIENTE | E97: UNID | F97: 2 | G97: 0 | H97: 2 | I97: 1,170.00 $ | J97: 2 | K97: 0 | L97: 0 | M97: $2,340.00
A98: 189 | B98: LIBRO DE CONTROL DE PARASITOLOGIA COPROLOGICO | E98: UNID | F98: 2 | G98: 0 | H98: 2 | I98: 1,170.00 $ | K98: 2 | L98: $2,340.00 | M98: 0
A99: 190 | B99: LIBRO DE PARTO Y NACIMIENTO | E99: UNID | F99: 3 | G99: 0 | H99: 3 | I99: 1,170.00 $ | K99: 3 | L99: $3,510.00 | M99: 0
A100: 191 | B100: LIBRO DE CIRUGIA | E100: UNID | F100: 3 | G100: 0 | H100: 3 | I100: 1,170.00 $ | K100: 3 | L100: $3,510.00 | M100: 0
A101: 192 | B101: LIBRO DE CONS REGISTRO VIH | E101: UNID | F101: 0 | G101: 0 | H101: 0 | I101: 1,770.00 $ | K101: 0 | L101: 0 | M101: 0
A102: 193 | B102: LIBRO DE SEROLOGIA | E102: UNID | F102: 3 | G102: 0 | H102: 3 | I102: 2,360.00 $ | K102: 3 | L102: $7,080.00 | M102: 0
A103: 194 | B103: LIBRO DE URIANALISIS | E103: UNID | F103: 2 | G103: 0 | H103: 2 | I103: 2,360.00 $ | J103: 1 | K103: 1 | L103: $2,360.00 | M103: $2,360.00
A104: 195 | B104: LIBRO HEMATOLOGIA | E104: UNID | F104: 2 | G104: 0 | H104: 2 | I104: 2,000.00 $ | K104: 2 | L104: $4,000.00 | M104: 0
A105: 196 | B105: LIBRO QUIMICO | E105: UNID | F105: 2 | G105: 0 | H105: 2 | I105: 2,360.00 $ | K105: 2 | L105: $4,720.00 | M105: 0
A106: 197 | B106: LIBRO INTERNAMIENTO | E106: UNID | F106: 3 | G106: 0 | H106: 3 | I106: 1,770.00 $ | K106: 3 | L106: $5,310.00 | M106: 0
A107: 198 | B107: LIBRO DE RAYOS X | E107: UNID | F107: 2 | G107: 0 | H107: 2 | I107: 1,770.00 $ | K107: 2 | L107: $3,540.00 | M107: 0
A108: 199 | B108: LIBRO RECORD DE REGISTRO ADOLECENTE | E108: UNID | F108: 0 | G108: 0 | H108: 0 | I108: 1,800.00 $ | K108: 0 | L108: 0 | M108: 0
A109: 200 | B109: LIQUID PAPER T/L CORRECTOR | E109: UNID | F109: 28 | G109: 0 | H109: 28 | I109: 30.00 $ | J109: 9 | K109: 19 | L109: $570.00 | M109: $270.00
A110: 201 | B110: MARCADORES AZULES | E110: UNID | F110: 40 | G110: 0 | H110: 40 | I110: 30.00 $ | J110: 2 | K110: 38 | L110: $1,140.00 | M110: $60.00
A111: 202 | B111: MARCADORES NEGROS | E111: UNID | F111: 44 | G111: 0 | H111: 44 | I111: 30.00 $ | J111: 3 | K111: 41 | L111: $1,230.00 | M111: $90.00
A112: 203 | B112: MISTOLIN | E112: GALON | F112: 61 | G112: 0 | H112: 61 | I112: 104.00 $ | J112: 32 | K112: 29 | L112: $3,016.00 | M112: $3,328.00
A113: 204 | B113: PAPEL CARBON 8 1/2*11 | E113: UNID | F113: 25 | G113: 0 | H113: 25 | I113: 325.00 $ | K113: 25 | L113: $8,125.00 | M113: 0
A114: 205 | B114: PAPEL HIGIENICO FARDO 48/1 | E114: UNID | F114: 103 | G114: 96 | H114: 199 | I114: 22.60 $ | J114: 148 | K114: 51 | L114: $1,152.60 | M114: $3,344.80
A115: 206 | B115: PAPEL MANILA NATURAL KRAF | E115: UNID | F115: 1 | G115: 0 | H115: 1 | I115: 3,916.00 $ | J115: 0 | K115: 1 | L115: $3,916.00 | M115: 0
A116: 207 | B116: PAPEL TOALLA 6/1 | E116: UNID | F116: 28 | G116: 0 | H116: 28 | I116: 95.38 $ | J116: 23 | K116: 5 | L116: $476.90 | M116: $2,193.74
A117: 208 | B117: PERFORADORA 2 | E117: UNID | F117: 0 | G117: 0 | H117: 0 | I117: 306.08 $ | K117: 0 | L117: 0 | M117: 0
A118: 209 | B118: PERFORADORA 3 | E118: UNID | F118: 1 | G118: 0 | H118: 1 | I118: 631.30 $ | K118: 1 | L118: $631.30 | M118: 0
A119: 210 | B119: PILA AA | E119: UNID | F119: 0 | G119: 0 | H119: 0 | I119: 54.00 $ | K119: 0 | L119: 0 | M119: 0
A120: 211 | B120: PILA AAA | E120: UNID | F120: 0 | G120: 0 | H120: 0 | I120: 53.00 $ | K120: 0 | L120: 0 | M120: 0
A121: 212 | B121: PAPEL CON DIVISION 200/1 OPTION | E121: CAJA | F121: 1 | G121: 0 | H121: 1 | I121: 1,085.00 $ | J121: 1 | K121: 0 | L121: 0 | M121: $1,085.00
A122: 213 | B122: PLATOS | E122: FARDO | F122: 8 | G122: 0 | H122: 8 | I122: 1,291.00 $ | J122: 7 | K122: 1 | L122: $1,291.00 | M122: $9,037.00
A123: 214 | B123: POS-IT 3*3 | E123: RESMA | F123: 0 | G123: 0 | H123: 0 | I123: 33.63 $ | K123: 0 | L123: 0 | M123: 0
A124: 215 | B124: RECOJEDOR DE BASURA | E124: UNID | F124: 2 | G124: 0 | H124: 2 | I124: 109.25 $ | K124: 2 | L124: $218.50 | M124: 0
A125: 216 | B125: RESALTADOR | E125: UNID | F125: 16 | G125: 0 | H125: 16 | I125: 39.00 $ | K125: 16 | L125: $624.00 | M125: 0
A126: 217 | B126: RESMA DE CONTROL DE EXISTENCIA | E126: RESMA | F126: 3 | G126: 0 | H126: 3 | I126: 1,298.00 $ | K126: 3 | L126: $3,894.00 | M126: 0
A127: 218 | B127: RESMA HOJA DE MAQUINA 8/2 *11 | E127: RESMA | F127: 118 | G127: 0 | H127: 118 | I127: 228.00 $ | J127: 60 | K127: 58 | L127: $13,224.00 | M127: $13,680.00
A128: 219 | B128: ROLLO DE PAPEL SUMADORA | E128: UNID | F128: 14 | G128: 0 | H128: 14 | I128: 23.00 $ | J128: 5 | K128: 9 | L128: $207.00 | M128: $115.00
A129: 220 | B129: ROTULO PARA SOLUCION Y MEDICAMENTOS | E129: UNID | F129: 1000 | G129: 0 | H129: 1000 | I129: 6.50 $ | J129: 50 | K129: 950 | L129: $6,175.00 | M129: $325.00
A130: 221 | B130: SACA GRAPA | E130: UNID | F130: 6 | G130: 0 | H130: 6 | I130: 30.00 $ | K130: 6 | L130: $180.00 | M130: 0
A131: 222 | B131: SACAPUNTA METAL | E131: UNID | F131: 24 | G131: 0 | H131: 24 | I131: 15.00 $ | J131: 2 | K131: 22 | L131: $330.00 | M131: $30.00
A132: 223 | B132: SACO DE DETERGENTE | E132: UNID | F132: 3 | G132: 0 | H132: 3 | I132: 1,100.00 $ | J132: 1 | K132: 2 | L132: $2,200.00 | M132: $1,100.00
A133: 224 | B133: SERVILLETA C-FOLD 24/100 XCELENT | E133: UNID | F133: 76 | G133: 0 | H133: 76 | I133: 24.50 $ | J133: 30 | K133: 46 | L133: $1,127.00 | M133: $735.00
A134: 225 | B134: SERVILLETAS DE BINGO 60/1 | E134: UNID | F134: 309 | G134: 0 | H134: 309 | I134: 11.50 $ | J134: 114 | K134: 195 | L134: $2,242.50 | M134: $1,311.00
A135: 226 | B135: SOBRE CARTA VENTANILLA | E135: UNID | F135: 900 | G135: 0 | H135: 900 | I135: 1.85 $ | K135: 900 | L135: $1,665.00 | M135: 0
A136: 227 | B136: SOBRE MANILA 9*12 500 UNID | E136: UNID | F136: 400 | G136: 0 | H136: 400 | I136: 13.85 $ | J136: 10 | K136: 390 | L136: $5,401.50 | M136: $138.50
A137: 228 | B137: SOBRE MANILA 14*17 1000 UNIDAD | E137: UNID | F137: 925 | G137: 0 | H137: 925 | I137: 13.85 $ | J137: 15 | K137: 910 | L137: $12,603.50 | M137: $207.75
A138: 229 | B138: SOBRE MANILA 10*14 DE 500 UNID | E138: UNID | F138: 285 | G138: 0 | H138: 285 | I138: 7.10 $ | J138: 10 | K138: 275 | L138: $1,952.50 | M138: $71.00
A139: 230 | B139: SOBRE TIMBRADO | E139: UNID | F139: 300 | G139: 0 | H139: =F139+G139 -> 300 | I139: 13.00 $ | K139: =H139-J139 -> 300 | L139: =I139*K139 -> $3,900.00 | M139: =I139*J139 -> 0
A140: 231 | B140: SUAPER JUMBO | E140: GALON | F140: 4 | G140: 10 | H140: 14 | I140: 175.00 $ | J140: 5 | K140: 9 | L140: $1,575.00 | M140: $875.00
A141: 232 | B141: SUAVITEL | E141: GALON | F141: 5 | G141: 0 | H141: 5 | I141: 148.31 $ | J141: 3 | K141: 2 | L141: $296.62 | M141: $444.93
A142: 233 | B142: TALONARIO DE PATOLOGIA | E142: TALONARIO | F142: 25 | G142: 0 | H142: 25 | I142: 70.80 $ | K142: 25 | L142: $1,770.00 | M142: 0
A143: 234 | B143: TALONARIO HISTORIA CLINICA EMERGENCIA | E143: TALONARIO | F143: 30 | G143: 0 | H143: 30 | I143: 275.00 $ | J143: 10 | K143: 20 | L143: $5,500.00 | M143: $2,750.00
A144: 235 | B144: TALONARIO ORDEN MEDICA | E144: TALONARIO | F144: 25 | G144: 0 | H144: 25 | I144: 275.00 $ | K144: 25 | L144: $6,875.00 | M144: 0
A145: 236 | B145: TALONARIO COPROLOGICO | E145: TALONARIO | F145: 102 | G145: 0 | H145: 102 | I145: 88.35 $ | K145: 102 | L145: $9,011.70 | M145: 0
A146: 237 | B146: TALALONARIO HEMOTOLOGIA | E146: TALONARIO | F146: 0 | G146: 100 | H146: 100 | I146: 88.35 $ | J146: 0 | K146: 100 | L146: $8,835.00 | M146: 0
A147: 238 | B147: TALONARIO CONFIMACION DE QUIRURGICA | E147: TALONARIO | F147: 5 | G147: 0 | H147: 5 | I147: 185.00 $ | K147: 5 | L147: $925.00 | M147: 0
A148: 239 | B148: TALONARIO LABORATORIO CLINICO | E148: TALONARIO | F148: 147 | G148: 0 | H148: 147 | I148: 37.00 $ | J148: 0 | K148: 147 | L148: $5,439.00 | M148: 0
A149: 240 | B149: TALONARIO PARTOGRAMA POSPARTO | E149: TALONARIO | F149: 9 | G149: 0 | H149: 9 | I149: 185.00 $ | K149: 9 | L149: $1,665.00 | M149: 0
A150: 241 | B150: TALONARIO HISTORIAL OPERATORIO | E150: RESMA | F150: 1 | G150: 0 | H150: 1 | I150: 185.00 $ | K150: 1 | L150: $185.00 | M150: 0
A151: 242 | B151: TALONARIO URIANALISIS | E151: TALONARIO | F151: 4 | G151: 150 | H151: 154 | I151: 53.10 $ | K151: 154 | L151: $8,177.40 | M151: 0
A152: 243 | B152: TALONARIO REQUISICION DE FARMACIA | E152: TALONARIO | F152: 9 | G152: 0 | H152: 9 | I152: 413.00 $ | K152: 9 | L152: $3,717.00 | M152: 0
A153: 244 | B153: TALONARIO CUIDADO DE ENFERERIA VIH MEDIA | E153: TALONARIO | F153: 15 | G153: 0 | H153: 15 | I153: 275.00 $ | K153: 15 | L153: $4,125.00 | M153: 0
A154: 245 | B154: TALONARIO CONCENTIMIENTO INFORMADO LARGO | E154: TALONARIO | F154: 3 | G154: 0 | H154: 3 | I154: 756.00 $ | J154: 0 | K154: 3 | L154: $2,268.00 | M154: 0
A155: 244 | B155: TALONARIO DE CLASIFICACION | E155: TALONARIO | F155: 30 | G155: 0 | H155: 30 | I155: 756.00 $ | K155: 30 | L155: $22,680.00 | M155: 0
A156: 245 | B156: TALONARIO DE CONTROL TEMPERATURA | E156: TALONARIO | F156: 15 | G156: 0 | H156: 15 | I156: 294.00 $ | K156: 15 | L156: $4,410.00 | M156: 0
A157: 246 | B157: TALONARIO DE CUOTA DE CONTRIBUCION | E157: TALONARIO | F157: 10 | G157: 0 | H157: 10 | I157: 185.00 $ | K157: 10 | L157: $1,850.00 | M157: 0
A158: 247 | B158: TALONARIO PROTOCOLO ATENCION AL PARTO | E158: TALONARIO | F158: 8 | G158: 0 | H158: 8 | I158: 185.00 $ | K158: 8 | L158: $1,480.00 | M158: 0
A159: 248 | B159: TALONARIO HOJA DE KARDEX INSUMO | E159: TALONARIO | F159: 9 | G159: 0 | H159: 9 | I159: 994.00 $ | K159: 9 | L159: $8,946.00 | M159: 0
A160: 249 | B160: TALONARIO SOLICITUD DE ALMACEN | E160: TALONARIO | F160: 6 | G160: 0 | H160: 6 | I160: 224.00 $ | K160: 6 | L160: $1,344.00 | M160: 0
A161: 250 | B161: TALONARIO SALIDA ALMACEN | E161: TALONARIO | F161: 24 | G161: 0 | H161: 24 | I161: 275.00 $ | K161: 24 | L161: $6,600.00 | M161: 0
A162: 251 | B162: TAPA DE VASOS #12 CLEA 10/100 | E162: UNID | F162: 26 | G162: 0 | H162: 26 | I162: 224.00 $ | J162: 15 | K162: 11 | L162: $2,464.00 | M162: $3,360.00
A163: 252 | B163: TARJETA DE CITA | E163: UNID | F163: 1425 | G163: 0 | H163: 1425 | I163: 2.75 $ | J163: 655 | K163: 770 | L163: $2,117.50 | M163: $1,801.25
A164: 253 | B164: TARJETA DE EXPEDIENTE | E164: UNID | F164: 300 | G164: 2000 | H164: 2300 | I164: 4.50 $ | J164: 700 | K164: 1600 | L164: $7,200.00 | M164: $3,150.00
A165: 254 | B165: TALONARIO RECETARIO NORMAL | E165: TALONARIO | F165: 202 | G165: 0 | H165: 202 | I165: 53.65 $ | J165: 132 | K165: 70 | L165: $3,755.50 | M165: $7,081.80
A166: 255 | B166: TIJERAS | E166: UNID | F166: 3 | G166: 0 | H166: 3 | I166: 62.54 $ | K166: 3 | L166: $187.62 | M166: 0
A167: 256 | B167: TINTA PARA SELLO AZUL | E167: UNID | F167: 12 | G167: 0 | H167: 12 | I167: 106.00 $ | K167: 12 | L167: $1,272.00 | M167: 0
A168: 257 | B168: TOALLA MICROFIBRA16´´ *16´´ | E168: PAQU | F168: 24 | G168: 0 | H168: 24 | I168: 49.56 $ | J168: 2 | K168: 22 | L168: $1,090.32 | M168: $99.12
A169: 258 | B169: VASO 12 CAJA 40/25 FOAM | E169: PAQU | F169: 138 | G169: 0 | H169: 138 | I169: 53.20 $ | J169: 60 | K169: 78 | L169: $4,149.60 | M169: $3,192.00
A170: 259 | B170: VASO # 5 | E170: PAQU | F170: 12 | G170: 0 | H170: 12 | I170: 55.00 $ | J170: 6 | K170: 6 | L170: $330.00 | M170: $330.00
A171: 260 | B171: VASOS #7 | E171: PAQU | F171: 141 | G171: 0 | H171: 141 | I171: 38.94 $ | J171: 103 | K171: 38 | L171: $1,479.72 | M171: $4,010.82
J172: TOTAL ALMACEN | L172: =SUM(L11:L169) -> $630,598.26
J173: TOTAL DE COMSUMO | L173: =SUM(M11:M171) -> $140,926.52

Sheet AGOSTO
K9: 2025-08-31
A10: INVENTARIO DE ALMACEN
A11: CODIGO | B11: DESCRIPCION DEL PRODUCTO | E11: UNIDAD MEDIDA | F11: CANTIDAD | G11: ENTRADA | H11: TOTAL | I11: PRECIO | J11: SALIDA DE USO MENSUAL | K11: CANTIDAD ACTIVA EN ALMACEN | L11: VALOR TOTAL ACTIVO | M11: VALORDE TOTAL CONSUMO
A12: 101 | B12: ACORDEON 10*12 CARTON PIEDRA | E12: UNID | F12: 4 | H12: =F12+G12 -> 4 | I12: 744.00 $ | K12: =H12-J12 -> 4 | L12: =I12*K12 -> $2,976.00 | M12: =I12*J12 -> 0
A13: 102 | B13: AMBIENTADOR SPRAY | E13: UNID | F13: 14 | H13: =F13+G13 -> 14 | I13: 192.00 $ | J13: 8 | K13: =H13-J13 -> 6 | L13: =I13*K13 -> $1,152.00 | M13: =I13*J13 -> $1,536.00
A14: 103 | B14: AGUA BOTELLITAS | E14: UNID | F14: 240 | G14: 380 | H14: 620 | I14: 6.50 $ | J14: 200 | K14: 420 | L14: $2,730.00 | M14: $1,300.00
A15: 104 | B15: AXION EN PASTA | E15: UNID | F15: 4 | G15: 24 | H15: 28 | I15: 116.00 $ | J15: 9 | K15: 19 | L15: $2,204.00 | M15: $1,044.00
A16: 105 | B16: BAYGON 400ML | E16: UNID | F16: 5 | H16: 5 | I16: 349.00 $ | J16: 4 | K16: 1 | L16: $349.00 | M16: $1,396.00
A17: 106 | B17: BOLIGRAFOS AZULES | E17: UNID | F17: 108 | H17: 108 | I17: 10.10 $ | J17: 32 | K17: 76 | L17: $767.60 | M17: $323.20
A18: 107 | B18: BOLIGRAFOS NEGROS | E18: UNID | F18: 50 | H18: 50 | I18: 7.00 $ | J18: 12 | K18: 38 | L18: $266.00 | M18: $84.00
A19: 108 | B19: BOLIGRAFOS ROJOS | E19: UNID | F19: 106 | H19: 106 | I19: 7.00 $ | K19: 106 | L19: $742.00 | M19: 0
A20: 109 | B20: BOLIGRAFOS VERDES | E20: UNID | F20: 9 | H20: 9 | I20: 10.00 $ | K20: 9 | L20: $90.00 | M20: 0
A21: 110 | B21: BORRANTE DE LECHE | E21: UNID | F21: 9 | H21: 9 | I21: 8.00 $ | K21: 9 | L21: $72.00 | M21: 0
A22: 111 | B22: BRILLO GRUESO 12/1 ROMANO | E22: UNID | F22: 17 | H22: 17 | I22: 69.60 $ | J22: 5 | K22: 12 | L22: $835.20 | M22: $348.00
A23: 112 | B23: BRILLO GRIS | E23: UNID | F23: 8 | H23: 8 | I23: 69.60 $ | J23: 2 | K23: 6 | L23: $417.60 | M23: $139.20
A24: 113 | B24: BRILLO VERDE Y ESPONJA | E24: UNID | F24: 21 | H24: 21 | I24: 57.80 $ | J24: 4 | K24: 17 | L24: $982.60 | M24: $231.20
A25: 114 | B25: CAJA PLASTICAS DE 27 GL NEGRA | E25: UNID | F25: 5 | H25: 5 | I25: 1,350.00 $ | J25: 2 | K25: 3 | L25: $4,050.00 | M25: $2,700.00
A26: 115 | B26: CAJITA DE GRAPAS ESTÁNDAR 26/6 | E26: UNID | F26: 6 | G26: 6 | H26: 12 | I26: 47.17 $ | J26: 7 | K26: 5 | L26: $235.85 | M26: $330.19
A27: 116 | B27: CALCULADORA | E27: UNID | F27: 3 | H27: 3 | I27: 359.90 $ | K27: 3 | L27: $1,079.70 | M27: 0
A28: 117 | B28: CARPETA NEGRA #1 | E28: UNID | F28: 5 | H28: 5 | I28: 469.00 $ | K28: =H28-J28 -> 5 | L28: $2,345.00 | M28: 0
A29: 118 | B29: CARPETA NEGRA # 2 | E29: UNID | F29: 3 | H29: 3 | I29: 178.20 $ | K29: 3 | L29: $534.60 | M29: 0
A30: 119 | B30: CARPETAS # 3 | E30: UNID | F30: 2 | H30: 2 | I30: 147.50 $ | K30: 2 | L30: $295.00 | M30: 0
A31: 120 | B31: CHINCHETAS | E31: CAJAS | F31: 6 | H31: 6 | I31: 84.75 $ | K31: 6 | L31: $508.50 | M31: 0
A32: 121 | B32: CEPILLO DE INODORO | E32: UNID | F32: 2 | H32: 2 | I32: 159.30 $ | K32: 2 | L32: $318.60 | M32: 0
A33: 122 | B33: CERA PARA CONTAR | E33: UNID | F33: 10 | H33: 10 | I33: 60.00 $ | K33: 10 | L33: $600.00 | M33: 0
A34: 123 | B34: CINTA MASKING TAPE 3/4 VISIBLE | E34: UNID | F34: 36 | H34: 36 | I34: 75.00 $ | J34: 1 | K34: 35 | L34: $2,625.00 | M34: $75.00
A35: 124 | B35: CINTA DE EMPAQUE | E35: UNID | F35: 9 | H35: 9 | I35: 47.20 $ | J35: 3 | K35: 6 | L35: $283.20 | M35: $141.60
A36: 125 | B36: CINTA MAGICA SUMADORA | E36: UNID | F36: 2 | H36: 2 | I36: 76.70 $ | K36: 2 | L36: $153.40 | M36: 0
A37: 126 | B37: CLIPS JUMBO | E37: UNID | F37: 21 | H37: 21 | I37: 38.00 $ | J37: 3 | K37: 18 | L37: $684.00 | M37: $114.00
A38: 127 | B38: CINTA MASKING TAPE CREMA | E38: UNID | F38: 23 | H38: 23 | I38: 46.00 $ | J38: 7 | K38: 16 | L38: $736.00 | M38: $322.00
A39: 128 | B39: CUBO PLATICOS DE AGUJA DESECHABLES | E39: UNID | F39: 5 | G39: 20 | H39: 25 | I39: 50.00 $ | J39: 7 | K39: 18 | L39: $900.00 | M39: $350.00
A40: 129 | B40: CLIPS BILLETERO 32 MM 12/1 | E40: UNID | F40: 36 | H40: 36 | I40: 123.90 $ | K40: 36 | L40: $4,460.40 | M40: 0
A41: 130 | B41: CLIPS BILLETERO 41 MM 12/1 | E41: UNID | F41: 27 | H41: 27 | I41: 171.10 $ | K41: 27 | L41: $4,619.70 | M41: 0
A42: 131 | B42: CLIPS BILLETERO 51 MM 12/1 | E42: UNID | F42: 24 | H42: 24 | I42: 230.10 $ | K42: 24 | L42: $5,522.40 | M42: 0
A43: 132 | B43: CLORO | E43: GALON | F43: 34 | G43: 20 | H43: 54 | I43: 88.99 $ | J43: 30 | K43: 24 | L43: $2,135.76 | M43: $2,669.70
A44: 133 | B44: CONTROL DE LIQUIDO(ENFERMERIA) | E44: TALONARIO | F44: 11 | H44: 11 | I44: 1,200.00 $ | K44: 11 | L44: $13,200.00 | M44: 0
A45: 134 | B45: CUADERNOS COCIDOS | E45: UNID | F45: 6 | H45: 6 | I45: 53.00 $ | J45: 6 | K45: 0 | L45: 0 | M45: $318.00
A46: 135 | B46: CUCHARA 25/1 | E46: CAJA | F46: 1 | G46: 3 | H46: 4 | I46: 631.30 $ | J46: 3 | K46: 1 | L46: $631.30 | M46: $1,893.90
A47: 136 | B47: ESCOBA C/PALO | E47: UNID | F47: 10 | H47: 10 | I47: 133.00 $ | K47: 10 | L47: $1,330.00 | M47: 0
A48: 138 | B48: FOLDER AMARILLO OFICINA | E48: UNID | F48: 16 | G48: 400 | H48: =F48+G48 -> 416 | I48: 2.33 $ | J48: 22 | K48: 394 | L48: $918.02 | M48: $51.26
A49: 138 | B49: FOLDER VERDE 8 1/2 X 11 | E49: UNID | F49: 296 | G49: 200 | H49: 496 | I49: 4.95 $ | J49: 10 | K49: 486 | L49: $2,405.70 | M49: $49.50
A50: 139 | B50: FUNDA NEGRA 17 x22 GL PEQUEÑA | E50: PAQ | F50: 33 | H50: 33 | I50: 72.00 $ | J50: 13 | K50: 20 | L50: $1,440.00 | M50: $936.00
A51: 140 | B51: FUNDA NEGRA #6 | E51: PAQ | F51: 33 | H51: 33 | I51: 36.58 $ | J51: 2 | K51: 31 | L51: $1,133.98 | M51: $73.16
A52: 141 | B52: FUNDA ROJA #2 | E52: PAQ | F52: 27 | H52: 27 | I52: 20.00 $ | J52: 1 | K52: 26 | L52: $520.00 | M52: $20.00
A53: 142 | B53: FUNDA AZULES #4 | E53: PAQ | F53: 37 | H53: 37 | I53: 26.00 $ | J53: 1 | K53: 36 | L53: $936.00 | M53: $26.00
A54: 143 | B54: FUNDA NEGRA MEDIANA 30 GL | E54: PAQ | F54: 30 | H54: 30 | I54: 1,080.00 $ | J54: 21 | K54: 9 | L54: $9,720.00 | M54: $22,680.00
A55: 144 | B55: FUNDA NEGRA GRANDE 55 GL | E55: PAQ | F55: 7 | H55: 7 | I55: 616.00 $ | J55: 4 | K55: 3 | L55: $1,848.00 | M55: $2,464.00
A56: 145 | B56: FUNDA ROJA PEQUENAS 17 GL | E56: PAQ | F56: 4 | H56: 4 | I56: 240.00 $ | J56: 3 | K56: 1 | L56: $240.00 | M56: $720.00
A57: 146 | B57: FUNDA ROJA GRANDE 55 gl | E57: UNID | F57: 9 | H57: 9 | I57: 1,030.10 $ | J57: 2 | K57: 7 | L57: $7,210.70 | M57: $2,060.20
A58: 147 | B58: FUNDA ROJA MEDIANA 30 GL | E58: PAQ | F58: 18 | H58: 18 | I58: 450.36 $ | J58: 8 | K58: 10 | L58: $4,503.60 | M58: $3,602.88
A59: 148 | B59: GALON JABON LIQUIDO DE MANO | E59: GALON | F59: 6 | H59: 6 | I59: 171.10 $ | J59: 2 | K59: 4 | L59: $684.40 | M59: $342.20
A60: 149 | B60: GANCHOS P/FOLDER MH | E60: CAJA | F60: 9 | H60: 9 | I60: 141.60 $ | J60: 1 | K60: 8 | L60: $1,132.80 | M60: $141.60
A61: 150 | B61: GALON JABON DE CUABA | E61: GALON | F61: 2 | H61: 2 | I61: 165.25 $ | K61: 2 | L61: $330.50 | M61: 0
A62: 151 | B62: GOMITAS | E62: CAJA | F62: 4 | H62: 4 | I62: 45.00 $ | J62: 3 | K62: 1 | L62: $45.00 | M62: $135.00
A63: 152 | B63: GRAPADORA NEGRA | E63: CAJA | F63: 5 | H63: 5 | I63: 320.00 $ | J63: 1 | K63: 4 | L63: $1,280.00 | M63: $320.00
A64: 153 | B64: GUANTES MULTIUSOS | E64: UNID | F64: 12 | H64: 12 | I64: 666.36 $ | J64: 2 | K64: 10 | L64: $6,663.60 | M64: $1,332.72
A65: 154 | B65: HISTORIA CLINICA PERINATAL | E65: TALONARIO | F65: 9 | H65: 9 | I65: 1,298.00 $ | K65: 9 | L65: $11,682.00 | M65: 0
A66: 155 | B66: HOJA DE ANOTACION ENFERMERIA | E66: RESMA | F66: 7 | H66: 7 | I66: 826.00 $ | J66: 3 | K66: 4 | L66: $3,304.00 | M66: $2,478.00
A67: 156 | B67: HOJA DE ADMICION | E67: RESMA | F67: 5 | H67: 5 | I67: 165.00 $ | K67: 5 | L67: $825.00 | M67: 0
A68: 157 | B68: HOJA DE ATENCION DIARIA | E68: TALONARIO | F68: 3 | H68: 3 | I68: 994.00 $ | K68: 3 | L68: $2,982.00 | M68: 0
A69: 158 | B69: HOJA DE CERTIFICACION | E69: RESMA | F69: 2 | H69: 2 | I69: 1,475.00 $ | K69: 2 | L69: $2,950.00 | M69: 0
A70: 159 | B70: HOJA DE CONSULTA EXTERNA | E70: TALONARIO | F70: 21 | H70: 21 | I70: 994.00 $ | J70: 2 | K70: 19 | L70: $18,886.00 | M70: $1,988.00
A71: 160 | B71: HOJA PACIENTE DIETA | E71: TALONARIO | F71: 18 | H71: 18 | I71: 800.00 $ | K71: 18 | L71: $14,400.00 | M71: 0
A72: 161 | B72: HOJA DE DIRECCION CUIDADO DE ENFERMERIA | E72: TALONARIO | F72: 32 | H72: 32 | I72: 994.00 $ | K72: 32 | L72: $31,808.00 | M72: 0
A73: 162 | B73: HOJA DE ENFER EN AREA EMERGENCIA FO63 | E73: TALONARIO | F73: 17 | H73: 17 | I73: 994.00 $ | K73: 17 | L73: $16,898.00 | M73: 0
A74: 163 | B74: HOJA DE ENFERMERIA | E74: TALONARIO | F74: 8 | H74: 8 | I74: 1,298.00 $ | K74: 8 | L74: $10,384.00 | M74: 0
A75: 164 | B75: HOJA DE EVOLUCION | E75: TALONARIO | F75: 6 | H75: 6 | I75: 294.00 $ | J75: 1 | K75: 5 | L75: $1,470.00 | M75: $294.00
A76: 165 | B76: HOJA DE ANESTESIA | E76: TALONARIO | F76: 13 | H76: =F76+G76 -> 13 | I76: 185.00 $ | K76: =H76-J76 -> 13 | L76: =I76*K76 -> $2,405.00 | M76: =I76*J76 -> 0
A77: 166 | B77: HOJA DE HISTORIAL CLINICO | E77: TALONARIO | F77: 46 | H77: 46 | I77: 195.00 $ | K77: 46 | L77: $8,970.00 | M77: 0
A78: 167 | B78: HOJA D KARDEX D MEDICAMENTO SOLUCIONES | E78: TALONARIO | F78: 17 | H78: 17 | I78: 1,298.00 $ | K78: 17 | L78: $22,066.00 | M78: 0
A79: 168 | B79: HOJA DE REFERENCIA Y CONTRA REFERENCIA | E79: TALONARIO | F79: 11 | H79: 11 | I79: 826.00 $ | K79: 11 | L79: $9,086.00 | M79: 0
A80: 169 | B80: HOJA DE GLICEMIA | E80: TALONARIO | F80: 3 | H80: 3 | I80: 350.00 $ | K80: 3 | L80: $1,050.00 | M80: 0
A81: 170 | B81: HOJA RESUMEN MEDICO DE EGRESO | E81: RESMA | F81: 2 | H81: 2 | I81: 826.00 $ | K81: 2 | L81: $1,652.00 | M81: 0
A82: 171 | B82: HOJA SEGURIDAD CIRUGIA | E82: RESMA | F82: 2 | H82: 2 | I82: 1,475.00 $ | K82: 2 | L82: $2,950.00 | M82: 0
A83: 172 | B83: HOJA DESIGNOGRAMA ENFERM | E83: TALONARIO | F83: 9 | H83: 9 | I83: 994.00 $ | K83: 9 | L83: $8,946.00 | M83: 0
A84: 173 | B84: HOJA KARDEX MED INTERNA INSUMOS | E84: TALONARIO | F84: 9 | H84: 9 | I84: 994.00 $ | K84: 9 | L84: $8,946.00 | M84: 0
A85: 174 | B85: HOJA LEGAL 8 1/2*14 RESMA | E85: RESMA | F85: 9 | H85: 9 | I85: 348.00 $ | J85: 2 | K85: 7 | L85: $2,436.00 | M85: $696.00
A86: 175 | B86: HOJA ORDEN MEDICA | E86: TALONARIO | F86: 28 | H86: 28 | I86: 800.00 $ | J86: 1 | K86: 27 | L86: $21,600.00 | M86: $800.00
A87: 176 | B87: HOJA HISTORIAL OPERATORIO | E87: TALONARIO | F87: 5 | H87: 5 | I87: 1,299.00 $ | K87: 5 | L87: $6,495.00 | M87: 0
A88: 177 | B88: HOJA SIGNOS VITALES | E88: TALONARIO | F88: 10 | H88: 10 | I88: 1,200.00 $ | K88: 10 | L88: $12,000.00 | M88: 0
A89: 178 | B89: HOJA GRAFICA DE TEMPERATURA | E89: RESMA | F89: 1 | H89: 1 | I89: 994.00 $ | K89: 1 | L89: $994.00 | M89: 0
A90: 179 | B90: HOJAS TIMBRADA | E90: TALONARIO | F90: 11 | H90: 11 | I90: 1,350.00 $ | K90: 11 | L90: $14,850.00 | M90: 0
A91: 180 | B91: HOJA DE CONFIRMACION DE CIRUGIA | E91: RESMA | F91: 1 | H91: 1 | I91: 1,298.00 $ | K91: 1 | L91: $1,298.00 | M91: 0
A92: 181 | B92: LABELSP/FOLDER | E92: UNID | F92: 5 | H92: 5 | I92: 112.10 $ | K92: 5 | L92: $560.50 | M92: 0
A93: 182 | B93: LAPIZ | E93: UNID | F93: 31 | H93: 31 | I93: 10.00 $ | K93: 31 | L93: $310.00 | M93: 0
A94: 183 | B94: LIBRO BANCO VENTA SERVICIOS | E94: UNID | F94: 1 | H94: 1 | I94: 2,360.00 $ | K94: 1 | L94: $2,360.00 | M94: 0
A95: 184 | B95: LIBRO DE ANOTACIONES ENFERMERIA | E95: UNID | F95: 0 | H95: 0 | I95: 826.00 $ | K95: 0 | L95: 0 | M95: 0
A96: 185 | B96: LIBRO DE EMERGENCIA | E96: UNID | F96: 0 | G96: 3 | H96: 3 | I96: 1,770.00 $ | K96: 3 | L96: $5,310.00 | M96: 0
A97: 186 | B97: LIBRO DE LABORATORIO PACIENTE | E97: UNID | F97: 2 | H97: 2 | I97: 1,170.00 $ | J97: 2 | K97: 0 | L97: 0 | M97: $2,340.00
A98: 187 | B98: LIBRO DE CONTROL DE PARASITOLOGIA COPROLOGICO | E98: UNID | F98: 1 | H98: 1 | I98: 1,170.00 $ | K98: 1 | L98: $1,170.00 | M98: 0
A99: 188 | B99: LIBRO DE PARTO Y NACIMIENTO | E99: UNID | F99: 3 | H99: 3 | I99: 1,170.00 $ | K99: 3 | L99: $3,510.00 | M99: 0
A100: 189 | B100: LIBRO DE CIRUGIA | E100: UNID | F100: 3 | G100: 2 | H100: 5 | I100: 1,770.00 $ | K100: 5 | L100: $8,850.00 | M100: 0
A101: 190 | B101: LIBRO DE CONS REGISTRO VIH | E101: UNID | F101: 0 | H101: 0 | I101: 1,770.00 $ | K101: 0 | L101: 0 | M101: 0
A102: 191 | B102: LIBRO DE SEROLOGIA | E102: UNID | F102: 3 | H102: 3 | I102: 2,360.00 $ | K102: 3 | L102: $7,080.00 | M102: 0
A103: 192 | B103: LIBRO DE URIANALISIS | E103: UNID | F103: 1 | H103: 1 | I103: 2,360.00 $ | K103: 1 | L103: $2,360.00 | M103: 0
A104: 193 | B104: LIBRO HEMATOLOGIA | E104: UNID | F104: 2 | H104: 2 | I104: 2,000.00 $ | K104: 2 | L104: $4,000.00 | M104: 0
A105: 194 | B105: LIBRO QUIMICO | E105: UNID | F105: 2 | H105: 2 | I105: 2,360.00 $ | K105: 2 | L105: $4,720.00 | M105: 0
A106: 195 | B106: LIBRO INTERNAMIENTO | E106: UNID | F106: 3 | H106: 3 | I106: 1,770.00 $ | K106: 3 | L106: $5,310.00 | M106: 0
A107: 196 | B107: LIBRO DE RAYOS X | E107: UNID | F107: 2 | H107: 2 | I107: 1,770.00 $ | K107: 2 | L107: $3,540.00 | M107: 0
A108: 197 | B108: LIBRO RECORD DE REGISTRO ADOLECENTE | E108: UNID | F108: 0 | H108: 0 | I108: 1,800.00 $ | K108: 0 | L108: 0 | M108: 0
A109: 198 | B109: LIQUID PAPER T/L CORRECTOR | E109: UNID | F109: 19 | H109: 19 | I109: 30.00 $ | J109: 5 | K109: 14 | L109: $420.00 | M109: $150.00
A110: 199 | B110: MARCADORES AZULES | E110: UNID | F110: 38 | H110: 38 | I110: 30.00 $ | J110: 3 | K110: 35 | L110: $1,050.00 | M110: $90.00
A111: 200 | B111: MARCADORES NEGROS | E111: UNID | F111: 41 | H111: 41 | I111: 30.00 $ | J111: 3 | K111: 38 | L111: $1,140.00 | M111: $90.00
A112: 201 | B112: MISTOLIN | E112: GALON | F112: 29 | G112: 20 | H112: 49 | I112: 104.00 $ | J112: 35 | K112: 14 | L112: $1,456.00 | M112: $3,640.00
A113: 202 | B113: PAPEL CARBON 8 1/2*11 | E113: UNID | F113: 25 | H113: 25 | I113: 325.00 $ | K113: 25 | L113: $8,125.00 | M113: 0
A114: 203 | B114: PAPEL HIGIENICO FARDO 48/1 | E114: UNID | F114: 51 | G114: 480 | H114: 531 | I114: 22.60 $ | J114: 144 | K114: 387 | L114: $8,746.20 | M114: $3,254.40
A115: 204 | B115: PAPEL MANILA NATURAL KRAF | E115: UNID | F115: 1 | G115: 2 | H115: 3 | I115: 3,916.00 $ | J115: 2 | K115: 1 | L115: $3,916.00 | M115: $7,832.00
A116: 205 | B116: PAPEL TOALLA 6/1 | E116: UNID | F116: 5 | G116: 24 | H116: 29 | I116: 95.38 $ | J116: 10 | K116: 19 | L116: $1,812.22 | M116: $953.80
A117: 206 | B117: PERFORADORA 2 | E117: UNID | F117: 0 | H117: 0 | I117: 306.08 $ | K117: 0 | L117: 0 | M117: 0
A118: 207 | B118: PERFORADORA 3 | E118: UNID | F118: 1 | H118: 1 | I118: 631.30 $ | K118: 1 | L118: $631.30 | M118: 0
A119: 208 | B119: PILA AA | E119: UNID | F119: 0 | H119: 0 | I119: 54.00 $ | K119: 0 | L119: 0 | M119: 0
A120: 209 | B120: PILA AAA | E120: UNID | F120: 0 | H120: 0 | I120: 53.00 $ | K120: 0 | L120: 0 | M120: 0
A121: 210 | B121: PAPEL CON DIVISION 200/1 OPTION | E121: CAJA | F121: 0 | G121: 2 | H121: 2 | I121: 1,085.00 $ | J121: 1 | K121: 1 | L121: $1,085.00 | M121: $1,085.00
A122: 211 | B122: PLATOS | E122: FARDO | F122: 1 | G122: 12 | H122: 13 | I122: 1,291.00 $ | J122: 6 | K122: 7 | L122: $9,037.00 | M122: $7,746.00
A123: 212 | B123: POS-IT 3*3 | E123: RESMA | F123: 0 | H123: 0 | I123: 33.63 $ | K123: 0 | L123: 0 | M123: 0
A124: 213 | B124: RECOJEDOR DE BASURA | E124: UNID | F124: 2 | H124: 2 | I124: 109.25 $ | K124: 2 | L124: $218.50 | M124: 0
A125: 214 | B125: RESALTADOR | E125: UNID | F125: 16 | H125: 16 | I125: 39.00 $ | K125: 16 | L125: $624.00 | M125: 0
A126: 215 | B126: RESMA DE CONTROL DE EXISTENCIA | E126: RESMA | F126: 3 | H126: 3 | I126: 1,298.00 $ | K126: 3 | L126: $3,894.00 | M126: 0
A127: 216 | B127: RESMA HOJA DE MAQUINA 8/2 *11 | E127: RESMA | F127: 58 | H127: 58 | I127: 228.00 $ | J127: 57 | K127: 1 | L127: $228.00 | M127: $12,996.00
A128: 217 | B128: ROLLO DE PAPEL SUMADORA | E128: UNID | F128: 9 | H128: 9 | I128: 23.00 $ | J128: 2 | K128: 7 | L128: $161.00 | M128: $46.00
A129: 218 | B129: ROTULO PARA SOLUCION Y MEDICAMENTOS | E129: UNID | F129: 950 | H129: 950 | I129: 6.50 $ | K129: 950 | L129: $6,175.00 | M129: 0
A130: 219 | B130: SACA GRAPA | E130: UNID | F130: 6 | H130: 6 | I130: 30.00 $ | K130: 6 | L130: $180.00 | M130: 0
A131: 220 | B131: SACAPUNTA METAL | E131: UNID | F131: 22 | H131: 22 | I131: 15.00 $ | K131: 22 | L131: $330.00 | M131: 0
A132: 221 | B132: SACO DE DETERGENTE | E132: UNID | F132: 2 | H132: 2 | I132: 1,100.00 $ | J132: 1 | K132: 1 | L132: $1,100.00 | M132: $1,100.00
A133: 222 | B133: SERVILLETA C-FOLD 24/100 XCELENT | E133: UNID | F133: 46 | H133: 46 | I133: 24.50 $ | J133: 27 | K133: 19 | L133: $465.50 | M133: $661.50
A134: 223 | B134: SERVILLETAS DE BINGO 60/1 | E134: UNID | F134: 195 | G134: 180 | H134: 375 | I134: 11.50 $ | J134: 104 | K134: 271 | L134: $3,116.50 | M134: $1,196.00
A135: 224 | B135: SOBRE CARTA VENTANILLA | E135: UNID | F135: 900 | H135: 900 | I135: 1.85 $ | K135: 900 | L135: $1,665.00 | M135: 0
A136: 225 | B136: SOBRE MANILA 9*12 500 UNID | E136: UNID | F136: 390 | H136: 390 | I136: 13.85 $ | K136: 390 | L136: $5,401.50 | M136: 0
A137: 226 | B137: SOBRE MANILA 14*17 1000 UNIDAD | E137: UNID | F137: 910 | H137: 910 | I137: 13.85 $ | K137: 910 | L137: $12,603.50 | M137: 0
A138: 227 | B138: SOBRE MANILA 10*14 DE 500 UNID | E138: UNID | F138: 275 | H138: 275 | I138: 7.10 $ | J138: 15 | K138: 260 | L138: $1,846.00 | M138: $106.50
A139: 228 | B139: SOBRE TIMBRADO | E139: UNID | F139: 300 | H139: 300 | I139: 13.00 $ | K139: 300 | L139: $3,900.00 | M139: 0
A140: 229 | B140: SUAPER JUMBO | E140: GALON | F140: 9 | H140: =F140+G140 -> 9 | I140: 175.00 $ | J140: 4 | K140: =H140-J140 -> 5 | L140: =I140*K140 -> $875.00 | M140: =I140*J140 -> $700.00
A141: 230 | B141: SUAVITEL | E141: GALON | F141: 2 | G141: 6 | H141: 8 | I141: 148.31 $ | J141: 2 | K141: 6 | L141: $889.86 | M141: $296.62
A142: 231 | B142: TALONARIO DE PATOLOGIA | E142: TALONARIO | F142: 25 | H142: 25 | I142: 70.80 $ | K142: 25 | L142: $1,770.00 | M142: 0
A143: 232 | B143: TALONARIO HISTORIAL CLINICO EMERGENCIA | E143: TALONARIO | F143: 20 | H143: 20 | I143: 275.00 $ | J143: 15 | K143: 5 | L143: $1,375.00 | M143: $4,125.00
A144: 233 | B144: TALONARIO ORDEN MEDICA | E144: TALONARIO | F144: 25 | H144: 25 | I144: 275.00 $ | K144: 25 | L144: $6,875.00 | M144: 0
A145: 234 | B145: TALONARIO COPROLOGICO | E145: TALONARIO | F145: 102 | H145: 102 | I145: 88.35 $ | K145: 102 | L145: $9,011.70 | M145: 0
A146: 235 | B146: TALALONARIO HEMOTOLOGIA | E146: TALONARIO | F146: 100 | H146: 100 | I146: 88.35 $ | J146: 20 | K146: 80 | L146: $7,068.00 | M146: $1,767.00
A147: 236 | B147: TALONARIO CONFIMACION DE QUIRURGICA | E147: TALONARIO | F147: 5 | H147: 5 | I147: 185.00 $ | K147: 5 | L147: $925.00 | M147: 0
A148: 237 | B148: TALONARIO LABORATORIO CLINICO | E148: TALONARIO | F148: 147 | H148: 147 | I148: 37.00 $ | J148: 28 | K148: 119 | L148: $4,403.00 | M148: $1,036.00
A149: 238 | B149: TALONARIO PARTOGRAMA POSPARTO | E149: TALONARIO | F149: 9 | H149: 9 | I149: 185.00 $ | K149: 9 | L149: $1,665.00 | M149: 0
A150: 239 | B150: TALONARIO HISTORIAL OPERATORIO | E150: RESMA | F150: 1 | H150: 1 | I150: 185.00 $ | K150: 1 | L150: $185.00 | M150: 0
A151: 240 | B151: TALONARIO URIANALISIS | E151: TALONARIO | F151: 154 | H151: 154 | I151: 53.10 $ | J151: 20 | K151: 134 | L151: $7,115.40 | M151: $1,062.00
A152: 241 | B152: TALONARIO REQUISICION DE FARMACIA | E152: TALONARIO | F152: 9 | H152: 9 | I152: 413.00 $ | J152: 2 | K152: 7 | L152: $2,891.00 | M152: $826.00
A153: 242 | B153: TALONARIO CUIDADO DE ENFERERIA VIH MEDIA | E153: TALONARIO | F153: 15 | H153: 15 | I153: 275.00 $ | K153: 15 | L153: $4,125.00 | M153: 0
A154: 243 | B154: TALONARIO CONCENTIMIENTO INFORMADO LARGO | E154: TALONARIO | F154: 3 | H154: 3 | I154: 756.00 $ | K154: 3 | L154: $2,268.00 | M154: 0
A155: 244 | B155: TALONARIO DE CLASIFICACION | E155: TALONARIO | F155: 30 | H155: 30 | I155: 756.00 $ | K155: 30 | L155: $22,680.00 | M155: 0
A156: 245 | B156: TALONARIO DE CONTROL TEMPERATURA | E156: TALONARIO | F156: 15 | H156: 15 | I156: 294.00 $ | K156: 15 | L156: $4,410.00 | M156: 0
A157: 246 | B157: TALONARIO DE CUOTA DE CONTRIBUCION | E157: TALONARIO | F157: 10 | H157: 10 | I157: 185.00 $ | K157: 10 | L157: $1,850.00 | M157: 0
A158: 247 | B158: TALONARIO PROTOCOLO ATENCION AL PARTO | E158: TALONARIO | F158: 8 | H158: 8 | I158: 185.00 $ | K158: 8 | L158: $1,480.00 | M158: 0
A159: 248 | B159: TALONARIO HOJA DE KARDEX INSUMO | E159: TALONARIO | F159: 9 | H159: 9 | I159: 994.00 $ | K159: 9 | L159: $8,946.00 | M159: 0
A160: 249 | B160: TALONARIO SOLICITUD DE ALMACEN | E160: TALONARIO | F160: 6 | H160: 6 | I160: 224.00 $ | K160: 6 | L160: $1,344.00 | M160: 0
A161: 250 | B161: TALONARIO SALIDA ALMACEN | E161: TALONARIO | F161: 24 | H161: 24 | I161: 275.00 $ | K161: 24 | L161: $6,600.00 | M161: 0
A162: 251 | B162: TAPA DE VASOS #12 CLEA 10/100 | E162: UNID | F162: 11 | G162: 10 | H162: 21 | I162: 224.00 $ | J162: 11 | K162: 10 | L162: $2,240.00 | M162: $2,464.00
A163: 252 | B163: TARJETA DE CITA | E163: UNID | F163: 770 | H163: 770 | I163: 2.75 $ | J163: 50 | K163: 720 | L163: $1,980.00 | M163: $137.50
A164: 253 | B164: TARJETA DE EXPEDIENTE | E164: UNID | F164: 1600 | H164: 1600 | I164: 4.50 $ | K164: 1600 | L164: $7,200.00 | M164: 0
A165: 254 | B165: TALONARIO RECETARIO NORMAL | E165: TALONARIO | F165: 70 | H165: 70 | I165: 53.65 $ | J165: 43 | K165: 27 | L165: $1,448.55 | M165: $2,306.95
A166: 255 | B166: TIJERAS | E166: UNID | F166: 3 | H166: 3 | I166: 62.54 $ | K166: 3 | L166: $187.62 | M166: 0
A167: 256 | B167: TINTA PARA SELLO AZUL | E167: UNID | F167: 12 | H167: 12 | I167: 106.00 $ | J167: 1 | K167: 11 | L167: $1,166.00 | M167: $106.00
A168: 257 | B168: TOALLA MICROFIBRA16´´ *16´´ | E168: PAQU | F168: 22 | H168: 22 | I168: 49.56 $ | K168: 22 | L168: $1,090.32 | M168: 0
A169: 258 | B169: ENVASES PLASTICOS 4 OZ | E169: UNID | F169: 4 | H169: 4 | I169: 147.00 $ | J169: 4 | K169: 0 | L169: 0 | M169: $588.00
A170: 259 | B170: TAPAS PLASTICAS 4 OZ | E170: UNID | F170: 3 | H170: 3 | I170: 137.00 $ | J170: 3 | K170: 0 | L170: 0 | M170: $411.00
A171: 260 | B171: VASO 12 CAJA 40/25 FOAM | E171: PAQU | F171: 78 | H171: 78 | I171: 53.20 $ | J171: 51 | K171: 27 | L171: $1,436.40 | M171: $2,713.20
A172: 261 | B172: VASO # 5 | E172: PAQU | F172: 6 | G172: 50 | H172: 56 | I172: 55.00 $ | J172: 18 | K172: 38 | L172: $2,090.00 | M172: $990.00
A173: 262 | B173: VASOS #7 | E173: PAQU | F173: 38 | G173: 100 | H173: 138 | I173: 38.94 $ | J173: 99 | K173: 39 | L173: $1,518.66 | M173: $3,855.06
J174: TOTAL ALMACEN | L174: =SUM(L12:L171) -> $587,086.28
J175: TOTAL DE COMSUMO | L175: =SUM(M12:M173) -> $123,198.04

Sheet SEPTIEMBRE
K9: 2025-09-30
A10: INVENTARIO DE ALMACEN
A11: CODIGO | B11: DESCRIPCION DEL PRODUCTO | E11: UNIDAD MEDIDA | F11: CANTIDAD | G11: ENTRADA | H11: TOTAL | I11: PRECIO | J11: SALIDA DE USO MENSUAL | K11: CANTIDAD ACTIVA EN ALMACEN | L11: VALOR TOTAL ACTIVO | M11: VALORDE TOTAL CONSUMO
A12: 101 | B12: ACORDEON 10*12 CARTON PIEDRA | E12: UNID | F12: 4 | H12: =F12+G12 -> 4 | I12: 744.00 $ | K12: =H12-J12 -> 4 | L12: =I12*K12 -> $2,976.00 | M12: =I12*J12 -> 0
A13: 102 | B13: AMBIENTADOR SPRAY | E13: UNID | F13: 6 | G13: 12 | H13: =F13+G13 -> 18 | I13: 192.00 $ | J13: 18 | K13: =H13-J13 -> 0 | L13: =I13*K13 -> 0 | M13: =I13*J13 -> $3,456.00
A14: 103 | B14: AGUA BOTELLITAS | E14: UNID | F14: 420 | H14: 420 | I14: 6.50 $ | J14: 260 | K14: 160 | L14: $1,040.00 | M14: $1,690.00
A15: 104 | B15: AXION EN PASTA | E15: UNID | F15: 19 | H15: 19 | I15: 116.00 $ | J15: 15 | K15: 4 | L15: $464.00 | M15: $1,740.00
A16: 105 | B16: BAYGON 400ML | E16: UNID | F16: 1 | G16: 12 | H16: 13 | I16: 349.00 $ | J16: 4 | K16: 9 | L16: $3,141.00 | M16: $1,396.00
A17: 106 | B17: BOLIGRAFOS AZULES | E17: UNID | F17: 76 | H17: 76 | I17: 10.10 $ | J17: 54 | K17: 22 | L17: $222.20 | M17: $545.40
A18: 107 | B18: BOLIGRAFOS NEGROS | E18: UNID | F18: 38 | H18: 38 | I18: 7.00 $ | K18: 38 | L18: $266.00 | M18: 0
A19: 108 | B19: BOLIGRAFOS ROJOS | E19: UNID | F19: 106 | H19: 106 | I19: 7.00 $ | J19: 1 | K19: 105 | L19: $735.00 | M19: $7.00
A20: 109 | B20: BOLIGRAFOS VERDES | E20: UNID | F20: 9 | H20: 9 | I20: 10.00 $ | K20: 9 | L20: $90.00 | M20: 0
A21: 110 | B21: BORRANTE DE LECHE | E21: UNID | F21: 9 | H21: 9 | I21: 8.00 $ | J21: 1 | K21: 8 | L21: $64.00 | M21: $8.00
A22: 111 | B22: BRILLO GRUESO 12/1 ROMANO | E22: UNID | F22: 12 | G22: 12 | H22: 24 | I22: 69.60 $ | J22: 4 | K22: 20 | L22: $1,392.00 | M22: $278.40
A23: 112 | B23: BRILLO GRIS | E23: UNID | F23: 6 | H23: 6 | I23: 69.60 $ | J23: 4 | K23: 2 | L23: $139.20 | M23: $278.40
A24: 113 | B24: BRILLO VERDE Y ESPONJA | E24: UNID | F24: 17 | H24: 17 | I24: 57.80 $ | J24: 10 | K24: 7 | L24: $404.60 | M24: $578.00
A25: 114 | B25: CAJA PLASTICAS DE 27 GL NEGRA | E25: UNID | F25: 3 | G25: 10 | H25: 13 | I25: 1,350.00 $ | K25: 13 | L25: $17,550.00 | M25: 0
A26: 115 | B26: CAJITA DE GRAPAS ESTÁNDAR 26/6 | E26: UNID | F26: 5 | G26: 12 | H26: 17 | I26: 47.17 $ | J26: 6 | K26: 11 | L26: $518.87 | M26: $283.02
A27: 116 | B27: CALCULADORA | E27: UNID | F27: 3 | H27: 3 | I27: 359.90 $ | K27: 3 | L27: $1,079.70 | M27: 0
A28: 117 | B28: CARPETA NEGRA #1 | E28: UNID | F28: 5 | H28: 5 | I28: 469.00 $ | J28: 1 | K28: =H28-J28 -> 4 | L28: $1,876.00 | M28: $469.00
A29: 118 | B29: CARPETA NEGRA # 2 | E29: UNID | F29: 3 | H29: 3 | I29: 178.20 $ | J29: 1 | K29: 2 | L29: $356.40 | M29: $178.20
A30: 119 | B30: CARPETAS # 3 | E30: UNID | F30: 2 | H30: 2 | I30: 147.50 $ | K30: 2 | L30: $295.00 | M30: 0
A31: 120 | B31: CHINCHETAS | E31: CAJAS | F31: 6 | H31: 6 | I31: 84.75 $ | J31: 2 | K31: 4 | L31: $339.00 | M31: $169.50
A32: 121 | B32: CEPILLO DE INODORO | E32: UNID | F32: 2 | H32: 2 | I32: 159.30 $ | K32: 2 | L32: $318.60 | M32: 0
A33: 122 | B33: CERA PARA CONTAR | E33: UNID | F33: 10 | H33: 10 | I33: 60.00 $ | K33: 10 | L33: $600.00 | M33: 0
A34: 123 | B34: CINTA MASKING TAPE 3/4 VISIBLE | E34: UNID | F34: 35 | H34: 35 | I34: 75.00 $ | J34: 1 | K34: 34 | L34: $2,550.00 | M34: $75.00
A35: 124 | B35: CINTA DE EMPAQUE | E35: UNID | F35: 6 | H35: 6 | I35: 47.20 $ | J35: 4 | K35: 2 | L35: $94.40 | M35: $188.80
A36: 125 | B36: CINTA MAGICA SUMADORA | E36: UNID | F36: 2 | H36: 2 | I36: 76.70 $ | K36: 2 | L36: $153.40 | M36: 0
A37: 126 | B37: CLIPS JUMBO | E37: UNID | F37: 18 | G37: 12 | H37: 30 | I37: 38.00 $ | J37: 7 | K37: 23 | L37: $874.00 | M37: $266.00
A38: 127 | B38: CINTA MASKING TAPE CREMA | E38: UNID | F38: 16 | H38: 16 | I38: 46.00 $ | J38: 16 | K38: 0 | L38: 0 | M38: $736.00
A39: 128 | B39: CUBO PLATICOS DE AGUJA DESECHABLES | E39: UNID | F39: 18 | H39: 18 | I39: 50.00 $ | J39: 6 | K39: 12 | L39: $600.00 | M39: $300.00
A40: 129 | B40: CLIPS BILLETERO 32 MM 12/1 | E40: UNID | F40: 36 | H40: 36 | I40: 123.90 $ | K40: 36 | L40: $4,460.40 | M40: 0
A41: 130 | B41: CLIPS BILLETERO 41 MM 12/1 | E41: UNID | F41: 27 | H41: 27 | I41: 171.10 $ | K41: 27 | L41: $4,619.70 | M41: 0
A42: 131 | B42: CLIPS BILLETERO 51 MM 12/1 | E42: UNID | F42: 24 | H42: 24 | I42: 230.10 $ | K42: 24 | L42: $5,522.40 | M42: 0
A43: 132 | B43: CLORO | E43: GALON | F43: 24 | G43: 30 | H43: 54 | I43: 91.53 $ | J43: 35 | K43: 19 | L43: $1,739.07 | M43: $3,203.55
A44: 133 | B44: CONTROL DE LIQUIDO(ENFERMERIA) | E44: TALONARIO | F44: 11 | H44: 11 | I44: 1,200.00 $ | K44: 11 | L44: $13,200.00 | M44: 0
A45: 134 | B45: CUADERNOS COCIDOS | E45: UNID | F45: 0 | G45: 12 | H45: 12 | I45: 53.00 $ | J45: 12 | K45: 0 | L45: 0 | M45: $636.00
A46: 135 | B46: CUCHARA 25/1 | E46: CAJA | F46: 1 | G46: 2 | H46: 3 | I46: 631.30 $ | J46: 3 | K46: 0 | L46: 0 | M46: $1,893.90
A47: 136 | B47: ESCOBA C/PALO | E47: UNID | F47: 10 | H47: 10 | I47: 133.00 $ | J47: 3 | K47: 7 | L47: $931.00 | M47: $399.00
A48: 138 | B48: FOLDER AMARILLO OFICINA | E48: UNID | F48: 394 | H48: =F48+G48 -> 394 | I48: 2.33 $ | J48: 260 | K48: 134 | L48: $312.22 | M48: $605.80
A49: 138 | B49: FOLDER VERDE 8 1/2 X 11 | E49: UNID | F49: 486 | H49: 486 | I49: 4.95 $ | J49: 115 | K49: 371 | L49: $1,836.45 | M49: $569.25
A50: 139 | B50: FUNDA NEGRA 17 x22 GL PEQUEÑA | E50: PAQ | F50: 20 | G50: 30 | H50: 50 | I50: 72.00 $ | J50: 21 | K50: 29 | L50: $2,088.00 | M50: $1,512.00
A51: 140 | B51: FUNDA NEGRA #6 | E51: PAQ | F51: 31 | H51: 31 | I51: 36.58 $ | J51: 1 | K51: 30 | L51: $1,097.40 | M51: $36.58
A52: 141 | B52: FUNDA ROJA #2 | E52: PAQ | F52: 26 | H52: 26 | I52: 20.00 $ | J52: 1 | K52: 25 | L52: $500.00 | M52: $20.00
A53: 142 | B53: FUNDA AZULES #4 | E53: PAQ | F53: 36 | H53: 36 | I53: 26.00 $ | J53: 1 | K53: 35 | L53: $910.00 | M53: $26.00
A54: 143 | B54: FUNDA NEGRA MEDIANA 30 GL | E54: PAQ | F54: 9 | G54: 40 | H54: 49 | I54: 1,080.00 $ | J54: 26 | K54: 23 | L54: $24,840.00 | M54: $28,080.00
A55: 144 | B55: FUNDA NEGRA GRANDE 55 GL | E55: PAQ | F55: 3 | G55: 10 | H55: 13 | I55: 616.00 $ | J55: 6 | K55: 7 | L55: $4,312.00 | M55: $3,696.00
A56: 145 | B56: FUNDA ROJA PEQUENAS 17 GL | E56: PAQ | F56: 1 | G56: 10 | H56: 11 | I56: 240.00 $ | J56: 3 | K56: 8 | L56: $1,920.00 | M56: $720.00
A57: 146 | B57: FUNDA ROJA GRANDE 55 gl | E57: UNID | F57: 7 | H57: 7 | I57: 1,030.10 $ | J57: 4 | K57: 3 | L57: $3,090.30 | M57: $4,120.40
A58: 147 | B58: FUNDA ROJA MEDIANA 30 GL | E58: PAQ | F58: 10 | G58: 20 | H58: 30 | I58: 450.36 $ | J58: 12 | K58: 18 | L58: $8,106.48 | M58: $5,404.32
A59: 148 | B59: GALON JABON LIQUIDO DE MANO | E59: GALON | F59: 4 | H59: 4 | I59: 171.10 $ | K59: 4 | L59: $684.40 | M59: 0
A60: 149 | B60: GANCHOS P/FOLDER MH | E60: CAJA | F60: 8 | H60: 8 | I60: 141.60 $ | K60: 8 | L60: $1,132.80 | M60: 0
A61: 150 | B61: GALON JABON DE CUABA | E61: GALON | F61: 2 | G61: 4 | H61: 6 | I61: 165.25 $ | J61: 2 | K61: 4 | L61: $661.00 | M61: $330.50
A62: 151 | B62: GOMITAS | E62: CAJA | F62: 1 | G62: 12 | H62: 13 | I62: 45.00 $ | J62: 7 | K62: 6 | L62: $270.00 | M62: $315.00
A63: 152 | B63: GRAPADORA NEGRA | E63: CAJA | F63: 4 | H63: 4 | I63: 320.00 $ | J63: 3 | K63: 1 | L63: $320.00 | M63: $960.00
A64: 153 | B64: GUANTES MULTIUSOS | E64: UNID | F64: 10 | H64: 10 | I64: 666.36 $ | J64: 5 | K64: 5 | L64: $3,331.80 | M64: $3,331.80
A65: 154 | B65: HISTORIA CLINICA PERINATAL | E65: TALONARIO | F65: 9 | H65: 9 | I65: 1,298.00 $ | K65: 9 | L65: $11,682.00 | M65: 0
A66: 155 | B66: HOJA DE ANOTACION ENFERMERIA | E66: RESMA | F66: 4 | H66: 4 | I66: 826.00 $ | K66: 4 | L66: $3,304.00 | M66: 0
A67: 156 | B67: HOJA DE ADMICION | E67: RESMA | F67: 5 | H67: 5 | I67: 165.00 $ | K67: 5 | L67: $825.00 | M67: 0
A68: 157 | B68: HOJA DE ATENCION DIARIA | E68: TALONARIO | F68: 3 | H68: 3 | I68: 994.00 $ | K68: 3 | L68: $2,982.00 | M68: 0
A69: 158 | B69: HOJA DE CERTIFICACION | E69: RESMA | F69: 2 | H69: 2 | I69: 1,475.00 $ | K69: 2 | L69: $2,950.00 | M69: 0
A70: 159 | B70: HOJA DE CONSULTA EXTERNA | E70: TALONARIO | F70: 19 | H70: 19 | I70: 994.00 $ | K70: 19 | L70: $18,886.00 | M70: 0
A71: 160 | B71: HOJA PACIENTE DIETA | E71: TALONARIO | F71: 18 | H71: 18 | I71: 800.00 $ | K71: 18 | L71: $14,400.00 | M71: 0
A72: 161 | B72: HOJA DE DIRECCION CUIDADO DE ENFERMERIA | E72: TALONARIO | F72: 32 | H72: 32 | I72: 994.00 $ | K72: 32 | L72: $31,808.00 | M72: 0
A73: 162 | B73: HOJA DE ENFER EN AREA EMERGENCIA FO63 | E73: TALONARIO | F73: 17 | H73: 17 | I73: 994.00 $ | K73: 17 | L73: $16,898.00 | M73: 0
A74: 163 | B74: HOJA DE ENFERMERIA | E74: TALONARIO | F74: 8 | H74: 8 | I74: 1,298.00 $ | K74: 8 | L74: $10,384.00 | M74: 0
A75: 164 | B75: HOJA DE EVOLUCION | E75: TALONARIO | F75: 5 | H75: 5 | I75: 294.00 $ | K75: 5 | L75: $1,470.00 | M75: 0
A76: 165 | B76: HOJA DE ANESTESIA | E76: TALONARIO | F76: 13 | H76: 13 | I76: 185.00 $ | K76: 13 | L76: $2,405.00 | M76: 0
A77: 166 | B77: HOJA DE HISTORIAL CLINICO | E77: TALONARIO | F77: 46 | H77: =F77+G77 -> 46 | I77: 195.00 $ | K77: =H77-J77 -> 46 | L77: =I77*K77 -> $8,970.00 | M77: =I77*J77 -> 0
A78: 167 | B78: HOJA D KARDEX D MEDICAMENTO SOLUCIONES | E78: TALONARIO | F78: 17 | H78: 17 | I78: 1,298.00 $ | K78: 17 | L78: $22,066.00 | M78: 0
A79: 168 | B79: HOJA DE REFERENCIA Y CONTRA REFERENCIA | E79: TALONARIO | F79: 11 | H79: 11 | I79: 826.00 $ | K79: 11 | L79: $9,086.00 | M79: 0
A80: 169 | B80: HOJA DE GLICEMIA | E80: TALONARIO | F80: 3 | H80: 3 | I80: 350.00 $ | K80: 3 | L80: $1,050.00 | M80: 0
A81: 170 | B81: HOJA RESUMEN MEDICO DE EGRESO | E81: RESMA | F81: 2 | H81: 2 | I81: 826.00 $ | K81: 2 | L81: $1,652.00 | M81: 0
A82: 171 | B82: HOJA SEGURIDAD CIRUGIA | E82: RESMA | F82: 2 | H82: 2 | I82: 1,475.00 $ | K82: 2 | L82: $2,950.00 | M82: 0
A83: 172 | B83: HOJA DESIGNOGRAMA ENFERM | E83: TALONARIO | F83: 9 | H83: 9 | I83: 994.00 $ | K83: 9 | L83: $8,946.00 | M83: 0
A84: 173 | B84: HOJA KARDEX MED INTERNA INSUMOS | E84: TALONARIO | F84: 9 | H84: 9 | I84: 994.00 $ | K84: 9 | L84: $8,946.00 | M84: 0
A85: 174 | B85: HOJA LEGAL 8 1/2*14 RESMA | E85: RESMA | F85: 7 | H85: 7 | I85: 348.00 $ | J85: 3 | K85: 4 | L85: $1,392.00 | M85: $1,044.00
A86: 175 | B86: HOJA ORDEN MEDICA | E86: TALONARIO | F86: 27 | H86: 27 | I86: 800.00 $ | K86: 27 | L86: $21,600.00 | M86: 0
A87: 176 | B87: HOJA HISTORIAL OPERATORIO | E87: TALONARIO | F87: 5 | H87: 5 | I87: 1,299.00 $ | K87: 5 | L87: $6,495.00 | M87: 0
A88: 177 | B88: HOJA SIGNOS VITALES | E88: TALONARIO | F88: 10 | H88: 10 | I88: 1,200.00 $ | K88: 10 | L88: $12,000.00 | M88: 0
A89: 178 | B89: HOJA GRAFICA DE TEMPERATURA | E89: RESMA | F89: 1 | H89: 1 | I89: 994.00 $ | K89: 1 | L89: $994.00 | M89: 0
A90: 179 | B90: HOJAS TIMBRADA | E90: TALONARIO | F90: 11 | H90: 11 | I90: 1,350.00 $ | J90: 1 | K90: 10 | L90: $13,500.00 | M90: $1,350.00
A91: 180 | B91: HOJA DE CONFIRMACION DE CIRUGIA | E91: RESMA | F91: 1 | H91: 1 | I91: 1,298.00 $ | K91: 1 | L91: $1,298.00 | M91: 0
A92: 181 | B92: LABELSP/FOLDER | E92: UNID | F92: 5 | H92: 5 | I92: 112.10 $ | K92: 5 | L92: $560.50 | M92: 0
A93: 182 | B93: LAPIZ | E93: UNID | F93: 31 | H93: 31 | I93: 10.00 $ | K93: 31 | L93: $310.00 | M93: 0
A94: 183 | B94: LIBRO BANCO VENTA SERVICIOS | E94: UNID | F94: 1 | H94: 1 | I94: 2,360.00 $ | K94: 1 | L94: $2,360.00 | M94: 0
A95: 184 | B95: TALONARIO DE OXIGENO | E95: TALONARIO | F95: 0 | G95: 10 | H95: 10 | I95: 200.00 $ | J95: 1 | K95: 9 | L95: $1,800.00 | M95: $200.00
A96: 185 | B96: LIBRO DE EMERGENCIA | E96: UNID | F96: 3 | H96: 3 | I96: 1,770.00 $ | K96: 3 | L96: $5,310.00 | M96: 0
A97: 186 | B97: LIBRO DE LABORATORIO PACIENTE | E97: UNID | F97: 0 | H97: 0 | I97: 1,170.00 $ | K97: 0 | L97: 0 | M97: 0
A98: 187 | B98: LIBRO DE CONTROL DE PARASITOLOGIA COPROLOGICO | E98: UNID | F98: 1 | H98: 1 | I98: 1,170.00 $ | K98: 1 | L98: $1,170.00 | M98: 0
A99: 188 | B99: LIBRO DE PARTO Y NACIMIENTO | E99: UNID | F99: 3 | H99: 3 | I99: 1,170.00 $ | K99: 3 | L99: $3,510.00 | M99: 0
A100: 189 | B100: LIBRO DE CIRUGIA | E100: UNID | F100: 5 | H100: 5 | I100: 1,770.00 $ | K100: 5 | L100: $8,850.00 | M100: 0
A101: 190 | B101: LIBRO DE CONS REGISTRO VIH | E101: UNID | F101: 0 | H101: 0 | I101: 1,770.00 $ | K101: 0 | L101: 0 | M101: 0
A102: 191 | B102: LIBRO DE SEROLOGIA | E102: UNID | F102: 3 | H102: 3 | I102: 2,360.00 $ | J102: 1 | K102: 2 | L102: $4,720.00 | M102: $2,360.00
A103: 192 | B103: LIBRO DE URIANALISIS | E103: UNID | F103: 1 | H103: 1 | I103: 2,360.00 $ | K103: 1 | L103: $2,360.00 | M103: 0
A104: 193 | B104: LIBRO HEMATOLOGIA | E104: UNID | F104: 2 | H104: 2 | I104: 2,000.00 $ | K104: 2 | L104: $4,000.00 | M104: 0
A105: 194 | B105: LIBRO QUIMICO | E105: UNID | F105: 2 | H105: 2 | I105: 2,360.00 $ | K105: 2 | L105: $4,720.00 | M105: 0
A106: 195 | B106: LIBRO INTERNAMIENTO | E106: UNID | F106: 3 | H106: 3 | I106: 1,770.00 $ | K106: 3 | L106: $5,310.00 | M106: 0
A107: 196 | B107: LIBRO DE RAYOS X | E107: UNID | F107: 2 | H107: 2 | I107: 1,770.00 $ | K107: 2 | L107: $3,540.00 | M107: 0
A108: 197 | B108: LIBRO RECORD DE REGISTRO ADOLECENTE | E108: UNID | F108: 0 | H108: 0 | I108: 1,800.00 $ | K108: 0 | L108: 0 | M108: 0
A109: 198 | B109: LIQUID PAPER T/L CORRECTOR | E109: UNID | F109: 14 | H109: 14 | I109: 30.00 $ | J109: 3 | K109: 11 | L109: $330.00 | M109: $90.00
A110: 199 | B110: MARCADORES AZULES | E110: UNID | F110: 35 | H110: 35 | I110: 30.00 $ | J110: 2 | K110: 33 | L110: $990.00 | M110: $60.00
A111: 200 | B111: MARCADORES NEGROS | E111: UNID | F111: 38 | H111: 38 | I111: 30.00 $ | J111: 4 | K111: 34 | L111: $1,020.00 | M111: $120.00
A112: 201 | B112: MISTOLIN | E112: GALON | F112: 14 | G112: 30 | H112: 44 | I112: 104.00 $ | J112: 35 | K112: 9 | L112: $936.00 | M112: $3,640.00
A113: 202 | B113: PAPEL CARBON 8 1/2*11 | E113: UNID | F113: 25 | H113: 25 | I113: 325.00 $ | K113: 25 | L113: $8,125.00 | M113: 0
A114: 203 | B114: PAPEL HIGIENICO FARDO 48/1 | E114: UNID | F114: 387 | H114: 387 | I114: 22.60 $ | J114: 208 | K114: 179 | L114: $4,045.40 | M114: $4,700.80
A115: 204 | B115: PAPEL MANILA NATURAL KRAF | E115: UNID | F115: 1 | H115: 1 | I115: 3,916.00 $ | J115: 1 | K115: 0 | L115: 0 | M115: $3,916.00
A116: 205 | B116: PAPEL TOALLA 6/1 | E116: UNID | F116: 19 | H116: 19 | I116: 95.38 $ | J116: 19 | K116: 0 | L116: 0 | M116: $1,812.22
A117: 206 | B117: PERFORADORA 2 | E117: UNID | F117: 0 | H117: 0 | I117: 306.08 $ | K117: 0 | L117: 0 | M117: 0
A118: 207 | B118: PERFORADORA 3 | E118: UNID | F118: 1 | H118: 1 | I118: 631.30 $ | K118: 1 | L118: $631.30 | M118: 0
A119: 208 | B119: PILA AA | E119: UNID | F119: 0 | G119: 40 | H119: 40 | I119: 54.00 $ | J119: 10 | K119: 30 | L119: $1,620.00 | M119: $540.00
A120: 209 | B120: PILA AAA PEQUEÑA | E120: UNID | F120: 0 | G120: 40 | H120: 40 | I120: 53.00 $ | J120: 2 | K120: 38 | L120: $2,014.00 | M120: $106.00
A121: 210 | B121: PAPEL CON DIVISION 200/1 OPTION | E121: CAJA | F121: 1 | H121: 1 | I121: 1,085.00 $ | J121: 1 | K121: 0 | L121: 0 | M121: $1,085.00
A122: 211 | B122: PLATOS | E122: FARDO | F122: 7 | G122: 10 | H122: 17 | I122: 1,291.00 $ | J122: 10 | K122: 7 | L122: $9,037.00 | M122: $12,910.00
A123: 212 | B123: POS-IT 3*3 | E123: RESMA | F123: 0 | H123: 0 | I123: 33.63 $ | K123: 0 | L123: 0 | M123: 0
A124: 213 | B124: RECOJEDOR DE BASURA | E124: UNID | F124: 2 | H124: 2 | I124: 109.25 $ | K124: 2 | L124: $218.50 | M124: 0
A125: 214 | B125: RESALTADOR | E125: UNID | F125: 16 | H125: 16 | I125: 39.00 $ | J125: 3 | K125: 13 | L125: $507.00 | M125: $117.00
A126: 215 | B126: RESMA DE CONTROL DE EXISTENCIA | E126: RESMA | F126: 3 | H126: 3 | I126: 1,298.00 $ | K126: 3 | L126: $3,894.00 | M126: 0
A127: 216 | B127: RESMA HOJA DE MAQUINA 8/2 *11 | E127: RESMA | F127: 1 | G127: 100 | H127: 101 | I127: 228.00 $ | J127: 66 | K127: 35 | L127: $7,980.00 | M127: $15,048.00
A128: 217 | B128: ROLLO DE PAPEL SUMADORA | E128: UNID | F128: 7 | H128: 7 | I128: 23.00 $ | J128: 3 | K128: 4 | L128: $92.00 | M128: $69.00
A129: 218 | B129: ROTULO PARA SOLUCION Y MEDICAMENTOS | E129: UNID | F129: 950 | H129: 950 | I129: 6.50 $ | K129: 950 | L129: $6,175.00 | M129: 0
A130: 219 | B130: SACA GRAPA | E130: UNID | F130: 6 | H130: 6 | I130: 30.00 $ | K130: 6 | L130: $180.00 | M130: 0
A131: 220 | B131: SACAPUNTA METAL | E131: UNID | F131: 22 | H131: 22 | I131: 15.00 $ | J131: 2 | K131: 20 | L131: $300.00 | M131: $30.00
A132: 221 | B132: SACO DE DETERGENTE | E132: UNID | F132: 1 | G132: 2 | H132: 3 | I132: 1,100.00 $ | J132: 1 | K132: 2 | L132: $2,200.00 | M132: $1,100.00
A133: 222 | B133: SERVILLETA C-FOLD 24/100 XCELENT | E133: UNID | F133: 19 | G133: 48 | H133: 67 | I133: 24.50 $ | J133: 39 | K133: 28 | L133: $686.00 | M133: $955.50
A134: 223 | B134: SERVILLETAS DE BINGO 60/1 | E134: UNID | F134: 271 | G134: 120 | H134: 391 | I134: 11.50 $ | J134: 81 | K134: 310 | L134: $3,565.00 | M134: $931.50
A135: 224 | B135: SOBRE CARTA VENTANILLA | E135: UNID | F135: 900 | H135: 900 | I135: 1.85 $ | K135: 900 | L135: $1,665.00 | M135: 0
A136: 225 | B136: SOBRE MANILA 9*12 500 UNID | E136: UNID | F136: 390 | H136: 390 | I136: 13.85 $ | K136: 390 | L136: $5,401.50 | M136: 0
A137: 226 | B137: SOBRE MANILA 14*17 1000 UNIDAD | E137: UNID | F137: 910 | H137: 910 | I137: 13.85 $ | K137: 910 | L137: $12,603.50 | M137: 0
A138: 227 | B138: SOBRE MANILA 10*14 DE 500 UNID | E138: UNID | F138: 260 | H138: 260 | I138: 7.10 $ | K138: 260 | L138: $1,846.00 | M138: 0
A139: 228 | B139: SOBRE TIMBRADO | E139: UNID | F139: 300 | H139: 300 | I139: 13.00 $ | K139: 300 | L139: $3,900.00 | M139: 0
A140: 229 | B140: SUAPER JUMBO | E140: GALON | F140: 5 | H140: 5 | I140: 175.00 $ | K140: 5 | L140: $875.00 | M140: 0
A141: 230 | B141: SUAVITEL | E141: GALON | F141: 6 | H141: =F141+G141 -> 6 | I141: 148.31 $ | J141: 2 | K141: =H141-J141 -> 4 | L141: =I141*K141 -> $593.24 | M141: =I141*J141 -> $296.62
A142: 231 | B142: TALONARIO DE PATOLOGIA | E142: TALONARIO | F142: 25 | H142: 25 | I142: 70.80 $ | K142: 25 | L142: $1,770.00 | M142: 0
A143: 232 | B143: TALONARIO HISTORIAL CLINICO EMERGENCIA | E143: TALONARIO | F143: 5 | H143: 5 | I143: 275.00 $ | J143: 5 | K143: 0 | L143: 0 | M143: $1,375.00
A144: 233 | B144: TALONARIO ORDEN MEDICA | E144: TALONARIO | F144: 25 | H144: 25 | I144: 275.00 $ | K144: 25 | L144: $6,875.00 | M144: 0
A145: 234 | B145: TALONARIO COPROLOGICO | E145: TALONARIO | F145: 102 | H145: 102 | I145: 88.35 $ | J145: 6 | K145: 96 | L145: $8,481.60 | M145: $530.10
A146: 235 | B146: TALALONARIO HEMOTOLOGIA | E146: TALONARIO | F146: 80 | H146: 80 | I146: 88.35 $ | J146: 21 | K146: 59 | L146: $5,212.65 | M146: $1,855.35
A147: 236 | B147: TALONARIO CONFIMACION DE QUIRURGICA | E147: TALONARIO | F147: 5 | H147: 5 | I147: 185.00 $ | K147: 5 | L147: $925.00 | M147: 0
A148: 237 | B148: TALONARIO LABORATORIO CLINICO | E148: TALONARIO | F148: 119 | H148: 119 | I148: 37.00 $ | J148: 46 | K148: 73 | L148: $2,701.00 | M148: $1,702.00
A149: 238 | B149: TALONARIO PARTOGRAMA POSPARTO | E149: TALONARIO | F149: 9 | H149: 9 | I149: 185.00 $ | K149: 9 | L149: $1,665.00 | M149: 0
A150: 239 | B150: TALONARIO HISTORIAL OPERATORIO | E150: RESMA | F150: 1 | H150: 1 | I150: 185.00 $ | K150: 1 | L150: $185.00 | M150: 0
A151: 240 | B151: TALONARIO URIANALISIS | E151: TALONARIO | F151: 134 | H151: 134 | I151: 53.10 $ | J151: 16 | K151: 118 | L151: $6,265.80 | M151: $849.60
A152: 241 | B152: TALONARIO REQUISICION DE FARMACIA | E152: TALONARIO | F152: 7 | H152: 7 | I152: 413.00 $ | K152: 7 | L152: $2,891.00 | M152: 0
A153: 242 | B153: TALONARIO CUIDADO DE ENFERERIA VIH MEDIA | E153: TALONARIO | F153: 15 | H153: 15 | I153: 275.00 $ | J153: 7 | K153: 8 | L153: $2,200.00 | M153: $1,925.00
A154: 243 | B154: TALONARIO CONCENTIMIENTO INFORMADO LARGO | E154: TALONARIO | F154: 3 | H154: 3 | I154: 756.00 $ | K154: 3 | L154: $2,268.00 | M154: 0
A155: 244 | B155: TALONARIO DE CLASIFICACION | E155: TALONARIO | F155: 30 | H155: 30 | I155: 756.00 $ | K155: 30 | L155: $22,680.00 | M155: 0
A156: 245 | B156: TALONARIO DE CONTROL TEMPERATURA | E156: TALONARIO | F156: 15 | H156: 15 | I156: 294.00 $ | K156: 15 | L156: $4,410.00 | M156: 0
A157: 246 | B157: TALONARIO DE CUOTA DE CONTRIBUCION | E157: TALONARIO | F157: 10 | H157: 10 | I157: 185.00 $ | K157: 10 | L157: $1,850.00 | M157: 0
A158: 247 | B158: TALONARIO PROTOCOLO ATENCION AL PARTO | E158: TALONARIO | F158: 8 | H158: 8 | I158: 185.00 $ | K158: 8 | L158: $1,480.00 | M158: 0
A159: 248 | B159: TALONARIO HOJA DE KARDEX INSUMO | E159: TALONARIO | F159: 9 | H159: 9 | I159: 994.00 $ | K159: 9 | L159: $8,946.00 | M159: 0
A160: 249 | B160: TALONARIO SOLICITUD DE ALMACEN | E160: TALONARIO | F160: 6 | H160: 6 | I160: 224.00 $ | K160: 6 | L160: $1,344.00 | M160: 0
A161: 250 | B161: TALONARIO SALIDA ALMACEN | E161: TALONARIO | F161: 24 | H161: 24 | I161: 275.00 $ | K161: 24 | L161: $6,600.00 | M161: 0
A162: 251 | B162: TAPA DE VASOS #12 CLEA 10/100 | E162: UNID | F162: 10 | G162: 10 | H162: 20 | I162: 224.00 $ | J162: 17 | K162: 3 | L162: $672.00 | M162: $3,808.00
A163: 252 | B163: TARJETA DE CITA | E163: UNID | F163: 720 | H163: 720 | I163: 2.75 $ | J163: 690 | K163: 30 | L163: $82.50 | M163: $1,897.50
A164: 253 | B164: TARJETA DE EXPEDIENTE | E164: UNID | F164: 1600 | H164: 1600 | I164: 4.50 $ | K164: 1600 | L164: $7,200.00 | M164: 0
A165: 254 | B165: TALONARIO RECETARIO NORMAL | E165: TALONARIO | F165: 27 | G165: 1000 | H165: 1027 | I165: 53.65 $ | J165: 40 | K165: 987 | L165: $52,952.55 | M165: $2,146.00
A166: 255 | B166: TIJERAS | E166: UNID | F166: 3 | H166: 3 | I166: 62.54 $ | J166: 1 | K166: 2 | L166: $125.08 | M166: $62.54
A167: 256 | B167: TINTA PARA SELLO AZUL | E167: UNID | F167: 11 | H167: 11 | I167: 106.00 $ | K167: 11 | L167: $1,166.00 | M167: 0
A168: 257 | B168: TOALLA MICROFIBRA16´´ *16´´ | E168: PAQU | F168: 22 | H168: 22 | I168: 49.56 $ | J168: 5 | K168: 17 | L168: $842.52 | M168: $247.80
A169: 258 | B169: ENVASES PLASTICOS 4 OZ | E169: UNID | F169: 0 | G169: 20 | H169: 20 | I169: 147.00 $ | J169: 6 | K169: 14 | L169: $2,058.00 | M169: $882.00
A170: 259 | B170: TAPAS PLASTICAS 4 OZ | E170: PAQU | F170: 0 | G170: 20 | H170: 20 | I170: 137.00 $ | J170: 6 | K170: 14 | L170: $1,918.00 | M170: $822.00
A171: 260 | B171: VASO 12 CAJA 40/25 FOAM | E171: PAQU | F171: 27 | G171: 160 | H171: 187 | I171: 53.20 $ | J171: 64 | K171: 123 | L171: $6,543.60 | M171: $3,404.80
A172: 261 | B172: VASO # 5 | E172: PAQU | F172: 38 | H172: 38 | I172: 55.00 $ | J172: 12 | K172: 26 | L172: $1,430.00 | M172: $660.00
A173: 262 | B173: VASOS #7 | E173: PAQU | F173: 39 | G173: 150 | H173: 189 | I173: 38.94 $ | J173: 126 | K173: 63 | L173: $2,453.22 | M173: $4,906.44
J174: TOTAL ALMACEN | L174: =SUM(L12:L173) -> $659,108.25
J175: TOTAL DE COMSUMO | L175: =SUM(M12:M174) -> $148,058.59

Sheet OCTUBRE
K10: 2025-10-31
A11: INVENTARIO DE ALMACEN
A12: CODIGO | B12: DESCRIPCION DEL PRODUCTO | E12: UNIDAD MEDIDA | F12: CANTIDAD | G12: ENTRADA | H12: TOTAL | I12: PRECIO | J12: SALIDA DE USO MENSUAL | K12: CANTIDAD ACTIVA EN ALMACEN | L12: VALOR TOTAL ACTIVO | M12: VALORDE TOTAL CONSUMO
A13: 101 | B13: ACORDEON 10*12 CARTON PIEDRA | E13: UNID | F13: 4 | H13: =F13+G13 -> 4 | I13: 744.00 $ | J13: 4 | K13: =H13-J13 -> 0 | L13: =I13*K13 -> 0 | M13: =I13*J13 -> $2,976.00
A14: 102 | B14: AMBIENTADOR SPRAY | E14: UNID | F14: 0 | G14: 24 | H14: =F14+G14 -> 24 | I14: 192.00 $ | J14: 5 | K14: =H14-J14 -> 19 | L14: =I14*K14 -> $3,648.00 | M14: =I14*J14 -> $960.00
A15: 103 | B15: AGUA BOTELLITAS | E15: UNID | F15: 160 | G15: 400 | H15: 560 | I15: 6.50 $ | J15: 160 | K15: 400 | L15: $2,600.00 | M15: $1,040.00
A16: 104 | B16: AXION EN PASTA | E16: UNID | F16: 4 | G16: 16 | H16: 20 | I16: 116.00 $ | J16: 10 | K16: 10 | L16: $1,160.00 | M16: $1,160.00
A17: 105 | B17: BAYGON 400ML | E17: UNID | F17: 9 | H17: 9 | I17: 349.00 $ | J17: 4 | K17: 5 | L17: $1,745.00 | M17: $1,396.00
A18: 106 | B18: BOLIGRAFOS AZULES | E18: UNID | F18: 22 | G18: 72 | H18: 94 | I18: 10.10 $ | J18: 51 | K18: 43 | L18: $434.30 | M18: $515.10
A19: 107 | B19: BOLIGRAFOS NEGROS | E19: UNID | F19: 38 | H19: 38 | I19: 7.00 $ | J19: 2 | K19: 36 | L19: $252.00 | M19: $14.00
A20: 108 | B20: BOLIGRAFOS ROJOS | E20: UNID | F20: 105 | H20: 105 | I20: 7.00 $ | J20: 12 | K20: 93 | L20: $651.00 | M20: $84.00
A21: 109 | B21: BOLIGRAFOS VERDES | E21: UNID | F21: 9 | H21: 9 | I21: 10.00 $ | J21: 1 | K21: 8 | L21: $80.00 | M21: $10.00
A22: 110 | B22: BORRANTE DE LECHE | E22: UNID | F22: 8 | H22: 8 | I22: 8.00 $ | K22: 8 | L22: $64.00 | M22: 0
A23: 111 | B23: BRILLO GRUESO 12/1 ROMANO | E23: UNID | F23: 20 | G23: 12 | H23: 32 | I23: 69.60 $ | J23: 4 | K23: 28 | L23: $1,948.80 | M23: $278.40
A24: 112 | B24: BRILLO GRIS | E24: UNID | F24: 2 | G24: 12 | H24: 14 | I24: 69.60 $ | J24: 2 | K24: 12 | L24: $835.20 | M24: $139.20
A25: 113 | B25: BRILLO VERDE Y ESPONJA | E25: UNID | F25: 7 | H25: 7 | I25: 57.80 $ | J25: 1 | K25: 6 | L25: $346.80 | M25: $57.80
A26: 114 | B26: CAJA PLASTICAS DE 27 GL NEGRA | E26: UNID | F26: 13 | H26: 13 | I26: 1,350.00 $ | J26: 4 | K26: 9 | L26: $12,150.00 | M26: $5,400.00
A27: 115 | B27: CAJITA DE GRAPAS ESTÁNDAR 26/6 | E27: UNID | F27: 11 | H27: 11 | I27: 47.17 $ | J27: 4 | K27: 7 | L27: $330.19 | M27: $188.68
A28: 116 | B28: CALCULADORA | E28: UNID | F28: 3 | H28: 3 | I28: 359.90 $ | K28: 3 | L28: $1,079.70 | M28: 0
A29: 117 | B29: CARPETA NEGRA #1 | E29: UNID | F29: 4 | H29: 4 | I29: 469.00 $ | K29: =H29-J29 -> 4 | L29: $1,876.00 | M29: 0
A30: 118 | B30: CARPETA NEGRA # 2 | E30: UNID | F30: 2 | H30: 2 | I30: 178.20 $ | K30: 2 | L30: $356.40 | M30: 0
A31: 119 | B31: CARPETAS # 3 | E31: UNID | F31: 2 | H31: 2 | I31: 147.50 $ | K31: 2 | L31: $295.00 | M31: 0
A32: 120 | B32: CHINCHETAS | E32: CAJAS | F32: 4 | H32: 4 | I32: 84.75 $ | K32: 4 | L32: $339.00 | M32: 0
A33: 121 | B33: CEPILLO DE INODORO | E33: UNID | F33: 2 | H33: 2 | I33: 159.30 $ | J33: 2 | K33: 0 | L33: 0 | M33: $318.60
A34: 122 | B34: CERA PARA CONTAR | E34: UNID | F34: 10 | H34: 10 | I34: 60.00 $ | K34: 10 | L34: $600.00 | M34: 0
A35: 123 | B35: CINTA MASKING TAPE 3/4 VISIBLE | E35: UNID | F35: 34 | H35: 34 | I35: 75.00 $ | J35: 1 | K35: 33 | L35: $2,475.00 | M35: $75.00
A36: 124 | B36: CINTA DE EMPAQUE | E36: UNID | F36: 2 | G36: 6 | H36: 8 | I36: 47.20 $ | J36: 4 | K36: 4 | L36: $188.80 | M36: $188.80
A37: 125 | B37: CINTA MAGICA SUMADORA | E37: UNID | F37: 2 | H37: 2 | I37: 76.70 $ | K37: 2 | L37: $153.40 | M37: 0
A38: 126 | B38: CLIPS JUMBO | E38: UNID | F38: 23 | H38: 23 | I38: 38.00 $ | J38: 12 | K38: 11 | L38: $418.00 | M38: $456.00
A39: 127 | B39: CINTA MASKING TAPE CREMA | E39: UNID | F39: 0 | G39: 24 | H39: 24 | I39: 46.00 $ | J39: 10 | K39: 14 | L39: $644.00 | M39: $460.00
A40: 128 | B40: CUBO PLATICOS DE AGUJA DESECHABLES | E40: UNID | F40: 12 | H40: 12 | I40: 50.00 $ | J40: 11 | K40: 1 | L40: $50.00 | M40: $550.00
A41: 129 | B41: CLIPS BILLETERO 32 MM 12/1 | E41: UNID | F41: 36 | H41: 36 | I41: 123.90 $ | K41: 36 | L41: $4,460.40 | M41: 0
A42: 130 | B42: CLIPS BILLETERO 41 MM 12/1 | E42: UNID | F42: 27 | H42: 27 | I42: 171.10 $ | K42: 27 | L42: $4,619.70 | M42: 0
A43: 131 | B43: CLIPS BILLETERO 51 MM 12/1 | E43: UNID | F43: 24 | H43: 24 | I43: 230.10 $ | J43: 2 | K43: 22 | L43: $5,062.20 | M43: $460.20
A44: 132 | B44: CLORO | E44: GALON | F44: 19 | G44: 40 | H44: 59 | I44: 91.53 $ | J44: 24 | K44: 35 | L44: $3,203.55 | M44: $2,196.72
A45: 133 | B45: CONTROL DE LIQUIDO(ENFERMERIA) | E45: TALONARIO | F45: 11 | H45: 11 | I45: 1,200.00 $ | K45: 11 | L45: $13,200.00 | M45: 0
A46: 134 | B46: CUADERNOS COCIDOS | E46: UNID | F46: 0 | G46: 24 | H46: 24 | I46: 53.00 $ | J46: 11 | K46: 13 | L46: $689.00 | M46: $583.00
A47: 135 | B47: CUCHARA 25/1 | E47: CAJA | F47: 0 | G47: 3 | H47: 3 | I47: 631.30 $ | J47: 2 | K47: 1 | L47: $631.30 | M47: $1,262.60
A48: 136 | B48: ESCOBA C/PALO | E48: UNID | F48: 7 | H48: 7 | I48: 133.00 $ | J48: 4 | K48: 3 | L48: $399.00 | M48: $532.00
A49: 138 | B49: FOLDER AMARILLO OFICINA | E49: UNID | F49: 134 | G49: 500 | H49: =F49+G49 -> 634 | I49: 2.33 $ | J49: 359 | K49: 275 | L49: $640.75 | M49: $836.47
A50: 138 | B50: FOLDER VERDE 8 1/2 X 11 | E50: UNID | F50: 371 | H50: 371 | I50: 4.95 $ | J50: 213 | K50: 158 | L50: $782.10 | M50: $1,054.35
A51: 139 | B51: FUNDA NEGRA 17 x22 GL PEQUEÑA | E51: PAQ | F51: 29 | H51: 29 | I51: 72.00 $ | K51: 29 | L51: $2,088.00 | M51: 0
A52: 140 | B52: FUNDA NEGRA #6 | E52: PAQ | F52: 30 | H52: 30 | I52: 36.58 $ | K52: 30 | L52: $1,097.40 | M52: 0
A53: 141 | B53: FUNDA ROJA #2 | E53: PAQ | F53: 25 | H53: 25 | I53: 20.00 $ | K53: 25 | L53: $500.00 | M53: 0
A54: 142 | B54: FUNDA AZULES #4 | E54: PAQ | F54: 35 | H54: 35 | I54: 26.00 $ | K54: 35 | L54: $910.00 | M54: 0
A55: 143 | B55: FUNDA NEGRA MEDIANA 30 GL | E55: PAQ | F55: 23 | H55: 23 | I55: 1,080.00 $ | J55: 5 | K55: 18 | L55: $19,440.00 | M55: $5,400.00
A56: 144 | B56: FUNDA NEGRA GRANDE 55 GL | E56: PAQ | F56: 7 | H56: 7 | I56: 616.00 $ | K56: 7 | L56: $4,312.00 | M56: 0
A57: 145 | B57: FUNDA ROJA PEQUENAS 17 GL | E57: PAQ | F57: 8 | H57: 8 | I57: 240.00 $ | J57: 3 | K57: 5 | L57: $1,200.00 | M57: $720.00
A58: 146 | B58: FUNDA ROJA GRANDE 55 gl | E58: UNID | F58: 3 | H58: 3 | I58: 1,030.10 $ | K58: 3 | L58: $3,090.30 | M58: 0
A59: 147 | B59: FUNDA ROJA MEDIANA 30 GL | E59: PAQ | F59: 18 | H59: 18 | I59: 450.36 $ | J59: 8 | K59: 10 | L59: $4,503.60 | M59: $3,602.88
A60: 148 | B60: GALON JABON LIQUIDO DE MANO | E60: GALON | F60: 4 | H60: 4 | I60: 171.10 $ | K60: 4 | L60: $684.40 | M60: 0
A61: 149 | B61: GANCHOS P/FOLDER MH | E61: CAJA | F61: 8 | H61: 8 | I61: 141.60 $ | K61: 8 | L61: $1,132.80 | M61: 0
A62: 150 | B62: GALON JABON DE CUABA | E62: GALON | F62: 4 | H62: 4 | I62: 165.25 $ | J62: 1 | K62: 3 | L62: $495.75 | M62: $165.25
A63: 151 | B63: GOMITAS | E63: CAJA | F63: 6 | H63: 6 | I63: 45.00 $ | J63: 6 | K63: 0 | L63: 0 | M63: $270.00
A64: 152 | B64: GRAPADORA NEGRA | E64: CAJA | F64: 1 | G64: 4 | H64: 5 | I64: 320.00 $ | J64: 5 | K64: 0 | L64: 0 | M64: $1,600.00
A65: 153 | B65: GUANTES MULTIUSOS | E65: UNID | F65: 5 | G65: 12 | H65: 17 | I65: 666.36 $ | J65: 11 | K65: 6 | L65: $3,998.16 | M65: $7,329.96
A66: 154 | B66: HISTORIA CLINICA PERINATAL | E66: TALONARIO | F66: 9 | H66: 9 | I66: 1,298.00 $ | J66: 1 | K66: 8 | L66: $10,384.00 | M66: $1,298.00
A67: 155 | B67: HOJA DE ANOTACION ENFERMERIA | E67: RESMA | F67: 4 | H67: 4 | I67: 826.00 $ | K67: 4 | L67: $3,304.00 | M67: 0
A68: 156 | B68: HOJA DE ADMICION | E68: RESMA | F68: 5 | H68: 5 | I68: 165.00 $ | K68: 5 | L68: $825.00 | M68: 0
A69: 157 | B69: HOJA DE ATENCION DIARIA | E69: TALONARIO | F69: 3 | H69: 3 | I69: 994.00 $ | K69: 3 | L69: $2,982.00 | M69: 0
A70: 158 | B70: HOJA DE CERTIFICACION | E70: RESMA | F70: 2 | H70: 2 | I70: 1,475.00 $ | K70: 2 | L70: $2,950.00 | M70: 0
A71: 159 | B71: HOJA DE CONSULTA EXTERNA | E71: TALONARIO | F71: 19 | H71: 19 | I71: 994.00 $ | J71: 4 | K71: 15 | L71: $14,910.00 | M71: $3,976.00
A72: 160 | B72: HOJA PACIENTE DIETA | E72: TALONARIO | F72: 18 | H72: 18 | I72: 800.00 $ | K72: 18 | L72: $14,400.00 | M72: 0
A73: 161 | B73: HOJA DE DIRECCION CUIDADO DE ENFERMERIA | E73: TALONARIO | F73: 32 | H73: 32 | I73: 994.00 $ | K73: 32 | L73: $31,808.00 | M73: 0
A74: 162 | B74: HOJA DE ENFER EN AREA EMERGENCIA FO63 | E74: TALONARIO | F74: 17 | H74: 17 | I74: 994.00 $ | K74: 17 | L74: $16,898.00 | M74: 0
A75: 163 | B75: HOJA DE ENFERMERIA | E75: TALONARIO | F75: 8 | H75: 8 | I75: 1,298.00 $ | K75: 8 | L75: $10,384.00 | M75: 0
A76: 164 | B76: HOJA DE EVOLUCION | E76: TALONARIO | F76: 5 | H76: 5 | I76: 294.00 $ | K76: 5 | L76: $1,470.00 | M76: 0
A77: 165 | B77: HOJA DE ANESTESIA | E77: TALONARIO | F77: 13 | H77: 13 | I77: 185.00 $ | K77: 13 | L77: $2,405.00 | M77: 0
A78: 166 | B78: HOJA DE HISTORIAL CLINICO | E78: TALONARIO | F78: 46 | H78: =F78+G78 -> 46 | I78: 195.00 $ | J78: 5 | K78: =H78-J78 -> 41 | L78: =I78*K78 -> $7,995.00 | M78: =I78*J78 -> $975.00
A79: 167 | B79: HOJA D KARDEX D MEDICAMENTO SOLUCIONES | E79: TALONARIO | F79: 17 | H79: 17 | I79: 1,298.00 $ | K79: 17 | L79: $22,066.00 | M79: 0
A80: 168 | B80: HOJA DE REFERENCIA Y CONTRA REFERENCIA | E80: TALONARIO | F80: 11 | H80: 11 | I80: 826.00 $ | K80: 11 | L80: $9,086.00 | M80: 0
A81: 169 | B81: HOJA DE GLICEMIA | E81: TALONARIO | F81: 3 | H81: 3 | I81: 350.00 $ | J81: 3 | K81: 0 | L81: 0 | M81: $1,050.00
A82: 170 | B82: HOJA RESUMEN MEDICO DE EGRESO | E82: RESMA | F82: 2 | H82: 2 | I82: 826.00 $ | K82: 2 | L82: $1,652.00 | M82: 0
A83: 171 | B83: HOJA SEGURIDAD CIRUGIA | E83: RESMA | F83: 2 | H83: 2 | I83: 1,475.00 $ | K83: 2 | L83: $2,950.00 | M83: 0
A84: 172 | B84: HOJA DESIGNOGRAMA ENFERM | E84: TALONARIO | F84: 9 | H84: 9 | I84: 994.00 $ | K84: 9 | L84: $8,946.00 | M84: 0
A85: 173 | B85: HOJA KARDEX MED INTERNA INSUMOS | E85: TALONARIO | F85: 9 | H85: 9 | I85: 994.00 $ | K85: 9 | L85: $8,946.00 | M85: 0
A86: 174 | B86: HOJA LEGAL 8 1/2*14 RESMA | E86: RESMA | F86: 4 | H86: 4 | I86: 348.00 $ | J86: 1 | K86: 3 | L86: $1,044.00 | M86: $348.00
A87: 175 | B87: HOJA ORDEN MEDICA | E87: TALONARIO | F87: 27 | H87: 27 | I87: 800.00 $ | K87: 27 | L87: $21,600.00 | M87: 0
A88: 176 | B88: HOJA HISTORIAL OPERATORIO | E88: TALONARIO | F88: 5 | H88: 5 | I88: 1,299.00 $ | K88: 5 | L88: $6,495.00 | M88: 0
A89: 177 | B89: HOJA SIGNOS VITALES | E89: TALONARIO | F89: 10 | H89: 10 | I89: 1,200.00 $ | K89: 10 | L89: $12,000.00 | M89: 0
A90: 178 | B90: HOJA GRAFICA DE TEMPERATURA | E90: RESMA | F90: 1 | H90: 1 | I90: 994.00 $ | K90: 1 | L90: $994.00 | M90: 0
A91: 179 | B91: HOJAS TIMBRADA | E91: TALONARIO | F91: 10 | H91: 10 | I91: 1,350.00 $ | J91: 3 | K91: 7 | L91: $9,450.00 | M91: $4,050.00
A92: 180 | B92: HOJA DE CONFIRMACION DE CIRUGIA | E92: RESMA | F92: 1 | H92: 1 | I92: 1,298.00 $ | K92: 1 | L92: $1,298.00 | M92: 0
A93: 181 | B93: LABELSP/FOLDER | E93: UNID | F93: 5 | G93: 6 | H93: 11 | I93: 112.10 $ | J93: 3 | K93: 8 | L93: $896.80 | M93: $336.30
A94: 182 | B94: LAPIZ | E94: UNID | F94: 31 | H94: 31 | I94: 10.00 $ | K94: 31 | L94: $310.00 | M94: 0
A95: 183 | B95: LIBRO BANCO VENTA SERVICIOS | E95: UNID | F95: 1 | H95: 1 | I95: 2,360.00 $ | K95: 1 | L95: $2,360.00 | M95: 0
A96: 184 | B96: TALONARIO DE OXIGENO | E96: TALONARIO | F96: 8 | H96: 8 | I96: 200.00 $ | K96: 8 | L96: $1,600.00 | M96: 0
A97: 185 | B97: LIBRO DE EMERGENCIA | E97: UNID | F97: 3 | H97: 3 | I97: 1,770.00 $ | J97: 2 | K97: 1 | L97: $1,770.00 | M97: $3,540.00
A98: 186 | B98: LIBRO DE LABORATORIO PACIENTE | E98: UNID | F98: 0 | H98: 0 | I98: 1,170.00 $ | K98: 0 | L98: 0 | M98: 0
A99: 187 | B99: LIBRO DE CONTROL DE PARASITOLOGIA COPROLOGICO | E99: UNID | F99: 1 | H99: 1 | I99: 1,170.00 $ | K99: 1 | L99: $1,170.00 | M99: 0
A100: 188 | B100: LIBRO DE PARTO Y NACIMIENTO | E100: UNID | F100: 3 | H100: 3 | I100: 1,170.00 $ | K100: 3 | L100: $3,510.00 | M100: 0
A101: 189 | B101: LIBRO DE CIRUGIA | E101: UNID | F101: 5 | H101: 5 | I101: 1,770.00 $ | K101: 5 | L101: $8,850.00 | M101: 0
A102: 190 | B102: LIBRO DE CONS REGISTRO VIH | E102: UNID | F102: 0 | H102: 0 | I102: 1,770.00 $ | K102: 0 | L102: 0 | M102: 0
A103: 191 | B103: LIBRO DE SEROLOGIA | E103: UNID | F103: 2 | H103: 2 | I103: 2,360.00 $ | K103: 2 | L103: $4,720.00 | M103: 0
A104: 192 | B104: LIBRO DE URIANALISIS | E104: UNID | F104: 1 | H104: 1 | I104: 2,360.00 $ | K104: 1 | L104: $2,360.00 | M104: 0
A105: 193 | B105: LIBRO HEMATOLOGIA | E105: UNID | F105: 2 | H105: 2 | I105: 2,000.00 $ | K105: 2 | L105: $4,000.00 | M105: 0
A106: 194 | B106: LIBRO QUIMICO | E106: UNID | F106: 2 | H106: 2 | I106: 2,360.00 $ | J106: 1 | K106: 1 | L106: $2,360.00 | M106: $2,360.00
A107: 195 | B107: LIBRO INTERNAMIENTO | E107: UNID | F107: 3 | H107: 3 | I107: 1,770.00 $ | K107: 3 | L107: $5,310.00 | M107: 0
A108: 196 | B108: LIBRO DE RAYOS X | E108: UNID | F108: 2 | H108: 2 | I108: 1,770.00 $ | K108: 2 | L108: $3,540.00 | M108: 0
A109: 197 | B109: LIBRO RECORD DE REGISTRO ADOLECENTE | E109: UNID | F109: 0 | H109: 0 | I109: 1,800.00 $ | K109: 0 | L109: 0 | M109: 0
A110: 198 | B110: LIQUID PAPER T/L CORRECTOR | E110: UNID | F110: 11 | H110: 11 | I110: 30.00 $ | J110: 10 | K110: 1 | L110: $30.00 | M110: $300.00
A111: 199 | B111: MARCADORES AZULES | E111: UNID | F111: 33 | H111: 33 | I111: 30.00 $ | J111: 6 | K111: 27 | L111: $810.00 | M111: $180.00
A112: 200 | B112: MARCADORES NEGROS | E112: UNID | F112: 34 | H112: 34 | I112: 30.00 $ | J112: 4 | K112: 30 | L112: $900.00 | M112: $120.00
A113: 201 | B113: MISTOLIN | E113: GALON | F113: 9 | G113: 40 | H113: 49 | I113: 104.00 $ | J113: 28 | K113: 21 | L113: $2,184.00 | M113: $2,912.00
A114: 202 | B114: PAPEL CARBON 8 1/2*11 | E114: UNID | F114: 25 | H114: 25 | I114: 325.00 $ | K114: 25 | L114: $8,125.00 | M114: 0
A115: 203 | B115: PAPEL HIGIENICO FARDO 48/1 | E115: UNID | F115: 179 | G115: 96 | H115: 275 | I115: 22.60 $ | J115: 147 | K115: 128 | L115: $2,892.80 | M115: $3,322.20
A116: 204 | B116: PAPEL MANILA NATURAL KRAF | E116: UNID | F116: 0 | G116: 2 | H116: 2 | I116: 3,916.00 $ | J116: 1 | K116: 1 | L116: $3,916.00 | M116: $3,916.00
A117: 205 | B117: PAPEL TOALLA 6/1 | E117: UNID | F117: 0 | G117: 24 | H117: 24 | I117: 95.38 $ | J117: 12 | K117: 12 | L117: $1,144.56 | M117: $1,144.56
A118: 206 | B118: PERFORADORA 2 | E118: UNID | F118: 0 | H118: 0 | I118: 306.08 $ | K118: 0 | L118: 0 | M118: 0
A119: 207 | B119: PERFORADORA 3 | E119: UNID | F119: 1 | H119: 1 | I119: 631.30 $ | K119: 1 | L119: $631.30 | M119: 0
A120: 208 | B120: PILA AAA PEQUEÑA | E120: UNID | F120: 30 | H120: 30 | I120: 54.00 $ | J120: 2 | K120: 28 | L120: $1,512.00 | M120: $108.00
A121: 209 | B121: PILA AA | E121: UNID | F121: 38 | H121: 38 | I121: 53.00 $ | J121: 6 | K121: 32 | L121: $1,696.00 | M121: $318.00
A122: 210 | B122: PAPEL CON DIVISION 200/1 OPTION | E122: CAJA | F122: 0 | G122: 2 | H122: 2 | I122: 1,085.00 $ | J122: 1 | K122: 1 | L122: $1,085.00 | M122: $1,085.00
A123: 211 | B123: PLATOS | E123: FARDO | F123: 7 | G123: 8 | H123: 15 | I123: 1,291.00 $ | J123: 9 | K123: 6 | L123: $7,746.00 | M123: $11,619.00
A124: 212 | B124: POS-IT 3*3 | E124: RESMA | F124: 0 | H124: 0 | I124: 33.63 $ | K124: 0 | L124: 0 | M124: 0
A125: 213 | B125: RECOJEDOR DE BASURA | E125: UNID | F125: 2 | G125: 6 | H125: 8 | I125: 109.25 $ | J125: 2 | K125: 6 | L125: $655.50 | M125: $218.50
A126: 214 | B126: RESALTADOR | E126: UNID | F126: 13 | H126: 13 | I126: 39.00 $ | J126: 1 | K126: 12 | L126: $468.00 | M126: $39.00
A127: 215 | B127: RESMA DE CONTROL DE EXISTENCIA | E127: RESMA | F127: 3 | H127: 3 | I127: 1,298.00 $ | K127: 3 | L127: $3,894.00 | M127: 0
A128: 216 | B128: RESMA HOJA DE MAQUINA 8/2 *11 | E128: RESMA | F128: 35 | G128: 100 | H128: 135 | I128: 228.00 $ | J128: 62 | K128: 73 | L128: $16,644.00 | M128: $14,136.00
A129: 217 | B129: ROLLO DE PAPEL SUMADORA | E129: UNID | F129: 4 | G129: 12 | H129: 16 | I129: 23.00 $ | K129: 16 | L129: $368.00 | M129: 0
A130: 218 | B130: ROTULO PARA SOLUCION Y MEDICAMENTOS | E130: UNID | F130: 950 | H130: 950 | I130: 6.50 $ | J130: 100 | K130: 850 | L130: $5,525.00 | M130: $650.00
A131: 219 | B131: SACA GRAPA | E131: UNID | F131: 6 | H131: 6 | I131: 30.00 $ | J131: 3 | K131: 3 | L131: $90.00 | M131: $90.00
A132: 220 | B132: SACAPUNTA METAL | E132: UNID | F132: 20 | H132: 20 | I132: 15.00 $ | K132: 20 | L132: $300.00 | M132: 0
A133: 221 | B133: SACO DE DETERGENTE | E133: UNID | F133: 2 | G133: 3 | H133: 5 | I133: 1,100.00 $ | J133: 3 | K133: 2 | L133: $2,200.00 | M133: $3,300.00
A134: 222 | B134: SERVILLETA C-FOLD 24/100 XCELENT | E134: UNID | F134: 28 | G134: 96 | H134: 124 | I134: 24.50 $ | J134: 22 | K134: 102 | L134: $2,499.00 | M134: $539.00
A135: 223 | B135: SERVILLETAS DE BINGO 60/1 | E135: UNID | F135: 310 | G135: 180 | H135: 490 | I135: 11.50 $ | J135: 174 | K135: 316 | L135: $3,634.00 | M135: $2,001.00
A136: 224 | B136: SOBRE CARTA VENTANILLA | E136: UNID | F136: 900 | H136: 900 | I136: 1.85 $ | K136: 900 | L136: $1,665.00 | M136: 0
A137: 225 | B137: SOBRE MANILA 9*12 500 UNID | E137: UNID | F137: 390 | H137: 390 | I137: 13.85 $ | K137: 390 | L137: $5,401.50 | M137: 0
A138: 226 | B138: SOBRE MANILA 14*17 1000 UNIDAD | E138: UNID | F138: 910 | H138: 910 | I138: 13.85 $ | K138: 910 | L138: $12,603.50 | M138: 0
A139: 227 | B139: SOBRE MANILA 10*14 DE 500 UNID | E139: UNID | F139: 260 | H139: 260 | I139: 7.10 $ | J139: 10 | K139: 250 | L139: $1,775.00 | M139: $71.00
A140: 228 | B140: SOBRE TIMBRADO | E140: UNID | F140: 300 | H140: 300 | I140: 13.00 $ | J140: 15 | K140: 285 | L140: $3,705.00 | M140: $195.00
A141: 229 | B141: SUAPER JUMBO | E141: GALON | F141: 5 | G141: 6 | H141: 11 | I141: 175.00 $ | J141: 8 | K141: 3 | L141: $525.00 | M141: $1,400.00
A142: 230 | B142: SUAVITEL | E142: GALON | F142: 4 | H142: =F142+G142 -> 4 | I142: 148.31 $ | J142: 3 | K142: =H142-J142 -> 1 | L142: =I142*K142 -> $148.31 | M142: =I142*J142 -> $444.93
A143: 231 | B143: TALONARIO DE PATOLOGIA | E143: TALONARIO | F143: 25 | H143: 25 | I143: 70.80 $ | K143: 25 | L143: $1,770.00 | M143: 0
A144: 232 | B144: TALONARIO HISTORIAL CLINICO EMERGENCIA | E144: TALONARIO | F144: 0 | H144: 0 | I144: 275.00 $ | K144: 0 | L144: 0 | M144: 0
A145: 233 | B145: TALONARIO ORDEN MEDICA | E145: TALONARIO | F145: 25 | H145: 25 | I145: 275.00 $ | K145: 25 | L145: $6,875.00 | M145: 0
A146: 234 | B146: TALONARIO COPROLOGICO | E146: TALONARIO | F146: 96 | H146: 96 | I146: 88.35 $ | K146: 96 | L146: $8,481.60 | M146: 0
A147: 235 | B147: TALALONARIO HEMOTOLOGIA | E147: TALONARIO | F147: 59 | H147: 59 | I147: 88.35 $ | J147: 10 | K147: 49 | L147: $4,329.15 | M147: $883.50
A148: 236 | B148: TALONARIO CONFIMACION DE QUIRURGICA | E148: TALONARIO | F148: 5 | H148: 5 | I148: 185.00 $ | K148: 5 | L148: $925.00 | M148: 0
A149: 237 | B149: TALONARIO LABORATORIO CLINICO | E149: TALONARIO | F149: 73 | H149: 73 | I149: 37.00 $ | J149: 36 | K149: 37 | L149: $1,369.00 | M149: $1,332.00
A150: 238 | B150: TALONARIO PARTOGRAMA POSPARTO | E150: TALONARIO | F150: 9 | H150: 9 | I150: 185.00 $ | K150: 9 | L150: $1,665.00 | M150: 0
A151: 239 | B151: TALONARIO HISTORIAL OPERATORIO | E151: RESMA | F151: 1 | H151: 1 | I151: 185.00 $ | K151: 1 | L151: $185.00 | M151: 0
A152: 240 | B152: TALONARIO URIANALISIS | E152: TALONARIO | F152: 118 | H152: 118 | I152: 53.10 $ | J152: 10 | K152: 108 | L152: $5,734.80 | M152: $531.00
A153: 241 | B153: TALONARIO REQUISICION DE FARMACIA | E153: TALONARIO | F153: 7 | H153: 7 | I153: 413.00 $ | J153: 1 | K153: 6 | L153: $2,478.00 | M153: $413.00
A154: 242 | B154: TALONARIO CUIDADO DE ENFERERIA VIH MEDIA | E154: TALONARIO | F154: 8 | H154: 8 | I154: 275.00 $ | K154: 8 | L154: $2,200.00 | M154: 0
A155: 243 | B155: TALONARIO CONCENTIMIENTO INFORMADO LARGO | E155: TALONARIO | F155: 3 | H155: 3 | I155: 756.00 $ | K155: 3 | L155: $2,268.00 | M155: 0
A156: 244 | B156: TALONARIO DE CLASIFICACION | E156: TALONARIO | F156: 30 | H156: 30 | I156: 756.00 $ | K156: 30 | L156: $22,680.00 | M156: 0
A157: 245 | B157: TALONARIO DE CONTROL TEMPERATURA | E157: TALONARIO | F157: 15 | H157: 15 | I157: 294.00 $ | K157: 15 | L157: $4,410.00 | M157: 0
A158: 246 | B158: TALONARIO DE CUOTA DE CONTRIBUCION | E158: TALONARIO | F158: 10 | H158: 10 | I158: 185.00 $ | K158: 10 | L158: $1,850.00 | M158: 0
A159: 247 | B159: TALONARIO PROTOCOLO ATENCION AL PARTO | E159: TALONARIO | F159: 8 | H159: 8 | I159: 185.00 $ | K159: 8 | L159: $1,480.00 | M159: 0
A160: 248 | B160: TALONARIO HOJA DE KARDEX INSUMO | E160: TALONARIO | F160: 9 | H160: 9 | I160: 994.00 $ | K160: 9 | L160: $8,946.00 | M160: 0
A161: 249 | B161: TALONARIO SOLICITUD DE ALMACEN | E161: TALONARIO | F161: 6 | H161: 6 | I161: 224.00 $ | K161: 6 | L161: $1,344.00 | M161: 0
A162: 250 | B162: TALONARIO SALIDA ALMACEN | E162: TALONARIO | F162: 24 | H162: 24 | I162: 275.00 $ | K162: 24 | L162: $6,600.00 | M162: 0
A163: 251 | B163: TAPA DE VASOS #12 CLEA 10/100 | E163: UNID | F163: 3 | G163: 10 | H163: 13 | I163: 224.00 $ | J163: 13 | K163: 0 | L163: 0 | M163: $2,912.00
A164: 252 | B164: TARJETA DE CITA | E164: UNID | F164: 30 | G164: 1000 | H164: 1030 | I164: 2.75 $ | J164: 300 | K164: 730 | L164: $2,007.50 | M164: $825.00
A165: 253 | B165: TARJETA DE EXPEDIENTE | E165: UNID | F165: 1600 | H165: 1600 | I165: 4.50 $ | K165: 1600 | L165: $7,200.00 | M165: 0
A166: 254 | B166: TALONARIO RECETARIO NORMAL | E166: TALONARIO | F166: 987 | H166: 987 | I166: 53.65 $ | J166: 61 | K166: 926 | L166: $49,679.90 | M166: $3,272.65
A167: 255 | B167: TIJERAS | E167: UNID | F167: 2 | H167: 2 | I167: 62.54 $ | J167: 1 | K167: 1 | L167: $62.54 | M167: $62.54
A168: 256 | B168: TINTA PARA SELLO AZUL | E168: UNID | F168: 11 | H168: 11 | I168: 106.00 $ | J168: 3 | K168: 8 | L168: $848.00 | M168: $318.00
A169: 257 | B169: TOALLA MICROFIBRA16´´ *16´´ | E169: PAQU | F169: 17 | H169: 17 | I169: 49.56 $ | J169: 8 | K169: 9 | L169: $446.04 | M169: $396.48
A170: 258 | B170: ENVASES PLASTICOS 4 OZ | E170: UNID | F170: 14 | G170: 20 | H170: 34 | I170: 147.00 $ | J170: 34 | K170: 0 | L170: 0 | M170: $4,998.00
A171: 259 | B171: TAPAS PLASTICAS 4 OZ | E171: PAQU | F171: 14 | G171: 20 | H171: 34 | I171: 137.00 $ | J171: 34 | K171: 0 | L171: 0 | M171: $4,658.00
A172: 260 | B172: VASO 12 CAJA 40/25 FOAM | E172: PAQU | F172: 123 | G172: 80 | H172: 203 | I172: 53.20 $ | J172: 73 | K172: 130 | L172: $6,916.00 | M172: $3,883.60
A173: 261 | B173: VASO # 5 | E173: PAQU | F173: 26 | G173: 100 | H173: 126 | I173: 55.00 $ | J173: 17 | K173: 109 | L173: $5,995.00 | M173: $935.00
A174: 262 | B174: VASOS #7 | E174: PAQU | F174: 63 | G174: 100 | H174: 163 | I174: 38.94 $ | J174: 123 | K174: 40 | L174: $1,557.60 | M174: $4,789.62
L175: =SUM(L13:L174) -> $636,936.40
J176: TOTAL DE COMSUMO | L176: =SUM(M13:M175) -> $138,533.89

Sheet NOVIEMBRE
K11: 2025-11-30
A12: INVENTARIO DE ALMACEN
A13: CODIGO | B13: DESCRIPCION DEL PRODUCTO | E13: UNIDAD MEDIDA | F13: CANTIDAD | G13: ENTRADA | H13: TOTAL | I13: PRECIO | J13: SALIDA DE USO MENSUAL | K13: CANTIDAD ACTIVA EN ALMACEN | L13: VALOR TOTAL ACTIVO | M13: VALORDE TOTAL CONSUMO
A14: 101 | B14: ACORDEON 10*12 CARTON PIEDRA | E14: UNID | F14: 0 | H14: =F14+G14 -> 0 | I14: 744.00 $ | K14: =H14-J14 -> 0 | L14: =I14*K14 -> 0 | M14: =I14*J14 -> 0
A15: 102 | B15: AMBIENTADOR SPRAY | E15: UNID | F15: 19 | H15: =F15+G15 -> 19 | I15: 192.00 $ | J15: 5 | K15: =H15-J15 -> 14 | L15: =I15*K15 -> $2,688.00 | M15: =I15*J15 -> $960.00
A16: 103 | B16: AGUA BOTELLITAS | E16: UNID | F16: 400 | H16: 400 | I16: 6.50 $ | J16: 100 | K16: 300 | L16: $1,950.00 | M16: $650.00
A17: 104 | B17: AXION EN PASTA | E17: UNID | F17: 10 | H17: 10 | I17: 116.00 $ | J17: 7 | K17: 3 | L17: $348.00 | M17: $812.00
A18: 105 | B18: BAYGON 400ML | E18: UNID | F18: 5 | H18: 5 | I18: 349.00 $ | J18: 3 | K18: 2 | L18: $698.00 | M18: $1,047.00
A19: 106 | B19: BOLIGRAFOS AZULES | E19: UNID | F19: 43 | H19: 43 | I19: 10.10 $ | J19: 18 | K19: 25 | L19: $252.50 | M19: $181.80
A20: 107 | B20: BOLIGRAFOS NEGROS | E20: UNID | F20: 36 | H20: 36 | I20: 7.00 $ | K20: 36 | L20: $252.00 | M20: 0
A21: 108 | B21: BOLIGRAFOS ROJOS | E21: UNID | F21: 93 | H21: 93 | I21: 7.00 $ | J21: 2 | K21: 91 | L21: $637.00 | M21: $14.00
A22: 109 | B22: BOLIGRAFOS VERDES | E22: UNID | F22: 8 | H22: 8 | I22: 10.00 $ | K22: 8 | L22: $80.00 | M22: 0
A23: 110 | B23: BORRANTE DE LECHE | E23: UNID | F23: 8 | H23: 8 | I23: 8.00 $ | K23: 8 | L23: $64.00 | M23: 0
A24: 111 | B24: BRILLO GRUESO 12/1 ROMANO | E24: UNID | F24: 28 | H24: 28 | I24: 69.60 $ | K24: 28 | L24: $1,948.80 | M24: 0
A25: 112 | B25: BRILLO GRIS | E25: UNID | F25: 12 | H25: 12 | I25: 69.60 $ | K25: 12 | L25: $835.20 | M25: 0
A26: 113 | B26: BRILLO VERDE Y ESPONJA | E26: UNID | F26: 6 | H26: 6 | I26: 57.80 $ | K26: 6 | L26: $346.80 | M26: 0
A27: 114 | B27: CAJA PLASTICAS DE 27 GL NEGRA | E27: UNID | F27: 9 | H27: 9 | I27: 1,350.00 $ | K27: 9 | L27: $12,150.00 | M27: 0
A28: 115 | B28: CAJITA DE GRAPAS ESTÁNDAR 26/6 | E28: UNID | F28: 7 | H28: 7 | I28: 47.17 $ | J28: 4 | K28: 3 | L28: $141.51 | M28: $188.68
A29: 116 | B29: CALCULADORA | E29: UNID | F29: 3 | H29: 3 | I29: 359.90 $ | K29: 3 | L29: $1,079.70 | M29: 0
A30: 117 | B30: CARPETA NEGRA #1 | E30: UNID | F30: 4 | H30: 4 | I30: 469.00 $ | K30: =H30-J30 -> 4 | L30: $1,876.00 | M30: 0
A31: 118 | B31: CARPETA NEGRA # 2 | E31: UNID | F31: 2 | H31: 2 | I31: 178.20 $ | K31: 2 | L31: $356.40 | M31: 0
A32: 119 | B32: CARPETAS # 3 | E32: UNID | F32: 2 | H32: 2 | I32: 147.50 $ | K32: 2 | L32: $295.00 | M32: 0
A33: 120 | B33: CHINCHETAS | E33: CAJAS | F33: 4 | H33: 4 | I33: 84.75 $ | K33: 4 | L33: $339.00 | M33: 0
A34: 121 | B34: CEPILLO DE INODORO | E34: UNID | F34: 0 | H34: 0 | I34: 159.30 $ | K34: 0 | L34: 0 | M34: 0
A35: 122 | B35: CERA PARA CONTAR | E35: UNID | F35: 10 | H35: 10 | I35: 60.00 $ | K35: 10 | L35: $600.00 | M35: 0
A36: 123 | B36: CINTA MASKING TAPE 3/4 VISIBLE | E36: UNID | F36: 33 | H36: 33 | I36: 75.00 $ | K36: 33 | L36: $2,475.00 | M36: 0
A37: 124 | B37: CINTA DE EMPAQUE | E37: UNID | F37: 4 | H37: 4 | I37: 47.20 $ | K37: 4 | L37: $188.80 | M37: 0
A38: 125 | B38: CINTA MAGICA SUMADORA | E38: UNID | F38: 2 | H38: 2 | I38: 76.70 $ | K38: 2 | L38: $153.40 | M38: 0
A39: 126 | B39: CLIPS JUMBO | E39: UNID | F39: 11 | H39: 11 | I39: 38.00 $ | J39: 4 | K39: 7 | L39: $266.00 | M39: $152.00
A40: 127 | B40: CINTA MASKING TAPE CREMA | E40: UNID | F40: 14 | H40: 14 | I40: 46.00 $ | J40: 8 | K40: 6 | L40: $276.00 | M40: $368.00
A41: 128 | B41: CUBO PLATICOS DE AGUJA DESECHABLES | E41: UNID | F41: 1 | H41: 1 | I41: 50.00 $ | J41: 1 | K41: 0 | L41: 0 | M41: $50.00
A42: 129 | B42: CLIPS BILLETERO 32 MM 12/1 | E42: UNID | F42: 36 | H42: 36 | I42: 123.90 $ | K42: 36 | L42: $4,460.40 | M42: 0
A43: 130 | B43: CLIPS BILLETERO 41 MM 12/1 | E43: UNID | F43: 27 | H43: 27 | I43: 171.10 $ | K43: 27 | L43: $4,619.70 | M43: 0
A44: 131 | B44: CLIPS BILLETERO 51 MM 12/1 | E44: UNID | F44: 22 | H44: 22 | I44: 230.10 $ | K44: 22 | L44: $5,062.20 | M44: 0
A45: 132 | B45: CLORO | E45: GALON | F45: 35 | H45: 35 | I45: 91.53 $ | J45: 16 | K45: 19 | L45: $1,739.07 | M45: $1,464.48
A46: 133 | B46: CONTROL DE LIQUIDO(ENFERMERIA) | E46: TALONARIO | F46: 11 | H46: 11 | I46: 1,200.00 $ | K46: 11 | L46: $13,200.00 | M46: 0
A47: 134 | B47: CUADERNOS COCIDOS | E47: UNID | F47: 13 | H47: 13 | I47: 53.00 $ | J47: 2 | K47: 11 | L47: $583.00 | M47: $106.00
A48: 135 | B48: CUCHARA 25/1 | E48: CAJA | F48: 1 | H48: 1 | I48: 631.30 $ | J48: 1 | K48: 0 | L48: 0 | M48: $631.30
A49: 136 | B49: ESCOBA C/PALO | E49: UNID | F49: 3 | H49: 3 | I49: 133.00 $ | K49: 3 | L49: $399.00 | M49: 0
A50: 138 | B50: FOLDER AMARILLO OFICINA | E50: UNID | F50: 275 | H50: =F50+G50 -> 275 | I50: 2.33 $ | K50: 275 | L50: $640.75 | M50: 0
A51: 138 | B51: FOLDER VERDE 8 1/2 X 11 | E51: UNID | F51: 158 | H51: 158 | I51: 4.95 $ | J51: 5 | K51: 153 | L51: $757.35 | M51: $24.75
A52: 139 | B52: FUNDA NEGRA 17 x22 GL PEQUEÑA | E52: PAQ | F52: 29 | H52: 29 | I52: 72.00 $ | J52: 6 | K52: 23 | L52: $1,656.00 | M52: $432.00
A53: 140 | B53: FUNDA NEGRA #6 | E53: PAQ | F53: 30 | H53: 30 | I53: 36.58 $ | J53: 1 | K53: 29 | L53: $1,060.82 | M53: $36.58
A54: 141 | B54: FUNDA ROJA #2 | E54: PAQ | F54: 25 | H54: 25 | I54: 20.00 $ | K54: 25 | L54: $500.00 | M54: 0
A55: 142 | B55: FUNDA AZULES #4 | E55: PAQ | F55: 35 | H55: 35 | I55: 26.00 $ | K55: 35 | L55: $910.00 | M55: 0
A56: 143 | B56: FUNDA NEGRA MEDIANA 30 GL | E56: PAQ | F56: 18 | H56: 18 | I56: 1,080.00 $ | J56: 6 | K56: 12 | L56: $12,960.00 | M56: $6,480.00
A57: 144 | B57: FUNDA NEGRA GRANDE 55 GL | E57: PAQ | F57: 7 | H57: 7 | I57: 616.00 $ | J57: 2 | K57: 5 | L57: $3,080.00 | M57: $1,232.00
A58: 145 | B58: FUNDA ROJA PEQUENAS 17 GL | E58: PAQ | F58: 5 | H58: 5 | I58: 240.00 $ | K58: 5 | L58: $1,200.00 | M58: 0
A59: 146 | B59: FUNDA ROJA GRANDE 55 gl | E59: UNID | F59: 3 | H59: 3 | I59: 1,030.10 $ | K59: 3 | L59: $3,090.30 | M59: 0
A60: 147 | B60: FUNDA ROJA MEDIANA 30 GL | E60: PAQ | F60: 10 | H60: 10 | I60: 450.36 $ | J60: 3 | K60: 7 | L60: $3,152.52 | M60: $1,351.08
A61: 148 | B61: GALON JABON LIQUIDO DE MANO | E61: GALON | F61: 4 | H61: 4 | I61: 171.10 $ | K61: 4 | L61: $684.40 | M61: 0
A62: 149 | B62: GANCHOS P/FOLDER MH | E62: CAJA | F62: 8 | H62: 8 | I62: 141.60 $ | J62: 1 | K62: 7 | L62: $991.20 | M62: $141.60
A63: 150 | B63: GALON JABON DE CUABA | E63: GALON | F63: 3 | H63: 3 | I63: 165.25 $ | J63: 1 | K63: 2 | L63: $330.50 | M63: $165.25
A64: 151 | B64: GOMITAS | E64: CAJA | F64: 0 | H64: 0 | I64: 45.00 $ | K64: 0 | L64: 0 | M64: 0
A65: 152 | B65: GRAPADORA NEGRA | E65: CAJA | F65: 0 | H65: 0 | I65: 320.00 $ | K65: 0 | L65: 0 | M65: 0
A66: 153 | B66: GUANTES MULTIUSOS | E66: UNID | F66: 6 | H66: 6 | I66: 666.36 $ | J66: 2 | K66: 4 | L66: $2,665.44 | M66: $1,332.72
A67: 154 | B67: HISTORIA CLINICA PERINATAL | E67: TALONARIO | F67: 8 | H67: 8 | I67: 1,298.00 $ | J67: 1 | K67: 7 | L67: $9,086.00 | M67: $1,298.00
A68: 155 | B68: HOJA DE ANOTACION ENFERMERIA | E68: RESMA | F68: 4 | H68: 4 | I68: 826.00 $ | K68: 4 | L68: $3,304.00 | M68: 0
A69: 156 | B69: HOJA DE ADMICION | E69: RESMA | F69: 5 | H69: 5 | I69: 165.00 $ | K69: 5 | L69: $825.00 | M69: 0
A70: 157 | B70: HOJA DE ATENCION DIARIA | E70: TALONARIO | F70: 3 | H70: 3 | I70: 994.00 $ | K70: 3 | L70: $2,982.00 | M70: 0
A71: 158 | B71: HOJA DE CERTIFICACION | E71: RESMA | F71: 2 | H71: 2 | I71: 1,475.00 $ | K71: 2 | L71: $2,950.00 | M71: 0
A72: 159 | B72: HOJA DE CONSULTA EXTERNA | E72: TALONARIO | F72: 15 | H72: 15 | I72: 994.00 $ | K72: 15 | L72: $14,910.00 | M72: 0
A73: 160 | B73: HOJA PACIENTE DIETA | E73: TALONARIO | F73: 18 | H73: 18 | I73: 800.00 $ | K73: 18 | L73: $14,400.00 | M73: 0
A74: 161 | B74: HOJA DE DIRECCION CUIDADO DE ENFERMERIA | E74: TALONARIO | F74: 32 | H74: 32 | I74: 994.00 $ | K74: 32 | L74: $31,808.00 | M74: 0
A75: 162 | B75: HOJA DE ENFER EN AREA EMERGENCIA FO63 | E75: TALONARIO | F75: 17 | H75: 17 | I75: 994.00 $ | K75: 17 | L75: $16,898.00 | M75: 0
A76: 163 | B76: HOJA DE ENFERMERIA | E76: TALONARIO | F76: 8 | H76: 8 | I76: 1,298.00 $ | K76: 8 | L76: $10,384.00 | M76: 0
A77: 164 | B77: HOJA DE EVOLUCION | E77: TALONARIO | F77: 5 | H77: 5 | I77: 294.00 $ | K77: 5 | L77: $1,470.00 | M77: 0
A78: 165 | B78: HOJA DE ANESTESIA | E78: TALONARIO | F78: 13 | H78: 13 | I78: 185.00 $ | J78: 1 | K78: 12 | L78: $2,220.00 | M78: $185.00
A79: 166 | B79: HOJA DE HISTORIAL CLINICO | E79: TALONARIO | F79: 41 | H79: =F79+G79 -> 41 | I79: 195.00 $ | K79: =H79-J79 -> 41 | L79: =I79*K79 -> $7,995.00 | M79: =I79*J79 -> 0
A80: 167 | B80: HOJA D KARDEX D MEDICAMENTO SOLUCIONES | E80: TALONARIO | F80: 17 | H80: 17 | I80: 1,298.00 $ | K80: 17 | L80: $22,066.00 | M80: 0
A81: 168 | B81: HOJA DE REFERENCIA Y CONTRA REFERENCIA | E81: TALONARIO | F81: 11 | H81: 11 | I81: 826.00 $ | K81: 11 | L81: $9,086.00 | M81: 0
A82: 169 | B82: HOJA DE GLICEMIA | E82: TALONARIO | F82: 0 | H82: 0 | I82: 350.00 $ | K82: 0 | L82: 0 | M82: 0
A83: 170 | B83: HOJA RESUMEN MEDICO DE EGRESO | E83: RESMA | F83: 2 | H83: 2 | I83: 826.00 $ | K83: 2 | L83: $1,652.00 | M83: 0
A84: 171 | B84: HOJA SEGURIDAD CIRUGIA | E84: RESMA | F84: 2 | H84: 2 | I84: 1,475.00 $ | K84: 2 | L84: $2,950.00 | M84: 0
A85: 172 | B85: HOJA DESIGNOGRAMA ENFERM | E85: TALONARIO | F85: 9 | H85: 9 | I85: 994.00 $ | K85: 9 | L85: $8,946.00 | M85: 0
A86: 173 | B86: HOJA KARDEX MED INTERNA INSUMOS | E86: TALONARIO | F86: 9 | H86: 9 | I86: 994.00 $ | K86: 9 | L86: $8,946.00 | M86: 0
A87: 174 | B87: HOJA LEGAL 8 1/2*14 RESMA | E87: RESMA | F87: 3 | H87: 3 | I87: 348.00 $ | J87: 1 | K87: 2 | L87: $696.00 | M87: $348.00
A88: 175 | B88: HOJA ORDEN MEDICA | E88: TALONARIO | F88: 27 | H88: 27 | I88: 800.00 $ | K88: 27 | L88: $21,600.00 | M88: 0
A89: 176 | B89: HOJA HISTORIAL OPERATORIO | E89: TALONARIO | F89: 5 | H89: 5 | I89: 1,299.00 $ | K89: 5 | L89: $6,495.00 | M89: 0
A90: 177 | B90: HOJA SIGNOS VITALES | E90: TALONARIO | F90: 10 | H90: 10 | I90: 1,200.00 $ | K90: 10 | L90: $12,000.00 | M90: 0
A91: 178 | B91: HOJA GRAFICA DE TEMPERATURA | E91: RESMA | F91: 1 | H91: 1 | I91: 994.00 $ | K91: 1 | L91: $994.00 | M91: 0
A92: 179 | B92: HOJAS TIMBRADA | E92: TALONARIO | F92: 7 | H92: 7 | I92: 1,350.00 $ | K92: 7 | L92: $9,450.00 | M92: 0
A93: 180 | B93: HOJA DE CONFIRMACION DE CIRUGIA | E93: RESMA | F93: 1 | H93: 1 | I93: 1,298.00 $ | K93: 1 | L93: $1,298.00 | M93: 0
A94: 181 | B94: LABELSP/FOLDER | E94: UNID | F94: 8 | H94: 8 | I94: 112.10 $ | K94: 8 | L94: $896.80 | M94: 0
A95: 182 | B95: LAPIZ | E95: UNID | F95: 31 | H95: 31 | I95: 10.00 $ | K95: 31 | L95: $310.00 | M95: 0
A96: 183 | B96: LIBRO BANCO VENTA SERVICIOS | E96: UNID | F96: 1 | H96: 1 | I96: 2,360.00 $ | K96: 1 | L96: $2,360.00 | M96: 0
A97: 184 | B97: TALONARIO DE OXIGENO | E97: TALONARIO | F97: 8 | H97: 8 | I97: 200.00 $ | K97: 8 | L97: $1,600.00 | M97: 0
A98: 185 | B98: LIBRO DE EMERGENCIA | E98: UNID | F98: 1 | H98: 1 | I98: 1,770.00 $ | K98: 1 | L98: $1,770.00 | M98: 0
A99: 186 | B99: LIBRO DE LABORATORIO PACIENTE | E99: UNID | F99: 0 | H99: 0 | I99: 1,170.00 $ | K99: 0 | L99: 0 | M99: 0
A100: 187 | B100: LIBRO DE CONTROL DE PARASITOLOGIA COPROLOGICO | E100: UNID | F100: 1 | H100: 1 | I100: 1,170.00 $ | K100: 1 | L100: $1,170.00 | M100: 0
A101: 188 | B101: LIBRO DE PARTO Y NACIMIENTO | E101: UNID | F101: 3 | H101: 3 | I101: 1,170.00 $ | K101: 3 | L101: $3,510.00 | M101: 0
A102: 189 | B102: LIBRO DE CIRUGIA | E102: UNID | F102: 5 | H102: 5 | I102: 1,770.00 $ | K102: 5 | L102: $8,850.00 | M102: 0
A103: 190 | B103: LIBRO DE CONS REGISTRO VIH | E103: UNID | F103: 0 | H103: 0 | I103: 1,770.00 $ | K103: 0 | L103: 0 | M103: 0
A104: 191 | B104: LIBRO DE SEROLOGIA | E104: UNID | F104: 2 | H104: 2 | I104: 2,360.00 $ | K104: 2 | L104: $4,720.00 | M104: 0
A105: 192 | B105: LIBRO DE URIANALISIS | E105: UNID | F105: 1 | H105: 1 | I105: 2,360.00 $ | K105: 1 | L105: $2,360.00 | M105: 0
A106: 193 | B106: LIBRO HEMATOLOGIA | E106: UNID | F106: 2 | H106: 2 | I106: 2,000.00 $ | K106: 2 | L106: $4,000.00 | M106: 0
A107: 194 | B107: LIBRO QUIMICO | E107: UNID | F107: 1 | H107: 1 | I107: 2,360.00 $ | K107: 1 | L107: $2,360.00 | M107: 0
A108: 195 | B108: LIBRO INTERNAMIENTO | E108: UNID | F108: 3 | H108: 3 | I108: 1,770.00 $ | K108: 3 | L108: $5,310.00 | M108: 0
A109: 196 | B109: LIBRO DE RAYOS X | E109: UNID | F109: 2 | H109: 2 | I109: 1,770.00 $ | K109: 2 | L109: $3,540.00 | M109: 0
A110: 197 | B110: LIBRO RECORD DE REGISTRO ADOLECENTE | E110: UNID | F110: 0 | H110: 0 | I110: 1,800.00 $ | K110: 0 | L110: 0 | M110: 0
A111: 198 | B111: LIQUID PAPER T/L CORRECTOR | E111: UNID | F111: 1 | H111: 1 | I111: 30.00 $ | J111: 1 | K111: 0 | L111: 0 | M111: $30.00
A112: 199 | B112: MARCADORES AZULES | E112: UNID | F112: 27 | H112: 27 | I112: 30.00 $ | K112: 27 | L112: $810.00 | M112: 0
A113: 200 | B113: MARCADORES NEGROS | E113: UNID | F113: 30 | H113: 30 | I113: 30.00 $ | K113: 30 | L113: $900.00 | M113: 0
A114: 201 | B114: MISTOLIN | E114: GALON | F114: 21 | H114: 21 | I114: 104.00 $ | J114: 10 | K114: 11 | L114: $1,144.00 | M114: $1,040.00
A115: 202 | B115: PAPEL CARBON 8 1/2*11 | E115: UNID | F115: 25 | H115: 25 | I115: 325.00 $ | J115: 2 | K115: 23 | L115: $7,475.00 | M115: $650.00
A116: 203 | B116: PAPEL HIGIENICO FARDO 48/1 | E116: UNID | F116: 128 | H116: 128 | I116: 22.60 $ | J116: 48 | K116: 80 | L116: $1,808.00 | M116: $1,084.80
A117: 204 | B117: PAPEL MANILA NATURAL KRAF | E117: UNID | F117: 1 | H117: 1 | I117: 3,916.00 $ | J117: 1 | K117: 0 | L117: 0 | M117: $3,916.00
A118: 205 | B118: PAPEL TOALLA 6/1 | E118: UNID | F118: 12 | H118: 12 | I118: 95.38 $ | J118: 1 | K118: 11 | L118: $1,049.18 | M118: $95.38
A119: 206 | B119: PERFORADORA 2 | E119: UNID | F119: 0 | H119: 0 | I119: 306.08 $ | K119: 0 | L119: 0 | M119: 0
A120: 207 | B120: PERFORADORA 3 | E120: UNID | F120: 1 | H120: 1 | I120: 631.30 $ | K120: 1 | L120: $631.30 | M120: 0
A121: 208 | B121: PILA AAA PEQUEÑA | E121: UNID | F121: 28 | H121: 28 | I121: 54.00 $ | K121: 28 | L121: $1,512.00 | M121: 0
A122: 209 | B122: PILA AA | E122: UNID | F122: 32 | H122: 32 | I122: 53.00 $ | K122: 32 | L122: $1,696.00 | M122: 0
A123: 210 | B123: PAPEL CON DIVISION 200/1 OPTION | E123: CAJA | F123: 1 | H123: 1 | I123: 1,085.00 $ | J123: 1 | K123: 0 | L123: 0 | M123: $1,085.00
A124: 211 | B124: PLATOS | E124: FARDO | F124: 6 | H124: 6 | I124: 1,291.00 $ | J124: 2 | K124: 4 | L124: $5,164.00 | M124: $2,582.00
A125: 212 | B125: POS-IT 3*3 | E125: RESMA | F125: 0 | H125: 0 | I125: 33.63 $ | K125: 0 | L125: 0 | M125: 0
A126: 213 | B126: RECOJEDOR DE BASURA | E126: UNID | F126: 6 | H126: 6 | I126: 109.25 $ | K126: 6 | L126: $655.50 | M126: 0
A127: 214 | B127: RESALTADOR | E127: UNID | F127: 12 | H127: 12 | I127: 39.00 $ | K127: 12 | L127: $468.00 | M127: 0
A128: 215 | B128: RESMA DE CONTROL DE EXISTENCIA | E128: RESMA | F128: 3 | H128: 3 | I128: 1,298.00 $ | K128: 3 | L128: $3,894.00 | M128: 0
A129: 216 | B129: RESMA HOJA DE MAQUINA 8/2 *11 | E129: RESMA | F129: 73 | H129: 73 | I129: 228.00 $ | J129: 17 | K129: 56 | L129: $12,768.00 | M129: $3,876.00
A130: 217 | B130: ROLLO DE PAPEL SUMADORA | E130: UNID | F130: 16 | H130: 16 | I130: 23.00 $ | J130: 4 | K130: 12 | L130: $276.00 | M130: $92.00
A131: 218 | B131: ROTULO PARA SOLUCION Y MEDICAMENTOS | E131: UNID | F131: 850 | H131: 850 | I131: 6.50 $ | K131: 850 | L131: $5,525.00 | M131: 0
A132: 219 | B132: SACA GRAPA | E132: UNID | F132: 3 | H132: 3 | I132: 30.00 $ | K132: 3 | L132: $90.00 | M132: 0
A133: 220 | B133: SACAPUNTA METAL | E133: UNID | F133: 20 | H133: 20 | I133: 15.00 $ | K133: 20 | L133: $300.00 | M133: 0
A134: 221 | B134: SACO DE DETERGENTE | E134: UNID | F134: 2 | H134: 2 | I134: 1,100.00 $ | K134: 2 | L134: $2,200.00 | M134: 0
A135: 222 | B135: SERVILLETA C-FOLD 24/100 XCELENT | E135: UNID | F135: 102 | H135: 102 | I135: 24.50 $ | K135: 102 | L135: $2,499.00 | M135: 0
A136: 223 | B136: SERVILLETAS DE BINGO 60/1 | E136: UNID | F136: 316 | H136: 316 | I136: 11.50 $ | J136: 30 | K136: 286 | L136: $3,289.00 | M136: $345.00
A137: 224 | B137: SOBRE CARTA VENTANILLA | E137: UNID | F137: 900 | H137: 900 | I137: 1.85 $ | K137: 900 | L137: $1,665.00 | M137: 0
A138: 225 | B138: SOBRE MANILA 9*12 500 UNID | E138: UNID | F138: 390 | H138: 390 | I138: 13.85 $ | K138: 390 | L138: $5,401.50 | M138: 0
A139: 226 | B139: SOBRE MANILA 14*17 1000 UNIDAD | E139: UNID | F139: 910 | H139: 910 | I139: 13.85 $ | K139: 910 | L139: $12,603.50 | M139: 0
A140: 227 | B140: SOBRE MANILA 10*14 DE 500 UNID | E140: UNID | F140: 250 | H140: 250 | I140: 7.10 $ | K140: 250 | L140: $1,775.00 | M140: 0
A141: 228 | B141: SOBRE TIMBRADO | E141: UNID | F141: 285 | H141: 285 | I141: 13.00 $ | K141: 285 | L141: $3,705.00 | M141: 0
A142: 229 | B142: SUAPER JUMBO | E142: GALON | F142: 3 | H142: 3 | I142: 175.00 $ | J142: 2 | K142: 1 | L142: $175.00 | M142: $350.00
A143: 230 | B143: SUAVITEL | E143: GALON | F143: 1 | H143: =F143+G143 -> 1 | I143: 148.31 $ | J143: 1 | K143: =H143-J143 -> 0 | L143: =I143*K143 -> 0 | M143: =I143*J143 -> $148.31
A144: 231 | B144: TALONARIO DE PATOLOGIA | E144: TALONARIO | F144: 25 | H144: 25 | I144: 70.80 $ | K144: 25 | L144: $1,770.00 | M144: 0
A145: 232 | B145: TALONARIO HISTORIAL CLINICO EMERGENCIA | E145: TALONARIO | F145: 0 | G145: 60 | H145: 60 | I145: 275.00 $ | K145: 60 | L145: $16,500.00 | M145: 0
A146: 233 | B146: TALONARIO ORDEN MEDICA | E146: TALONARIO | F146: 25 | H146: 25 | I146: 275.00 $ | K146: 25 | L146: $6,875.00 | M146: 0
A147: 234 | B147: TALONARIO COPROLOGICO | E147: TALONARIO | F147: 96 | H147: 96 | I147: 88.35 $ | K147: 96 | L147: $8,481.60 | M147: 0
A148: 235 | B148: TALALONARIO HEMOTOLOGIA | E148: TALONARIO | F148: 49 | H148: 49 | I148: 88.35 $ | K148: 49 | L148: $4,329.15 | M148: 0
A149: 236 | B149: TALONARIO CONFIMACION DE QUIRURGICA | E149: TALONARIO | F149: 5 | H149: 5 | I149: 185.00 $ | K149: 5 | L149: $925.00 | M149: 0
A150: 237 | B150: TALONARIO LABORATORIO CLINICO | E150: TALONARIO | F150: 37 | H150: 37 | I150: 37.00 $ | J150: 25 | K150: 12 | L150: $444.00 | M150: $925.00
A151: 238 | B151: TALONARIO PARTOGRAMA POSPARTO | E151: TALONARIO | F151: 9 | H151: 9 | I151: 185.00 $ | K151: 9 | L151: $1,665.00 | M151: 0
A152: 239 | B152: TALONARIO HISTORIAL OPERATORIO | E152: RESMA | F152: 1 | H152: 1 | I152: 185.00 $ | K152: 1 | L152: $185.00 | M152: 0
A153: 240 | B153: TALONARIO URIANALISIS | E153: TALONARIO | F153: 108 | H153: 108 | I153: 53.10 $ | K153: 108 | L153: $5,734.80 | M153: 0
A154: 241 | B154: TALONARIO REQUISICION DE FARMACIA | E154: TALONARIO | F154: 6 | H154: 6 | I154: 413.00 $ | K154: 6 | L154: $2,478.00 | M154: 0
A155: 242 | B155: TALONARIO CUIDADO DE ENFERERIA VIH MEDIA | E155: TALONARIO | F155: 8 | H155: 8 | I155: 275.00 $ | K155: 8 | L155: $2,200.00 | M155: 0
A156: 243 | B156: TALONARIO CONCENTIMIENTO INFORMADO LARGO | E156: TALONARIO | F156: 3 | H156: 3 | I156: 756.00 $ | K156: 3 | L156: $2,268.00 | M156: 0
A157: 244 | B157: TALONARIO DE CLASIFICACION | E157: TALONARIO | F157: 30 | H157: 30 | I157: 756.00 $ | K157: 30 | L157: $22,680.00 | M157: 0
A158: 245 | B158: TALONARIO DE CONTROL TEMPERATURA | E158: TALONARIO | F158: 15 | H158: 15 | I158: 294.00 $ | K158: 15 | L158: $4,410.00 | M158: 0
A159: 246 | B159: TALONARIO DE CUOTA DE CONTRIBUCION | E159: TALONARIO | F159: 10 | H159: 10 | I159: 185.00 $ | K159: 10 | L159: $1,850.00 | M159: 0
A160: 247 | B160: TALONARIO PROTOCOLO ATENCION AL PARTO | E160: TALONARIO | F160: 8 | H160: 8 | I160: 185.00 $ | K160: 8 | L160: $1,480.00 | M160: 0
A161: 248 | B161: TALONARIO HOJA DE KARDEX INSUMO | E161: TALONARIO | F161: 9 | H161: 9 | I161: 994.00 $ | K161: 9 | L161: $8,946.00 | M161: 0
A162: 249 | B162: TALONARIO SOLICITUD DE ALMACEN | E162: TALONARIO | F162: 6 | H162: 6 | I162: 224.00 $ | K162: 6 | L162: $1,344.00 | M162: 0
A163: 250 | B163: TALONARIO SALIDA ALMACEN | E163: TALONARIO | F163: 24 | H163: 24 | I163: 275.00 $ | K163: 24 | L163: $6,600.00 | M163: 0
A164: 251 | B164: TAPA DE VASOS #12 CLEA 10/100 | E164: UNID | F164: 0 | H164: 0 | I164: 224.00 $ | K164: 0 | L164: 0 | M164: 0
A165: 252 | B165: TARJETA DE CITA | E165: UNID | F165: 730 | H165: 730 | I165: 2.75 $ | K165: 730 | L165: $2,007.50 | M165: 0
A166: 253 | B166: TARJETA DE EXPEDIENTE | E166: UNID | F166: 1600 | H166: 1600 | I166: 4.50 $ | K166: 1600 | L166: $7,200.00 | M166: 0
A167: 254 | B167: TALONARIO RECETARIO NORMAL | E167: TALONARIO | F167: 926 | H167: 926 | I167: 53.65 $ | J167: 10 | K167: 916 | L167: $49,143.40 | M167: $536.50
A168: 255 | B168: TIJERAS | E168: UNID | F168: 1 | H168: 1 | I168: 62.54 $ | J168: 1 | K168: 0 | L168: 0 | M168: $62.54
A169: 256 | B169: TINTA PARA SELLO AZUL | E169: UNID | F169: 8 | H169: 8 | I169: 106.00 $ | K169: 8 | L169: $848.00 | M169: 0
A170: 257 | B170: TOALLA MICROFIBRA16´´ *16´´ | E170: PAQU | F170: 9 | H170: 9 | I170: 49.56 $ | K170: 9 | L170: $446.04 | M170: 0
A171: 258 | B171: ENVASES PLASTICOS 4 OZ | E171: UNID | F171: 0 | H171: 0 | I171: 147.00 $ | K171: 0 | L171: 0 | M171: 0
A172: 259 | B172: TAPAS PLASTICAS 4 OZ | E172: PAQU | F172: 0 | H172: 0 | I172: 137.00 $ | K172: 0 | L172: 0 | M172: 0
A173: 260 | B173: VASO 12 CAJA 40/25 FOAM | E173: PAQU | F173: 130 | H173: 130 | I173: 53.20 $ | J173: 13 | K173: 117 | L173: $6,224.40 | M173: $691.60
A174: 261 | B174: VASO # 5 | E174: PAQU | F174: 109 | H174: 109 | I174: 55.00 $ | J174: 3 | K174: 106 | L174: $5,830.00 | M174: $165.00
A175: 262 | B175: VASOS #7 | E175: PAQU | F175: 40 | H175: 40 | I175: 38.94 $ | J175: 32 | K175: 8 | L175: $311.52 | M175: $1,246.08
L176: =SUM(L14:L175) -> $614,862.95
J177: TOTAL DE COMSUMO | L177: =SUM(M14:M176) -> $38,573.45
